Workbook

Sheet General Instructions
A1: SMMC ASR DENTAL FINANCIAL REPORTS - GENERAL INSTRUCTIONS
A3: Certification
A4: Each Unaudited Quarterly and Annual ASR Dental Financial Report submitted to the Agency shall be accompanied by a certification/attestation in the format listed in Chapter 2 of the SMMC Report Guide.
A7: Quarterly ASR Dental Financial Report
A8: With the exception of the Q1 ASR Dental Financial Report, unaudited Quarterly ASR Dental Financial Reports are due to the Agency on the 15th of the second month following the end of the reporting quarter, with claims paid through the end of the reporting period. The Q1 ASR Dental Financial Report is due by June 1. Each subsequent quarter's report shall include restated versions of previously submitted quarters, paid through the end of the current reporting period. The ASR and MLR Exhibit shall be prepared using restated financial data. The Quarterly ASR Dental Financial Report shall be submitted with the certification of the CEO or CFO attesting to its accuracy, as discussed in Chapter 2, General Reporting Requirements.
A14: Annual ASR Dental Financial Report
A15: Annual unaudited ASR Dental Financial Reports are due to the Agency by May 1 following the end of the reporting calendar year, with claims paid through March 31. The following shall be submitted as part of the Annual unaudited ASR Dental Financial Report (refer to the Report Guide for further information):
A18: o One set of the completed Annual ASR Dental Financial Report with all applicable schedules completed.
A19: o Actuarial certification of incurred claims
A20: o Claim lag template
A21: o Certification by the CEO or CFO, as discussed in Chapter 2, General Reporting Requirements.
A23: Instructions
A24: 1. | B24: The Dental Health Plan shall prepare the Quarterly and Annual ASR Dental Financial Reports, and applicable schedules, using generally accepted accounting principles (GAAP).
A27: 2. | B27: The Dental Health Plan shall submit reports that are specific to the operations of the Dental Health Plan rather than to a parent or umbrella organization.
A30: 3. | B30: For the Quarterly ASR Dental Financial Reports, report revenues and expenses earned or incurred during the reporting period. An estimated liability shall be reported for expenses Incurred but Not Paid (IBNP). For the Annual ASR Dental Financial Report, report revenue and expenses earned or incurred during the reporting period allowing for the 90 calendar day runout period. An estimated liability shall be reported for IBNP.
A35: 4. | B35: The Dental Health Plan shall complete the Quarterly ASR Dental Financial Reports using the Excel file supplied by the Agency for unaudited quarterly reports and the Annual ASR Dental Financial Report using the Excel file supplied by the Agency for examined annual reports. The following reports/schedules shall be completed and submitted for each region that the Dental Health Plan has a contract:
B39: a. | C39: Quarterly ASR Dental Financial Report (unaudited)
C40: i. | D40: Revenue and Expense Schedule in summary and for each region, each quarter year-to-date
C41: ii. | D41: Related-Party Schedule in summary and for each region, each quarter year-to-date
C42: iii. | D42: Achieved Savings Rebate Exhibit, all quarters year-to-date
C43: iv. | D43: Medical Loss Ratio Exhibit, all quarters year-to-date
B45: b. | C45: Annual ASR Dental Financial Report (unaudited)
C46: i. | D46: Annual Revenue and Expense Schedule in summary and for each region
C47: ii. | D47: Annual Related-Party Schedule Summary Schedule
C48: iii. | D48: Annual Achieved Savings Rebate Exhibit
C49: iv. | D49: Annual Medical Loss Ratio Exhibit
C50: v. | D50: Claim Lag Template
C51: vi. | D51: Underwriting and Investment (U&I) Exhibit, Part 2B (for plans not submitting the annual NAIC Health Statement)
A53: 5. | B53: Refer to the Instructions tabs for the Dental Revenue and Expense Schedules, the ASR Exhibit and MLR exhibit for more detailed instructions listing the type of revenue or expense to be reported on each line of the reports.
A56: 6. | B56: Dental Related-Party Schedules
B57: For each type of service that the Dental Health Plan elects to have a related-party provide, the related-party’s name, the nature of affiliation, service type, and a description of the payment methodology used to compensate the related-party shall be provided on the Related-Party Schedule in the applicable section, as well as the amount paid to each entity. Related-parties can include, but are not limited to:
B61: a. | C61: Any person or entity who directly or indirectly manages, controls, or oversees the operation of the Dental Health Plan, regardless of whether such person or entity is a partner, shareholder, owner, officer, director, agent, or employee of the entity.
B63: b. | C63: Any person or entity who has a financial relationship with the Dental Health Plan as defined by 42 CFR 438.320(1).
B64: c. | C64: An individual or entity who meets the definition of an affiliate as defined in 48 CFR 19.101.
A66: The following instructions shall be used when completing the Related-Party Schedule:
B67: o | C67: Report related-party transactions by type of service, including Fee-for-Service, Subcapitated services, administrative expenses, and other expenses. Refer to the instruction tab for the Dental Revenue and Expense Schedules for additional information concerning the types of administrative expenses and other expenses.
B70: o | C70: Vendor Name: List the name of the entity with which the Dental Health Plan has the related-party affiliation.
B71: o | C71: Affiliation: Describe the nature of the relationship/affiliation with the related-party.
B72: o | C72: Payment Methodology: Select the methodology used to compensate the related-party for the services provided from the drop down list. If Other is selected, please describe in the Notes section.
A75: 7. | B75: Dental Expanded Benefits Schedule
B76: The purpose of this schedule is to report expenses incurred for each expanded benefit provided to Medicaid recipients. The Expanded Benefits schedule
B77: should agree with amounts reported for Expanded Benefits on the Rev-Exp schedules.

Sheet Index
A1: ASR DENTAL FINANCIAL REPORT - INDEX
A4: Section | B4: Tab Name | C4: Description
A5: General | B5: Plan Selection | C5: Displays the applicable Dental and ASR Schedules for the reporting managed care plan based on the plan selected.
A6: General | B6: General Instructions | C6: Provides general instructions for the completion of the ASR Dental Financial Report. Additional instructions can be found on the schedule-specific instructions.
A7: General | B7: Index | C7: Listing of all tabs contained within the ASR Dental Financial Report
A8: General | B8: Changes | C8: Listing of changes made to the ASR Dental Financial Report
A9: General | B9: Jurat | C9: Jurat Page
A10: Dental | B10: Dental Rev-Exp Instructions | C10: Detailed instructions for completion of the Dental Rev-Exp Schedules.
A11: Dental | B11: Dental Rev-Exp - Summary | C11: Summary of dental data reported on the Dental Rev-Exp Regional Schedules.
A12: Dental | B12: Dental Rev-Exp - Region 1 | C12: Dental Revenue and Expense information for Region 1.
A13: Dental | B13: Dental Rev-Exp - Region 2 | C13: Dental Revenue and Expense information for Region 2.
A14: Dental | B14: Dental Rev-Exp - Region 3 | C14: Dental Revenue and Expense information for Region 3.
A15: Dental | B15: Dental Rev-Exp - Region 4 | C15: Dental Revenue and Expense information for Region 4.
A16: Dental | B16: Dental Rev-Exp - Region 5 | C16: Dental Revenue and Expense information for Region 5.
A17: Dental | B17: Dental Rev-Exp - Region 6 | C17: Dental Revenue and Expense information for Region 6.
A18: Dental | B18: Dental Rev-Exp - Region 7 | C18: Dental Revenue and Expense information for Region 7.
A19: Dental | B19: Dental Rev-Exp - Region 8 | C19: Dental Revenue and Expense information for Region 8.
A20: Dental | B20: Dental Rev-Exp - Region 9 | C20: Dental Revenue and Expense information for Region 9.
A21: Dental | B21: Dental Rev-Exp - Region 10 | C21: Dental Revenue and Expense information for Region 10.
A22: Dental | B22: Dental Rev-Exp - Region 11 | C22: Dental Revenue and Expense information for Region 11.
A23: Dental | B23: Dental Exp Benefits | C23: Summary of Dental Expanded Benefits.
A24: Dental | B24: Dental Related-Party - Summary | C24: Summary of dental data reported on the Dental Related-Party Regional Schedules.
A25: ASR | B25: ASR Exhibit Instructions | C25: Detailed instructions for completing the ASR Exhibit
A26: ASR | B26: ASR Exhibit | C26: Schedule for calculating the Achieved Savings Rebate and Medical Loss Ratio.
A27: ASR | B27: ASR Admin Max | C27: Schedule for calculating the Actuarially-Sound Administrative Maximum used in the determining the Achieved Savings Rebate.
A28: ASR | B28: MLR Exhibit Instruction | C28: Detailed instructions for completing the MLR exhibit
A29: ASR | B29: MLR Exhibit | C29: Schedule for calculating the Medical Loss Ratio.
A30: Notes | B30: Notes | C30: Notes section.

Sheet Changes
A1: ASR DENTAL FINANCIAL REPORT - CHANGE LOG
A3: Current Version: | C3: ASR Dental Financial Report, 032123
A4: Previous Version: | C4: ASR Dental Financial Report, 011323
B6: Changes effective with the current version
A8: Section | B8: Change No. | C8: Report Version | D8: Schedule/Excel Tab | E8: Change
A9: All | B9: 1 | C9: 080118 | D9: All | E9: The structure of the Report has been locked. Tabs cannot be added, deleted, or renamed.
A10: General | B10: 1 | C10: 080118 | D10: General Instructions | E10: Included a statement requiring a certification to be submitted along with the ASR Dental Financial Report.
A11: General | B11: =1+B10 -> 2 | C11: 080118 | D11: General Instructions | E11: Added clarification to the ASR Dental Financial Report.
A12: General | B12: =1+B11 -> 3 | C12: 080118 | D12: Jurat | E12: No changes.
A13: General | B13: 4 | C13: 080118 | D13: Changes | E13: Updated for current version changes.
A14: General | B14: 5 | C14: 100119 | D14: General Instructions | E14: Added Medical Loss Ratio Exhibit in items 4a(iv.), 4b(iv.) and 4b(v.) and changed the description in line 11.
A15: General | B15: 6 | C15: 100119 | D15: General Instructions | E15: Added MLR Exhibit in item 5.
A16: Dental | B16: 1 | C16: 080118 | D16: Dental Rev-Exp Instructions | E16: Added instructions for the lines added on the Dental Rev-Exp Summary and Regional tabs, noted below.
A17: Dental | B17: =B16+1 -> 2 | C17: 080118 | D17: Dental Rev-Exp Summary | E17: Added a Settlement line to the dental service category. Instructions added to the Instructions tab.
A18: Dental | B18: =B17+1 -> 3 | C18: 080118 | D18: Dental Rev-Exp Summary | E18: Formulas have been added to populate the Summary schedule from information entered on the Regional schedules. Cells with formulas have been locked.
A19: Dental | B19: 4 | C19: 080118 | D19: Dental Rev-Exp Summary | E19: Formulas added to populate Dental Health Plan, Reporting Period, and Paid Through for all remaining Dental schedules based on what is entered on the Summary.
A20: Dental | B20: 5 | C20: 080118 | D20: Dental Rev-Exp Regional | E20: Regional Tabs added for all 11 regions.
A21: Dental | B21: =B20+1 -> 6 | C21: 080118 | D21: Dental Rev-Exp Regional | E21: Formulas added for totals. Cells with formulas have been locked.
A22: Dental | B22: =B21+1 -> 7 | C22: 080118 | D22: Dental Exp Benefits | E22: Expanded Benefits section added.
A23: Dental | B23: 8 | C23: 080118 | D23: Dental Related-Party Summary | E23: Formulas added for totals. However, cells have not been locked so that additional Vendors can be added, if needed.
A24: Dental | B24: 9 | C24: 021519 | D24: Dental Rev-Exp Summary | E24: Formulas corrected pull from the correct cells.
A25: Dental | B25: 10 | C25: 021519 | D25: Dental Rev-Exp Regional | E25: Formulas corrected pull from the correct cells in the "Total to Date" columns.
A26: Dental | B26: 11 | C26: 050119 | D26: ASR Admin Max | E26: Updated ASR Admin Max schedule based on the methodology changes
A27: Dental | B27: 12 | C27: 050119 | D27: ASR Admin Max | E27: Updated and revised instructions for line 1.1
A28: Dental | B28: 13 | C28: 100119 | D28: ASR Exhibit | E28: Deleted Line 1.5 Revenue Subject to MLR.
A29: Dental | B29: 14 | C29: 100119 | D29: ASR Exhibit | E29: Deleted Line 3.1 Funds to Graduate Medical Education institutions.
A30: Dental | B30: 15 | C30: 100119 | D30: ASR Exhibit | E30: Deleted Line 3.2 Contributions for the Purpose of Supporting Medicaid and Indigent Care.
A31: Dental | B31: 16 | C31: 100119 | D31: ASR Exhibit | E31: Deleted Line 3.3 Total Florida-Specific Contributions.
A32: Dental | B32: 17 | C32: 100119 | D32: ASR Exhibit | E32: Deleted Line 4.1 Improve Health Outcomes.
A33: Dental | B33: 18 | C33: 100119 | D33: ASR Exhibit | E33: Deleted Line 4.2 Activities to Prevent Hospital Readmissions.
A34: Dental | B34: 19 | C34: 100119 | D34: ASR Exhibit | E34: Deleted Line 4.3 Improve Patient Safety and Reducing Medical Errors.
A35: Dental | B35: 20 | C35: 100119 | D35: ASR Exhibit | E35: Deleted Line 4.4 Wellness and Health Promotion Activities.
A36: Dental | B36: 21 | C36: 100119 | D36: ASR Exhibit | E36: Deleted Line 4.5 Health Information Technology (HIT) expenses related to Health Improvement.
A37: Dental | B37: 22 | C37: 100119 | D37: ASR Exhibit | E37: Deleted Line 4.6 Total of Defined Expenses incurred for improving Health Care Quality.
A38: Dental | B38: 23 | C38: 100119 | D38: ASR Exhibit | E38: Deleted Line 5.0 Deductible Fraud and Abuse Detection/Recovery Expenses (MLR only).
A39: Dental | B39: 24 | C39: 100119 | D39: ASR Exhibit | E39: Deleted Line 6.0 Preliminary Medical Loss Ratio: MLR.
A40: Dental | B40: 25 | C40: 100119 | D40: ASR Exhibit | E40: Deleted Line 1.6 Add: Income taxes deducted from Revenue for Federal MLR reporting
A41: Dental | B41: 26 | C41: 100119 | D41: ASR Exhibit Instructions | E41: Instructions have been revised for the above changes.
A42: Dental | B42: 27 | C42: 100119 | D42: ASR Exhibit Instructions | E42: Instructions have been revised from Excel line 5 to line 10. Removed one quarter lag behind Revenue & Expense schedule
A43: Dental | B43: 28 | C43: 100119 | D43: ASR Exhibit Instructions | E43: Instructions have been revised for line 1.2 Federal Taxes and Assessments, ACA9010. Removed income taxes deductible from revenue.
A44: Dental | B44: 29 | C44: 100119 | D44: ASR Exhibit Instructions | E44: Instructions have been revised from line 1.3 State insurance, Premium and other Taxes. Removed income taxes deductible from revenue.
A45: Dental | B45: 30 | C45: 100119 | D45: ASR Exhibit Instructions | E45: Removed line 1.6 Add; Income taxes deducted from Revenue for Federal MLR reporting.
A46: Dental | B46: 31 | C46: 100119 | D46: MLR Instructions | E46: Added Medical Loss Ratio Instructions Tab.
A47: Dental | B47: 32 | C47: 100119 | D47: MLR Exhibit | E47: Added Medical Loss Ratio Exhibit Tab. This change is related to CMCS informational bulletin issued on May 15, 2019 " Medical Loss Ratio (MLR) Requirements Related to Third Party Vendors"
A48: Dental | B48: 33 | C48: 011520 | D48: MLR Instructions | E48: Added item 2.4 instruction for Incurred But Not Paid Ending Balance-Subcontractors
A49: Dental | B49: 34 | C49: 011520 | D49: MLR exhibit | E49: Added item 2.4-Incurred But Not Paid Ending Balance-Subcontractors
A50: Dental | B50: 35 | C50: 033020 | D50: ASR Exhibit | E50: Updated the formula for cell H30
A51: Dental | B51: 36 | C51: 033020 | D51: ASR Admin Max | E51: Updated instructions for line 1.0 and 1.1. Added Note 1
A52: Dental | B52: 37 | C52: 033020 | D52: ASR Admin Max | E52: Added information in line 4 and line 5 for reporting period and paid through
A53: Dental | B53: 38 | C53: 033020 | D53: ASR Admin Max-period 2 | E53: Added ASR Admin Max-period 2 tab. This tab represents admin max for reporting period from Oct 1, 2019 to Dec 31, 2019. Please see note 1 for PMPM instruction
A54: Dental | B54: 39 | C54: 042720 | D54: ASR Admin Max | E54: Updated instructions from line 19 to line 26
A55: Dental | B55: 40 | C55: 042720 | D55: ASR Admin Max-period 2 | E55: Updated instructions from line 19 to line 24
A56: Dental | B56: 41 | C56: 091520 | D56: Encounter Instructions | E56: Added Encounter Instructions tab
A57: Dental | B57: 42 | C57: 091520 | D57: Dental Encounter | E57: Added Dental Encounter tab and formulas
A58: Dental | B58: 43 | C58: 072121 | D58: ASR exhibit | E58: Removed premium deficiency reserve and other reserve account contributions.
A59: Dental | B59: 44 | C59: 072121 | D59: MLR exhibit | E59: Removed premium deficiency reserve and other reserve account contributions.
A60: Dental | B60: 45 | C60: 072121 | D60: Dental Encounter | E60: Updated the formula for cell C24
A61: Dental | B61: 46 | C61: 11323 | D61: Dental Encounter | E61: Corrected formulas in cells F12-F24
A62: Dental | B62: 47 | C62: 32123 | D62: MLR Instructions - Dental Plan | E62: Added instructions on how to calculate MLR Credibility Adjustment
A63: Dental | B63: 48 | C63: 32123 | D63: MLR Exhibit - Dental | E63: Added MLR Credibility Adjustment calculation

Sheet Jurat
C1: HEALTH PLAN NAME | G1: Calendar Year: | I1: 2022
C2: DentaQuest of Florida, Inc.
C3: ADDRESS
C4: 96 Worcester St, Wellesley Hills, MA 02481 | H4: (street, city, zip)
C5: PARENT COMPANY NAME
C6: DentaQuest, LLC
B8: CONTACT PERSON: | C8: Jay Ronck
B9: TELEPHONE: | C9: 617.886.1039
B10: FAX:
B11: E-MAIL ADDRESS: | C11: Jay.Ronck@greatdentalplans.com
C12: PRESIDENT, C.E.O.
C14: OFFICERS AND DIRECTORS
B15: Name: | E15: Title:
A16: 1. | B16: Brett A. Bostrack | E16: President
A17: 2. | B17: Robert E. Lynn | E17: Vice President
A18: 3. | B18: Colleen L. Kallas | E18: Secretary
A19: 4. | B19: Miles Yakre | E19: Treasurer
A20: 5.
A21: 6.
A22: 7.
A23: 8.
A24: 9.
A25: 10.
C28: Company Filing Status: (1) For-Profit (2) Not-For-Profit
D32: FOR THE QUARTER ENDING
D33: 2022-12-31
B35: -----------------------------------------------------------------------------
B36: CEO/PRESIDENT'S SIGNATURE
B38: AUTHORITY GRANTED BY :
B39: AGENCY FOR HEALTH CARE ADMINISTRATION

Sheet Dental Rev-Exp Instructions
A1: DENTAL REVENUE AND EXPENSE SCHEDULE - INSTRUCTIONS
A2: QUARTERLY AND ANNUAL
A4: Coverage: | B4: Reported for dental experience, by region and by rate cell. Summary report aggregates all contracted regions.
A5: Reporting Period: | B5: Quarter YTD; each quarterly submission introduces a new quarter and updates prior quarters.
A6: June 1 | B6: Q1 Revenue & Expense Schedule includes only January - March (paid through March).
A7: August 15 | B7: Q2 Revenue & Expense Schedule includes restated January - March, first look at April - June (all paid through June).
A8: November 15 | B8: Q3 Revenue & Expense Schedule includes restated January - March and April - June, first look at July - September (all paid through September).
A9: February 15 | B9: Q4 Revenue & Expense Schedule includes restated quarters 1 - 3, first look at October - December (all paid through December).
A10: May 1 | B10: Annual Revenue & Expense Schedule includes restated quarters 1-4 of prior calendar year, all paid through March.
A12: Health Plan: | B12: Name or D/B/A of the reporting prepaid dental health plan.
A13: Reporting Period: | B13: Based upon the reporting periods identified above.
A14: Paid Through: | B14: Based on the paid through timeframes identified above.
A15: Region: | B15: Applicable only for Regional reports.
A17: Note 1: The Prior Year Adjustment column shall be used to report all prior period activity, including changes in estimates.
A18: Note 2: Please exclude Medical School Pass-through Payments from the Dental Report.
A20: MEMBER MONTHS | D20: Number of members enrolled in each month. Year-to-Date is the sum of the member months over the individual months of the period.
A21: REVENUES
A23: Revenues | B23: 1.1 | C23: Capitation | D23: Monthly premium payments earned on behalf of Medicaid recipients. Report accrued revenue details, including the type and the amounts, in the notes tab of this report.
B24: 1.2 | C24: ACA § 9010 related payments | D24: Amounts earned by plans for the Health Insurance Providers Fee and associated tax gross-ups. Report accrued revenue details, including the type and the amounts, in the notes tab of this report.
B25: 1.3 | C25: Other Revenue | D25: Plan-related revenue earned from other sources not listed in lines 1.1 through 1.2. -- does not include investment gains. Report details of this income, including the type and amount, in the notes section of this report.
B26: 1.4 | C26: Total Revenue | D26: Sum of lines 1.1 through 1.3 (Direct business, not increased for reinsurance assumed and not reduced by reinsurance ceded)
A27: BENEFIT EXPENSES
A29: Dental | B29: 2.1 | C29: Dental Services Diagnostic FFS | D29: Expenses incurred for Clinical Oral Evaluations, Pre-diagnostic Services, Diagnostic Imaging, and Tests and Examinations.
B30: 2.2 | C30: Dental Services Preventive FFS | D30: Expenses incurred for Dental Prophylaxis, Topical Fluoride Treatment (Office Procedure), Space Maintenance (Passive Appliances), and Other Preventive Services.
B31: 2.3 | C31: Dental Services Restorative FFS | D31: Expenses incurred for Amalgam Restorations (Including Polishing), Resin-Based Composite Restorations - Direct, Crowns - Single Restorations Only, and Other Restorative Services.
B32: 2.4 | C32: Dental Services Endodontics FFS | D32: Expenses incurred for Pulp Capping, Pulpotomy, Endodontic Therapy on Primary Teeth, Endodontic Therapy (Including Treatment Plan, Clinical Procedures and Follow-Up Care), Apexification/Recalcification, and Apicoectomy/Periradicular Services.
B33: 2.5 | C33: Dental Services Periodontics FFS | D33: Expenses incurred for non- Oral and Maxillofacial Surgical Services (e.g. gingivectomy, gingivoplasty, gingival flap procedure, osseous surgery) including Usual Postoperative Care and Non-Surgical Periodontal Services.
B34: 2.6 | C34: Dental Services Prosthodontics FFS | D34: Expenses incurred for Complete Dentures (Including Routine Post-Delivery Care), Partial Dentures (Including Routine Post-Delivery Care), Adjustments to Dentures, Repairs to Complete Dentures, Repairs to Partial Dentures, Denture Reline Procedures, and Interim Prosthesis.
B35: 2.7 | C35: Dental Services Prosthodontics, fixed FFS | D35: Expenses incurred for Other Fixed Partial Denture Services.
B36: 2.8 | C36: Dental Services Oral and Maxillofacial Surgery FFS | D36: Expenses incurred for Extractions (Includes Local Anesthesia, Suturing, If Needed, and Routine Postoperative Care), Surgical Extractions (Includes Local Anesthesia, Suturing, If Needed, and Routine Postoperative Care) , Surgical Incision, Alveoloplasty - Surgical Preparation of Ridge, Excision of Bone Tissue, Reduction of Dislocation and Management of Other Temporomandibular Joint Dysfunctions, Other Surgical Procedures, and Other Repair Procedures (such as Excision of hyperplastic tissue – per arch) .
B37: 2.9 | C37: Dental Services Orthodontics FFS | D37: Expenses incurred for Comprehensive Orthodontic Treatment, Minor Treatment to Control Harmful Habits, and Other Orthodontic Services.
B38: 2.10 | C38: Dental Services Adjunctive General Services FFS | D38: Expenses incurred for Anesthesia, Professional Consultation, Professional Visits, Behavior Management, and Palliative (Emergency) Treatment of Dental Pain.
B39: 2.11 | C39: Dental Services Other FFS | D39: Expenses incurred for covered services not included on lines 2.1 through 2.10.
B40: 2.12 | C40: Dental Expanded Benefits FFS | D40: Expenses incurred for services that may be offered by the health plan in excess of the amount, duration, and scope of services listed in the Medicaid Dental Health Plan Contract, Attachment II, Sections VI.
B41: 2.13 | C41: Dental Services Paid through Subcapitation | D41: Expenses incurred for subcapitated payments to providers for dental services.
B42: 2.14 | C42: Ending IBNP for Dental Services | D42: Estimated amount for Dental Services incurred but not paid (IBNP). Amounts should be "Best Estimate" and should not include margin or LAE. The Prior Calendar Year column should include a reversal of the prior year's IBNP as claims experience develops.
B43: 2.15 | C43: Dental Settlements/AP | D43: Expenses incurred for dental services associated with provider, recipient, legal, and/or TPL settlements not included on lines 2.1 through 2.14. Also includes alternative payment arrangements.
B44: 2.16 | C44: Total Dental Services | D44: Sum of lines 2.1 through 2.15
A45: Total Before and After Reinsurance | B45: 3.1 | C45: Total Dental Services Paid Directly FFS | D45: Sum of lines 2.1 through 2.12
B46: 3.2 | C46: Total Dental Services Paid through Subcapitation | D46: Sum of line 2.13
B47: 3.3 | C47: Total Dental Services Paid Directly -- IBNP | D47: Sum of line 2.14
B48: 3.4 | C48: Total Dental Services Paid by Settlements/AP | D48: Sum of line 2.15
B49: 3.5 | C49: TPL & Fraud/Abuse Recoveries | D49: Recoveries due to Third-Party Liability, Fraud & Abuse, and other overpayment recovery efforts not included in lines 3.1 through 3.3. Reported as a negative amount.
B50: 3.6 | C50: Premium Deficiency Reserve | D50: Provision for Premium Deficiency Reserve.
B51: 3.7 | C51: Subtotal Benefit Expense before Reinsurance | D51: Sum of lines 3.1 through 3.6
B52: 3.8 | C52: Reinsurance Premiums | D52: Amounts incurred by plans to authorized companies assuming risk.
B53: 3.9 | C53: Reinsurance Recoveries | D53: Amounts recovered and changes in accrued amounts recoverable from reinsurers on paid losses and on losses included in IBNP. Reported as a negative amount.
B54: 3.10 | C54: Net cost of Reinsurance | D54: Sum of Lines 3.8 and line 3.9
B55: 3.11 | C55: Grand Total Medical Benefit Expense Net of Reinsurance | D55: Sum of line 3.7 plus line 3.10
A56: Administrative Expenses, Government-Mandated Assessments, Taxes, and Fees
A57: Administrative Expenses | B57: 4.1 | C57: Salaries & Benefits | D57: Direct salary, benefit, and payroll tax expenses. Reported separately for direct health plan expenses and corporate allocations.
B58: 4.2 | C58: Administrative Services | D58: Non-salary/benefit-related expenses for accounting, actuarial, risk management, legal, investment services, underwriting, etc. Includes payments to parent company or other contracted entities. Reported separately for direct health plan expenses and corporate allocations.
B59: 4.3 | C59: Information Systems | D59: Claims processing, pharmacy benefits management, and other information systems expenses. Includes payments to parent company or contracted entities. Reported separately for direct health plan expenses and corporate allocations.
B60: 4.4 | C60: Marketing Expenses | D60: Market research, marketing campaigns/advertising, public relations. Reported separately for direct health plan expenses and corporate allocations.
B61: 4.5 | C61: General Administration | D61: Direct & Allocated overhead, rent, utilities, supplies, insurance, and other operating expenses not specifically identified in lines 4.1 through 4.4. Reported separately for direct health plan expenses and corporate allocations.
B62: 4.6 | C62: Compliance/Regulatory | D62: Expenses associated with fines, penalties, liquidated damages, or other compliance matters as identified/levied by governmental or other regulatory entities. Reported separately for direct health plan expenses and corporate allocations.
B63: 4.7 | C63: Total Administrative Expenses | D63: Sum of lines 4.1 through 4.6
A64: Government-Mandated Assessments, Taxes, and Fees Other Than Income Taxes | B64: 5.1 | C64: State Premium tax | D64: Amounts paid or payable on premium revenue in 1.4
B65: 5.2 | C65: Department of Insurance Assessments | D65: Amounts paid or payable related to premium revenue in 1.4
B66: 5.3 | C66: Section 9010 Health Insurance Providers Fee | D66: Amounts payable for the HIPF calculated from amounts of premium revenue filed on Form 8963.
B67: 5.4 | C67: Other 1 | D67: Additional assessments, taxes, and fees not reported on lines 5.1 through 5.3, as needed. Additional information to be provided in the Notes section.
B68: 5.5 | C68: Other 2 | D68: Additional assessments, taxes, and fees not reported on lines 5.1 through 5.3, as needed. Additional information to be provided in the Notes section.
B69: 5.6 | C69: Other 3 | D69: Additional assessments, taxes, and fees not reported on lines 5.1 through 5.3, as needed. Additional information to be provided in the Notes section.
B70: 5.7 | C70: Total | D70: Sum of lines 5.1 through 5.6
B71: 6.0 | C71: Grand Total Expenses | D71: Sum of lines 3.11 and 4.7 and 5.7
B72: 7.0 | C72: Underwriting Gain / (Loss) --- AKA Pre-tax Earnings from Operations | D72: Line 1.4 minus 6.0
B73: 8.0 | C73: Income Tax Expense | D73: Domestic federal, state, and local taxes based on income from operations.
B74: 9.0 | C74: Net Underwriting Gain (Loss) from Operations | D74: Line 7.0 minus 8.0

Sheet Dental Rev-Exp Summary
A1: DENTAL -- REVENUE AND EXPENSE SCHEDULE - SUMMARY
A3: Health Plan: | B3: =[2]Jurat!$C$2 -> DentaQuest of Florida, Inc.
A4: Reporting Period: | B4: 1/1/2022 - 12/31/2022
A5: Paid Through: | B5: 2022-12-31
A6: Summary
D7: JANUARY - MARCH (Q1) | J7: APRIL - JUNE (Q2) | P7: JULY - SEPTEMBER (Q3) | V7: OCTOBER - DECEMBER (Q4) | AC7: TOTAL (TO DATE)
D8: Total | E8: Medicaid Only/Dual Eligible 0-20 Years | F8: Medicaid Only 21+ Years | G8: Dual Eligible 21+ Years | H8: Medically Needy 0-20 Years | I8: Medically Needy 21+ Years | J8: Total | K8: Medicaid Only/Dual Eligible 0-20 Years | L8: Medicaid Only 21+ Years | M8: Dual Eligible 21+ Years | N8: Medically Needy 0-20 Years | O8: Medically Needy 21+ Years | P8: Total | Q8: Medicaid Only/Dual Eligible 0-20 Years | R8: Medicaid Only 21+ Years | S8: Dual Eligible 21+ Years | T8: Medically Needy 0-20 Years | U8: Medically Needy 21+ Years | V8: Total | W8: Medicaid Only/Dual Eligible 0-20 Years | X8: Medicaid Only 21+ Years | Y8: Dual Eligible 21+ Years | Z8: Medically Needy 0-20 Years | AA8: Medically Needy 21+ Years | AB8: Prior Year Adjustments | AC8: Total | AD8: Medicaid Only/Dual Eligible 0-20 Years | AE8: Medicaid Only 21+ Years | AF8: Dual Eligible 21+ Years | AG8: Medically Needy 0-20 Years | AH8: Medically Needy 21+ Years
A9: MEMBER MONTHS | D9: =SUM(E9:I9) -> 5,463,349.14 | E9: =SUM('Dental Rev-Exp Region 1:Dental Rev-Exp Region 11'!E9) -> 3,494,573.08 | F9: =SUM('Dental Rev-Exp Region 1:Dental Rev-Exp Region 11'!F9) -> 1,533,003.72 | G9: =SUM('Dental Rev-Exp Region 1:Dental Rev-Exp Region 11'!G9) -> 334,196.71 | H9: =SUM('Dental Rev-Exp Region 1:Dental Rev-Exp Region 11'!H9) -> 17,229.58 | I9: =SUM('Dental Rev-Exp Region 1:Dental Rev-Exp Region 11'!I9) -> 84,346.05 | J9: =SUM(K9:O9) -> 5,506,956.17 | K9: =SUM('Dental Rev-Exp Region 1:Dental Rev-Exp Region 11'!K9) -> 3,504,101.85 | L9: =SUM('Dental Rev-Exp Region 1:Dental Rev-Exp Region 11'!L9) -> 1,601,246.11 | M9: =SUM('Dental Rev-Exp Region 1:Dental Rev-Exp Region 11'!M9) -> 301,175.47 | N9: =SUM('Dental Rev-Exp Region 1:Dental Rev-Exp Region 11'!N9) -> 17,126.68 | O9: =SUM('Dental Rev-Exp Region 1:Dental Rev-Exp Region 11'!O9) -> 83,306.06 | P9: =SUM(Q9:U9) -> 5,694,633.35 | Q9: =SUM('Dental Rev-Exp Region 1:Dental Rev-Exp Region 11'!Q9) -> 3,575,416.81 | R9: =SUM('Dental Rev-Exp Region 1:Dental Rev-Exp Region 11'!R9) -> 1,714,966.24 | S9: =SUM('Dental Rev-Exp Region 1:Dental Rev-Exp Region 11'!S9) -> 302,449.19 | T9: =SUM('Dental Rev-Exp Region 1:Dental Rev-Exp Region 11'!T9) -> 17,213.36 | U9: =SUM('Dental Rev-Exp Region 1:Dental Rev-Exp Region 11'!U9) -> 84,587.75 | V9: =SUM(W9:AA9) -> 5,803,170.58 | W9: =SUM('Dental Rev-Exp Region 1:Dental Rev-Exp Region 11'!W9) -> 3,599,180.07 | X9: =SUM('Dental Rev-Exp Region 1:Dental Rev-Exp Region 11'!X9) -> 1,801,444.66 | Y9: =SUM('Dental Rev-Exp Region 1:Dental Rev-Exp Region 11'!Y9) -> 301,570.79 | Z9: =SUM('Dental Rev-Exp Region 1:Dental Rev-Exp Region 11'!Z9) -> 17,213.11 | AA9: =SUM('Dental Rev-Exp Region 1:Dental Rev-Exp Region 11'!AA9) -> 83,761.95 | AB9: =SUM('Dental Rev-Exp Region 1:Dental Rev-Exp Region 11'!AB9) -> 103,035.60 | AC9: =SUM(AD9:AH9)+AB9 -> 22,571,144.84 | AD9: =SUM('Dental Rev-Exp Region 1:Dental Rev-Exp Region 11'!AD9) -> 14,173,271.81 | AE9: =SUM('Dental Rev-Exp Region 1:Dental Rev-Exp Region 11'!AE9) -> 6,650,660.73 | AF9: =SUM('Dental Rev-Exp Region 1:Dental Rev-Exp Region 11'!AF9) -> 1,239,392.16 | AG9: =SUM('Dental Rev-Exp Region 1:Dental Rev-Exp Region 11'!AG9) -> 68,782.73 | AH9: =SUM('Dental Rev-Exp Region 1:Dental Rev-Exp Region 11'!AH9) -> 336,001.81
A10: REVENUES
A11: Revenues | B11: 1.1 | C11: Capitation | D11: =SUM(E11:I11) -> 46,738,100.46 | E11: =SUM('Dental Rev-Exp Region 1:Dental Rev-Exp Region 11'!E11) -> 39,483,447.22 | F11: =SUM('Dental Rev-Exp Region 1:Dental Rev-Exp Region 11'!F11) -> 6,014,041.47 | G11: =SUM('Dental Rev-Exp Region 1:Dental Rev-Exp Region 11'!G11) -> 888,657.23 | H11: =SUM('Dental Rev-Exp Region 1:Dental Rev-Exp Region 11'!H11) -> 96,585.18 | I11: =SUM('Dental Rev-Exp Region 1:Dental Rev-Exp Region 11'!I11) -> 255,369.36 | J11: =SUM(K11:O11) -> 47,441,005.92 | K11: =SUM('Dental Rev-Exp Region 1:Dental Rev-Exp Region 11'!K11) -> 39,868,391.90 | L11: =SUM('Dental Rev-Exp Region 1:Dental Rev-Exp Region 11'!L11) -> 6,344,815.40 | M11: =SUM('Dental Rev-Exp Region 1:Dental Rev-Exp Region 11'!M11) -> 871,895.90 | N11: =SUM('Dental Rev-Exp Region 1:Dental Rev-Exp Region 11'!N11) -> 97,015.54 | O11: =SUM('Dental Rev-Exp Region 1:Dental Rev-Exp Region 11'!O11) -> 258,887.18 | P11: =SUM(Q11:U11) -> 48,169,893.30 | Q11: =SUM('Dental Rev-Exp Region 1:Dental Rev-Exp Region 11'!Q11) -> 40,213,491.26 | R11: =SUM('Dental Rev-Exp Region 1:Dental Rev-Exp Region 11'!R11) -> 6,735,102.32 | S11: =SUM('Dental Rev-Exp Region 1:Dental Rev-Exp Region 11'!S11) -> 860,463.13 | T11: =SUM('Dental Rev-Exp Region 1:Dental Rev-Exp Region 11'!T11) -> 98,115.97 | U11: =SUM('Dental Rev-Exp Region 1:Dental Rev-Exp Region 11'!U11) -> 262,720.62 | V11: =SUM(W11:AA11) -> 44,827,727.42 | W11: =SUM('Dental Rev-Exp Region 1:Dental Rev-Exp Region 11'!W11) -> 37,183,085.69 | X11: =SUM('Dental Rev-Exp Region 1:Dental Rev-Exp Region 11'!X11) -> 6,480,661.45 | Y11: =SUM('Dental Rev-Exp Region 1:Dental Rev-Exp Region 11'!Y11) -> 838,974.14 | Z11: =SUM('Dental Rev-Exp Region 1:Dental Rev-Exp Region 11'!Z11) -> 86,168.48 | AA11: =SUM('Dental Rev-Exp Region 1:Dental Rev-Exp Region 11'!AA11) -> 238,837.66 | AB11: =SUM('Dental Rev-Exp Region 1:Dental Rev-Exp Region 11'!AB11) -> 187,656.73 | AC11: =SUM(AD11:AH11)+AB11 -> 187,364,383.83 | AD11: =SUM('Dental Rev-Exp Region 1:Dental Rev-Exp Region 11'!AD11) -> 156,748,416.07 | AE11: =SUM('Dental Rev-Exp Region 1:Dental Rev-Exp Region 11'!AE11) -> 25,574,620.64 | AF11: =SUM('Dental Rev-Exp Region 1:Dental Rev-Exp Region 11'!AF11) -> 3,459,990.40 | AG11: =SUM('Dental Rev-Exp Region 1:Dental Rev-Exp Region 11'!AG11) -> 377,885.17 | AH11: =SUM('Dental Rev-Exp Region 1:Dental Rev-Exp Region 11'!AH11) -> 1,015,814.82
B12: 1.2 | C12: ACA § 9010 related payments | D12: =SUM(E12:I12) -> 0 | E12: =SUM('Dental Rev-Exp Region 1:Dental Rev-Exp Region 11'!E12) -> 0 | F12: =SUM('Dental Rev-Exp Region 1:Dental Rev-Exp Region 11'!F12) -> 0 | G12: =SUM('Dental Rev-Exp Region 1:Dental Rev-Exp Region 11'!G12) -> 0 | H12: =SUM('Dental Rev-Exp Region 1:Dental Rev-Exp Region 11'!H12) -> 0 | I12: =SUM('Dental Rev-Exp Region 1:Dental Rev-Exp Region 11'!I12) -> 0 | J12: =SUM(K12:O12) -> 0 | K12: =SUM('Dental Rev-Exp Region 1:Dental Rev-Exp Region 11'!K12) -> 0 | L12: =SUM('Dental Rev-Exp Region 1:Dental Rev-Exp Region 11'!L12) -> 0 | M12: =SUM('Dental Rev-Exp Region 1:Dental Rev-Exp Region 11'!M12) -> 0 | N12: =SUM('Dental Rev-Exp Region 1:Dental Rev-Exp Region 11'!N12) -> 0 | O12: =SUM('Dental Rev-Exp Region 1:Dental Rev-Exp Region 11'!O12) -> 0 | P12: =SUM(Q12:U12) -> 0 | Q12: =SUM('Dental Rev-Exp Region 1:Dental Rev-Exp Region 11'!Q12) -> 0 | R12: =SUM('Dental Rev-Exp Region 1:Dental Rev-Exp Region 11'!R12) -> 0 | S12: =SUM('Dental Rev-Exp Region 1:Dental Rev-Exp Region 11'!S12) -> 0 | T12: =SUM('Dental Rev-Exp Region 1:Dental Rev-Exp Region 11'!T12) -> 0 | U12: =SUM('Dental Rev-Exp Region 1:Dental Rev-Exp Region 11'!U12) -> 0 | V12: =SUM(W12:AA12) -> 0 | W12: =SUM('Dental Rev-Exp Region 1:Dental Rev-Exp Region 11'!W12) -> 0 | X12: =SUM('Dental Rev-Exp Region 1:Dental Rev-Exp Region 11'!X12) -> 0 | Y12: =SUM('Dental Rev-Exp Region 1:Dental Rev-Exp Region 11'!Y12) -> 0 | Z12: =SUM('Dental Rev-Exp Region 1:Dental Rev-Exp Region 11'!Z12) -> 0 | AA12: =SUM('Dental Rev-Exp Region 1:Dental Rev-Exp Region 11'!AA12) -> 0 | AB12: =SUM('Dental Rev-Exp Region 1:Dental Rev-Exp Region 11'!AB12) -> 0 | AC12: =SUM(AD12:AH12)+AB12 -> 0 | AD12: =SUM('Dental Rev-Exp Region 1:Dental Rev-Exp Region 11'!AD12) -> 0 | AE12: =SUM('Dental Rev-Exp Region 1:Dental Rev-Exp Region 11'!AE12) -> 0 | AF12: =SUM('Dental Rev-Exp Region 1:Dental Rev-Exp Region 11'!AF12) -> 0 | AG12: =SUM('Dental Rev-Exp Region 1:Dental Rev-Exp Region 11'!AG12) -> 0 | AH12: =SUM('Dental Rev-Exp Region 1:Dental Rev-Exp Region 11'!AH12) -> 0
B13: 1.3 | C13: Other Revenue | D13: 0 | E13: =SUM('Dental Rev-Exp Region 1:Dental Rev-Exp Region 11'!E13) -> 0 | F13: =SUM('Dental Rev-Exp Region 1:Dental Rev-Exp Region 11'!F13) -> 0 | G13: =SUM('Dental Rev-Exp Region 1:Dental Rev-Exp Region 11'!G13) -> 0 | H13: =SUM('Dental Rev-Exp Region 1:Dental Rev-Exp Region 11'!H13) -> 0 | I13: =SUM('Dental Rev-Exp Region 1:Dental Rev-Exp Region 11'!I13) -> 0 | J13: 0 | K13: =SUM('Dental Rev-Exp Region 1:Dental Rev-Exp Region 11'!K13) -> 0 | L13: =SUM('Dental Rev-Exp Region 1:Dental Rev-Exp Region 11'!L13) -> 0 | M13: =SUM('Dental Rev-Exp Region 1:Dental Rev-Exp Region 11'!M13) -> 0 | N13: =SUM('Dental Rev-Exp Region 1:Dental Rev-Exp Region 11'!N13) -> 0 | O13: =SUM('Dental Rev-Exp Region 1:Dental Rev-Exp Region 11'!O13) -> 0 | P13: 0 | Q13: =SUM('Dental Rev-Exp Region 1:Dental Rev-Exp Region 11'!Q13) -> 0 | R13: =SUM('Dental Rev-Exp Region 1:Dental Rev-Exp Region 11'!R13) -> 0 | S13: =SUM('Dental Rev-Exp Region 1:Dental Rev-Exp Region 11'!S13) -> 0 | T13: =SUM('Dental Rev-Exp Region 1:Dental Rev-Exp Region 11'!T13) -> 0 | U13: =SUM('Dental Rev-Exp Region 1:Dental Rev-Exp Region 11'!U13) -> 0 | V13: 0 | W13: =SUM('Dental Rev-Exp Region 1:Dental Rev-Exp Region 11'!W13) -> 0 | X13: =SUM('Dental Rev-Exp Region 1:Dental Rev-Exp Region 11'!X13) -> 0 | Y13: =SUM('Dental Rev-Exp Region 1:Dental Rev-Exp Region 11'!Y13) -> 0 | Z13: =SUM('Dental Rev-Exp Region 1:Dental Rev-Exp Region 11'!Z13) -> 0 | AA13: =SUM('Dental Rev-Exp Region 1:Dental Rev-Exp Region 11'!AA13) -> 0 | AB13: =SUM('Dental Rev-Exp Region 1:Dental Rev-Exp Region 11'!AB13) -> 0 | AC13: =SUM(AD13:AH13)+AB13 -> 0 | AD13: =SUM('Dental Rev-Exp Region 1:Dental Rev-Exp Region 11'!AD13) -> 0 | AE13: =SUM('Dental Rev-Exp Region 1:Dental Rev-Exp Region 11'!AE13) -> 0 | AF13: =SUM('Dental Rev-Exp Region 1:Dental Rev-Exp Region 11'!AF13) -> 0 | AG13: =SUM('Dental Rev-Exp Region 1:Dental Rev-Exp Region 11'!AG13) -> 0 | AH13: =SUM('Dental Rev-Exp Region 1:Dental Rev-Exp Region 11'!AH13) -> 0
B14: 1.4 | C14: Total Revenue | D14: =SUM(D11:D13) -> 46,738,100.46 | E14: =SUM(E11:E13) -> 39,483,447.22 | F14: 6,014,041.47 | G14: 888,657.23 | H14: 96,585.18 | I14: 255,369.36 | J14: =SUM(J11:J13) -> 47,441,005.92 | K14: =SUM(K11:K13) -> 39,868,391.90 | L14: 6,344,815.40 | M14: 871,895.90 | N14: 97,015.54 | O14: 258,887.18 | P14: =SUM(P11:P13) -> 48,169,893.30 | Q14: =SUM(Q11:Q13) -> 40,213,491.26 | R14: 6,735,102.32 | S14: 860,463.13 | T14: 98,115.97 | U14: 262,720.62 | V14: =SUM(V11:V13) -> 44,827,727.42 | W14: 37,183,085.69 | X14: 6,480,661.45 | Y14: 838,974.14 | Z14: =SUM(Z11:Z13) -> 86,168.48 | AA14: 238,837.66 | AB14: =SUM(AB11:AB13) -> 187,656.73 | AC14: =SUM(AC11:AC13) -> 187,364,383.83 | AD14: =SUM(AD11:AD13) -> 156,748,416.07 | AE14: 25,574,620.64 | AF14: 3,459,990.40 | AG14: 377,885.17 | AH14: =SUM(AH11:AH13) -> 1,015,814.82
A15: BENEFIT EXPENSES | D15: JANUARY - MARCH (Q1) | J15: APRIL - JUNE (Q2) | P15: JULY - SEPTEMBER (Q3) | V15: OCTOBER - DECEMBER (Q4) | AC15: TOTAL (TO DATE)
D16: Total | E16: Medicaid Only/Dual Eligible 0-20 Years | F16: Medicaid Only 21+ Years | G16: Dual Eligible 21+ Years | H16: Medically Needy 0-20 Years | I16: Medically Needy 21+ Years | J16: Total | K16: Medicaid Only/Dual Eligible 0-20 Years | L16: Medicaid Only 21+ Years | M16: Dual Eligible 21+ Years | N16: Medically Needy 0-20 Years | O16: Medically Needy 21+ Years | P16: Total | Q16: Medicaid Only/Dual Eligible 0-20 Years | R16: Medicaid Only 21+ Years | S16: Dual Eligible 21+ Years | T16: Medically Needy 0-20 Years | U16: Medically Needy 21+ Years | V16: Total | W16: Medicaid Only/Dual Eligible 0-20 Years | X16: Medicaid Only 21+ Years | Y16: Dual Eligible 21+ Years | Z16: Medically Needy 0-20 Years | AA16: Medically Needy 21+ Years | AB16: Prior Year Adjustments | AC16: Total | AD16: Medicaid Only/Dual Eligible 0-20 Years | AE16: Medicaid Only 21+ Years | AF16: Dual Eligible 21+ Years | AG16: Medically Needy 0-20 Years | AH16: Medically Needy 21+ Years
A17: Dental | B17: 2.1 | C17: Dental Services Diagnostic FFS | D17: =SUM(E17:I17) -> 8,963,802.02 | E17: =SUM('Dental Rev-Exp Region 1:Dental Rev-Exp Region 11'!E17) -> 8,180,445.98 | F17: =SUM('Dental Rev-Exp Region 1:Dental Rev-Exp Region 11'!F17) -> 666,828.97 | G17: =SUM('Dental Rev-Exp Region 1:Dental Rev-Exp Region 11'!G17) -> 92,496.43 | H17: =SUM('Dental Rev-Exp Region 1:Dental Rev-Exp Region 11'!H17) -> 11,484.24 | I17: =SUM('Dental Rev-Exp Region 1:Dental Rev-Exp Region 11'!I17) -> 12,546.40 | J17: =SUM(K17:O17) -> 8,491,748.51 | K17: =SUM('Dental Rev-Exp Region 1:Dental Rev-Exp Region 11'!K17) -> 7,690,915.19 | L17: =SUM('Dental Rev-Exp Region 1:Dental Rev-Exp Region 11'!L17) -> 691,499.23 | M17: =SUM('Dental Rev-Exp Region 1:Dental Rev-Exp Region 11'!M17) -> 85,582.78 | N17: =SUM('Dental Rev-Exp Region 1:Dental Rev-Exp Region 11'!N17) -> 12,636.47 | O17: =SUM('Dental Rev-Exp Region 1:Dental Rev-Exp Region 11'!O17) -> 11,114.84 | P17: =SUM(Q17:U17) -> 8,913,372.54 | Q17: =SUM('Dental Rev-Exp Region 1:Dental Rev-Exp Region 11'!Q17) -> 8,083,484.40 | R17: =SUM('Dental Rev-Exp Region 1:Dental Rev-Exp Region 11'!R17) -> 725,991.44 | S17: =SUM('Dental Rev-Exp Region 1:Dental Rev-Exp Region 11'!S17) -> 83,746.68 | T17: =SUM('Dental Rev-Exp Region 1:Dental Rev-Exp Region 11'!T17) -> 11,258.71 | U17: =SUM('Dental Rev-Exp Region 1:Dental Rev-Exp Region 11'!U17) -> 8,891.31 | V17: =SUM(W17:AA17) -> 8,653,694.81 | W17: =SUM('Dental Rev-Exp Region 1:Dental Rev-Exp Region 11'!W17) -> 7,816,514.56 | X17: =SUM('Dental Rev-Exp Region 1:Dental Rev-Exp Region 11'!X17) -> 740,447.25 | Y17: =SUM('Dental Rev-Exp Region 1:Dental Rev-Exp Region 11'!Y17) -> 75,195.37 | Z17: =SUM('Dental Rev-Exp Region 1:Dental Rev-Exp Region 11'!Z17) -> 11,556.30 | AA17: =SUM('Dental Rev-Exp Region 1:Dental Rev-Exp Region 11'!AA17) -> 9,981.33 | AB17: =SUM('Dental Rev-Exp Region 1:Dental Rev-Exp Region 11'!AB17) -> 55,190.39 | AC17: =SUM(AD17:AH17)+AB17 -> 35,077,808.27 | AD17: =SUM('Dental Rev-Exp Region 1:Dental Rev-Exp Region 11'!AD17) -> 31,771,360.13 | AE17: =SUM('Dental Rev-Exp Region 1:Dental Rev-Exp Region 11'!AE17) -> 2,824,766.89 | AF17: =SUM('Dental Rev-Exp Region 1:Dental Rev-Exp Region 11'!AF17) -> 337,021.26 | AG17: =SUM('Dental Rev-Exp Region 1:Dental Rev-Exp Region 11'!AG17) -> 46,935.72 | AH17: =SUM('Dental Rev-Exp Region 1:Dental Rev-Exp Region 11'!AH17) -> 42,533.88
B18: 2.2 | C18: Dental Services Preventive FFS | D18: =SUM(E18:I18) -> 8,863,323.30 | E18: =SUM('Dental Rev-Exp Region 1:Dental Rev-Exp Region 11'!E18) -> 8,847,792.78 | F18: =SUM('Dental Rev-Exp Region 1:Dental Rev-Exp Region 11'!F18) -> 0 | G18: =SUM('Dental Rev-Exp Region 1:Dental Rev-Exp Region 11'!G18) -> 2,249.98 | H18: =SUM('Dental Rev-Exp Region 1:Dental Rev-Exp Region 11'!H18) -> 13,280.54 | I18: =SUM('Dental Rev-Exp Region 1:Dental Rev-Exp Region 11'!I18) -> 0 | J18: =SUM(K18:O18) -> 8,690,932.51 | K18: =SUM('Dental Rev-Exp Region 1:Dental Rev-Exp Region 11'!K18) -> 8,675,580.07 | L18: =SUM('Dental Rev-Exp Region 1:Dental Rev-Exp Region 11'!L18) -> 0 | M18: =SUM('Dental Rev-Exp Region 1:Dental Rev-Exp Region 11'!M18) -> 1,485.23 | N18: =SUM('Dental Rev-Exp Region 1:Dental Rev-Exp Region 11'!N18) -> 13,867.21 | O18: =SUM('Dental Rev-Exp Region 1:Dental Rev-Exp Region 11'!O18) -> 0 | P18: =SUM(Q18:U18) -> 9,103,009.29 | Q18: =SUM('Dental Rev-Exp Region 1:Dental Rev-Exp Region 11'!Q18) -> 9,089,547.87 | R18: =SUM('Dental Rev-Exp Region 1:Dental Rev-Exp Region 11'!R18) -> 0 | S18: =SUM('Dental Rev-Exp Region 1:Dental Rev-Exp Region 11'!S18) -> 1,760.58 | T18: =SUM('Dental Rev-Exp Region 1:Dental Rev-Exp Region 11'!T18) -> 11,700.84 | U18: =SUM('Dental Rev-Exp Region 1:Dental Rev-Exp Region 11'!U18) -> 0 | V18: =SUM(W18:AA18) -> 9,121,932.39 | W18: =SUM('Dental Rev-Exp Region 1:Dental Rev-Exp Region 11'!W18) -> 9,106,881.08 | X18: =SUM('Dental Rev-Exp Region 1:Dental Rev-Exp Region 11'!X18) -> 0 | Y18: =SUM('Dental Rev-Exp Region 1:Dental Rev-Exp Region 11'!Y18) -> 1,491.91 | Z18: =SUM('Dental Rev-Exp Region 1:Dental Rev-Exp Region 11'!Z18) -> 13,559.40 | AA18: =SUM('Dental Rev-Exp Region 1:Dental Rev-Exp Region 11'!AA18) -> 0 | AB18: =SUM('Dental Rev-Exp Region 1:Dental Rev-Exp Region 11'!AB18) -> 52,694.80 | AC18: =SUM(AD18:AH18)+AB18 -> 35,831,892.29 | AD18: =SUM('Dental Rev-Exp Region 1:Dental Rev-Exp Region 11'!AD18) -> 35,719,801.80 | AE18: =SUM('Dental Rev-Exp Region 1:Dental Rev-Exp Region 11'!AE18) -> 0 | AF18: =SUM('Dental Rev-Exp Region 1:Dental Rev-Exp Region 11'!AF18) -> 6,987.70 | AG18: =SUM('Dental Rev-Exp Region 1:Dental Rev-Exp Region 11'!AG18) -> 52,407.99 | AH18: =SUM('Dental Rev-Exp Region 1:Dental Rev-Exp Region 11'!AH18) -> 0
B19: 2.3 | C19: Dental Services Restorative FFS | D19: 7,632,073.04 | E19: =SUM('Dental Rev-Exp Region 1:Dental Rev-Exp Region 11'!E19) -> 7,616,964.74 | F19: =SUM('Dental Rev-Exp Region 1:Dental Rev-Exp Region 11'!F19) -> 0 | G19: =SUM('Dental Rev-Exp Region 1:Dental Rev-Exp Region 11'!G19) -> 4,844.99 | H19: =SUM('Dental Rev-Exp Region 1:Dental Rev-Exp Region 11'!H19) -> 10,263.31 | I19: =SUM('Dental Rev-Exp Region 1:Dental Rev-Exp Region 11'!I19) -> 0 | J19: 7,402,330.68 | K19: =SUM('Dental Rev-Exp Region 1:Dental Rev-Exp Region 11'!K19) -> 7,384,987.75 | L19: =SUM('Dental Rev-Exp Region 1:Dental Rev-Exp Region 11'!L19) -> 0 | M19: =SUM('Dental Rev-Exp Region 1:Dental Rev-Exp Region 11'!M19) -> 4,345.13 | N19: =SUM('Dental Rev-Exp Region 1:Dental Rev-Exp Region 11'!N19) -> 12,997.80 | O19: =SUM('Dental Rev-Exp Region 1:Dental Rev-Exp Region 11'!O19) -> 0 | P19: 7,492,710.26 | Q19: =SUM('Dental Rev-Exp Region 1:Dental Rev-Exp Region 11'!Q19) -> 7,477,430.59 | R19: =SUM('Dental Rev-Exp Region 1:Dental Rev-Exp Region 11'!R19) -> 0 | S19: =SUM('Dental Rev-Exp Region 1:Dental Rev-Exp Region 11'!S19) -> 3,512.17 | T19: =SUM('Dental Rev-Exp Region 1:Dental Rev-Exp Region 11'!T19) -> 11,767.50 | U19: =SUM('Dental Rev-Exp Region 1:Dental Rev-Exp Region 11'!U19) -> 0 | V19: 7,275,749.53 | W19: =SUM('Dental Rev-Exp Region 1:Dental Rev-Exp Region 11'!W19) -> 7,262,308.99 | X19: =SUM('Dental Rev-Exp Region 1:Dental Rev-Exp Region 11'!X19) -> 338.88 | Y19: =SUM('Dental Rev-Exp Region 1:Dental Rev-Exp Region 11'!Y19) -> 1,558.36 | Z19: =SUM('Dental Rev-Exp Region 1:Dental Rev-Exp Region 11'!Z19) -> 11,543.30 | AA19: =SUM('Dental Rev-Exp Region 1:Dental Rev-Exp Region 11'!AA19) -> 0 | AB19: =SUM('Dental Rev-Exp Region 1:Dental Rev-Exp Region 11'!AB19) -> 45,221.65 | AC19: =SUM(AD19:AH19)+AB19 -> 29,848,085.16 | AD19: =SUM('Dental Rev-Exp Region 1:Dental Rev-Exp Region 11'!AD19) -> 29,741,692.07 | AE19: =SUM('Dental Rev-Exp Region 1:Dental Rev-Exp Region 11'!AE19) -> 338.88 | AF19: =SUM('Dental Rev-Exp Region 1:Dental Rev-Exp Region 11'!AF19) -> 14,260.65 | AG19: =SUM('Dental Rev-Exp Region 1:Dental Rev-Exp Region 11'!AG19) -> 46,571.91 | AH19: =SUM('Dental Rev-Exp Region 1:Dental Rev-Exp Region 11'!AH19) -> 0
B20: 2.4 | C20: Dental Services Endodontics FFS | D20: 1,812,767.17 | E20: =SUM('Dental Rev-Exp Region 1:Dental Rev-Exp Region 11'!E20) -> 1,808,425.27 | F20: =SUM('Dental Rev-Exp Region 1:Dental Rev-Exp Region 11'!F20) -> 0 | G20: =SUM('Dental Rev-Exp Region 1:Dental Rev-Exp Region 11'!G20) -> 0 | H20: =SUM('Dental Rev-Exp Region 1:Dental Rev-Exp Region 11'!H20) -> 4,341.90 | I20: =SUM('Dental Rev-Exp Region 1:Dental Rev-Exp Region 11'!I20) -> 0 | J20: 1,776,544.83 | K20: =SUM('Dental Rev-Exp Region 1:Dental Rev-Exp Region 11'!K20) -> 1,769,161.52 | L20: =SUM('Dental Rev-Exp Region 1:Dental Rev-Exp Region 11'!L20) -> 0 | M20: =SUM('Dental Rev-Exp Region 1:Dental Rev-Exp Region 11'!M20) -> 756.92 | N20: =SUM('Dental Rev-Exp Region 1:Dental Rev-Exp Region 11'!N20) -> 6,626.39 | O20: =SUM('Dental Rev-Exp Region 1:Dental Rev-Exp Region 11'!O20) -> 0 | P20: 1,717,885.95 | Q20: =SUM('Dental Rev-Exp Region 1:Dental Rev-Exp Region 11'!Q20) -> 1,711,793.66 | R20: =SUM('Dental Rev-Exp Region 1:Dental Rev-Exp Region 11'!R20) -> 0 | S20: =SUM('Dental Rev-Exp Region 1:Dental Rev-Exp Region 11'!S20) -> 1,460.00 | T20: =SUM('Dental Rev-Exp Region 1:Dental Rev-Exp Region 11'!T20) -> 4,632.29 | U20: =SUM('Dental Rev-Exp Region 1:Dental Rev-Exp Region 11'!U20) -> 0 | V20: 1,834,221.40 | W20: =SUM('Dental Rev-Exp Region 1:Dental Rev-Exp Region 11'!W20) -> 1,830,488.80 | X20: =SUM('Dental Rev-Exp Region 1:Dental Rev-Exp Region 11'!X20) -> 0 | Y20: =SUM('Dental Rev-Exp Region 1:Dental Rev-Exp Region 11'!Y20) -> 592.51 | Z20: =SUM('Dental Rev-Exp Region 1:Dental Rev-Exp Region 11'!Z20) -> 3,140.09 | AA20: =SUM('Dental Rev-Exp Region 1:Dental Rev-Exp Region 11'!AA20) -> 0 | AB20: =SUM('Dental Rev-Exp Region 1:Dental Rev-Exp Region 11'!AB20) -> 4,529.41 | AC20: 7,145,948.76 | AD20: =SUM('Dental Rev-Exp Region 1:Dental Rev-Exp Region 11'!AD20) -> 7,119,869.25 | AE20: =SUM('Dental Rev-Exp Region 1:Dental Rev-Exp Region 11'!AE20) -> 0 | AF20: =SUM('Dental Rev-Exp Region 1:Dental Rev-Exp Region 11'!AF20) -> 2,809.43 | AG20: =SUM('Dental Rev-Exp Region 1:Dental Rev-Exp Region 11'!AG20) -> 18,740.67 | AH20: =SUM('Dental Rev-Exp Region 1:Dental Rev-Exp Region 11'!AH20) -> 0
B21: 2.5 | C21: Dental Services Periodontics FFS | D21: 46,464.65 | E21: =SUM('Dental Rev-Exp Region 1:Dental Rev-Exp Region 11'!E21) -> 46,380.39 | F21: =SUM('Dental Rev-Exp Region 1:Dental Rev-Exp Region 11'!F21) -> 0 | G21: =SUM('Dental Rev-Exp Region 1:Dental Rev-Exp Region 11'!G21) -> 0 | H21: =SUM('Dental Rev-Exp Region 1:Dental Rev-Exp Region 11'!H21) -> 84.26 | I21: =SUM('Dental Rev-Exp Region 1:Dental Rev-Exp Region 11'!I21) -> 0 | J21: 50,672.56 | K21: =SUM('Dental Rev-Exp Region 1:Dental Rev-Exp Region 11'!K21) -> 49,394.70 | L21: =SUM('Dental Rev-Exp Region 1:Dental Rev-Exp Region 11'!L21) -> 0 | M21: =SUM('Dental Rev-Exp Region 1:Dental Rev-Exp Region 11'!M21) -> 1,083.61 | N21: =SUM('Dental Rev-Exp Region 1:Dental Rev-Exp Region 11'!N21) -> 194.25 | O21: =SUM('Dental Rev-Exp Region 1:Dental Rev-Exp Region 11'!O21) -> 0 | P21: 48,617.45 | Q21: =SUM('Dental Rev-Exp Region 1:Dental Rev-Exp Region 11'!Q21) -> 47,817.45 | R21: =SUM('Dental Rev-Exp Region 1:Dental Rev-Exp Region 11'!R21) -> 0 | S21: =SUM('Dental Rev-Exp Region 1:Dental Rev-Exp Region 11'!S21) -> 800.00 | T21: =SUM('Dental Rev-Exp Region 1:Dental Rev-Exp Region 11'!T21) -> 0 | U21: =SUM('Dental Rev-Exp Region 1:Dental Rev-Exp Region 11'!U21) -> 0 | V21: 35,899.59 | W21: =SUM('Dental Rev-Exp Region 1:Dental Rev-Exp Region 11'!W21) -> 34,982.67 | X21: =SUM('Dental Rev-Exp Region 1:Dental Rev-Exp Region 11'!X21) -> 0 | Y21: =SUM('Dental Rev-Exp Region 1:Dental Rev-Exp Region 11'!Y21) -> 820.06 | Z21: =SUM('Dental Rev-Exp Region 1:Dental Rev-Exp Region 11'!Z21) -> 96.86 | AA21: =SUM('Dental Rev-Exp Region 1:Dental Rev-Exp Region 11'!AA21) -> 0 | AB21: =SUM('Dental Rev-Exp Region 1:Dental Rev-Exp Region 11'!AB21) -> 173.89 | AC21: 181,828.14 | AD21: =SUM('Dental Rev-Exp Region 1:Dental Rev-Exp Region 11'!AD21) -> 178,575.21 | AE21: =SUM('Dental Rev-Exp Region 1:Dental Rev-Exp Region 11'!AE21) -> 0 | AF21: =SUM('Dental Rev-Exp Region 1:Dental Rev-Exp Region 11'!AF21) -> 2,703.67 | AG21: =SUM('Dental Rev-Exp Region 1:Dental Rev-Exp Region 11'!AG21) -> 375.37 | AH21: =SUM('Dental Rev-Exp Region 1:Dental Rev-Exp Region 11'!AH21) -> 0
B22: 2.6 | C22: Dental Services Prosthodontics FFS | D22: 468,389.37 | E22: =SUM('Dental Rev-Exp Region 1:Dental Rev-Exp Region 11'!E22) -> 3,975.83 | F22: =SUM('Dental Rev-Exp Region 1:Dental Rev-Exp Region 11'!F22) -> 332,292.70 | G22: =SUM('Dental Rev-Exp Region 1:Dental Rev-Exp Region 11'!G22) -> 126,152.51 | H22: =SUM('Dental Rev-Exp Region 1:Dental Rev-Exp Region 11'!H22) -> 0 | I22: =SUM('Dental Rev-Exp Region 1:Dental Rev-Exp Region 11'!I22) -> 5,968.33 | J22: 411,376.65 | K22: =SUM('Dental Rev-Exp Region 1:Dental Rev-Exp Region 11'!K22) -> 1,506.37 | L22: =SUM('Dental Rev-Exp Region 1:Dental Rev-Exp Region 11'!L22) -> 317,461.31 | M22: =SUM('Dental Rev-Exp Region 1:Dental Rev-Exp Region 11'!M22) -> 87,841.07 | N22: =SUM('Dental Rev-Exp Region 1:Dental Rev-Exp Region 11'!N22) -> 0 | O22: =SUM('Dental Rev-Exp Region 1:Dental Rev-Exp Region 11'!O22) -> 4,567.90 | P22: 415,703.12 | Q22: =SUM('Dental Rev-Exp Region 1:Dental Rev-Exp Region 11'!Q22) -> 3,147.67 | R22: =SUM('Dental Rev-Exp Region 1:Dental Rev-Exp Region 11'!R22) -> 317,295.47 | S22: =SUM('Dental Rev-Exp Region 1:Dental Rev-Exp Region 11'!S22) -> 94,301.34 | T22: =SUM('Dental Rev-Exp Region 1:Dental Rev-Exp Region 11'!T22) -> 0 | U22: =SUM('Dental Rev-Exp Region 1:Dental Rev-Exp Region 11'!U22) -> 958.64 | V22: 445,109.18 | W22: =SUM('Dental Rev-Exp Region 1:Dental Rev-Exp Region 11'!W22) -> 1,246.63 | X22: =SUM('Dental Rev-Exp Region 1:Dental Rev-Exp Region 11'!X22) -> 348,057.80 | Y22: =SUM('Dental Rev-Exp Region 1:Dental Rev-Exp Region 11'!Y22) -> 91,878.43 | Z22: =SUM('Dental Rev-Exp Region 1:Dental Rev-Exp Region 11'!Z22) -> 0 | AA22: =SUM('Dental Rev-Exp Region 1:Dental Rev-Exp Region 11'!AA22) -> 3,926.32 | AB22: =SUM('Dental Rev-Exp Region 1:Dental Rev-Exp Region 11'!AB22) -> 9,986.46 | AC22: 1,750,564.78 | AD22: =SUM('Dental Rev-Exp Region 1:Dental Rev-Exp Region 11'!AD22) -> 9,876.50 | AE22: =SUM('Dental Rev-Exp Region 1:Dental Rev-Exp Region 11'!AE22) -> 1,315,107.28 | AF22: =SUM('Dental Rev-Exp Region 1:Dental Rev-Exp Region 11'!AF22) -> 400,173.35 | AG22: =SUM('Dental Rev-Exp Region 1:Dental Rev-Exp Region 11'!AG22) -> 0 | AH22: =SUM('Dental Rev-Exp Region 1:Dental Rev-Exp Region 11'!AH22) -> 15,421.19
B23: 2.7 | C23: Dental Services Prosthodontics, fixed FFS | D23: 0 | E23: =SUM('Dental Rev-Exp Region 1:Dental Rev-Exp Region 11'!E23) -> 0 | F23: =SUM('Dental Rev-Exp Region 1:Dental Rev-Exp Region 11'!F23) -> 0 | G23: =SUM('Dental Rev-Exp Region 1:Dental Rev-Exp Region 11'!G23) -> 0 | H23: =SUM('Dental Rev-Exp Region 1:Dental Rev-Exp Region 11'!H23) -> 0 | I23: =SUM('Dental Rev-Exp Region 1:Dental Rev-Exp Region 11'!I23) -> 0 | J23: 0 | K23: =SUM('Dental Rev-Exp Region 1:Dental Rev-Exp Region 11'!K23) -> 0 | L23: =SUM('Dental Rev-Exp Region 1:Dental Rev-Exp Region 11'!L23) -> 0 | M23: =SUM('Dental Rev-Exp Region 1:Dental Rev-Exp Region 11'!M23) -> 0 | N23: =SUM('Dental Rev-Exp Region 1:Dental Rev-Exp Region 11'!N23) -> 0 | O23: =SUM('Dental Rev-Exp Region 1:Dental Rev-Exp Region 11'!O23) -> 0 | P23: 0 | Q23: =SUM('Dental Rev-Exp Region 1:Dental Rev-Exp Region 11'!Q23) -> 0 | R23: =SUM('Dental Rev-Exp Region 1:Dental Rev-Exp Region 11'!R23) -> 0 | S23: =SUM('Dental Rev-Exp Region 1:Dental Rev-Exp Region 11'!S23) -> 0 | T23: =SUM('Dental Rev-Exp Region 1:Dental Rev-Exp Region 11'!T23) -> 0 | U23: =SUM('Dental Rev-Exp Region 1:Dental Rev-Exp Region 11'!U23) -> 0 | V23: 245.24 | W23: =SUM('Dental Rev-Exp Region 1:Dental Rev-Exp Region 11'!W23) -> 245.24 | X23: =SUM('Dental Rev-Exp Region 1:Dental Rev-Exp Region 11'!X23) -> 0 | Y23: =SUM('Dental Rev-Exp Region 1:Dental Rev-Exp Region 11'!Y23) -> 0 | Z23: =SUM('Dental Rev-Exp Region 1:Dental Rev-Exp Region 11'!Z23) -> 0 | AA23: =SUM('Dental Rev-Exp Region 1:Dental Rev-Exp Region 11'!AA23) -> 0 | AB23: =SUM('Dental Rev-Exp Region 1:Dental Rev-Exp Region 11'!AB23) -> 0 | AC23: 245.24 | AD23: =SUM('Dental Rev-Exp Region 1:Dental Rev-Exp Region 11'!AD23) -> 245.24 | AE23: =SUM('Dental Rev-Exp Region 1:Dental Rev-Exp Region 11'!AE23) -> 0 | AF23: =SUM('Dental Rev-Exp Region 1:Dental Rev-Exp Region 11'!AF23) -> 0 | AG23: =SUM('Dental Rev-Exp Region 1:Dental Rev-Exp Region 11'!AG23) -> 0 | AH23: =SUM('Dental Rev-Exp Region 1:Dental Rev-Exp Region 11'!AH23) -> 0
B24: 2.8 | C24: Dental Services Oral and Maxillofacial Surgery FFS | D24: 3,699,122.21 | E24: =SUM('Dental Rev-Exp Region 1:Dental Rev-Exp Region 11'!E24) -> 2,184,350.64 | F24: =SUM('Dental Rev-Exp Region 1:Dental Rev-Exp Region 11'!F24) -> 1,342,429.84 | G24: =SUM('Dental Rev-Exp Region 1:Dental Rev-Exp Region 11'!G24) -> 135,183.82 | H24: =SUM('Dental Rev-Exp Region 1:Dental Rev-Exp Region 11'!H24) -> 7,960.80 | I24: =SUM('Dental Rev-Exp Region 1:Dental Rev-Exp Region 11'!I24) -> 29,197.11 | J24: 3,493,454.75 | K24: =SUM('Dental Rev-Exp Region 1:Dental Rev-Exp Region 11'!K24) -> 2,150,931.30 | L24: =SUM('Dental Rev-Exp Region 1:Dental Rev-Exp Region 11'!L24) -> 1,169,430.92 | M24: =SUM('Dental Rev-Exp Region 1:Dental Rev-Exp Region 11'!M24) -> 150,078.96 | N24: =SUM('Dental Rev-Exp Region 1:Dental Rev-Exp Region 11'!N24) -> 3,556.58 | O24: =SUM('Dental Rev-Exp Region 1:Dental Rev-Exp Region 11'!O24) -> 19,456.99 | P24: 3,671,616.93 | Q24: =SUM('Dental Rev-Exp Region 1:Dental Rev-Exp Region 11'!Q24) -> 2,265,117.24 | R24: =SUM('Dental Rev-Exp Region 1:Dental Rev-Exp Region 11'!R24) -> 1,247,581.01 | S24: =SUM('Dental Rev-Exp Region 1:Dental Rev-Exp Region 11'!S24) -> 129,337.85 | T24: =SUM('Dental Rev-Exp Region 1:Dental Rev-Exp Region 11'!T24) -> 4,329.99 | U24: =SUM('Dental Rev-Exp Region 1:Dental Rev-Exp Region 11'!U24) -> 25,250.84 | V24: 3,684,111.39 | W24: =SUM('Dental Rev-Exp Region 1:Dental Rev-Exp Region 11'!W24) -> 2,230,363.81 | X24: =SUM('Dental Rev-Exp Region 1:Dental Rev-Exp Region 11'!X24) -> 1,285,850.67 | Y24: =SUM('Dental Rev-Exp Region 1:Dental Rev-Exp Region 11'!Y24) -> 137,855.60 | Z24: =SUM('Dental Rev-Exp Region 1:Dental Rev-Exp Region 11'!Z24) -> 5,803.54 | AA24: =SUM('Dental Rev-Exp Region 1:Dental Rev-Exp Region 11'!AA24) -> 24,237.77 | AB24: =SUM('Dental Rev-Exp Region 1:Dental Rev-Exp Region 11'!AB24) -> 19,110.43 | AC24: 14,567,415.71 | AD24: =SUM('Dental Rev-Exp Region 1:Dental Rev-Exp Region 11'!AD24) -> 8,830,762.99 | AE24: =SUM('Dental Rev-Exp Region 1:Dental Rev-Exp Region 11'!AE24) -> 5,045,292.44 | AF24: =SUM('Dental Rev-Exp Region 1:Dental Rev-Exp Region 11'!AF24) -> 552,456.23 | AG24: =SUM('Dental Rev-Exp Region 1:Dental Rev-Exp Region 11'!AG24) -> 21,650.91 | AH24: =SUM('Dental Rev-Exp Region 1:Dental Rev-Exp Region 11'!AH24) -> 98,142.71
B25: 2.9 | C25: Dental Services Orthodontics FFS | D25: 1,018,403.72 | E25: =SUM('Dental Rev-Exp Region 1:Dental Rev-Exp Region 11'!E25) -> 1,016,822.61 | F25: =SUM('Dental Rev-Exp Region 1:Dental Rev-Exp Region 11'!F25) -> 0 | G25: =SUM('Dental Rev-Exp Region 1:Dental Rev-Exp Region 11'!G25) -> 507.37 | H25: =SUM('Dental Rev-Exp Region 1:Dental Rev-Exp Region 11'!H25) -> 1,073.74 | I25: =SUM('Dental Rev-Exp Region 1:Dental Rev-Exp Region 11'!I25) -> 0 | J25: 950,189.99 | K25: =SUM('Dental Rev-Exp Region 1:Dental Rev-Exp Region 11'!K25) -> 948,189.60 | L25: =SUM('Dental Rev-Exp Region 1:Dental Rev-Exp Region 11'!L25) -> 0 | M25: =SUM('Dental Rev-Exp Region 1:Dental Rev-Exp Region 11'!M25) -> 414.62 | N25: =SUM('Dental Rev-Exp Region 1:Dental Rev-Exp Region 11'!N25) -> 1,585.77 | O25: =SUM('Dental Rev-Exp Region 1:Dental Rev-Exp Region 11'!O25) -> 0 | P25: 934,152.32 | Q25: =SUM('Dental Rev-Exp Region 1:Dental Rev-Exp Region 11'!Q25) -> 931,734.13 | R25: =SUM('Dental Rev-Exp Region 1:Dental Rev-Exp Region 11'!R25) -> 0 | S25: =SUM('Dental Rev-Exp Region 1:Dental Rev-Exp Region 11'!S25) -> 422.16 | T25: =SUM('Dental Rev-Exp Region 1:Dental Rev-Exp Region 11'!T25) -> 1,996.03 | U25: =SUM('Dental Rev-Exp Region 1:Dental Rev-Exp Region 11'!U25) -> 0 | V25: 779,958.46 | W25: =SUM('Dental Rev-Exp Region 1:Dental Rev-Exp Region 11'!W25) -> 777,376.56 | X25: =SUM('Dental Rev-Exp Region 1:Dental Rev-Exp Region 11'!X25) -> 0 | Y25: =SUM('Dental Rev-Exp Region 1:Dental Rev-Exp Region 11'!Y25) -> 1,211.85 | Z25: =SUM('Dental Rev-Exp Region 1:Dental Rev-Exp Region 11'!Z25) -> 1,370.05 | AA25: =SUM('Dental Rev-Exp Region 1:Dental Rev-Exp Region 11'!AA25) -> 0 | AB25: =SUM('Dental Rev-Exp Region 1:Dental Rev-Exp Region 11'!AB25) -> 27,236.48 | AC25: 3,709,940.97 | AD25: =SUM('Dental Rev-Exp Region 1:Dental Rev-Exp Region 11'!AD25) -> 3,674,122.90 | AE25: =SUM('Dental Rev-Exp Region 1:Dental Rev-Exp Region 11'!AE25) -> 0 | AF25: =SUM('Dental Rev-Exp Region 1:Dental Rev-Exp Region 11'!AF25) -> 2,556.00 | AG25: =SUM('Dental Rev-Exp Region 1:Dental Rev-Exp Region 11'!AG25) -> 6,025.59 | AH25: =SUM('Dental Rev-Exp Region 1:Dental Rev-Exp Region 11'!AH25) -> 0
B26: 2.10 | C26: Dental Services Adjunctive General Services FFS | D26: 2,285,571.09 | E26: =SUM('Dental Rev-Exp Region 1:Dental Rev-Exp Region 11'!E26) -> 1,856,518.38 | F26: =SUM('Dental Rev-Exp Region 1:Dental Rev-Exp Region 11'!F26) -> 338,117.09 | G26: =SUM('Dental Rev-Exp Region 1:Dental Rev-Exp Region 11'!G26) -> 81,369.52 | H26: =SUM('Dental Rev-Exp Region 1:Dental Rev-Exp Region 11'!H26) -> 4,203.42 | I26: =SUM('Dental Rev-Exp Region 1:Dental Rev-Exp Region 11'!I26) -> 5,362.68 | J26: 2,186,741.39 | K26: =SUM('Dental Rev-Exp Region 1:Dental Rev-Exp Region 11'!K26) -> 1,770,827.95 | L26: =SUM('Dental Rev-Exp Region 1:Dental Rev-Exp Region 11'!L26) -> 321,140.46 | M26: =SUM('Dental Rev-Exp Region 1:Dental Rev-Exp Region 11'!M26) -> 88,965.76 | N26: =SUM('Dental Rev-Exp Region 1:Dental Rev-Exp Region 11'!N26) -> 1,926.60 | O26: =SUM('Dental Rev-Exp Region 1:Dental Rev-Exp Region 11'!O26) -> 3,880.62 | P26: 2,134,959.73 | Q26: =SUM('Dental Rev-Exp Region 1:Dental Rev-Exp Region 11'!Q26) -> 1,761,544.63 | R26: =SUM('Dental Rev-Exp Region 1:Dental Rev-Exp Region 11'!R26) -> 303,819.11 | S26: =SUM('Dental Rev-Exp Region 1:Dental Rev-Exp Region 11'!S26) -> 64,148.12 | T26: =SUM('Dental Rev-Exp Region 1:Dental Rev-Exp Region 11'!T26) -> 2,607.37 | U26: =SUM('Dental Rev-Exp Region 1:Dental Rev-Exp Region 11'!U26) -> 2,840.50 | V26: 2,110,839.13 | W26: =SUM('Dental Rev-Exp Region 1:Dental Rev-Exp Region 11'!W26) -> 1,702,265.66 | X26: =SUM('Dental Rev-Exp Region 1:Dental Rev-Exp Region 11'!X26) -> 316,861.85 | Y26: =SUM('Dental Rev-Exp Region 1:Dental Rev-Exp Region 11'!Y26) -> 84,895.16 | Z26: =SUM('Dental Rev-Exp Region 1:Dental Rev-Exp Region 11'!Z26) -> 2,802.56 | AA26: =SUM('Dental Rev-Exp Region 1:Dental Rev-Exp Region 11'!AA26) -> 4,013.90 | AB26: =SUM('Dental Rev-Exp Region 1:Dental Rev-Exp Region 11'!AB26) -> 14,381.72 | AC26: 8,732,493.06 | AD26: =SUM('Dental Rev-Exp Region 1:Dental Rev-Exp Region 11'!AD26) -> 7,091,156.62 | AE26: =SUM('Dental Rev-Exp Region 1:Dental Rev-Exp Region 11'!AE26) -> 1,279,938.51 | AF26: =SUM('Dental Rev-Exp Region 1:Dental Rev-Exp Region 11'!AF26) -> 319,378.56 | AG26: =SUM('Dental Rev-Exp Region 1:Dental Rev-Exp Region 11'!AG26) -> 11,539.95 | AH26: =SUM('Dental Rev-Exp Region 1:Dental Rev-Exp Region 11'!AH26) -> 16,097.70
B27: 2.11 | C27: Dental Services Other FFS | D27: =SUM(E27:I27) -> 0 | E27: =SUM('Dental Rev-Exp Region 1:Dental Rev-Exp Region 11'!E27) -> 0 | F27: =SUM('Dental Rev-Exp Region 1:Dental Rev-Exp Region 11'!F27) -> 0 | G27: =SUM('Dental Rev-Exp Region 1:Dental Rev-Exp Region 11'!G27) -> 0 | H27: =SUM('Dental Rev-Exp Region 1:Dental Rev-Exp Region 11'!H27) -> 0 | I27: =SUM('Dental Rev-Exp Region 1:Dental Rev-Exp Region 11'!I27) -> 0 | J27: =SUM(K27:O27) -> 0 | K27: =SUM('Dental Rev-Exp Region 1:Dental Rev-Exp Region 11'!K27) -> 0 | L27: =SUM('Dental Rev-Exp Region 1:Dental Rev-Exp Region 11'!L27) -> 0 | M27: =SUM('Dental Rev-Exp Region 1:Dental Rev-Exp Region 11'!M27) -> 0 | N27: =SUM('Dental Rev-Exp Region 1:Dental Rev-Exp Region 11'!N27) -> 0 | O27: =SUM('Dental Rev-Exp Region 1:Dental Rev-Exp Region 11'!O27) -> 0 | P27: =SUM(Q27:U27) -> 0 | Q27: =SUM('Dental Rev-Exp Region 1:Dental Rev-Exp Region 11'!Q27) -> 0 | R27: =SUM('Dental Rev-Exp Region 1:Dental Rev-Exp Region 11'!R27) -> 0 | S27: =SUM('Dental Rev-Exp Region 1:Dental Rev-Exp Region 11'!S27) -> 0 | T27: =SUM('Dental Rev-Exp Region 1:Dental Rev-Exp Region 11'!T27) -> 0 | U27: =SUM('Dental Rev-Exp Region 1:Dental Rev-Exp Region 11'!U27) -> 0 | V27: =SUM(W27:AA27) -> 0 | W27: =SUM('Dental Rev-Exp Region 1:Dental Rev-Exp Region 11'!W27) -> 0 | X27: =SUM('Dental Rev-Exp Region 1:Dental Rev-Exp Region 11'!X27) -> 0 | Y27: =SUM('Dental Rev-Exp Region 1:Dental Rev-Exp Region 11'!Y27) -> 0 | Z27: =SUM('Dental Rev-Exp Region 1:Dental Rev-Exp Region 11'!Z27) -> 0 | AA27: =SUM('Dental Rev-Exp Region 1:Dental Rev-Exp Region 11'!AA27) -> 0 | AB27: =SUM('Dental Rev-Exp Region 1:Dental Rev-Exp Region 11'!AB27) -> 0 | AC27: 0 | AD27: =SUM('Dental Rev-Exp Region 1:Dental Rev-Exp Region 11'!AD27) -> 0 | AE27: =SUM('Dental Rev-Exp Region 1:Dental Rev-Exp Region 11'!AE27) -> 0 | AF27: =SUM('Dental Rev-Exp Region 1:Dental Rev-Exp Region 11'!AF27) -> 0 | AG27: =SUM('Dental Rev-Exp Region 1:Dental Rev-Exp Region 11'!AG27) -> 0 | AH27: =SUM('Dental Rev-Exp Region 1:Dental Rev-Exp Region 11'!AH27) -> 0
B28: 2.12 | C28: Dental Expanded Benefits FFS | D28: =SUM(E28:I28) -> 1,436,727.62 | E28: =SUM('Dental Rev-Exp Region 1:Dental Rev-Exp Region 11'!E28) -> 0 | F28: =SUM('Dental Rev-Exp Region 1:Dental Rev-Exp Region 11'!F28) -> 1,198,353.74 | G28: =SUM('Dental Rev-Exp Region 1:Dental Rev-Exp Region 11'!G28) -> 216,968.49 | H28: =SUM('Dental Rev-Exp Region 1:Dental Rev-Exp Region 11'!H28) -> 0 | I28: =SUM('Dental Rev-Exp Region 1:Dental Rev-Exp Region 11'!I28) -> 21,405.39 | J28: =SUM(K28:O28) -> 1,572,991.37 | K28: =SUM('Dental Rev-Exp Region 1:Dental Rev-Exp Region 11'!K28) -> 0 | L28: =SUM('Dental Rev-Exp Region 1:Dental Rev-Exp Region 11'!L28) -> 1,317,265.72 | M28: =SUM('Dental Rev-Exp Region 1:Dental Rev-Exp Region 11'!M28) -> 238,743.41 | N28: =SUM('Dental Rev-Exp Region 1:Dental Rev-Exp Region 11'!N28) -> 0 | O28: =SUM('Dental Rev-Exp Region 1:Dental Rev-Exp Region 11'!O28) -> 16,982.24 | P28: =SUM(Q28:U28) -> 1,703,595.02 | Q28: =SUM('Dental Rev-Exp Region 1:Dental Rev-Exp Region 11'!Q28) -> 0 | R28: =SUM('Dental Rev-Exp Region 1:Dental Rev-Exp Region 11'!R28) -> 1,478,503.61 | S28: =SUM('Dental Rev-Exp Region 1:Dental Rev-Exp Region 11'!S28) -> 211,604.90 | T28: =SUM('Dental Rev-Exp Region 1:Dental Rev-Exp Region 11'!T28) -> 0 | U28: =SUM('Dental Rev-Exp Region 1:Dental Rev-Exp Region 11'!U28) -> 13,486.51 | V28: =SUM(W28:AA28) -> 1,730,337.21 | W28: =SUM('Dental Rev-Exp Region 1:Dental Rev-Exp Region 11'!W28) -> 0 | X28: =SUM('Dental Rev-Exp Region 1:Dental Rev-Exp Region 11'!X28) -> 1,509,810.08 | Y28: =SUM('Dental Rev-Exp Region 1:Dental Rev-Exp Region 11'!Y28) -> 205,214.53 | Z28: =SUM('Dental Rev-Exp Region 1:Dental Rev-Exp Region 11'!Z28) -> 0 | AA28: =SUM('Dental Rev-Exp Region 1:Dental Rev-Exp Region 11'!AA28) -> 15,312.60 | AB28: =SUM('Dental Rev-Exp Region 1:Dental Rev-Exp Region 11'!AB28) -> 19,724.67 | AC28: 6,463,375.89 | AD28: =SUM('Dental Rev-Exp Region 1:Dental Rev-Exp Region 11'!AD28) -> 0 | AE28: =SUM('Dental Rev-Exp Region 1:Dental Rev-Exp Region 11'!AE28) -> 5,503,933.15 | AF28: =SUM('Dental Rev-Exp Region 1:Dental Rev-Exp Region 11'!AF28) -> 872,531.33 | AG28: =SUM('Dental Rev-Exp Region 1:Dental Rev-Exp Region 11'!AG28) -> 0 | AH28: =SUM('Dental Rev-Exp Region 1:Dental Rev-Exp Region 11'!AH28) -> 67,186.74
B29: 2.13 | C29: Dental Services Paid through Subcapitation | D29: 0 | E29: =SUM('Dental Rev-Exp Region 1:Dental Rev-Exp Region 11'!E29) -> 0 | F29: =SUM('Dental Rev-Exp Region 1:Dental Rev-Exp Region 11'!F29) -> 0 | G29: =SUM('Dental Rev-Exp Region 1:Dental Rev-Exp Region 11'!G29) -> 0 | H29: =SUM('Dental Rev-Exp Region 1:Dental Rev-Exp Region 11'!H29) -> 0 | I29: =SUM('Dental Rev-Exp Region 1:Dental Rev-Exp Region 11'!I29) -> 0 | J29: 0 | K29: =SUM('Dental Rev-Exp Region 1:Dental Rev-Exp Region 11'!K29) -> 0 | L29: =SUM('Dental Rev-Exp Region 1:Dental Rev-Exp Region 11'!L29) -> 0 | M29: =SUM('Dental Rev-Exp Region 1:Dental Rev-Exp Region 11'!M29) -> 0 | N29: =SUM('Dental Rev-Exp Region 1:Dental Rev-Exp Region 11'!N29) -> 0 | O29: =SUM('Dental Rev-Exp Region 1:Dental Rev-Exp Region 11'!O29) -> 0 | P29: 776,840.13 | Q29: =SUM('Dental Rev-Exp Region 1:Dental Rev-Exp Region 11'!Q29) -> 518,401.86 | R29: =SUM('Dental Rev-Exp Region 1:Dental Rev-Exp Region 11'!R29) -> 209,309.70 | S29: =SUM('Dental Rev-Exp Region 1:Dental Rev-Exp Region 11'!S29) -> 38,570.64 | T29: =SUM('Dental Rev-Exp Region 1:Dental Rev-Exp Region 11'!T29) -> 1,550.71 | U29: =SUM('Dental Rev-Exp Region 1:Dental Rev-Exp Region 11'!U29) -> 9,007.22 | V29: 1,587,301.74 | W29: =SUM('Dental Rev-Exp Region 1:Dental Rev-Exp Region 11'!W29) -> 1,051,279.55 | X29: =SUM('Dental Rev-Exp Region 1:Dental Rev-Exp Region 11'!X29) -> 436,264.45 | Y29: =SUM('Dental Rev-Exp Region 1:Dental Rev-Exp Region 11'!Y29) -> 78,712.89 | Z29: =SUM('Dental Rev-Exp Region 1:Dental Rev-Exp Region 11'!Z29) -> 3,079.33 | AA29: =SUM('Dental Rev-Exp Region 1:Dental Rev-Exp Region 11'!AA29) -> 17,965.51 | AB29: =SUM('Dental Rev-Exp Region 1:Dental Rev-Exp Region 11'!AB29) -> 0 | AC29: 2,364,141.87 | AD29: =SUM('Dental Rev-Exp Region 1:Dental Rev-Exp Region 11'!AD29) -> 1,569,681.41 | AE29: =SUM('Dental Rev-Exp Region 1:Dental Rev-Exp Region 11'!AE29) -> 645,574.15 | AF29: =SUM('Dental Rev-Exp Region 1:Dental Rev-Exp Region 11'!AF29) -> 117,283.53 | AG29: =SUM('Dental Rev-Exp Region 1:Dental Rev-Exp Region 11'!AG29) -> 4,630.04 | AH29: =SUM('Dental Rev-Exp Region 1:Dental Rev-Exp Region 11'!AH29) -> 26,972.73
B30: 2.14 | C30: Ending IBNP for Dental Services | D30: 332.69 | E30: =SUM('Dental Rev-Exp Region 1:Dental Rev-Exp Region 11'!E30) -> 289.85 | F30: =SUM('Dental Rev-Exp Region 1:Dental Rev-Exp Region 11'!F30) -> 35.61 | G30: =SUM('Dental Rev-Exp Region 1:Dental Rev-Exp Region 11'!G30) -> 6.06 | H30: =SUM('Dental Rev-Exp Region 1:Dental Rev-Exp Region 11'!H30) -> 0.48 | I30: =SUM('Dental Rev-Exp Region 1:Dental Rev-Exp Region 11'!I30) -> 0.68 | J30: 14,974.51 | K30: =SUM('Dental Rev-Exp Region 1:Dental Rev-Exp Region 11'!K30) -> 13,014.15 | L30: =SUM('Dental Rev-Exp Region 1:Dental Rev-Exp Region 11'!L30) -> 1,631.73 | M30: =SUM('Dental Rev-Exp Region 1:Dental Rev-Exp Region 11'!M30) -> 281.86 | N30: =SUM('Dental Rev-Exp Region 1:Dental Rev-Exp Region 11'!N30) -> 22.83 | O30: =SUM('Dental Rev-Exp Region 1:Dental Rev-Exp Region 11'!O30) -> 23.94 | P30: 66,653.98 | Q30: =SUM('Dental Rev-Exp Region 1:Dental Rev-Exp Region 11'!Q30) -> 57,866.53 | R30: =SUM('Dental Rev-Exp Region 1:Dental Rev-Exp Region 11'!R30) -> 7,513.21 | S30: =SUM('Dental Rev-Exp Region 1:Dental Rev-Exp Region 11'!S30) -> 1,090.30 | T30: =SUM('Dental Rev-Exp Region 1:Dental Rev-Exp Region 11'!T30) -> 89.08 | U30: =SUM('Dental Rev-Exp Region 1:Dental Rev-Exp Region 11'!U30) -> 94.86 | V30: 285,214.29 | W30: =SUM('Dental Rev-Exp Region 1:Dental Rev-Exp Region 11'!W30) -> 245,961.26 | X30: =SUM('Dental Rev-Exp Region 1:Dental Rev-Exp Region 11'!X30) -> 33,591.79 | Y30: =SUM('Dental Rev-Exp Region 1:Dental Rev-Exp Region 11'!Y30) -> 4,802.97 | Z30: =SUM('Dental Rev-Exp Region 1:Dental Rev-Exp Region 11'!Z30) -> 398.75 | AA30: =SUM('Dental Rev-Exp Region 1:Dental Rev-Exp Region 11'!AA30) -> 459.51 | AB30: =SUM('Dental Rev-Exp Region 1:Dental Rev-Exp Region 11'!AB30) -> (441,712.75) | AC30: (74,537.28) | AD30: =SUM('Dental Rev-Exp Region 1:Dental Rev-Exp Region 11'!AD30) -> 317,131.79 | AE30: =SUM('Dental Rev-Exp Region 1:Dental Rev-Exp Region 11'!AE30) -> 42,772.35 | AF30: =SUM('Dental Rev-Exp Region 1:Dental Rev-Exp Region 11'!AF30) -> 6,181.19 | AG30: =SUM('Dental Rev-Exp Region 1:Dental Rev-Exp Region 11'!AG30) -> 511.14 | AH30: =SUM('Dental Rev-Exp Region 1:Dental Rev-Exp Region 11'!AH30) -> 579.00
B31: 2.15 | C31: Dental Settlements/AP | D31: 0 | E31: =SUM('Dental Rev-Exp Region 1:Dental Rev-Exp Region 11'!E31) -> 0 | F31: =SUM('Dental Rev-Exp Region 1:Dental Rev-Exp Region 11'!F31) -> 0 | G31: =SUM('Dental Rev-Exp Region 1:Dental Rev-Exp Region 11'!G31) -> 0 | H31: =SUM('Dental Rev-Exp Region 1:Dental Rev-Exp Region 11'!H31) -> 0 | I31: =SUM('Dental Rev-Exp Region 1:Dental Rev-Exp Region 11'!I31) -> 0 | J31: 0 | K31: =SUM('Dental Rev-Exp Region 1:Dental Rev-Exp Region 11'!K31) -> 0 | L31: =SUM('Dental Rev-Exp Region 1:Dental Rev-Exp Region 11'!L31) -> 0 | M31: =SUM('Dental Rev-Exp Region 1:Dental Rev-Exp Region 11'!M31) -> 0 | N31: =SUM('Dental Rev-Exp Region 1:Dental Rev-Exp Region 11'!N31) -> 0 | O31: =SUM('Dental Rev-Exp Region 1:Dental Rev-Exp Region 11'!O31) -> 0 | P31: 0 | Q31: =SUM('Dental Rev-Exp Region 1:Dental Rev-Exp Region 11'!Q31) -> 0 | R31: =SUM('Dental Rev-Exp Region 1:Dental Rev-Exp Region 11'!R31) -> 0 | S31: =SUM('Dental Rev-Exp Region 1:Dental Rev-Exp Region 11'!S31) -> 0 | T31: =SUM('Dental Rev-Exp Region 1:Dental Rev-Exp Region 11'!T31) -> 0 | U31: =SUM('Dental Rev-Exp Region 1:Dental Rev-Exp Region 11'!U31) -> 0 | V31: 0 | W31: =SUM('Dental Rev-Exp Region 1:Dental Rev-Exp Region 11'!W31) -> 0 | X31: =SUM('Dental Rev-Exp Region 1:Dental Rev-Exp Region 11'!X31) -> 0 | Y31: =SUM('Dental Rev-Exp Region 1:Dental Rev-Exp Region 11'!Y31) -> 0 | Z31: =SUM('Dental Rev-Exp Region 1:Dental Rev-Exp Region 11'!Z31) -> 0 | AA31: =SUM('Dental Rev-Exp Region 1:Dental Rev-Exp Region 11'!AA31) -> 0 | AB31: =SUM('Dental Rev-Exp Region 1:Dental Rev-Exp Region 11'!AB31) -> 0 | AC31: 0 | AD31: =SUM('Dental Rev-Exp Region 1:Dental Rev-Exp Region 11'!AD31) -> 0 | AE31: =SUM('Dental Rev-Exp Region 1:Dental Rev-Exp Region 11'!AE31) -> 0 | AF31: =SUM('Dental Rev-Exp Region 1:Dental Rev-Exp Region 11'!AF31) -> 0 | AG31: =SUM('Dental Rev-Exp Region 1:Dental Rev-Exp Region 11'!AG31) -> 0 | AH31: =SUM('Dental Rev-Exp Region 1:Dental Rev-Exp Region 11'!AH31) -> 0
B32: 2.16 | C32: Total Dental Services | D32: =SUM(D17:D31) -> 36,226,976.88 | E32: =SUM(E17:E31) -> 31,561,966.47 | F32: 3,878,057.95 | G32: 659,779.17 | H32: 52,692.69 | I32: =SUM(I17:I31) -> 74,480.59 | J32: =SUM(J17:J31) -> 35,041,957.75 | K32: =SUM(K17:K31) -> 30,454,508.60 | L32: =SUM(L17:L31) -> 3,818,429.37 | M32: =SUM(M17:M31) -> 659,579.35 | N32: =SUM(N17:N31) -> 53,413.90 | O32: =SUM(O17:O31) -> 56,026.53 | P32: =SUM(P17:P31) -> 36,979,116.72 | Q32: =SUM(Q17:Q31) -> 31,947,886.03 | R32: =SUM(R17:R31) -> 4,290,013.55 | S32: =SUM(S17:S31) -> 630,754.74 | T32: =SUM(T17:T31) -> 49,932.52 | U32: =SUM(U17:U31) -> 60,529.88 | V32: =SUM(V17:V31) -> 37,544,614.36 | W32: =SUM(W17:W31) -> 32,059,914.81 | X32: =SUM(X17:X31) -> 4,671,222.77 | Y32: =SUM(Y17:Y31) -> 684,229.65 | Z32: =SUM(Z17:Z31) -> 53,350.18 | AA32: =SUM(AA17:AA31) -> 75,896.95 | AB32: =SUM(AB17:AB31) -> (193,462.85) | AC32: =SUM(AC17:AC31) -> 145,599,202.86 | AD32: =SUM(AD17:AD31) -> 126,024,275.92 | AE32: =SUM(AE17:AE31) -> 16,657,723.65 | AF32: =SUM(AF17:AF31) -> 2,634,342.91 | AG32: =SUM(AG17:AG31) -> 209,389.29 | AH32: =SUM(AH17:AH31) -> 266,933.95
A33: Total Before and After Reinsurance | B33: 3.1 | C33: Total Dental Services Paid Directly FFS | D33: =SUM(E33:I33) -> 36,226,644.19 | E33: =SUM(E17:E28) -> 31,561,676.62 | F33: =SUM(F17:F28) -> 3,878,022.34 | G33: 659,773.11 | H33: 52,692.21 | I33: 74,479.91 | J33: =SUM(K33:O33) -> 35,026,983.24 | K33: =SUM(K17:K28) -> 30,441,494.45 | L33: =SUM(L17:L28) -> 3,816,797.64 | M33: 659,297.49 | N33: 53,391.07 | O33: 56,002.59 | P33: =SUM(Q33:U33) -> 36,135,622.61 | Q33: =SUM(Q17:Q28) -> 31,371,617.64 | R33: =SUM(R17:R28) -> 4,073,190.64 | S33: 591,093.80 | T33: 48,292.73 | U33: 51,427.80 | V33: =SUM(W33:AA33) -> 35,672,098.33 | W33: =SUM(W17:W28) -> 30,762,674.00 | X33: =SUM(X17:X28) -> 4,201,366.53 | Y33: 600,713.78 | Z33: 49,872.10 | AA33: 57,471.92 | AB33: =SUM(AB17:AB28) -> 248,249.90 | AC33: =SUM(AD33:AH33)+AB33 -> 143,309,598.27 | AD33: =SUM(AD17:AD28) -> 124,137,462.71 | AE33: =SUM(AE17:AE28) -> 15,969,377.15 | AF33: 2,510,878.18 | AG33: 204,248.11 | AH33: 239,382.22
B34: 3.2 | C34: Total Dental Services Paid through Subcapitation | D34: =SUM(E34:I34) -> 0 | E34: =E29 -> 0 | F34: =F29 -> 0 | G34: 0 | H34: 0 | I34: 0 | J34: =SUM(K34:O34) -> 0 | K34: =K29 -> 0 | L34: =L29 -> 0 | M34: 0 | N34: 0 | O34: 0 | P34: =SUM(Q34:U34) -> 776,840.13 | Q34: =Q29 -> 518,401.86 | R34: =R29 -> 209,309.70 | S34: 38,570.64 | T34: 1,550.71 | U34: 9,007.22 | V34: =SUM(W34:AA34) -> 1,587,301.74 | W34: =W29 -> 1,051,279.55 | X34: =X29 -> 436,264.45 | Y34: 78,712.89 | Z34: 3,079.33 | AA34: 17,965.51 | AB34: =AB29 -> 0 | AC34: =SUM(AD34:AH34)+AB34 -> 2,364,141.87 | AD34: =AD29 -> 1,569,681.41 | AE34: =AE29 -> 645,574.15 | AF34: 117,283.53 | AG34: 4,630.04 | AH34: 26,972.73
B35: 3.3 | C35: Total Dental Services Paid Directly -- IBNP | D35: 332.69 | E35: =E30 -> 289.85 | F35: =F30 -> 35.61 | G35: 6.06 | H35: 0.48 | I35: =I30 -> 0.68 | J35: =SUM(K35:O35) -> 14,974.51 | K35: =K30 -> 13,014.15 | L35: =L30 -> 1,631.73 | M35: 281.86 | N35: 22.83 | O35: =O30 -> 23.94 | P35: =SUM(Q35:U35) -> 66,653.98 | Q35: =Q30 -> 57,866.53 | R35: =R30 -> 7,513.21 | S35: 1,090.30 | T35: 89.08 | U35: =U30 -> 94.86 | V35: =SUM(W35:AA35) -> 285,214.29 | W35: =W30 -> 245,961.26 | X35: =X30 -> 33,591.79 | Y35: 4,802.97 | Z35: 398.75 | AA35: =AA30 -> 459.51 | AB35: =AB30 -> (441,712.75) | AC35: =SUM(AD35:AH35)+AB35 -> (74,537.28) | AD35: =AD30 -> 317,131.79 | AE35: =AE30 -> 42,772.35 | AF35: 6,181.19 | AG35: 511.14 | AH35: =AH30 -> 579.00
B36: 3.4 | C36: Total Dental Services Paid by Settlements/AP | D36: 0 | E36: =E31 -> 0 | F36: =F31 -> 0 | G36: 0 | H36: 0 | I36: =I31 -> 0 | J36: 0 | K36: =K31 -> 0 | L36: =L31 -> 0 | M36: 0 | N36: 0 | O36: =O31 -> 0 | P36: 0 | Q36: =Q31 -> 0 | R36: =R31 -> 0 | S36: 0 | T36: 0 | U36: =U31 -> 0 | V36: 0 | W36: =W31 -> 0 | X36: =X31 -> 0 | Y36: 0 | Z36: 0 | AA36: =AA31 -> 0 | AB36: =AB31 -> 0 | AC36: 0 | AD36: =AD31 -> 0 | AE36: =AE31 -> 0 | AF36: 0 | AG36: 0 | AH36: =AH31 -> 0
B37: 3.5 | C37: TPL & Fraud/Abuse Recoveries | D37: =SUM(E37:I37) -> 0 | E37: =SUM('Dental Rev-Exp Region 1:Dental Rev-Exp Region 11'!E37) -> 0 | F37: =SUM('Dental Rev-Exp Region 1:Dental Rev-Exp Region 11'!F37) -> 0 | G37: =SUM('Dental Rev-Exp Region 1:Dental Rev-Exp Region 11'!G37) -> 0 | H37: =SUM('Dental Rev-Exp Region 1:Dental Rev-Exp Region 11'!H37) -> 0 | I37: =SUM('Dental Rev-Exp Region 1:Dental Rev-Exp Region 11'!I37) -> 0 | J37: =SUM(K37:O37) -> 0 | K37: =SUM('Dental Rev-Exp Region 1:Dental Rev-Exp Region 11'!K37) -> 0 | L37: =SUM('Dental Rev-Exp Region 1:Dental Rev-Exp Region 11'!L37) -> 0 | M37: =SUM('Dental Rev-Exp Region 1:Dental Rev-Exp Region 11'!M37) -> 0 | N37: =SUM('Dental Rev-Exp Region 1:Dental Rev-Exp Region 11'!N37) -> 0 | O37: =SUM('Dental Rev-Exp Region 1:Dental Rev-Exp Region 11'!O37) -> 0 | P37: =SUM(Q37:U37) -> 0 | Q37: =SUM('Dental Rev-Exp Region 1:Dental Rev-Exp Region 11'!Q37) -> 0 | R37: =SUM('Dental Rev-Exp Region 1:Dental Rev-Exp Region 11'!R37) -> 0 | S37: =SUM('Dental Rev-Exp Region 1:Dental Rev-Exp Region 11'!S37) -> 0 | T37: =SUM('Dental Rev-Exp Region 1:Dental Rev-Exp Region 11'!T37) -> 0 | U37: =SUM('Dental Rev-Exp Region 1:Dental Rev-Exp Region 11'!U37) -> 0 | V37: =SUM(W37:AA37) -> 0 | W37: =SUM('Dental Rev-Exp Region 1:Dental Rev-Exp Region 11'!W37) -> 0 | X37: =SUM('Dental Rev-Exp Region 1:Dental Rev-Exp Region 11'!X37) -> 0 | Y37: =SUM('Dental Rev-Exp Region 1:Dental Rev-Exp Region 11'!Y37) -> 0 | Z37: =SUM('Dental Rev-Exp Region 1:Dental Rev-Exp Region 11'!Z37) -> 0 | AA37: =SUM('Dental Rev-Exp Region 1:Dental Rev-Exp Region 11'!AA37) -> 0 | AB37: =SUM('Dental Rev-Exp Region 1:Dental Rev-Exp Region 11'!AB37) -> 0 | AC37: 0 | AD37: =SUM('Dental Rev-Exp Region 1:Dental Rev-Exp Region 11'!AD37) -> 0 | AE37: =SUM('Dental Rev-Exp Region 1:Dental Rev-Exp Region 11'!AE37) -> 0 | AF37: =SUM('Dental Rev-Exp Region 1:Dental Rev-Exp Region 11'!AF37) -> 0 | AG37: =SUM('Dental Rev-Exp Region 1:Dental Rev-Exp Region 11'!AG37) -> 0 | AH37: =SUM('Dental Rev-Exp Region 1:Dental Rev-Exp Region 11'!AH37) -> 0
B38: 3.6 | C38: Premium Deficiency Reserve | D38: =SUM(E38:I38) -> 0 | E38: =SUM('Dental Rev-Exp Region 1:Dental Rev-Exp Region 11'!E38) -> 0 | F38: =SUM('Dental Rev-Exp Region 1:Dental Rev-Exp Region 11'!F38) -> 0 | G38: =SUM('Dental Rev-Exp Region 1:Dental Rev-Exp Region 11'!G38) -> 0 | H38: =SUM('Dental Rev-Exp Region 1:Dental Rev-Exp Region 11'!H38) -> 0 | I38: =SUM('Dental Rev-Exp Region 1:Dental Rev-Exp Region 11'!I38) -> 0 | J38: =SUM(K38:O38) -> 0 | K38: =SUM('Dental Rev-Exp Region 1:Dental Rev-Exp Region 11'!K38) -> 0 | L38: =SUM('Dental Rev-Exp Region 1:Dental Rev-Exp Region 11'!L38) -> 0 | M38: =SUM('Dental Rev-Exp Region 1:Dental Rev-Exp Region 11'!M38) -> 0 | N38: =SUM('Dental Rev-Exp Region 1:Dental Rev-Exp Region 11'!N38) -> 0 | O38: =SUM('Dental Rev-Exp Region 1:Dental Rev-Exp Region 11'!O38) -> 0 | P38: =SUM(Q38:U38) -> 0 | Q38: =SUM('Dental Rev-Exp Region 1:Dental Rev-Exp Region 11'!Q38) -> 0 | R38: =SUM('Dental Rev-Exp Region 1:Dental Rev-Exp Region 11'!R38) -> 0 | S38: =SUM('Dental Rev-Exp Region 1:Dental Rev-Exp Region 11'!S38) -> 0 | T38: =SUM('Dental Rev-Exp Region 1:Dental Rev-Exp Region 11'!T38) -> 0 | U38: =SUM('Dental Rev-Exp Region 1:Dental Rev-Exp Region 11'!U38) -> 0 | V38: =SUM(W38:AA38) -> 0 | W38: =SUM('Dental Rev-Exp Region 1:Dental Rev-Exp Region 11'!W38) -> 0 | X38: =SUM('Dental Rev-Exp Region 1:Dental Rev-Exp Region 11'!X38) -> 0 | Y38: =SUM('Dental Rev-Exp Region 1:Dental Rev-Exp Region 11'!Y38) -> 0 | Z38: =SUM('Dental Rev-Exp Region 1:Dental Rev-Exp Region 11'!Z38) -> 0 | AA38: =SUM('Dental Rev-Exp Region 1:Dental Rev-Exp Region 11'!AA38) -> 0 | AB38: =SUM('Dental Rev-Exp Region 1:Dental Rev-Exp Region 11'!AB38) -> 0 | AC38: =SUM(AD38:AH38)+AB38 -> 0 | AD38: =SUM('Dental Rev-Exp Region 1:Dental Rev-Exp Region 11'!AD38) -> 0 | AE38: =SUM('Dental Rev-Exp Region 1:Dental Rev-Exp Region 11'!AE38) -> 0 | AF38: =SUM('Dental Rev-Exp Region 1:Dental Rev-Exp Region 11'!AF38) -> 0 | AG38: =SUM('Dental Rev-Exp Region 1:Dental Rev-Exp Region 11'!AG38) -> 0 | AH38: =SUM('Dental Rev-Exp Region 1:Dental Rev-Exp Region 11'!AH38) -> 0
B39: 3.7 | C39: Subtotal Benefit Expense before Reinsurance | D39: =SUM(D33:D38) -> 36,226,976.88 | E39: =SUM(E33:E38) -> 31,561,966.47 | F39: =SUM(F33:F38) -> 3,878,057.95 | G39: 659,779.17 | H39: 52,692.69 | I39: 74,480.59 | J39: =SUM(J33:J38) -> 35,041,957.75 | K39: =SUM(K33:K38) -> 30,454,508.60 | L39: =SUM(L33:L38) -> 3,818,429.37 | M39: 659,579.35 | N39: 53,413.90 | O39: 56,026.53 | P39: =SUM(P33:P38) -> 36,979,116.72 | Q39: =SUM(Q33:Q38) -> 31,947,886.03 | R39: =SUM(R33:R38) -> 4,290,013.55 | S39: 630,754.74 | T39: 49,932.52 | U39: 60,529.88 | V39: =SUM(V33:V38) -> 37,544,614.36 | W39: =SUM(W33:W38) -> 32,059,914.81 | X39: =SUM(X33:X38) -> 4,671,222.77 | Y39: 684,229.65 | Z39: 53,350.18 | AA39: 75,896.95 | AB39: =SUM(AB33:AB38) -> (193,462.85) | AC39: =SUM(AC33:AC38) -> 145,599,202.86 | AD39: =SUM(AD33:AD38) -> 126,024,275.92 | AE39: =SUM(AE33:AE38) -> 16,657,723.65 | AF39: 2,634,342.91 | AG39: 209,389.29 | AH39: 266,933.95
B40: 3.8 | C40: Reinsurance Premiums | D40: =SUM(E40:I40) -> 0 | E40: =SUM('Dental Rev-Exp Region 1:Dental Rev-Exp Region 11'!E40) -> 0 | F40: =SUM('Dental Rev-Exp Region 1:Dental Rev-Exp Region 11'!F40) -> 0 | G40: =SUM('Dental Rev-Exp Region 1:Dental Rev-Exp Region 11'!G40) -> 0 | H40: =SUM('Dental Rev-Exp Region 1:Dental Rev-Exp Region 11'!H40) -> 0 | I40: =SUM('Dental Rev-Exp Region 1:Dental Rev-Exp Region 11'!I40) -> 0 | J40: =SUM(K40:O40) -> 0 | K40: =SUM('Dental Rev-Exp Region 1:Dental Rev-Exp Region 11'!K40) -> 0 | L40: =SUM('Dental Rev-Exp Region 1:Dental Rev-Exp Region 11'!L40) -> 0 | M40: =SUM('Dental Rev-Exp Region 1:Dental Rev-Exp Region 11'!M40) -> 0 | N40: =SUM('Dental Rev-Exp Region 1:Dental Rev-Exp Region 11'!N40) -> 0 | O40: =SUM('Dental Rev-Exp Region 1:Dental Rev-Exp Region 11'!O40) -> 0 | P40: =SUM(Q40:U40) -> 0 | Q40: =SUM('Dental Rev-Exp Region 1:Dental Rev-Exp Region 11'!Q40) -> 0 | R40: =SUM('Dental Rev-Exp Region 1:Dental Rev-Exp Region 11'!R40) -> 0 | S40: =SUM('Dental Rev-Exp Region 1:Dental Rev-Exp Region 11'!S40) -> 0 | T40: =SUM('Dental Rev-Exp Region 1:Dental Rev-Exp Region 11'!T40) -> 0 | U40: =SUM('Dental Rev-Exp Region 1:Dental Rev-Exp Region 11'!U40) -> 0 | V40: =SUM(W40:AA40) -> 0 | W40: =SUM('Dental Rev-Exp Region 1:Dental Rev-Exp Region 11'!W40) -> 0 | X40: =SUM('Dental Rev-Exp Region 1:Dental Rev-Exp Region 11'!X40) -> 0 | Y40: =SUM('Dental Rev-Exp Region 1:Dental Rev-Exp Region 11'!Y40) -> 0 | Z40: =SUM('Dental Rev-Exp Region 1:Dental Rev-Exp Region 11'!Z40) -> 0 | AA40: =SUM('Dental Rev-Exp Region 1:Dental Rev-Exp Region 11'!AA40) -> 0 | AB40: =SUM('Dental Rev-Exp Region 1:Dental Rev-Exp Region 11'!AB40) -> 0 | AC40: =SUM(AD40:AH40)+AB40 -> 0 | AD40: =SUM('Dental Rev-Exp Region 1:Dental Rev-Exp Region 11'!AD40) -> 0 | AE40: =SUM('Dental Rev-Exp Region 1:Dental Rev-Exp Region 11'!AE40) -> 0 | AF40: =SUM('Dental Rev-Exp Region 1:Dental Rev-Exp Region 11'!AF40) -> 0 | AG40: =SUM('Dental Rev-Exp Region 1:Dental Rev-Exp Region 11'!AG40) -> 0 | AH40: =SUM('Dental Rev-Exp Region 1:Dental Rev-Exp Region 11'!AH40) -> 0
B41: 3.9 | C41: Reinsurance Recoveries | D41: =SUM(E41:I41) -> 0 | E41: =SUM('Dental Rev-Exp Region 1:Dental Rev-Exp Region 11'!E41) -> 0 | F41: =SUM('Dental Rev-Exp Region 1:Dental Rev-Exp Region 11'!F41) -> 0 | G41: =SUM('Dental Rev-Exp Region 1:Dental Rev-Exp Region 11'!G41) -> 0 | H41: =SUM('Dental Rev-Exp Region 1:Dental Rev-Exp Region 11'!H41) -> 0 | I41: =SUM('Dental Rev-Exp Region 1:Dental Rev-Exp Region 11'!I41) -> 0 | J41: =SUM(K41:O41) -> 0 | K41: =SUM('Dental Rev-Exp Region 1:Dental Rev-Exp Region 11'!K41) -> 0 | L41: =SUM('Dental Rev-Exp Region 1:Dental Rev-Exp Region 11'!L41) -> 0 | M41: =SUM('Dental Rev-Exp Region 1:Dental Rev-Exp Region 11'!M41) -> 0 | N41: =SUM('Dental Rev-Exp Region 1:Dental Rev-Exp Region 11'!N41) -> 0 | O41: =SUM('Dental Rev-Exp Region 1:Dental Rev-Exp Region 11'!O41) -> 0 | P41: =SUM(Q41:U41) -> 0 | Q41: =SUM('Dental Rev-Exp Region 1:Dental Rev-Exp Region 11'!Q41) -> 0 | R41: =SUM('Dental Rev-Exp Region 1:Dental Rev-Exp Region 11'!R41) -> 0 | S41: =SUM('Dental Rev-Exp Region 1:Dental Rev-Exp Region 11'!S41) -> 0 | T41: =SUM('Dental Rev-Exp Region 1:Dental Rev-Exp Region 11'!T41) -> 0 | U41: =SUM('Dental Rev-Exp Region 1:Dental Rev-Exp Region 11'!U41) -> 0 | V41: =SUM(W41:AA41) -> 0 | W41: =SUM('Dental Rev-Exp Region 1:Dental Rev-Exp Region 11'!W41) -> 0 | X41: =SUM('Dental Rev-Exp Region 1:Dental Rev-Exp Region 11'!X41) -> 0 | Y41: =SUM('Dental Rev-Exp Region 1:Dental Rev-Exp Region 11'!Y41) -> 0 | Z41: =SUM('Dental Rev-Exp Region 1:Dental Rev-Exp Region 11'!Z41) -> 0 | AA41: =SUM('Dental Rev-Exp Region 1:Dental Rev-Exp Region 11'!AA41) -> 0 | AB41: =SUM('Dental Rev-Exp Region 1:Dental Rev-Exp Region 11'!AB41) -> 0 | AC41: =SUM(AD41:AH41)+AB41 -> 0 | AD41: =SUM('Dental Rev-Exp Region 1:Dental Rev-Exp Region 11'!AD41) -> 0 | AE41: =SUM('Dental Rev-Exp Region 1:Dental Rev-Exp Region 11'!AE41) -> 0 | AF41: =SUM('Dental Rev-Exp Region 1:Dental Rev-Exp Region 11'!AF41) -> 0 | AG41: =SUM('Dental Rev-Exp Region 1:Dental Rev-Exp Region 11'!AG41) -> 0 | AH41: =SUM('Dental Rev-Exp Region 1:Dental Rev-Exp Region 11'!AH41) -> 0
B42: 3.10 | C42: Net cost of Reinsurance | D42: =SUM(D40:D41) -> 0 | E42: =SUM('Dental Rev-Exp Region 1:Dental Rev-Exp Region 11'!E42) -> 0 | F42: =SUM('Dental Rev-Exp Region 1:Dental Rev-Exp Region 11'!F42) -> 0 | G42: =SUM('Dental Rev-Exp Region 1:Dental Rev-Exp Region 11'!G42) -> 0 | H42: =SUM('Dental Rev-Exp Region 1:Dental Rev-Exp Region 11'!H42) -> 0 | I42: =SUM('Dental Rev-Exp Region 1:Dental Rev-Exp Region 11'!I42) -> 0 | J42: =SUM(J40:J41) -> 0 | K42: =SUM('Dental Rev-Exp Region 1:Dental Rev-Exp Region 11'!K42) -> 0 | L42: =SUM('Dental Rev-Exp Region 1:Dental Rev-Exp Region 11'!L42) -> 0 | M42: =SUM('Dental Rev-Exp Region 1:Dental Rev-Exp Region 11'!M42) -> 0 | N42: =SUM('Dental Rev-Exp Region 1:Dental Rev-Exp Region 11'!N42) -> 0 | O42: =SUM('Dental Rev-Exp Region 1:Dental Rev-Exp Region 11'!O42) -> 0 | P42: =SUM(P40:P41) -> 0 | Q42: =SUM('Dental Rev-Exp Region 1:Dental Rev-Exp Region 11'!Q42) -> 0 | R42: =SUM('Dental Rev-Exp Region 1:Dental Rev-Exp Region 11'!R42) -> 0 | S42: =SUM('Dental Rev-Exp Region 1:Dental Rev-Exp Region 11'!S42) -> 0 | T42: =SUM('Dental Rev-Exp Region 1:Dental Rev-Exp Region 11'!T42) -> 0 | U42: =SUM('Dental Rev-Exp Region 1:Dental Rev-Exp Region 11'!U42) -> 0 | V42: =SUM(V40:V41) -> 0 | W42: =SUM('Dental Rev-Exp Region 1:Dental Rev-Exp Region 11'!W42) -> 0 | X42: =SUM('Dental Rev-Exp Region 1:Dental Rev-Exp Region 11'!X42) -> 0 | Y42: =SUM('Dental Rev-Exp Region 1:Dental Rev-Exp Region 11'!Y42) -> 0 | Z42: =SUM('Dental Rev-Exp Region 1:Dental Rev-Exp Region 11'!Z42) -> 0 | AA42: =SUM('Dental Rev-Exp Region 1:Dental Rev-Exp Region 11'!AA42) -> 0 | AB42: =SUM('Dental Rev-Exp Region 1:Dental Rev-Exp Region 11'!AB42) -> 0 | AC42: =SUM(AC40:AC41)+AB42 -> 0 | AD42: =SUM('Dental Rev-Exp Region 1:Dental Rev-Exp Region 11'!AD42) -> 0 | AE42: =SUM('Dental Rev-Exp Region 1:Dental Rev-Exp Region 11'!AE42) -> 0 | AF42: =SUM('Dental Rev-Exp Region 1:Dental Rev-Exp Region 11'!AF42) -> 0 | AG42: =SUM('Dental Rev-Exp Region 1:Dental Rev-Exp Region 11'!AG42) -> 0 | AH42: =SUM('Dental Rev-Exp Region 1:Dental Rev-Exp Region 11'!AH42) -> 0
B43: 3.11 | C43: Grand Total Medical Benefit Expense Net of Reinsurance | D43: =D39+D42 -> 36,226,976.88 | E43: =E39+E42 -> 31,561,966.47 | F43: =F39+F42 -> 3,878,057.95 | G43: 659,779.17 | H43: 52,692.69 | I43: =I39+I42 -> 74,480.59 | J43: =J39+J42 -> 35,041,957.75 | K43: =K39+K42 -> 30,454,508.60 | L43: =L39+L42 -> 3,818,429.37 | M43: 659,579.35 | N43: 53,413.90 | O43: =O39+O42 -> 56,026.53 | P43: =P39+P42 -> 36,979,116.72 | Q43: =Q39+Q42 -> 31,947,886.03 | R43: =R39+R42 -> 4,290,013.55 | S43: 630,754.74 | T43: 49,932.52 | U43: =U39+U42 -> 60,529.88 | V43: =V39+V42 -> 37,544,614.36 | W43: =W39+W42 -> 32,059,914.81 | X43: =X39+X42 -> 4,671,222.77 | Y43: 684,229.65 | Z43: 53,350.18 | AA43: =AA39+AA42 -> 75,896.95 | AB43: =AB39+AB42 -> (193,462.85) | AC43: =AC39+AC42 -> 145,599,202.86 | AD43: =AD39+AD42 -> 126,024,275.92 | AE43: =AE39+AE42 -> 16,657,723.65 | AF43: 2,634,342.91 | AG43: 209,389.29 | AH43: =AH39+AH42 -> 266,933.95
A44: Administrative Expenses, Government-Mandated Assessments, Taxes, and Fees | D44: JANUARY - MARCH (Q1) | J44: APRIL - JUNE (Q2) | P44: JULY - SEPTEMBER (Q3) | V44: OCTOBER - DECEMBER (Q4) | AC44: TOTAL (TO DATE)
D45: Total | E45: Health Plan | F45: Corporate | J45: Total | K45: Health Plan | L45: Corporate | P45: Total | Q45: Health Plan | R45: Corporate | V45: Total | W45: Health Plan | X45: Corporate | AB45: Prior Calendar Year Adjustments | AC45: Total | AD45: Health Plan | AE45: Corporate
A46: Administrative Expenses | B46: 4.1 | C46: Salaries & Benefits | D46: =SUM(E46:F46) -> 1,802,420.20 | E46: =SUM('Dental Rev-Exp Region 1:Dental Rev-Exp Region 11'!E46) -> 0 | F46: =SUM('Dental Rev-Exp Region 1:Dental Rev-Exp Region 11'!F46) -> 1,802,420.20 | J46: =SUM(K46:L46) -> 1,688,808.73 | K46: =SUM('Dental Rev-Exp Region 1:Dental Rev-Exp Region 11'!K46) -> 0 | L46: =SUM('Dental Rev-Exp Region 1:Dental Rev-Exp Region 11'!L46) -> 1,688,808.73 | P46: =SUM(Q46:R46) -> 1,564,948.92 | Q46: =SUM('Dental Rev-Exp Region 1:Dental Rev-Exp Region 11'!Q46) -> 0 | R46: =SUM('Dental Rev-Exp Region 1:Dental Rev-Exp Region 11'!R46) -> 1,564,948.92 | V46: =SUM(W46:X46) -> 2,104,535.28 | W46: =SUM('Dental Rev-Exp Region 1:Dental Rev-Exp Region 11'!W46) -> 0 | X46: =SUM('Dental Rev-Exp Region 1:Dental Rev-Exp Region 11'!X46) -> 2,104,535.28 | AB46: =SUM('Dental Rev-Exp Region 1:Dental Rev-Exp Region 11'!AB46) -> 0 | AC46: =SUM(AD46:AE46)+AB46 -> 7,160,713.13 | AD46: =SUM('Dental Rev-Exp Region 1:Dental Rev-Exp Region 11'!AD46) -> 0 | AE46: =SUM('Dental Rev-Exp Region 1:Dental Rev-Exp Region 11'!AE46) -> 7,160,713.13
B47: 4.2 | C47: Administrative Services | D47: =SUM(E47:F47) -> 273,179.26 | E47: =SUM('Dental Rev-Exp Region 1:Dental Rev-Exp Region 11'!E47) -> 0 | F47: =SUM('Dental Rev-Exp Region 1:Dental Rev-Exp Region 11'!F47) -> 273,179.26 | J47: =SUM(K47:L47) -> 255,960.02 | K47: =SUM('Dental Rev-Exp Region 1:Dental Rev-Exp Region 11'!K47) -> 0 | L47: =SUM('Dental Rev-Exp Region 1:Dental Rev-Exp Region 11'!L47) -> 255,960.02 | P47: =SUM(Q47:R47) -> 237,187.52 | Q47: =SUM('Dental Rev-Exp Region 1:Dental Rev-Exp Region 11'!Q47) -> 0 | R47: =SUM('Dental Rev-Exp Region 1:Dental Rev-Exp Region 11'!R47) -> 237,187.52 | V47: =SUM(W47:X47) -> 318,968.53 | W47: =SUM('Dental Rev-Exp Region 1:Dental Rev-Exp Region 11'!W47) -> 0 | X47: =SUM('Dental Rev-Exp Region 1:Dental Rev-Exp Region 11'!X47) -> 318,968.53 | AB47: =SUM('Dental Rev-Exp Region 1:Dental Rev-Exp Region 11'!AB47) -> 0 | AC47: =SUM(AD47:AE47)+AB47 -> 1,085,295.33 | AD47: =SUM('Dental Rev-Exp Region 1:Dental Rev-Exp Region 11'!AD47) -> 0 | AE47: =SUM('Dental Rev-Exp Region 1:Dental Rev-Exp Region 11'!AE47) -> 1,085,295.33
B48: 4.3 | C48: Information Systems | D48: 221,108.75 | E48: =SUM('Dental Rev-Exp Region 1:Dental Rev-Exp Region 11'!E48) -> 0 | F48: =SUM('Dental Rev-Exp Region 1:Dental Rev-Exp Region 11'!F48) -> 221,108.75 | J48: 207,171.68 | K48: =SUM('Dental Rev-Exp Region 1:Dental Rev-Exp Region 11'!K48) -> 0 | L48: =SUM('Dental Rev-Exp Region 1:Dental Rev-Exp Region 11'!L48) -> 207,171.68 | P48: 191,977.37 | Q48: =SUM('Dental Rev-Exp Region 1:Dental Rev-Exp Region 11'!Q48) -> 0 | R48: =SUM('Dental Rev-Exp Region 1:Dental Rev-Exp Region 11'!R48) -> 191,977.37 | V48: 258,170.16 | W48: =SUM('Dental Rev-Exp Region 1:Dental Rev-Exp Region 11'!W48) -> 0 | X48: =SUM('Dental Rev-Exp Region 1:Dental Rev-Exp Region 11'!X48) -> 258,170.16 | AB48: =SUM('Dental Rev-Exp Region 1:Dental Rev-Exp Region 11'!AB48) -> 0 | AC48: 878,427.96 | AD48: =SUM('Dental Rev-Exp Region 1:Dental Rev-Exp Region 11'!AD48) -> 0 | AE48: =SUM('Dental Rev-Exp Region 1:Dental Rev-Exp Region 11'!AE48) -> 878,427.96
B49: 4.4 | C49: Marketing Expenses | D49: 50,507.73 | E49: =SUM('Dental Rev-Exp Region 1:Dental Rev-Exp Region 11'!E49) -> 0 | F49: =SUM('Dental Rev-Exp Region 1:Dental Rev-Exp Region 11'!F49) -> 50,507.73 | J49: 47,324.09 | K49: =SUM('Dental Rev-Exp Region 1:Dental Rev-Exp Region 11'!K49) -> 0 | L49: =SUM('Dental Rev-Exp Region 1:Dental Rev-Exp Region 11'!L49) -> 47,324.09 | P49: 43,853.28 | Q49: =SUM('Dental Rev-Exp Region 1:Dental Rev-Exp Region 11'!Q49) -> 0 | R49: =SUM('Dental Rev-Exp Region 1:Dental Rev-Exp Region 11'!R49) -> 43,853.28 | V49: 58,973.67 | W49: =SUM('Dental Rev-Exp Region 1:Dental Rev-Exp Region 11'!W49) -> 0 | X49: =SUM('Dental Rev-Exp Region 1:Dental Rev-Exp Region 11'!X49) -> 58,973.67 | AB49: =SUM('Dental Rev-Exp Region 1:Dental Rev-Exp Region 11'!AB49) -> 0 | AC49: 200,658.77 | AD49: =SUM('Dental Rev-Exp Region 1:Dental Rev-Exp Region 11'!AD49) -> 0 | AE49: =SUM('Dental Rev-Exp Region 1:Dental Rev-Exp Region 11'!AE49) -> 200,658.77
B50: 4.5 | C50: General Administration | D50: 1,278,178.37 | E50: =SUM('Dental Rev-Exp Region 1:Dental Rev-Exp Region 11'!E50) -> 0 | F50: =SUM('Dental Rev-Exp Region 1:Dental Rev-Exp Region 11'!F50) -> 1,278,178.37 | J50: 1,197,611.28 | K50: =SUM('Dental Rev-Exp Region 1:Dental Rev-Exp Region 11'!K50) -> 0 | L50: =SUM('Dental Rev-Exp Region 1:Dental Rev-Exp Region 11'!L50) -> 1,197,611.28 | P50: 1,109,776.65 | Q50: =SUM('Dental Rev-Exp Region 1:Dental Rev-Exp Region 11'!Q50) -> 0 | R50: =SUM('Dental Rev-Exp Region 1:Dental Rev-Exp Region 11'!R50) -> 1,109,776.65 | V50: 1,492,421.94 | W50: =SUM('Dental Rev-Exp Region 1:Dental Rev-Exp Region 11'!W50) -> 0 | X50: =SUM('Dental Rev-Exp Region 1:Dental Rev-Exp Region 11'!X50) -> 1,492,421.94 | AB50: =SUM('Dental Rev-Exp Region 1:Dental Rev-Exp Region 11'!AB50) -> 0 | AC50: 5,077,988.24 | AD50: =SUM('Dental Rev-Exp Region 1:Dental Rev-Exp Region 11'!AD50) -> 0 | AE50: =SUM('Dental Rev-Exp Region 1:Dental Rev-Exp Region 11'!AE50) -> 5,077,988.24
B51: 4.6 | C51: Compliance/Regulatory | D51: 1,644,089.66 | E51: =SUM('Dental Rev-Exp Region 1:Dental Rev-Exp Region 11'!E51) -> 0 | F51: =SUM('Dental Rev-Exp Region 1:Dental Rev-Exp Region 11'!F51) -> 1,644,089.66 | J51: 1,540,458.21 | K51: =SUM('Dental Rev-Exp Region 1:Dental Rev-Exp Region 11'!K51) -> 0 | L51: =SUM('Dental Rev-Exp Region 1:Dental Rev-Exp Region 11'!L51) -> 1,540,458.21 | P51: 1,427,478.64 | Q51: =SUM('Dental Rev-Exp Region 1:Dental Rev-Exp Region 11'!Q51) -> 0 | R51: =SUM('Dental Rev-Exp Region 1:Dental Rev-Exp Region 11'!R51) -> 1,427,478.64 | V51: 1,919,665.93 | W51: =SUM('Dental Rev-Exp Region 1:Dental Rev-Exp Region 11'!W51) -> 0 | X51: =SUM('Dental Rev-Exp Region 1:Dental Rev-Exp Region 11'!X51) -> 1,919,665.93 | AB51: =SUM('Dental Rev-Exp Region 1:Dental Rev-Exp Region 11'!AB51) -> 0 | AC51: 6,531,692.44 | AD51: =SUM('Dental Rev-Exp Region 1:Dental Rev-Exp Region 11'!AD51) -> 0 | AE51: =SUM('Dental Rev-Exp Region 1:Dental Rev-Exp Region 11'!AE51) -> 6,531,692.44
B52: 4.7 | C52: Total Administrative Expenses | D52: =SUM(D46:D51) -> 5,269,483.97 | E52: =SUM(E46:E51) -> 0 | F52: =SUM(F46:F51) -> 5,269,483.97 | J52: =SUM(J46:J51) -> 4,937,334.01 | K52: =SUM(K46:K51) -> 0 | L52: =SUM(L46:L51) -> 4,937,334.01 | P52: =SUM(P46:P51) -> 4,575,222.38 | Q52: =SUM(Q46:Q51) -> 0 | R52: =SUM(R46:R51) -> 4,575,222.38 | V52: =SUM(V46:V51) -> 6,152,735.51 | W52: =SUM(W46:W51) -> 0 | X52: =SUM(X46:X51) -> 6,152,735.51 | AB52: =SUM(AB46:AB51) -> 0 | AC52: =SUM(AC46:AC51) -> 20,934,775.87 | AD52: =SUM(AD46:AD51) -> 0 | AE52: =SUM(AE46:AE51) -> 20,934,775.87
A53: Government-Mandated Assessments, Taxes, and Fees Other Than Income Taxes | B53: 5.1 | C53: State Premium tax | D53: =SUM('Dental Rev-Exp Region 1:Dental Rev-Exp Region 11'!D53) -> 0 | J53: =SUM('Dental Rev-Exp Region 1:Dental Rev-Exp Region 11'!J53) -> 0 | P53: =SUM('Dental Rev-Exp Region 1:Dental Rev-Exp Region 11'!P53) -> 0 | V53: =SUM('Dental Rev-Exp Region 1:Dental Rev-Exp Region 11'!V53) -> 0 | AB53: =SUM('Dental Rev-Exp Region 1:Dental Rev-Exp Region 11'!AB53) -> 0 | AC53: =SUM('Dental Rev-Exp Region 1:Dental Rev-Exp Region 11'!AC53) -> 0
B54: 5.2 | C54: Department of Insurance Assessments | D54: =SUM('Dental Rev-Exp Region 1:Dental Rev-Exp Region 11'!D54) -> 0 | J54: =SUM('Dental Rev-Exp Region 1:Dental Rev-Exp Region 11'!J54) -> 0 | P54: =SUM('Dental Rev-Exp Region 1:Dental Rev-Exp Region 11'!P54) -> 0 | V54: =SUM('Dental Rev-Exp Region 1:Dental Rev-Exp Region 11'!V54) -> 0 | AB54: =SUM('Dental Rev-Exp Region 1:Dental Rev-Exp Region 11'!AB54) -> 0 | AC54: =SUM('Dental Rev-Exp Region 1:Dental Rev-Exp Region 11'!AC54) -> 0
B55: 5.3 | C55: Section 9010 Health Insurance Providers Fee | D55: =SUM('Dental Rev-Exp Region 1:Dental Rev-Exp Region 11'!D55) -> 0 | J55: =SUM('Dental Rev-Exp Region 1:Dental Rev-Exp Region 11'!J55) -> 0 | P55: =SUM('Dental Rev-Exp Region 1:Dental Rev-Exp Region 11'!P55) -> 0 | V55: =SUM('Dental Rev-Exp Region 1:Dental Rev-Exp Region 11'!V55) -> 0 | AB55: =SUM('Dental Rev-Exp Region 1:Dental Rev-Exp Region 11'!AB55) -> 0 | AC55: =SUM('Dental Rev-Exp Region 1:Dental Rev-Exp Region 11'!AC55) -> 0
B56: 5.4 | C56: Other 1 | D56: =SUM('Dental Rev-Exp Region 1:Dental Rev-Exp Region 11'!D56) -> 0 | J56: =SUM('Dental Rev-Exp Region 1:Dental Rev-Exp Region 11'!J56) -> 0 | P56: =SUM('Dental Rev-Exp Region 1:Dental Rev-Exp Region 11'!P56) -> 0 | V56: =SUM('Dental Rev-Exp Region 1:Dental Rev-Exp Region 11'!V56) -> 0 | AB56: =SUM('Dental Rev-Exp Region 1:Dental Rev-Exp Region 11'!AB56) -> 0 | AC56: =SUM('Dental Rev-Exp Region 1:Dental Rev-Exp Region 11'!AC56) -> 0
B57: 5.5 | C57: Other 2 | D57: =SUM('Dental Rev-Exp Region 1:Dental Rev-Exp Region 11'!D57) -> 0 | J57: =SUM('Dental Rev-Exp Region 1:Dental Rev-Exp Region 11'!J57) -> 0 | P57: =SUM('Dental Rev-Exp Region 1:Dental Rev-Exp Region 11'!P57) -> 0 | V57: =SUM('Dental Rev-Exp Region 1:Dental Rev-Exp Region 11'!V57) -> 0 | AB57: =SUM('Dental Rev-Exp Region 1:Dental Rev-Exp Region 11'!AB57) -> 0 | AC57: =SUM('Dental Rev-Exp Region 1:Dental Rev-Exp Region 11'!AC57) -> 0
B58: 5.6 | C58: Other 3 | D58: =SUM('Dental Rev-Exp Region 1:Dental Rev-Exp Region 11'!D58) -> 0 | J58: =SUM('Dental Rev-Exp Region 1:Dental Rev-Exp Region 11'!J58) -> 0 | P58: =SUM('Dental Rev-Exp Region 1:Dental Rev-Exp Region 11'!P58) -> 0 | V58: =SUM('Dental Rev-Exp Region 1:Dental Rev-Exp Region 11'!V58) -> 0 | AB58: =SUM('Dental Rev-Exp Region 1:Dental Rev-Exp Region 11'!AB58) -> 0 | AC58: =SUM('Dental Rev-Exp Region 1:Dental Rev-Exp Region 11'!AC58) -> 0
B59: 5.7 | C59: Total | D59: =SUM(D53:D58) -> 0 | J59: =SUM(J53:J58) -> 0 | P59: =SUM(P53:P58) -> 0 | V59: =SUM(V53:V58) -> 0 | AB59: =SUM(AB53:AB58) -> 0 | AC59: =SUM(AC53:AC58) -> 0
B60: 6.0 | C60: Grand Total Expenses | D60: =D43+D52+D59 -> 41,496,460.85 | J60: =J43+J52+J59 -> 39,979,291.76 | P60: =P43+P52+P59 -> 41,554,339.10 | V60: =V43+V52+V59 -> 43,697,349.87 | AB60: =AB43+AB52+AB59 -> (193,462.85) | AC60: =AC43+AC52+AC59 -> 166,533,978.73
B61: 7.0 | C61: Underwriting Gain / (Loss) --- AKA Pre-tax Earnings from Operations | D61: =D14-D60 -> 5,241,639.61 | J61: =J14-J60 -> 7,461,714.16 | P61: =P14-P60 -> 6,615,554.20 | V61: =V14-V60 -> 1,130,377.55 | AB61: =AB14-AB60 -> 381,119.58 | AC61: =AC14-AC60 -> 20,830,405.10
B62: 8.0 | C62: Income Tax Expense | D62: =SUM('Dental Rev-Exp Region 1:Dental Rev-Exp Region 11'!D62) -> 1,100,744.32 | J62: =SUM('Dental Rev-Exp Region 1:Dental Rev-Exp Region 11'!J62) -> 1,566,959.97 | P62: =SUM('Dental Rev-Exp Region 1:Dental Rev-Exp Region 11'!P62) -> 1,389,266.38 | V62: =SUM('Dental Rev-Exp Region 1:Dental Rev-Exp Region 11'!V62) -> 237,379.29 | AB62: =SUM('Dental Rev-Exp Region 1:Dental Rev-Exp Region 11'!AB62) -> 80,035.11 | AC62: =SUM('Dental Rev-Exp Region 1:Dental Rev-Exp Region 11'!AC62) -> 4,374,385.07
B63: 9.0 | C63: Net Underwriting Gain (Loss) | D63: =D61-D62 -> 4,140,895.29 | J63: =J61-J62 -> 5,894,754.18 | P63: =P61-P62 -> 5,226,287.82 | V63: =V61-V62 -> 892,998.27 | AB63: =AB61-AB62 -> 301,084.47 | AC63: =AC61-AC62 -> 16,456,020.03

Sheet Dental Rev-Exp Region 1
A1: DENTAL -- REVENUE AND EXPENSE SCHEDULE - REGION 1
A3: Health Plan: | C3: ='Dental Rev-Exp Summary'!C3 -> 0
A4: Reporting Period: | C4: =IF('Dental Rev-Exp Summary'!C4=0,"",'Dental Rev-Exp Summary'!C4) -> 
A5: Paid Through: | C5: =IF('Dental Rev-Exp Summary'!C5=0,"",'Dental Rev-Exp Summary'!C5) -> 
A6: Region 1
D7: JANUARY - MARCH (Q1) | J7: APRIL - JUNE (Q2) | P7: JULY - SEPTEMBER (Q3) | V7: OCTOBER - DECEMBER (Q4) | AC7: TOTAL (TO DATE)
D8: Total | E8: Medicaid Only/Dual Eligible 0-20 Years | F8: Medicaid Only 21+ Years | G8: Dual Eligible 21+ Years | H8: Medically Needy 0-20 Years | I8: Medically Needy 21+ Years | J8: Total | K8: Medicaid Only/Dual Eligible 0-20 Years | L8: Medicaid Only 21+ Years | M8: Dual Eligible 21+ Years | N8: Medically Needy 0-20 Years | O8: Medically Needy 21+ Years | P8: Total | Q8: Medicaid Only/Dual Eligible 0-20 Years | R8: Medicaid Only 21+ Years | S8: Dual Eligible 21+ Years | T8: Medically Needy 0-20 Years | U8: Medically Needy 21+ Years | V8: Total | W8: Medicaid Only/Dual Eligible 0-20 Years | X8: Medicaid Only 21+ Years | Y8: Dual Eligible 21+ Years | Z8: Medically Needy 0-20 Years | AA8: Medically Needy 21+ Years | AB8: Prior Year Adjustments | AC8: Total | AD8: Medicaid Only/Dual Eligible 0-20 Years | AE8: Medicaid Only 21+ Years | AF8: Dual Eligible 21+ Years | AG8: Medically Needy 0-20 Years | AH8: Medically Needy 21+ Years
A9: MEMBER MONTHS | D9: =SUM(E9:I9) -> 280,585.46 | E9: 189,096.62 | F9: 72,513.86 | G9: 15,004.92 | H9: 581.06 | I9: 3,389.00 | J9: =SUM(K9:O9) -> 279,485.98 | K9: 187,832.46 | L9: 73,783.89 | M9: 13,998.64 | N9: 573.19 | O9: 3,297.80 | P9: =SUM(Q9:U9) -> 284,223.31 | Q9: 189,668.23 | R9: 76,580.36 | S9: 14,111.88 | T9: 567.36 | U9: 3,295.48 | V9: =SUM(W9:AA9) -> 285,688.48 | W9: 189,213.21 | X9: 78,520.50 | Y9: 14,167.04 | Z9: 554.23 | AA9: 3,233.50 | AB9: 3,466.04 | AC9: =SUM(AD9:AH9)+AB9 -> 1,133,449.27 | AD9: =W9+Q9+K9+E9 -> 755,810.52 | AE9: =X9+R9+L9+F9 -> 301,398.61 | AF9: 57,282.48 | AG9: =Z9+T9+N9+H9 -> 2,275.84 | AH9: =AA9+U9+O9+I9 -> 13,215.78
A10: REVENUES
A11: Revenues | B11: 1.1 | C11: Capitation | D11: =SUM(E11:I11) -> 2,792,185.79 | E11: 2,343,021.80 | F11: 394,952.24 | G11: 40,507.70 | H11: 3,372.05 | I11: 10,332.00 | J11: =SUM(K11:O11) -> 2,804,341.46 | K11: 2,345,138.70 | L11: 405,633.18 | M11: 40,017.90 | N11: 3,402.10 | O11: 10,149.58 | P11: =SUM(Q11:U11) -> 2,812,613.28 | Q11: 2,342,507.91 | R11: 417,000.64 | S11: 40,059.50 | T11: 3,119.79 | U11: 9,925.44 | V11: =SUM(W11:AA11) -> 2,579,734.71 | W11: 2,134,497.09 | X11: 391,761.29 | Y11: 41,887.33 | Z11: 2,630.38 | AA11: 8,958.62 | AB11: =2018.66+3726.56 -> 5,745.22 | AC11: =SUM(AD11:AH11)+AB11 -> 10,994,620.46 | AD11: =W11+Q11+K11+E11 -> 9,165,165.50 | AE11: =X11+R11+L11+F11 -> 1,609,347.35 | AF11: 162,472.43 | AG11: 12,524.32 | AH11: =AA11+U11+O11+I11 -> 39,365.64
B12: 1.2 | C12: ACA § 9010 related payments | D12: =SUM(E12:I12) -> 0 | J12: =SUM(K12:O12) -> 0 | P12: =SUM(Q12:U12) -> 0 | V12: =SUM(W12:AA12) -> 0 | AC12: =SUM(AD12:AH12)+AB12 -> 0 | AD12: =W12+Q12+K12+E12 -> 0 | AE12: 0 | AF12: =Y12+S12+M12+G12 -> 0 | AG12: 0 | AH12: =AA12+U12+O12+I12 -> 0
B13: 1.3 | C13: Other Revenue | D13: 0 | J13: 0 | P13: 0 | V13: 0 | AC13: =SUM(AD13:AH13)+AB13 -> 0 | AD13: =W13+Q13+K13+E13 -> 0 | AE13: =X13+R13+L13+F13 -> 0 | AF13: =Y13+S13+M13+G13 -> 0 | AG13: =Z13+T13+N13+H13 -> 0 | AH13: =AA13+U13+O13+I13 -> 0
B14: 1.4 | C14: Total Revenue | D14: =SUM(D11:D13) -> 2,792,185.79 | E14: =SUM(E11:E13) -> 2,343,021.80 | F14: 394,952.24 | G14: =SUM(G11:G13) -> 40,507.70 | H14: 3,372.05 | I14: 10,332.00 | J14: =SUM(J11:J13) -> 2,804,341.46 | K14: =SUM(K11:K13) -> 2,345,138.70 | L14: 405,633.18 | M14: 40,017.90 | N14: 3,402.10 | O14: 10,149.58 | P14: =SUM(P11:P13) -> 2,812,613.28 | Q14: =SUM(Q11:Q13) -> 2,342,507.91 | R14: 417,000.64 | S14: 40,059.50 | T14: 3,119.79 | U14: 9,925.44 | V14: =SUM(V11:V13) -> 2,579,734.71 | W14: =SUM(W11:W13) -> 2,134,497.09 | X14: 391,761.29 | Y14: 41,887.33 | Z14: 2,630.38 | AA14: 8,958.62 | AB14: =SUM(AB11:AB13) -> 5,745.22 | AC14: =SUM(AC11:AC13) -> 10,994,620.46 | AD14: =SUM(AD11:AD13) -> 9,165,165.50 | AE14: =SUM(AE11:AE13) -> 1,609,347.35 | AF14: =SUM(AF11:AF13) -> 162,472.43 | AG14: =SUM(AG11:AG13) -> 12,524.32 | AH14: 39,365.64
A15: BENEFIT EXPENSES | D15: JANUARY - MARCH (Q1) | J15: APRIL - JUNE (Q2) | P15: JULY - SEPTEMBER (Q3) | V15: OCTOBER - DECEMBER (Q4) | AC15: TOTAL (TO DATE)
D16: Total | E16: Medicaid Only/Dual Eligible 0-20 Years | F16: Medicaid Only 21+ Years | G16: Dual Eligible 21+ Years | H16: Medically Needy 0-20 Years | I16: Medically Needy 21+ Years | J16: Total | K16: Medicaid Only/Dual Eligible 0-20 Years | L16: Medicaid Only 21+ Years | M16: Dual Eligible 21+ Years | N16: Medically Needy 0-20 Years | O16: Medically Needy 21+ Years | P16: Total | Q16: Medicaid Only/Dual Eligible 0-20 Years | R16: Medicaid Only 21+ Years | S16: Dual Eligible 21+ Years | T16: Medically Needy 0-20 Years | U16: Medically Needy 21+ Years | V16: Total | W16: Medicaid Only/Dual Eligible 0-20 Years | X16: Medicaid Only 21+ Years | Y16: Dual Eligible 21+ Years | Z16: Medically Needy 0-20 Years | AA16: Medically Needy 21+ Years | AB16: Prior Year Adjustments | AC16: Total | AD16: Medicaid Only/Dual Eligible 0-20 Years | AE16: Medicaid Only 21+ Years | AF16: Dual Eligible 21+ Years | AG16: Medically Needy 0-20 Years | AH16: Medically Needy 21+ Years
A17: Dental | B17: 2.1 | C17: Dental Services Diagnostic FFS | D17: =SUM(E17:I17) -> 389,977.19 | E17: 359,440.93 | F17: 26,117.15 | G17: 3,283.38 | H17: 369.73 | I17: 766.00 | J17: =SUM(K17:O17) -> 375,406.96 | K17: 348,461.18 | L17: 23,592.37 | M17: 2,626.79 | N17: 490.62 | O17: 236.00 | P17: =SUM(Q17:U17) -> 366,011.64 | Q17: 338,813.20 | R17: 24,379.67 | S17: 2,361.59 | T17: 182.18 | U17: 275.00 | V17: =SUM(W17:AA17) -> 320,820.05 | W17: 295,689.65 | X17: 22,401.73 | Y17: 1,975.89 | Z17: 357.34 | AA17: 395.44 | AB17: 670.05 | AC17: =SUM(AD17:AH17)+AB17 -> 1,452,885.89 | AD17: =W17+Q17+K17+E17 -> 1,342,404.96 | AE17: =X17+R17+L17+F17 -> 96,490.92 | AF17: 10,247.65 | AG17: 1,399.87 | AH17: 1,672.44
B18: 2.2 | C18: Dental Services Preventive FFS | D18: =SUM(E18:I18) -> 376,218.90 | E18: 375,730.84 | F18: 0 | G18: 112.31 | H18: 375.75 | I18: 0 | J18: =SUM(K18:O18) -> 376,243.19 | K18: 375,696.73 | L18: 0 | M18: 139.10 | N18: 407.36 | O18: 0 | P18: =SUM(Q18:U18) -> 336,525.70 | Q18: 336,395.72 | R18: 0 | S18: 33.44 | T18: 96.54 | U18: 0 | V18: =SUM(W18:AA18) -> 280,738.30 | W18: 280,504.27 | X18: 0 | Y18: 85.00 | Z18: 149.03 | AA18: 0 | AB18: 822.09 | AC18: =SUM(AD18:AH18)+AB18 -> 1,370,548.18 | AD18: =W18+Q18+K18+E18 -> 1,368,327.56 | AE18: 0 | AF18: =Y18+S18+M18+G18 -> 369.85 | AG18: 1,028.68 | AH18: =AA18+U18+O18+I18 -> 0
B19: 2.3 | C19: Dental Services Restorative FFS | D19: 510,492.27 | E19: 510,043.71 | F19: 0 | G19: 0 | H19: 448.56 | I19: 0 | J19: 490,406.05 | K19: 490,406.05 | L19: 0 | M19: 0 | N19: 0 | O19: 0 | P19: 558,119.17 | Q19: 557,919.17 | R19: 0 | S19: 0 | T19: 200.00 | U19: 0 | V19: 453,834.62 | W19: 453,834.62 | X19: 0 | Y19: 0 | Z19: 0 | AA19: 0 | AB19: 292.16 | AC19: =SUM(AD19:AH19)+AB19 -> 2,013,144.27 | AD19: =W19+Q19+K19+E19 -> 2,012,203.55 | AE19: 0 | AF19: 0 | AG19: 648.56 | AH19: 0
B20: 2.4 | C20: Dental Services Endodontics FFS | D20: 151,235.69 | E20: 151,235.69 | F20: 0 | G20: 0 | H20: 0 | I20: 0 | J20: 110,126.07 | K20: 110,126.07 | L20: 0 | M20: 0 | N20: 0 | O20: 0 | P20: 119,680.51 | Q20: 118,735.51 | R20: 0 | S20: 0 | T20: 945.00 | U20: 0 | V20: 128,506.90 | W20: 128,506.90 | X20: 0 | Y20: 0 | Z20: 0 | AA20: 0 | AB20: 0 | AC20: 509,549.17 | AD20: 508,604.17 | AE20: 0 | AF20: 0 | AG20: 945.00 | AH20: 0
B21: 2.5 | C21: Dental Services Periodontics FFS | D21: 5,499.88 | E21: 5,499.88 | F21: 0 | G21: 0 | H21: 0 | I21: 0 | J21: 9,144.64 | K21: 9,051.89 | L21: 0 | M21: 0 | N21: 92.75 | O21: 0 | P21: 5,902.65 | Q21: 5,902.65 | R21: 0 | S21: 0 | T21: 0 | U21: 0 | V21: 3,811.19 | W21: 3,811.19 | X21: 0 | Y21: 0 | Z21: 0 | AA21: 0 | AB21: 0 | AC21: 24,358.36 | AD21: 24,265.61 | AE21: 0 | AF21: 0 | AG21: 92.75 | AH21: 0
B22: 2.6 | C22: Dental Services Prosthodontics FFS | D22: 32,569.41 | E22: 0 | F22: 24,697.06 | G22: 6,467.35 | H22: 0 | I22: 1,405.00 | J22: 26,756.83 | K22: 245.24 | L22: 24,060.65 | M22: 2,285.94 | N22: 0 | O22: 165.00 | P22: 27,332.44 | Q22: 245.24 | R22: 21,343.46 | S22: 5,743.74 | T22: 0 | U22: 0 | V22: 18,572.15 | W22: 0 | X22: 14,789.82 | Y22: 3,306.60 | Z22: 0 | AA22: 475.73 | AB22: 0 | AC22: 105,230.83 | AD22: 490.48 | AE22: 84,890.99 | AF22: 17,803.63 | AG22: 0 | AH22: 2,045.73
B23: 2.7 | C23: Dental Services Prosthodontics, fixed FFS | D23: 0 | E23: 0 | F23: 0 | G23: 0 | H23: 0 | I23: 0 | J23: 0 | K23: 0 | L23: 0 | M23: 0 | N23: 0 | O23: 0 | P23: 0 | Q23: 0 | R23: 0 | S23: 0 | T23: 0 | U23: 0 | V23: 0 | W23: 0 | X23: 0 | Y23: 0 | Z23: 0 | AA23: 0 | AB23: 0 | AC23: 0 | AD23: 0 | AE23: 0 | AF23: 0 | AG23: 0 | AH23: 0
B24: 2.8 | C24: Dental Services Oral and Maxillofacial Surgery FFS | D24: 448,424.75 | E24: 203,882.46 | F24: 215,001.19 | G24: 19,419.00 | H24: 1,584.00 | I24: 8,538.10 | J24: 404,177.02 | K24: 214,574.42 | L24: 165,944.56 | M24: 20,695.04 | N24: 1,664.00 | O24: 1,299.00 | P24: 448,154.15 | Q24: 227,432.68 | R24: 194,438.56 | S24: 15,189.91 | T24: 3,038.00 | U24: 8,055.00 | V24: 438,294.43 | W24: 200,026.30 | X24: 200,331.03 | Y24: 33,610.92 | Z24: 0 | AA24: 4,326.18 | AB24: 0 | AC24: 1,739,050.35 | AD24: 845,915.86 | AE24: 775,715.34 | AF24: 88,914.87 | AG24: 6,286.00 | AH24: 22,218.28
B25: 2.9 | C25: Dental Services Orthodontics FFS | D25: 109,843.57 | E25: 109,736.57 | F25: 0 | G25: 0 | H25: 107.00 | I25: 0 | J25: 88,131.71 | K25: 87,881.71 | L25: 0 | M25: 0 | N25: 250.00 | O25: 0 | P25: 68,201.53 | Q25: 68,201.53 | R25: 0 | S25: 0 | T25: 0 | U25: 0 | V25: 59,639.63 | W25: 59,639.63 | X25: 0 | Y25: 0 | Z25: 0 | AA25: 0 | AB25: 1,705.26 | AC25: 327,521.70 | AD25: 325,459.44 | AE25: 0 | AF25: 0 | AG25: 357.00 | AH25: 0
B26: 2.10 | C26: Dental Services Adjunctive General Services FFS | D26: 160,679.59 | E26: 114,169.94 | F26: 42,693.40 | G26: 1,641.25 | H26: 630.00 | I26: 1,545.00 | J26: 153,094.28 | K26: 121,277.53 | L26: 27,861.75 | M26: 3,223.75 | N26: 480.00 | O26: 251.25 | P26: 161,046.02 | Q26: 122,339.77 | R26: 36,086.25 | S26: 1,715.00 | T26: 680.00 | U26: 225.00 | V26: 137,862.26 | W26: 100,990.21 | X26: 32,142.05 | Y26: 3,770.00 | Z26: 0 | AA26: 960.00 | AB26: 0 | AC26: =SUM(AD26:AH26)+AB26 -> 612,682.15 | AD26: =W26+Q26+K26+E26 -> 458,777.45 | AE26: 138,783.45 | AF26: 10,350.00 | AG26: 1,790.00 | AH26: 2,981.25
B27: 2.11 | C27: Dental Services Other FFS | D27: 0 | E27: 0 | F27: 0 | G27: 0 | H27: 0 | I27: 0 | J27: 0 | K27: 0 | L27: 0 | M27: 0 | N27: 0 | O27: 0 | P27: 0 | Q27: 0 | R27: 0 | S27: 0 | T27: 0 | U27: 0 | V27: 0 | W27: 0 | X27: 0 | Y27: 0 | Z27: 0 | AA27: 0 | AB27: 0 | AC27: 0 | AD27: 0 | AE27: 0 | AF27: 0 | AG27: 0 | AH27: 0
B28: 2.12 | C28: Dental Expanded Benefits FFS | D28: 25,853.08 | E28: 0 | F28: 22,798.92 | G28: 2,518.09 | H28: 0 | I28: 536.07 | J28: 25,367.19 | K28: 0 | L28: 21,220.51 | M28: 3,474.30 | N28: 0 | O28: 672.38 | P28: 26,855.40 | Q28: 0 | R28: 23,346.89 | S28: 3,380.04 | T28: 0 | U28: 128.47 | V28: 22,471.88 | W28: 0 | X28: 19,734.59 | Y28: 2,266.07 | Z28: 0 | AA28: 471.22 | AB28: 184.41 | AC28: =SUM(AD28:AH28)+AB28 -> 100,731.96 | AD28: 0 | AE28: 87,100.91 | AF28: 11,638.50 | AG28: 0 | AH28: =AA28+U28+O28+I28 -> 1,808.14
B29: 2.13 | C29: Dental Services Paid through Subcapitation | D29: =SUM(E29:I29) -> 0 | E29: 0 | F29: 0 | G29: 0 | H29: 0 | I29: 0 | J29: =SUM(K29:O29) -> 0 | K29: 0 | L29: 0 | M29: 0 | N29: 0 | O29: 0 | P29: =SUM(Q29:U29) -> 776,840.13 | Q29: 518,401.86 | R29: 209,309.70 | S29: 38,570.64 | T29: 1,550.71 | U29: 9,007.22 | V29: =SUM(W29:AA29) -> 1,587,301.74 | W29: 1,051,279.55 | X29: 436,264.45 | Y29: 78,712.89 | Z29: 3,079.33 | AA29: 17,965.51 | AB29: 0 | AC29: =SUM(AD29:AH29)+AB29 -> 2,364,141.87 | AD29: =W29+Q29+K29+E29 -> 1,569,681.41 | AE29: =X29+R29+L29+F29 -> 645,574.15 | AF29: =Y29+S29+M29+G29 -> 117,283.53 | AG29: =Z29+T29+N29+H29 -> 4,630.04 | AH29: =AA29+U29+O29+I29 -> 26,972.73
B30: 2.14 | C30: Ending IBNP for Dental Services | D30: 20.30 | E30: 16.80 | F30: 3.04 | G30: 0.31 | H30: 0.03 | I30: 0.12 | J30: =SUM(K30:O30) -> 880.19 | K30: 751.45 | L30: 112.30 | M30: 13.87 | N30: 1.45 | O30: 1.12 | P30: =SUM(Q30:U30) -> 3,906.44 | Q30: 3,275.89 | R30: 552.62 | S30: 52.43 | T30: 9.48 | U30: 16.02 | V30: =SUM(W30:AA30) -> 14,907.92 | W30: 12,177.08 | X30: 2,313.88 | Y30: 359.91 | Z30: 4.05 | AA30: 53.00 | AB30: (6,537.12) | AC30: 13,177.73 | AD30: 16,221.23 | AE30: 2,981.84 | AF30: 426.52 | AG30: 15.01 | AH30: =AA30+U30+O30+I30 -> 70.25
B31: 2.15 | C31: Dental Settlements/AP | D31: 0 | J31: 0 | P31: 0 | V31: 0 | AB31: 0 | AC31: =SUM(AD31:AH31)+AB31 -> 0 | AD31: 0 | AE31: 0 | AF31: 0 | AG31: 0 | AH31: 0
B32: 2.16 | C32: Total Dental Services | D32: =SUM(D17:D31) -> 2,210,814.63 | E32: =SUM(E17:E31) -> 1,829,756.82 | F32: 331,310.76 | G32: 33,441.69 | H32: 3,515.07 | I32: 12,790.29 | J32: =SUM(J17:J31) -> 2,059,734.13 | K32: =SUM(K17:K31) -> 1,758,472.27 | L32: =SUM(L17:L31) -> 262,792.14 | M32: =SUM(M17:M31) -> 32,458.79 | N32: =SUM(N17:N31) -> 3,386.18 | O32: =SUM(O17:O31) -> 2,624.75 | P32: =SUM(P17:P31) -> 2,898,575.78 | Q32: =SUM(Q17:Q31) -> 2,297,663.22 | R32: =SUM(R17:R31) -> 509,457.15 | S32: =SUM(S17:S31) -> 67,046.79 | T32: =SUM(T17:T31) -> 6,701.91 | U32: =SUM(U17:U31) -> 17,706.70 | V32: =SUM(V17:V31) -> 3,466,761.07 | W32: =SUM(W17:W31) -> 2,586,459.41 | X32: =SUM(X17:X31) -> 727,977.54 | Y32: =SUM(Y17:Y31) -> 124,087.29 | Z32: =SUM(Z17:Z31) -> 3,589.75 | AA32: =SUM(AA17:AA31) -> 24,647.08 | AB32: =SUM(AB17:AB31) -> (2,863.15) | AC32: 10,633,022.46 | AD32: 8,472,351.72 | AE32: 1,831,537.59 | AF32: 257,034.55 | AG32: 17,192.92 | AH32: =SUM(AH17:AH31) -> 57,768.83
A33: Total Before and After Reinsurance | B33: 3.1 | C33: Total Dental Services Paid Directly FFS | D33: =SUM(D17:D28) -> 2,210,794.33 | E33: =SUM(E17:E28) -> 1,829,740.02 | F33: =SUM(F17:F28) -> 331,307.72 | G33: 33,441.38 | H33: 3,515.04 | I33: =SUM(I17:I28) -> 12,790.17 | J33: =SUM(J17:J28) -> 2,058,853.94 | K33: =SUM(K17:K28) -> 1,757,720.82 | L33: 262,679.84 | M33: 32,444.92 | N33: 3,384.73 | O33: =SUM(O17:O28) -> 2,623.63 | P33: =SUM(P17:P28) -> 2,117,829.21 | Q33: =SUM(Q17:Q28) -> 1,775,985.47 | R33: 299,594.83 | S33: 28,423.72 | T33: 5,141.72 | U33: =SUM(U17:U28) -> 8,683.47 | V33: =SUM(V17:V28) -> 1,864,551.41 | W33: =SUM(W17:W28) -> 1,523,002.77 | X33: 289,399.22 | Y33: 45,014.48 | Z33: 506.37 | AA33: =SUM(AA17:AA28) -> 6,628.57 | AB33: =SUM(AB17:AB28) -> 3,673.97 | AC33: =SUM(AD33:AH33)+AB33 -> 8,255,702.86 | AD33: =W33+Q33+K33+E33 -> 6,886,449.08 | AE33: 1,182,981.61 | AF33: 139,324.50 | AG33: 12,547.86 | AH33: 30,725.84
B34: 3.2 | C34: Total Dental Services Paid through Subcapitation | D34: =D29 -> 0 | E34: 0 | F34: =F29 -> 0 | G34: 0 | H34: 0 | I34: 0 | J34: =J29 -> 0 | K34: 0 | L34: =L29 -> 0 | M34: 0 | N34: 0 | O34: 0 | P34: =P29 -> 776,840.13 | Q34: 518,401.86 | R34: =R29 -> 209,309.70 | S34: 38,570.64 | T34: 1,550.71 | U34: 9,007.22 | V34: =V29 -> 1,587,301.74 | W34: 1,051,279.55 | X34: =X29 -> 436,264.45 | Y34: 78,712.89 | Z34: 3,079.33 | AA34: 17,965.51 | AB34: =AB29 -> 0 | AC34: 2,364,141.87 | AD34: =W34+Q34+K34+E34 -> 1,569,681.41 | AE34: =X34+R34+L34+F34 -> 645,574.15 | AF34: =Y34+S34+M34+G34 -> 117,283.53 | AG34: =Z34+T34+N34+H34 -> 4,630.04 | AH34: =AA34+U34+O34+I34 -> 26,972.73
B35: 3.3 | C35: Total Dental Services Paid Directly -- IBNP | D35: 20.30 | E35: 16.80 | F35: =F30 -> 3.04 | G35: 0.31 | H35: 0.03 | I35: 0.12 | J35: 880.19 | K35: 751.45 | L35: =L30 -> 112.30 | M35: 13.87 | N35: 1.45 | O35: 1.12 | P35: 3,906.44 | Q35: 3,275.89 | R35: =R30 -> 552.62 | S35: 52.43 | T35: 9.48 | U35: 16.02 | V35: 14,907.92 | W35: 12,177.08 | X35: =X30 -> 2,313.88 | Y35: 359.91 | Z35: 4.05 | AA35: 53.00 | AB35: (6,537.12) | AC35: 13,177.73 | AD35: 16,221.23 | AE35: 2,981.84 | AF35: 426.52 | AG35: =Z35+T35+N35+H35 -> 15.01 | AH35: 70.25
B36: 3.4 | C36: Total Dental Services Paid by Settlements/AP | D36: 0 | E36: 0 | F36: 0 | G36: 0 | H36: 0 | I36: 0 | J36: 0 | K36: 0 | L36: 0 | M36: 0 | N36: 0 | O36: 0 | P36: 0 | Q36: 0 | R36: 0 | S36: 0 | T36: 0 | U36: 0 | V36: 0 | W36: 0 | X36: 0 | Y36: 0 | Z36: 0 | AA36: 0 | AB36: 0 | AC36: 0 | AD36: =W36+Q36+K36+E36 -> 0 | AE36: 0 | AF36: 0 | AG36: 0 | AH36: =AA36+U36+O36+I36 -> 0
B37: 3.5 | C37: TPL & Fraud/Abuse Recoveries | D37: =SUM(E37:I37) -> 0 | J37: =SUM(K37:O37) -> 0 | P37: =SUM(Q37:U37) -> 0 | V37: =SUM(W37:AA37) -> 0 | AC37: 0 | AD37: =W37+Q37+K37+E37 -> 0 | AE37: 0 | AF37: 0 | AG37: 0 | AH37: =AA37+U37+O37+I37 -> 0
B38: 3.6 | C38: Premium Deficiency Reserve | D38: =SUM(E38:I38) -> 0 | J38: =SUM(K38:O38) -> 0 | P38: =SUM(Q38:U38) -> 0 | V38: =SUM(W38:AA38) -> 0 | AC38: =SUM(AD38:AH38)+AB38 -> 0 | AD38: =W38+Q38+K38+E38 -> 0 | AE38: 0 | AF38: =Y38+S38+M38+G38 -> 0 | AG38: 0 | AH38: =AA38+U38+O38+I38 -> 0
B39: 3.7 | C39: Subtotal Benefit Expense before Reinsurance | D39: =SUM(D33:D38) -> 2,210,814.63 | E39: =SUM(E33:E38) -> 1,829,756.82 | F39: =SUM(F33:F38) -> 331,310.76 | G39: 33,441.69 | H39: 3,515.07 | I39: =SUM(I33:I38) -> 12,790.29 | J39: =SUM(J33:J38) -> 2,059,734.13 | K39: =SUM(K33:K38) -> 1,758,472.27 | L39: =SUM(L33:L38) -> 262,792.14 | M39: 32,458.79 | N39: 3,386.18 | O39: =SUM(O33:O38) -> 2,624.75 | P39: =SUM(P33:P38) -> 2,898,575.78 | Q39: =SUM(Q33:Q38) -> 2,297,663.22 | R39: =SUM(R33:R38) -> 509,457.15 | S39: 67,046.79 | T39: 6,701.91 | U39: =SUM(U33:U38) -> 17,706.70 | V39: =SUM(V33:V38) -> 3,466,761.07 | W39: =SUM(W33:W38) -> 2,586,459.41 | X39: =SUM(X33:X38) -> 727,977.54 | Y39: =SUM(Y33:Y38) -> 124,087.29 | Z39: 3,589.75 | AA39: 24,647.08 | AB39: =SUM(AB33:AB38) -> (2,863.15) | AC39: =SUM(AC33:AC38) -> 10,633,022.46 | AD39: 8,472,351.72 | AE39: 1,831,537.59 | AF39: 257,034.55 | AG39: 17,192.92 | AH39: 57,768.83
B40: 3.8 | C40: Reinsurance Premiums | D40: =SUM(E40:I40) -> 0 | J40: =SUM(K40:O40) -> 0 | P40: =SUM(Q40:U40) -> 0 | V40: =SUM(W40:AA40) -> 0 | AC40: =SUM(AD40:AH40)+AB40 -> 0 | AD40: =W40+Q40+K40+E40 -> 0 | AE40: =X40+R40+L40+F40 -> 0 | AF40: =Y40+S40+M40+G40 -> 0 | AG40: 0 | AH40: 0
B41: 3.9 | C41: Reinsurance Recoveries | D41: =SUM(E41:I41) -> 0 | J41: =SUM(K41:O41) -> 0 | P41: =SUM(Q41:U41) -> 0 | V41: =SUM(W41:AA41) -> 0 | AC41: =SUM(AD41:AH41)+AB41 -> 0 | AD41: =W41+Q41+K41+E41 -> 0 | AE41: 0 | AF41: 0 | AG41: 0 | AH41: 0
B42: 3.10 | C42: Net cost of Reinsurance | D42: =SUM(D40:D41) -> 0 | E42: =SUM(E40:E41) -> 0 | F42: =SUM(F40:F41) -> 0 | G42: 0 | H42: 0 | I42: 0 | J42: =SUM(J40:J41) -> 0 | K42: =SUM(K40:K41) -> 0 | L42: 0 | M42: 0 | N42: 0 | O42: 0 | P42: =SUM(P40:P41) -> 0 | Q42: =SUM(Q40:Q41) -> 0 | R42: 0 | S42: 0 | T42: 0 | U42: 0 | V42: =SUM(V40:V41) -> 0 | W42: =SUM(W40:W41) -> 0 | X42: 0 | Y42: 0 | Z42: 0 | AA42: 0 | AB42: 0 | AC42: =SUM(AC40:AC41) -> 0 | AD42: =SUM(AD40:AD41) -> 0 | AE42: =SUM(AE40:AE41) -> 0 | AF42: 0 | AG42: =SUM(AG40:AG41) -> 0 | AH42: =SUM(AH40:AH41) -> 0
B43: 3.11 | C43: Grand Total Medical Benefit Expense Net of Reinsurance | D43: =D39+D42 -> 2,210,814.63 | E43: =E39+E42 -> 1,829,756.82 | F43: =F39+F42 -> 331,310.76 | G43: 33,441.69 | H43: 3,515.07 | I43: =I39+I42 -> 12,790.29 | J43: =J39+J42 -> 2,059,734.13 | K43: =K39+K42 -> 1,758,472.27 | L43: =L39+L42 -> 262,792.14 | M43: 32,458.79 | N43: 3,386.18 | O43: =O39+O42 -> 2,624.75 | P43: =P39+P42 -> 2,898,575.78 | Q43: =Q39+Q42 -> 2,297,663.22 | R43: =R39+R42 -> 509,457.15 | S43: 67,046.79 | T43: 6,701.91 | U43: =U39+U42 -> 17,706.70 | V43: =V39+V42 -> 3,466,761.07 | W43: =W39+W42 -> 2,586,459.41 | X43: =X39+X42 -> 727,977.54 | Y43: 124,087.29 | Z43: 3,589.75 | AA43: =AA39+AA42 -> 24,647.08 | AB43: =AB39+AB42 -> (2,863.15) | AC43: =AC39+AC42 -> 10,633,022.46 | AD43: =AD39+AD42 -> 8,472,351.72 | AE43: =AE39+AE42 -> 1,831,537.59 | AF43: 257,034.55 | AG43: 17,192.92 | AH43: =AH39+AH42 -> 57,768.83
A44: Administrative Expenses, Government-Mandated Assessments, Taxes, and Fees | D44: JANUARY - MARCH (Q1) | J44: APRIL - JUNE (Q2) | P44: JULY - SEPTEMBER (Q3) | V44: OCTOBER - DECEMBER (Q4) | AC44: TOTAL (TO DATE)
D45: Total | E45: Health Plan | F45: Corporate | J45: Total | K45: Health Plan | L45: Corporate | P45: Total | Q45: Health Plan | R45: Corporate | V45: Total | W45: Health Plan | X45: Corporate | AB45: Prior Calendar Year Adjustments | AC45: Total | AD45: Health Plan | AE45: Corporate
A46: Administrative Expenses | B46: 4.1 | C46: Salaries & Benefits | D46: =SUM(E46:F46) -> 107,774.47 | F46: 107,774.47 | J46: =SUM(K46:L46) -> 100,981.15 | L46: 100,981.15 | P46: =SUM(Q46:R46) -> 93,575.04 | R46: 93,575.04 | V46: =SUM(W46:X46) -> 125,839.23 | X46: 125,839.23 | AC46: =SUM(AD46:AE46)+AB46 -> 428,169.89 | AD46: =W46+Q46+K46+E46 -> 0 | AE46: =X46+R46+L46+F46 -> 428,169.89
B47: 4.2 | C47: Administrative Services | D47: =SUM(E47:F47) -> 16,334.56 | F47: 16,334.56 | J47: =SUM(K47:L47) -> 15,304.95 | L47: 15,304.95 | P47: =SUM(Q47:R47) -> 14,182.46 | R47: 14,182.46 | V47: =SUM(W47:X47) -> 19,072.50 | X47: 19,072.50 | AC47: =SUM(AD47:AE47)+AB47 -> 64,894.47 | AD47: =W47+Q47+K47+E47 -> 0 | AE47: 64,894.47
B48: 4.3 | C48: Information Systems | D48: 13,221.04 | F48: 13,221.04 | J48: 12,387.69 | L48: 12,387.69 | P48: 11,479.15 | R48: 11,479.15 | V48: 15,437.11 | X48: 15,437.11 | AC48: =SUM(AD48:AE48)+AB48 -> 52,524.99 | AD48: 0 | AE48: 52,524.99
B49: 4.4 | C49: Marketing Expenses | D49: 3,020.08 | F49: 3,020.08 | J49: 2,829.71 | L49: 2,829.71 | P49: 2,622.18 | R49: 2,622.18 | V49: 3,526.29 | X49: 3,526.29 | AC49: =SUM(AD49:AE49)+AB49 -> 11,998.26 | AD49: 0 | AE49: 11,998.26
B50: 4.5 | C50: General Administration | D50: 76,427.79 | F50: 76,427.79 | J50: 71,610.34 | L50: 71,610.34 | P50: 66,358.33 | R50: 66,358.33 | V50: 89,238.33 | X50: 89,238.33 | AC50: 303,634.79 | AD50: 0 | AE50: 303,634.79
B51: 4.6 | C51: Compliance/Regulatory | D51: 98,307.20 | F51: =1669.26+96637.94 -> 98,307.20 | J51: 92,110.63 | L51: =1564.04+90546.59 -> 92,110.63 | P51: 85,355.09 | R51: =1449.33340221929+83905.76 -> 85,355.09 | V51: 114,785.10 | X51: =1949.06+112836.04 -> 114,785.10 | AC51: 390,558.02 | AD51: 0 | AE51: =X51+R51+L51+F51 -> 390,558.02
B52: 4.7 | C52: Total Administrative Expenses | D52: =SUM(D46:D51) -> 315,085.14 | E52: =SUM(E46:E51) -> 0 | F52: =SUM(F46:F51) -> 315,085.14 | J52: =SUM(J46:J51) -> 295,224.47 | K52: =SUM(K46:K51) -> 0 | L52: =SUM(L46:L51) -> 295,224.47 | P52: =SUM(P46:P51) -> 273,572.25 | Q52: =SUM(Q46:Q51) -> 0 | R52: =SUM(R46:R51) -> 273,572.25 | V52: =SUM(V46:V51) -> 367,898.56 | W52: =SUM(W46:W51) -> 0 | X52: =SUM(X46:X51) -> 367,898.56 | AB52: =SUM(AB46:AB51) -> 0 | AC52: =SUM(AC46:AC51) -> 1,251,780.42 | AD52: =SUM(AD46:AD51) -> 0 | AE52: =SUM(AE46:AE51) -> 1,251,780.42
A53: Government-Mandated Assessments, Taxes, and Fees Other Than Income Taxes | B53: 5.1 | C53: State Premium tax | AC53: =D53+J53+P53+V53+AB53 -> 0
B54: 5.2 | C54: Department of Insurance Assessments | AC54: =D54+J54+P54+V54+AB54 -> 0
B55: 5.3 | C55: Section 9010 Health Insurance Providers Fee | AC55: =D55+J55+P55+V55+AB55 -> 0
B56: 5.4 | C56: Other 1 | AC56: =D56+J56+P56+V56+AB56 -> 0
B57: 5.5 | C57: Other 2 | AC57: 0
B58: 5.6 | C58: Other 3 | AC58: =D58+J58+P58+V58+AB58 -> 0
B59: 5.7 | C59: Total | D59: =SUM(D53:D58) -> 0 | J59: =SUM(J53:J58) -> 0 | P59: =SUM(P53:P58) -> 0 | V59: =SUM(V53:V58) -> 0 | AB59: =SUM(AB53:AB58) -> 0 | AC59: =SUM(AC53:AC58) -> 0
B60: 6.0 | C60: Grand Total Expenses | D60: =D43+D52+D59 -> 2,525,899.77 | J60: =J43+J52+J59 -> 2,354,958.60 | P60: =P43+P52+P59 -> 3,172,148.03 | V60: =V43+V52+V59 -> 3,834,659.63 | AB60: =AB43+AB52+AB59 -> (2,863.15) | AC60: =AC43+AC52+AC59 -> 11,884,802.88
B61: 7.0 | C61: Underwriting Gain / (Loss) --- AKA Pre-tax Earnings from Operations | D61: =D14-D60 -> 266,286.02 | J61: =J14-J60 -> 449,382.86 | P61: =P14-P60 -> (359,534.75) | V61: =V14-V60 -> (1,254,924.92) | AB61: =AB14-AB60 -> 8,608.37 | AC61: =AC14-AC60 -> (890,182.42)
B62: 8.0 | C62: Income Tax Expense | D62: =+D61*21% -> 55,920.06 | J62: =+J61*21% -> 94,370.40 | P62: =+P61*21% -> (75,502.30) | V62: =+V61*21% -> (263,534.23) | AB62: =+AB61*21% -> 1,807.76 | AC62: =AB62+V62+P62+J62+D62 -> (186,938.31)
B63: 9.0 | C63: Net Underwriting Gain (Loss) | D63: =D61-D62 -> 210,365.95 | J63: =J61-J62 -> 355,012.46 | P63: =P61-P62 -> (284,032.45) | V63: =V61-V62 -> (991,390.68) | AB63: =AB61-AB62 -> 6,800.61 | AC63: =AC61-AC62 -> (703,244.11)

Sheet Dental Rev-Exp Region 2
A1: DENTAL -- REVENUE AND EXPENSE SCHEDULE - REGION 2
A3: Health Plan: | C3: ='Dental Rev-Exp Summary'!C3 -> 0
A4: Reporting Period: | C4: =IF('Dental Rev-Exp Summary'!C4=0,"",'Dental Rev-Exp Summary'!C4) -> 
A5: Paid Through: | C5: =IF('Dental Rev-Exp Summary'!C5=0,"",'Dental Rev-Exp Summary'!C5) -> 
A6: Region 2
D7: JANUARY - MARCH (Q1) | J7: APRIL - JUNE (Q2) | P7: JULY - SEPTEMBER (Q3) | V7: OCTOBER - DECEMBER (Q4) | AC7: TOTAL (TO DATE)
D8: Total | E8: Medicaid Only/Dual Eligible 0-20 Years | F8: Medicaid Only 21+ Years | G8: Dual Eligible 21+ Years | H8: Medically Needy 0-20 Years | I8: Medically Needy 21+ Years | J8: Total | K8: Medicaid Only/Dual Eligible 0-20 Years | L8: Medicaid Only 21+ Years | M8: Dual Eligible 21+ Years | N8: Medically Needy 0-20 Years | O8: Medically Needy 21+ Years | P8: Total | Q8: Medicaid Only/Dual Eligible 0-20 Years | R8: Medicaid Only 21+ Years | S8: Dual Eligible 21+ Years | T8: Medically Needy 0-20 Years | U8: Medically Needy 21+ Years | V8: Total | W8: Medicaid Only/Dual Eligible 0-20 Years | X8: Medicaid Only 21+ Years | Y8: Dual Eligible 21+ Years | Z8: Medically Needy 0-20 Years | AA8: Medically Needy 21+ Years | AB8: Prior Year Adjustments | AC8: Total | AD8: Medicaid Only/Dual Eligible 0-20 Years | AE8: Medicaid Only 21+ Years | AF8: Dual Eligible 21+ Years | AG8: Medically Needy 0-20 Years | AH8: Medically Needy 21+ Years
A9: MEMBER MONTHS | D9: =SUM(E9:I9) -> 128,578.98 | E9: 73,442.65 | F9: 43,218.43 | G9: 8,713.77 | H9: 450.83 | I9: 2,753.30 | J9: =SUM(K9:O9) -> 130,448.15 | K9: 74,283.61 | L9: 44,810.80 | M9: 8,290.43 | N9: 428.63 | O9: 2,634.68 | P9: =SUM(Q9:U9) -> 135,495.16 | Q9: 76,832.53 | R9: 47,229.30 | S9: 8,402.83 | T9: 429.49 | U9: 2,601.01 | V9: =SUM(W9:AA9) -> 138,753.42 | W9: 78,311.05 | X9: 48,941.14 | Y9: 8,543.94 | Z9: 448.31 | AA9: 2,508.98 | AB9: 2,148.14 | AC9: =SUM(AD9:AH9)+AB9 -> 535,423.85 | AD9: =W9+Q9+K9+E9 -> 302,869.84 | AE9: =X9+R9+L9+F9 -> 184,199.67 | AF9: 33,950.97 | AG9: =Z9+T9+N9+H9 -> 1,757.26 | AH9: =AA9+U9+O9+I9 -> 10,497.97
A10: REVENUES
A11: Revenues | B11: 1.1 | C11: Capitation | D11: =SUM(E11:I11) -> 1,080,741.78 | E11: 856,735.55 | F11: 185,966.94 | G11: 27,841.32 | H11: 2,287.82 | I11: 7,910.15 | J11: =SUM(K11:O11) -> 1,106,959.01 | K11: 875,103.54 | L11: 194,294.65 | M11: 27,571.90 | N11: 2,314.91 | O11: 7,674.01 | P11: =SUM(Q11:U11) -> 1,135,801.95 | Q11: 895,251.17 | R11: 202,709.95 | S11: 27,944.54 | T11: 2,356.70 | U11: 7,539.59 | V11: =SUM(W11:AA11) -> 1,164,670.83 | W11: 894,864.20 | X11: 226,360.19 | Y11: 34,749.60 | Z11: 2,012.89 | AA11: 6,683.95 | AB11: =3560.99+6573.79 -> 10,134.78 | AC11: =SUM(AD11:AH11)+AB11 -> 4,498,308.35 | AD11: =W11+Q11+K11+E11 -> 3,521,954.46 | AE11: =X11+R11+L11+F11 -> 809,331.73 | AF11: 118,107.36 | AG11: 8,972.32 | AH11: =AA11+U11+O11+I11 -> 29,807.70
B12: 1.2 | C12: ACA § 9010 related payments | D12: =SUM(E12:I12) -> 0 | J12: =SUM(K12:O12) -> 0 | P12: =SUM(Q12:U12) -> 0 | V12: =SUM(W12:AA12) -> 0 | AC12: =SUM(AD12:AH12)+AB12 -> 0 | AD12: =W12+Q12+K12+E12 -> 0 | AE12: 0 | AF12: =Y12+S12+M12+G12 -> 0 | AG12: 0 | AH12: =AA12+U12+O12+I12 -> 0
B13: 1.3 | C13: Other Revenue | D13: 0 | J13: 0 | P13: 0 | V13: 0 | AC13: =SUM(AD13:AH13)+AB13 -> 0 | AD13: =W13+Q13+K13+E13 -> 0 | AE13: =X13+R13+L13+F13 -> 0 | AF13: =Y13+S13+M13+G13 -> 0 | AG13: =Z13+T13+N13+H13 -> 0 | AH13: =AA13+U13+O13+I13 -> 0
B14: 1.4 | C14: Total Revenue | D14: =SUM(D11:D13) -> 1,080,741.78 | E14: =SUM(E11:E13) -> 856,735.55 | F14: 185,966.94 | G14: =SUM(G11:G13) -> 27,841.32 | H14: 2,287.82 | I14: 7,910.15 | J14: =SUM(J11:J13) -> 1,106,959.01 | K14: =SUM(K11:K13) -> 875,103.54 | L14: 194,294.65 | M14: 27,571.90 | N14: 2,314.91 | O14: 7,674.01 | P14: =SUM(P11:P13) -> 1,135,801.95 | Q14: =SUM(Q11:Q13) -> 895,251.17 | R14: 202,709.95 | S14: 27,944.54 | T14: 2,356.70 | U14: 7,539.59 | V14: =SUM(V11:V13) -> 1,164,670.83 | W14: =SUM(W11:W13) -> 894,864.20 | X14: 226,360.19 | Y14: 34,749.60 | Z14: 2,012.89 | AA14: 6,683.95 | AB14: =SUM(AB11:AB13) -> 10,134.78 | AC14: =SUM(AC11:AC13) -> 4,498,308.35 | AD14: =SUM(AD11:AD13) -> 3,521,954.46 | AE14: =SUM(AE11:AE13) -> 809,331.73 | AF14: =SUM(AF11:AF13) -> 118,107.36 | AG14: =SUM(AG11:AG13) -> 8,972.32 | AH14: 29,807.70
A15: BENEFIT EXPENSES | D15: JANUARY - MARCH (Q1) | J15: APRIL - JUNE (Q2) | P15: JULY - SEPTEMBER (Q3) | V15: OCTOBER - DECEMBER (Q4) | AC15: TOTAL (TO DATE)
D16: Total | E16: Medicaid Only/Dual Eligible 0-20 Years | F16: Medicaid Only 21+ Years | G16: Dual Eligible 21+ Years | H16: Medically Needy 0-20 Years | I16: Medically Needy 21+ Years | J16: Total | K16: Medicaid Only/Dual Eligible 0-20 Years | L16: Medicaid Only 21+ Years | M16: Dual Eligible 21+ Years | N16: Medically Needy 0-20 Years | O16: Medically Needy 21+ Years | P16: Total | Q16: Medicaid Only/Dual Eligible 0-20 Years | R16: Medicaid Only 21+ Years | S16: Dual Eligible 21+ Years | T16: Medically Needy 0-20 Years | U16: Medically Needy 21+ Years | V16: Total | W16: Medicaid Only/Dual Eligible 0-20 Years | X16: Medicaid Only 21+ Years | Y16: Dual Eligible 21+ Years | Z16: Medically Needy 0-20 Years | AA16: Medically Needy 21+ Years | AB16: Prior Year Adjustments | AC16: Total | AD16: Medicaid Only/Dual Eligible 0-20 Years | AE16: Medicaid Only 21+ Years | AF16: Dual Eligible 21+ Years | AG16: Medically Needy 0-20 Years | AH16: Medically Needy 21+ Years
A17: Dental | B17: 2.1 | C17: Dental Services Diagnostic FFS | D17: =SUM(E17:I17) -> 173,487.35 | E17: 152,526.60 | F17: 17,661.18 | G17: 2,484.72 | H17: 342.85 | I17: 472.00 | J17: =SUM(K17:O17) -> 155,648.51 | K17: 132,361.63 | L17: 20,236.63 | M17: 2,601.77 | N17: 55.00 | O17: 393.48 | P17: =SUM(Q17:U17) -> 146,018.69 | Q17: 122,888.78 | R17: 19,841.52 | S17: 2,300.77 | T17: 509.55 | U17: 478.07 | V17: =SUM(W17:AA17) -> 142,355.82 | W17: 119,732.00 | X17: 19,460.22 | Y17: 2,353.03 | Z17: 233.01 | AA17: 577.56 | AB17: 955.94 | AC17: =SUM(AD17:AH17)+AB17 -> 618,466.31 | AD17: =W17+Q17+K17+E17 -> 527,509.01 | AE17: =X17+R17+L17+F17 -> 77,199.55 | AF17: 9,740.29 | AG17: 1,140.41 | AH17: 1,921.11
B18: 2.2 | C18: Dental Services Preventive FFS | D18: =SUM(E18:I18) -> 164,406.40 | E18: 163,919.08 | F18: 0 | G18: 0 | H18: 487.32 | I18: 0 | J18: =SUM(K18:O18) -> 148,875.69 | K18: 148,691.17 | L18: 0 | M18: 51.10 | N18: 133.42 | O18: 0 | P18: =SUM(Q18:U18) -> 136,832.77 | Q18: 136,304.96 | R18: 0 | S18: 60.94 | T18: 466.87 | U18: 0 | V18: =SUM(W18:AA18) -> 133,736.69 | W18: 133,314.51 | X18: 0 | Y18: 48.23 | Z18: 373.95 | AA18: 0 | AB18: 1,288.70 | AC18: =SUM(AD18:AH18)+AB18 -> 585,140.25 | AD18: =W18+Q18+K18+E18 -> 582,229.72 | AE18: 0 | AF18: =Y18+S18+M18+G18 -> 160.27 | AG18: 1,461.56 | AH18: =AA18+U18+O18+I18 -> 0
B19: 2.3 | C19: Dental Services Restorative FFS | D19: 201,064.55 | E19: 201,018.47 | F19: 0 | G19: 0 | H19: 46.08 | I19: 0 | J19: 190,713.98 | K19: 190,576.49 | L19: 0 | M19: 0 | N19: 137.49 | O19: 0 | P19: 202,215.14 | Q19: 201,559.00 | R19: 0 | S19: 0 | T19: 656.14 | U19: 0 | V19: 193,372.30 | W19: 192,905.14 | X19: 0 | Y19: 0 | Z19: 467.16 | AA19: 0 | AB19: 245.23 | AC19: =SUM(AD19:AH19)+AB19 -> 787,611.20 | AD19: =W19+Q19+K19+E19 -> 786,059.10 | AE19: 0 | AF19: 0 | AG19: 1,306.87 | AH19: 0
B20: 2.4 | C20: Dental Services Endodontics FFS | D20: 33,711.12 | E20: 33,711.12 | F20: 0 | G20: 0 | H20: 0 | I20: 0 | J20: 22,250.42 | K20: 22,250.42 | L20: 0 | M20: 0 | N20: 0 | O20: 0 | P20: 29,575.30 | Q20: 29,374.64 | R20: 0 | S20: 0 | T20: 200.66 | U20: 0 | V20: 27,660.34 | W20: 27,585.69 | X20: 0 | Y20: 0 | Z20: 74.65 | AA20: 0 | AB20: 0 | AC20: 113,197.18 | AD20: 112,921.87 | AE20: 0 | AF20: 0 | AG20: 275.31 | AH20: 0
B21: 2.5 | C21: Dental Services Periodontics FFS | D21: 442.05 | E21: 442.05 | F21: 0 | G21: 0 | H21: 0 | I21: 0 | J21: 127.23 | K21: 127.23 | L21: 0 | M21: 0 | N21: 0 | O21: 0 | P21: 323.11 | Q21: 323.11 | R21: 0 | S21: 0 | T21: 0 | U21: 0 | V21: 135.64 | W21: 135.64 | X21: 0 | Y21: 0 | Z21: 0 | AA21: 0 | AB21: 0 | AC21: 1,028.03 | AD21: 1,028.03 | AE21: 0 | AF21: 0 | AG21: 0 | AH21: 0
B22: 2.6 | C22: Dental Services Prosthodontics FFS | D22: 23,615.72 | E22: 0 | F22: 17,385.97 | G22: 5,308.25 | H22: 0 | I22: 921.50 | J22: 30,179.46 | K22: 0 | L22: 24,775.31 | M22: 3,561.15 | N22: 0 | O22: 1,843.00 | P22: 20,012.94 | Q22: 245.24 | R22: 16,704.42 | S22: 3,063.28 | T22: 0 | U22: 0 | V22: 28,352.82 | W22: 20.81 | X22: 23,021.73 | Y22: 4,849.53 | Z22: 0 | AA22: 460.75 | AB22: 460.75 | AC22: 102,621.69 | AD22: 266.05 | AE22: 81,887.43 | AF22: 16,782.21 | AG22: 0 | AH22: 3,225.25
B23: 2.7 | C23: Dental Services Prosthodontics, fixed FFS | D23: 0 | E23: 0 | F23: 0 | G23: 0 | H23: 0 | I23: 0 | J23: 0 | K23: 0 | L23: 0 | M23: 0 | N23: 0 | O23: 0 | P23: 0 | Q23: 0 | R23: 0 | S23: 0 | T23: 0 | U23: 0 | V23: 0 | W23: 0 | X23: 0 | Y23: 0 | Z23: 0 | AA23: 0 | AB23: 0 | AC23: 0 | AD23: 0 | AE23: 0 | AF23: 0 | AG23: 0 | AH23: 0
B24: 2.8 | C24: Dental Services Oral and Maxillofacial Surgery FFS | D24: 188,547.15 | E24: 56,536.42 | F24: 107,814.41 | G24: 20,353.64 | H24: 48.16 | I24: 3,794.52 | J24: 144,188.98 | K24: 35,851.01 | L24: 92,658.81 | M24: 14,750.81 | N24: 0 | O24: 928.35 | P24: 160,225.42 | Q24: 45,927.99 | R24: 99,264.33 | S24: 14,827.10 | T24: 0 | U24: 206.00 | V24: 131,476.29 | W24: 41,964.97 | X24: 76,680.54 | Y24: 12,749.42 | Z24: 0 | AA24: 81.36 | AB24: 491.18 | AC24: 624,929.02 | AD24: 180,280.39 | AE24: 376,418.09 | AF24: 62,680.97 | AG24: 48.16 | AH24: 5,010.23
B25: 2.9 | C25: Dental Services Orthodontics FFS | D25: 23,802.06 | E25: 23,180.19 | F25: 0 | G25: 0 | H25: 621.87 | I25: 0 | J25: 22,433.17 | K25: 21,888.59 | L25: 0 | M25: 0 | N25: 544.58 | O25: 0 | P25: 21,453.87 | Q25: 20,909.29 | R25: 0 | S25: 0 | T25: 544.58 | U25: 0 | V25: 18,438.43 | W25: 17,748.43 | X25: 0 | Y25: 0 | Z25: 690.00 | AA25: 0 | AB25: 0 | AC25: 86,127.53 | AD25: 83,726.50 | AE25: 0 | AF25: 0 | AG25: 2,401.03 | AH25: 0
B26: 2.10 | C26: Dental Services Adjunctive General Services FFS | D26: 59,969.13 | E26: 38,702.63 | F26: 18,547.25 | G26: 2,519.25 | H26: 0 | I26: 200.00 | J26: 49,413.19 | K26: 29,973.44 | L26: 16,380.50 | M26: 2,859.25 | N26: 0 | O26: 200.00 | P26: 49,204.66 | Q26: 31,443.42 | R26: 15,310.00 | S26: 2,250.00 | T26: 201.24 | U26: 0 | V26: 47,657.82 | W26: 30,237.02 | X26: 15,527.75 | Y26: 1,851.25 | Z26: 41.80 | AA26: 0 | AB26: 26.75 | AC26: =SUM(AD26:AH26)+AB26 -> 206,271.55 | AD26: =W26+Q26+K26+E26 -> 130,356.51 | AE26: 65,765.50 | AF26: 9,479.75 | AG26: 243.04 | AH26: 400.00
B27: 2.11 | C27: Dental Services Other FFS | D27: 0 | E27: 0 | F27: 0 | G27: 0 | H27: 0 | I27: 0 | J27: 0 | K27: 0 | L27: 0 | M27: 0 | N27: 0 | O27: 0 | P27: 0 | Q27: 0 | R27: 0 | S27: 0 | T27: 0 | U27: 0 | V27: 0 | W27: 0 | X27: 0 | Y27: 0 | Z27: 0 | AA27: 0 | AB27: 0 | AC27: 0 | AD27: 0 | AE27: 0 | AF27: 0 | AG27: 0 | AH27: 0
B28: 2.12 | C28: Dental Expanded Benefits FFS | D28: 27,410.45 | E28: 0 | F28: 23,555.94 | G28: 3,538.52 | H28: 0 | I28: 315.99 | J28: 29,219.46 | K28: 0 | L28: 23,745.34 | M28: 4,667.82 | N28: 0 | O28: 806.30 | P28: 31,230.65 | Q28: 0 | R28: 27,082.19 | S28: 3,402.06 | T28: 0 | U28: 746.40 | V28: 26,561.30 | W28: 0 | X28: 22,952.00 | Y28: 3,183.96 | Z28: 0 | AA28: 425.34 | AB28: 895.23 | AC28: =SUM(AD28:AH28)+AB28 -> 115,317.09 | AD28: 0 | AE28: 97,335.47 | AF28: 14,792.36 | AG28: 0 | AH28: =AA28+U28+O28+I28 -> 2,294.03
B29: 2.13 | C29: Dental Services Paid through Subcapitation | D29: =SUM(E29:I29) -> 0 | E29: 0 | F29: 0 | G29: 0 | H29: 0 | I29: 0 | J29: =SUM(K29:O29) -> 0 | K29: 0 | L29: 0 | M29: 0 | N29: 0 | O29: 0 | P29: =SUM(Q29:U29) -> 0 | Q29: 0 | R29: 0 | S29: 0 | T29: 0 | U29: 0 | V29: =SUM(W29:AA29) -> 0 | W29: 0 | X29: 0 | Y29: 0 | Z29: 0 | AA29: 0 | AB29: 0 | AC29: =SUM(AD29:AH29)+AB29 -> 0 | AD29: 0 | AE29: 0 | AF29: 0 | AG29: 0 | AH29: 0
B30: 2.14 | C30: Ending IBNP for Dental Services | D30: 8.23 | E30: 6.15 | F30: 1.70 | G30: 0.31 | H30: 0.01 | I30: 0.05 | J30: =SUM(K30:O30) -> 339.04 | K30: 248.69 | L30: 76.01 | M30: 12.18 | N30: 0.37 | O30: 1.78 | P30: =SUM(Q30:U30) -> 1,470.28 | Q30: 1,086.40 | R30: 328.70 | S30: 47.78 | T30: 4.76 | U30: 2.64 | V30: =SUM(W30:AA30) -> 5,994.56 | W30: 4,506.59 | X30: 1,260.42 | Y30: 200.17 | Z30: 15.04 | AA30: 12.35 | AB30: (7,764.50) | AC30: 47.61 | AD30: 5,847.83 | AE30: 1,666.83 | AF30: 260.45 | AG30: 20.18 | AH30: =AA30+U30+O30+I30 -> 16.83
B31: 2.15 | C31: Dental Settlements/AP | D31: 0 | J31: 0 | P31: 0 | V31: 0 | AB31: 0 | AC31: =SUM(AD31:AH31)+AB31 -> 0 | AD31: 0 | AE31: 0 | AF31: 0 | AG31: 0 | AH31: 0
B32: 2.16 | C32: Total Dental Services | D32: =SUM(D17:D31) -> 896,464.21 | E32: =SUM(E17:E31) -> 670,042.71 | F32: 184,966.45 | G32: 34,204.69 | H32: 1,546.29 | I32: 5,704.06 | J32: =SUM(J17:J31) -> 793,389.13 | K32: =SUM(K17:K31) -> 581,968.67 | L32: 177,872.60 | M32: 28,504.08 | N32: 870.86 | O32: 4,172.91 | P32: =SUM(P17:P31) -> 798,562.83 | Q32: =SUM(Q17:Q31) -> 590,062.83 | R32: 178,531.16 | S32: 25,951.93 | T32: 2,583.80 | U32: 1,433.11 | V32: =SUM(V17:V31) -> 755,742.01 | W32: =SUM(W17:W31) -> 568,150.80 | X32: 158,902.66 | Y32: 25,235.59 | Z32: 1,895.61 | AA32: 1,557.36 | AB32: =SUM(AB17:AB31) -> (3,400.72) | AC32: =SUM(AC17:AC31) -> 3,240,757.46 | AD32: 2,410,225.01 | AE32: 700,272.87 | AF32: 113,896.30 | AG32: 6,896.56 | AH32: =SUM(AH17:AH31) -> 12,867.45
A33: Total Before and After Reinsurance | B33: 3.1 | C33: Total Dental Services Paid Directly FFS | D33: =SUM(D17:D28) -> 896,455.98 | E33: =SUM(E17:E28) -> 670,036.56 | F33: =SUM(F17:F28) -> 184,964.75 | G33: 34,204.38 | H33: 1,546.28 | I33: =SUM(I17:I28) -> 5,704.01 | J33: =SUM(J17:J28) -> 793,050.09 | K33: =SUM(K17:K28) -> 581,719.98 | L33: 177,796.59 | M33: 28,491.90 | N33: 870.49 | O33: =SUM(O17:O28) -> 4,171.13 | P33: =SUM(P17:P28) -> 797,092.55 | Q33: =SUM(Q17:Q28) -> 588,976.43 | R33: 178,202.46 | S33: 25,904.15 | T33: 2,579.04 | U33: =SUM(U17:U28) -> 1,430.47 | V33: =SUM(V17:V28) -> 749,747.45 | W33: =SUM(W17:W28) -> 563,644.21 | X33: 157,642.24 | Y33: 25,035.42 | Z33: 1,880.57 | AA33: =SUM(AA17:AA28) -> 1,545.01 | AB33: =SUM(AB17:AB28) -> 4,363.78 | AC33: =SUM(AD33:AH33)+AB33 -> 3,240,709.85 | AD33: =W33+Q33+K33+E33 -> 2,404,377.18 | AE33: 698,606.04 | AF33: 113,635.85 | AG33: 6,876.38 | AH33: 12,850.62
B34: 3.2 | C34: Total Dental Services Paid through Subcapitation | D34: =D29 -> 0 | E34: 0 | F34: =F29 -> 0 | G34: 0 | H34: 0 | I34: 0 | J34: =J29 -> 0 | K34: 0 | L34: =L29 -> 0 | M34: 0 | N34: 0 | O34: 0 | P34: =P29 -> 0 | Q34: 0 | R34: =R29 -> 0 | S34: 0 | T34: 0 | U34: 0 | V34: =V29 -> 0 | W34: 0 | X34: =X29 -> 0 | Y34: 0 | Z34: 0 | AA34: 0 | AB34: 0 | AC34: 0 | AD34: =W34+Q34+K34+E34 -> 0 | AE34: 0 | AF34: 0 | AG34: 0 | AH34: 0
B35: 3.3 | C35: Total Dental Services Paid Directly -- IBNP | D35: 8.23 | E35: 6.15 | F35: =F30 -> 1.70 | G35: 0.31 | H35: 0.01 | I35: 0.05 | J35: 339.04 | K35: 248.69 | L35: =L30 -> 76.01 | M35: 12.18 | N35: 0.37 | O35: 1.78 | P35: 1,470.28 | Q35: 1,086.40 | R35: =R30 -> 328.70 | S35: 47.78 | T35: 4.76 | U35: 2.64 | V35: 5,994.56 | W35: 4,506.59 | X35: =X30 -> 1,260.42 | Y35: 200.17 | Z35: 15.04 | AA35: 12.35 | AB35: (7,764.50) | AC35: 47.61 | AD35: 5,847.83 | AE35: 1,666.83 | AF35: 260.45 | AG35: =Z35+T35+N35+H35 -> 20.18 | AH35: 16.83
B36: 3.4 | C36: Total Dental Services Paid by Settlements/AP | D36: 0 | E36: 0 | F36: 0 | G36: 0 | H36: 0 | I36: 0 | J36: 0 | K36: 0 | L36: 0 | M36: 0 | N36: 0 | O36: 0 | P36: 0 | Q36: 0 | R36: 0 | S36: 0 | T36: 0 | U36: 0 | V36: 0 | W36: 0 | X36: 0 | Y36: 0 | Z36: 0 | AA36: 0 | AB36: 0 | AC36: 0 | AD36: =W36+Q36+K36+E36 -> 0 | AE36: 0 | AF36: 0 | AG36: 0 | AH36: =AA36+U36+O36+I36 -> 0
B37: 3.5 | C37: TPL & Fraud/Abuse Recoveries | D37: =SUM(E37:I37) -> 0 | J37: =SUM(K37:O37) -> 0 | P37: =SUM(Q37:U37) -> 0 | V37: =SUM(W37:AA37) -> 0 | AC37: 0 | AD37: =W37+Q37+K37+E37 -> 0 | AE37: 0 | AF37: 0 | AG37: 0 | AH37: =AA37+U37+O37+I37 -> 0
B38: 3.6 | C38: Premium Deficiency Reserve | D38: =SUM(E38:I38) -> 0 | J38: =SUM(K38:O38) -> 0 | P38: =SUM(Q38:U38) -> 0 | V38: =SUM(W38:AA38) -> 0 | AC38: =SUM(AD38:AH38)+AB38 -> 0 | AD38: =W38+Q38+K38+E38 -> 0 | AE38: 0 | AF38: =Y38+S38+M38+G38 -> 0 | AG38: 0 | AH38: =AA38+U38+O38+I38 -> 0
B39: 3.7 | C39: Subtotal Benefit Expense before Reinsurance | D39: =SUM(D33:D38) -> 896,464.21 | E39: =SUM(E33:E38) -> 670,042.71 | F39: =SUM(F33:F38) -> 184,966.45 | G39: 34,204.69 | H39: 1,546.29 | I39: =SUM(I33:I38) -> 5,704.06 | J39: =SUM(J33:J38) -> 793,389.13 | K39: =SUM(K33:K38) -> 581,968.67 | L39: =SUM(L33:L38) -> 177,872.60 | M39: 28,504.08 | N39: 870.86 | O39: =SUM(O33:O38) -> 4,172.91 | P39: =SUM(P33:P38) -> 798,562.83 | Q39: =SUM(Q33:Q38) -> 590,062.83 | R39: =SUM(R33:R38) -> 178,531.16 | S39: 25,951.93 | T39: 2,583.80 | U39: =SUM(U33:U38) -> 1,433.11 | V39: =SUM(V33:V38) -> 755,742.01 | W39: =SUM(W33:W38) -> 568,150.80 | X39: =SUM(X33:X38) -> 158,902.66 | Y39: 25,235.59 | Z39: 1,895.61 | AA39: =SUM(AA33:AA38) -> 1,557.36 | AB39: (3,400.72) | AC39: =SUM(AC33:AC38) -> 3,240,757.46 | AD39: 2,410,225.01 | AE39: 700,272.87 | AF39: 113,896.30 | AG39: 6,896.56 | AH39: 12,867.45
B40: 3.8 | C40: Reinsurance Premiums | D40: =SUM(E40:I40) -> 0 | J40: =SUM(K40:O40) -> 0 | P40: =SUM(Q40:U40) -> 0 | V40: =SUM(W40:AA40) -> 0 | AC40: =SUM(AD40:AH40)+AB40 -> 0 | AD40: =W40+Q40+K40+E40 -> 0 | AE40: =X40+R40+L40+F40 -> 0 | AF40: =Y40+S40+M40+G40 -> 0 | AG40: 0 | AH40: 0
B41: 3.9 | C41: Reinsurance Recoveries | D41: =SUM(E41:I41) -> 0 | J41: =SUM(K41:O41) -> 0 | P41: =SUM(Q41:U41) -> 0 | V41: =SUM(W41:AA41) -> 0 | AC41: =SUM(AD41:AH41)+AB41 -> 0 | AD41: =W41+Q41+K41+E41 -> 0 | AE41: 0 | AF41: 0 | AG41: 0 | AH41: 0
B42: 3.10 | C42: Net cost of Reinsurance | D42: =SUM(D40:D41) -> 0 | E42: =SUM(E40:E41) -> 0 | F42: =SUM(F40:F41) -> 0 | G42: 0 | H42: 0 | I42: 0 | J42: =SUM(J40:J41) -> 0 | K42: =SUM(K40:K41) -> 0 | L42: 0 | M42: 0 | N42: 0 | O42: 0 | P42: =SUM(P40:P41) -> 0 | Q42: =SUM(Q40:Q41) -> 0 | R42: 0 | S42: 0 | T42: 0 | U42: 0 | V42: =SUM(V40:V41) -> 0 | W42: =SUM(W40:W41) -> 0 | X42: 0 | Y42: 0 | Z42: 0 | AA42: 0 | AB42: 0 | AC42: =SUM(AC40:AC41) -> 0 | AD42: =SUM(AD40:AD41) -> 0 | AE42: =SUM(AE40:AE41) -> 0 | AF42: 0 | AG42: =SUM(AG40:AG41) -> 0 | AH42: =SUM(AH40:AH41) -> 0
B43: 3.11 | C43: Grand Total Medical Benefit Expense Net of Reinsurance | D43: =D39+D42 -> 896,464.21 | E43: =E39+E42 -> 670,042.71 | F43: =F39+F42 -> 184,966.45 | G43: 34,204.69 | H43: 1,546.29 | I43: =I39+I42 -> 5,704.06 | J43: =J39+J42 -> 793,389.13 | K43: =K39+K42 -> 581,968.67 | L43: =L39+L42 -> 177,872.60 | M43: 28,504.08 | N43: 870.86 | O43: =O39+O42 -> 4,172.91 | P43: =P39+P42 -> 798,562.83 | Q43: =Q39+Q42 -> 590,062.83 | R43: =R39+R42 -> 178,531.16 | S43: 25,951.93 | T43: 2,583.80 | U43: =U39+U42 -> 1,433.11 | V43: =V39+V42 -> 755,742.01 | W43: =W39+W42 -> 568,150.80 | X43: =X39+X42 -> 158,902.66 | Y43: 25,235.59 | Z43: 1,895.61 | AA43: =AA39+AA42 -> 1,557.36 | AB43: =AB39+AB42 -> (3,400.72) | AC43: =AC39+AC42 -> 3,240,757.46 | AD43: =AD39+AD42 -> 2,410,225.01 | AE43: =AE39+AE42 -> 700,272.87 | AF43: 113,896.30 | AG43: 6,896.56 | AH43: =AH39+AH42 -> 12,867.45
A44: Administrative Expenses, Government-Mandated Assessments, Taxes, and Fees | D44: JANUARY - MARCH (Q1) | J44: APRIL - JUNE (Q2) | P44: JULY - SEPTEMBER (Q3) | V44: OCTOBER - DECEMBER (Q4) | AC44: TOTAL (TO DATE)
D45: Total | E45: Health Plan | F45: Corporate | J45: Total | K45: Health Plan | L45: Corporate | P45: Total | Q45: Health Plan | R45: Corporate | V45: Total | W45: Health Plan | X45: Corporate | AB45: Prior Calendar Year Adjustments | AC45: Total | AD45: Health Plan | AE45: Corporate
A46: Administrative Expenses | B46: 4.1 | C46: Salaries & Benefits | D46: =SUM(E46:F46) -> 41,623.49 | F46: 41,623.49 | J46: =SUM(K46:L46) -> 38,999.85 | L46: 38,999.85 | P46: =SUM(Q46:R46) -> 36,139.54 | R46: 36,139.54 | V46: =SUM(W46:X46) -> 48,600.27 | X46: 48,600.27 | AC46: =SUM(AD46:AE46)+AB46 -> 165,363.15 | AD46: =W46+Q46+K46+E46 -> 0 | AE46: =X46+R46+L46+F46 -> 165,363.15
B47: 4.2 | C47: Administrative Services | D47: =SUM(E47:F47) -> 6,308.56 | F47: 6,308.56 | J47: =SUM(K47:L47) -> 5,910.91 | L47: 5,910.91 | P47: =SUM(Q47:R47) -> 5,477.40 | R47: 5,477.40 | V47: =SUM(W47:X47) -> 7,365.98 | X47: 7,365.98 | AC47: =SUM(AD47:AE47)+AB47 -> 25,062.85 | AD47: =W47+Q47+K47+E47 -> 0 | AE47: 25,062.85
B48: 4.3 | C48: Information Systems | D48: 5,106.09 | F48: 5,106.09 | J48: 4,784.24 | L48: 4,784.24 | P48: 4,433.35 | R48: 4,433.35 | V48: 5,961.95 | X48: 5,961.95 | AC48: =SUM(AD48:AE48)+AB48 -> 20,285.63 | AD48: 0 | AE48: 20,285.63
B49: 4.4 | C49: Marketing Expenses | D49: 1,166.38 | F49: 1,166.38 | J49: 1,092.86 | L49: 1,092.86 | P49: 1,012.71 | R49: 1,012.71 | V49: 1,361.89 | X49: 1,361.89 | AC49: =SUM(AD49:AE49)+AB49 -> 4,633.84 | AD49: 0 | AE49: 4,633.84
B50: 4.5 | C50: General Administration | D50: 29,517.12 | F50: 29,517.12 | J50: 27,656.57 | L50: 27,656.57 | P50: 25,628.20 | R50: 25,628.20 | V50: 34,464.67 | X50: 34,464.67 | AC50: 117,266.56 | AD50: 0 | AE50: 117,266.56
B51: 4.6 | C51: Compliance/Regulatory | D51: 37,967.14 | F51: =644.68+37322.46 -> 37,967.14 | J51: 35,573.98 | L51: =604.05+34969.93 -> 35,573.98 | P51: 32,964.93 | R51: =559.745904723528+32405.18 -> 32,964.93 | V51: 44,331.06 | X51: =752.74+43578.32 -> 44,331.06 | AC51: 150,837.11 | AD51: 0 | AE51: =X51+R51+L51+F51 -> 150,837.11
B52: 4.7 | C52: Total Administrative Expenses | D52: =SUM(D46:D51) -> 121,688.78 | E52: =SUM(E46:E51) -> 0 | F52: =SUM(F46:F51) -> 121,688.78 | J52: =SUM(J46:J51) -> 114,018.41 | K52: =SUM(K46:K51) -> 0 | L52: =SUM(L46:L51) -> 114,018.41 | P52: =SUM(P46:P51) -> 105,656.12 | Q52: =SUM(Q46:Q51) -> 0 | R52: =SUM(R46:R51) -> 105,656.12 | V52: =SUM(V46:V51) -> 142,085.82 | W52: =SUM(W46:W51) -> 0 | X52: =SUM(X46:X51) -> 142,085.82 | AB52: =SUM(AB46:AB51) -> 0 | AC52: =SUM(AC46:AC51) -> 483,449.13 | AD52: =SUM(AD46:AD51) -> 0 | AE52: =SUM(AE46:AE51) -> 483,449.13
A53: Government-Mandated Assessments, Taxes, and Fees Other Than Income Taxes | B53: 5.1 | C53: State Premium tax | AC53: =D53+J53+P53+V53+AB53 -> 0
B54: 5.2 | C54: Department of Insurance Assessments | AC54: =D54+J54+P54+V54+AB54 -> 0
B55: 5.3 | C55: Section 9010 Health Insurance Providers Fee | AC55: =D55+J55+P55+V55+AB55 -> 0
B56: 5.4 | C56: Other 1 | AC56: 0
B57: 5.5 | C57: Other 2 | AC57: 0
B58: 5.6 | C58: Other 3 | AC58: =D58+J58+P58+V58+AB58 -> 0
B59: 5.7 | C59: Total | D59: =SUM(D53:D58) -> 0 | J59: =SUM(J53:J58) -> 0 | P59: =SUM(P53:P58) -> 0 | V59: =SUM(V53:V58) -> 0 | AB59: =SUM(AB53:AB58) -> 0 | AC59: =SUM(AC53:AC58) -> 0
B60: 6.0 | C60: Grand Total Expenses | D60: =D43+D52+D59 -> 1,018,152.99 | J60: =J43+J52+J59 -> 907,407.54 | P60: =P43+P52+P59 -> 904,218.95 | V60: =V43+V52+V59 -> 897,827.83 | AB60: =AB43+AB52+AB59 -> (3,400.72) | AC60: =AC43+AC52+AC59 -> 3,724,206.59
B61: 7.0 | C61: Underwriting Gain / (Loss) --- AKA Pre-tax Earnings from Operations | D61: =D14-D60 -> 62,588.79 | J61: =J14-J60 -> 199,551.47 | P61: =P14-P60 -> 231,583.00 | V61: =V14-V60 -> 266,843.00 | AB61: =AB14-AB60 -> 13,535.50 | AC61: =AC14-AC60 -> 774,101.76
B62: 8.0 | C62: Income Tax Expense | D62: =+D61*21% -> 13,143.65 | J62: =+J61*21% -> 41,905.81 | P62: =+P61*21% -> 48,632.43 | V62: =+V61*21% -> 56,037.03 | AB62: =+AB61*21% -> 2,842.46 | AC62: =AB62+V62+P62+J62+D62 -> 162,561.37
B63: 9.0 | C63: Net Underwriting Gain (Loss) | D63: =D61-D62 -> 49,445.14 | J63: =J61-J62 -> 157,645.66 | P63: =P61-P62 -> 182,950.57 | V63: =V61-V62 -> 210,805.97 | AB63: =AB61-AB62 -> 10,693.05 | AC63: =AC61-AC62 -> 611,540.39

Sheet Dental Rev-Exp Region 3
A1: DENTAL -- REVENUE AND EXPENSE SCHEDULE - REGION 3
A3: Health Plan: | C3: ='Dental Rev-Exp Summary'!C3 -> 0
A4: Reporting Period: | C4: =IF('Dental Rev-Exp Summary'!C4=0,"",'Dental Rev-Exp Summary'!C4) -> 
A5: Paid Through: | C5: =IF('Dental Rev-Exp Summary'!C5=0,"",'Dental Rev-Exp Summary'!C5) -> 
A6: Region 3
D7: JANUARY - MARCH (Q1) | J7: APRIL - JUNE (Q2) | P7: JULY - SEPTEMBER (Q3) | V7: OCTOBER - DECEMBER (Q4) | AC7: TOTAL (TO DATE)
D8: Total | E8: Medicaid Only/Dual Eligible 0-20 Years | F8: Medicaid Only 21+ Years | G8: Dual Eligible 21+ Years | H8: Medically Needy 0-20 Years | I8: Medically Needy 21+ Years | J8: Total | K8: Medicaid Only/Dual Eligible 0-20 Years | L8: Medicaid Only 21+ Years | M8: Dual Eligible 21+ Years | N8: Medically Needy 0-20 Years | O8: Medically Needy 21+ Years | P8: Total | Q8: Medicaid Only/Dual Eligible 0-20 Years | R8: Medicaid Only 21+ Years | S8: Dual Eligible 21+ Years | T8: Medically Needy 0-20 Years | U8: Medically Needy 21+ Years | V8: Total | W8: Medicaid Only/Dual Eligible 0-20 Years | X8: Medicaid Only 21+ Years | Y8: Dual Eligible 21+ Years | Z8: Medically Needy 0-20 Years | AA8: Medically Needy 21+ Years | AB8: Prior Year Adjustments | AC8: Total | AD8: Medicaid Only/Dual Eligible 0-20 Years | AE8: Medicaid Only 21+ Years | AF8: Dual Eligible 21+ Years | AG8: Medically Needy 0-20 Years | AH8: Medically Needy 21+ Years
A9: MEMBER MONTHS | D9: =SUM(E9:I9) -> 326,720.00 | E9: 190,446.27 | F9: 106,134.09 | G9: 19,249.42 | H9: 1,861.04 | I9: 9,029.18 | J9: =SUM(K9:O9) -> 332,584.71 | K9: 193,659.09 | L9: 110,249.16 | M9: 18,000.15 | N9: 1,863.40 | O9: 8,812.91 | P9: =SUM(Q9:U9) -> 347,293.57 | Q9: 201,021.83 | R9: 116,833.37 | S9: 18,490.14 | T9: 1,905.25 | U9: 9,042.98 | V9: =SUM(W9:AA9) -> 356,380.17 | W9: 205,651.23 | X9: 121,414.08 | Y9: 18,588.17 | Z9: 1,848.12 | AA9: 8,878.57 | AB9: 6,827.09 | AC9: =SUM(AD9:AH9)+AB9 -> 1,369,805.54 | AD9: =W9+Q9+K9+E9 -> 790,778.42 | AE9: =X9+R9+L9+F9 -> 454,630.70 | AF9: 74,327.88 | AG9: =Z9+T9+N9+H9 -> 7,477.81 | AH9: =AA9+U9+O9+I9 -> 35,763.64
A10: REVENUES
A11: Revenues | B11: 1.1 | C11: Capitation | D11: =SUM(E11:I11) -> 2,247,460.11 | E11: 1,771,016.04 | F11: 393,906.34 | G11: 45,293.96 | H11: 10,544.17 | I11: 26,699.60 | J11: =SUM(K11:O11) -> 2,310,884.86 | K11: 1,815,319.40 | L11: 412,882.52 | M11: 45,283.33 | N11: 10,638.39 | O11: 26,761.22 | P11: =SUM(Q11:U11) -> 2,380,456.58 | Q11: 1,863,306.70 | R11: 433,498.47 | S11: 46,037.65 | T11: 10,412.32 | U11: 27,201.44 | V11: =SUM(W11:AA11) -> 2,383,365.56 | W11: 1,843,337.56 | X11: 450,891.05 | Y11: 55,156.41 | Z11: 9,104.34 | AA11: 24,876.20 | AB11: =6982.85+12890.73 -> 19,873.58 | AC11: =SUM(AD11:AH11)+AB11 -> 9,342,040.69 | AD11: =W11+Q11+K11+E11 -> 7,292,979.70 | AE11: =X11+R11+L11+F11 -> 1,691,178.38 | AF11: 191,771.35 | AG11: 40,699.22 | AH11: =AA11+U11+O11+I11 -> 105,538.46
B12: 1.2 | C12: ACA § 9010 related payments | D12: =SUM(E12:I12) -> 0 | J12: =SUM(K12:O12) -> 0 | P12: =SUM(Q12:U12) -> 0 | V12: =SUM(W12:AA12) -> 0 | AC12: =SUM(AD12:AH12)+AB12 -> 0 | AD12: =W12+Q12+K12+E12 -> 0 | AE12: 0 | AF12: =Y12+S12+M12+G12 -> 0 | AG12: 0 | AH12: =AA12+U12+O12+I12 -> 0
B13: 1.3 | C13: Other Revenue | D13: 0 | J13: 0 | P13: 0 | V13: 0 | AC13: =SUM(AD13:AH13)+AB13 -> 0 | AD13: =W13+Q13+K13+E13 -> 0 | AE13: =X13+R13+L13+F13 -> 0 | AF13: =Y13+S13+M13+G13 -> 0 | AG13: =Z13+T13+N13+H13 -> 0 | AH13: =AA13+U13+O13+I13 -> 0
B14: 1.4 | C14: Total Revenue | D14: =SUM(D11:D13) -> 2,247,460.11 | E14: =SUM(E11:E13) -> 1,771,016.04 | F14: 393,906.34 | G14: =SUM(G11:G13) -> 45,293.96 | H14: 10,544.17 | I14: 26,699.60 | J14: =SUM(J11:J13) -> 2,310,884.86 | K14: =SUM(K11:K13) -> 1,815,319.40 | L14: 412,882.52 | M14: 45,283.33 | N14: 10,638.39 | O14: 26,761.22 | P14: =SUM(P11:P13) -> 2,380,456.58 | Q14: =SUM(Q11:Q13) -> 1,863,306.70 | R14: 433,498.47 | S14: 46,037.65 | T14: 10,412.32 | U14: 27,201.44 | V14: =SUM(V11:V13) -> 2,383,365.56 | W14: =SUM(W11:W13) -> 1,843,337.56 | X14: 450,891.05 | Y14: 55,156.41 | Z14: 9,104.34 | AA14: 24,876.20 | AB14: =SUM(AB11:AB13) -> 19,873.58 | AC14: =SUM(AC11:AC13) -> 9,342,040.69 | AD14: =SUM(AD11:AD13) -> 7,292,979.70 | AE14: =SUM(AE11:AE13) -> 1,691,178.38 | AF14: =SUM(AF11:AF13) -> 191,771.35 | AG14: =SUM(AG11:AG13) -> 40,699.22 | AH14: 105,538.46
A15: BENEFIT EXPENSES | D15: JANUARY - MARCH (Q1) | J15: APRIL - JUNE (Q2) | P15: JULY - SEPTEMBER (Q3) | V15: OCTOBER - DECEMBER (Q4) | AC15: TOTAL (TO DATE)
D16: Total | E16: Medicaid Only/Dual Eligible 0-20 Years | F16: Medicaid Only 21+ Years | G16: Dual Eligible 21+ Years | H16: Medically Needy 0-20 Years | I16: Medically Needy 21+ Years | J16: Total | K16: Medicaid Only/Dual Eligible 0-20 Years | L16: Medicaid Only 21+ Years | M16: Dual Eligible 21+ Years | N16: Medically Needy 0-20 Years | O16: Medically Needy 21+ Years | P16: Total | Q16: Medicaid Only/Dual Eligible 0-20 Years | R16: Medicaid Only 21+ Years | S16: Dual Eligible 21+ Years | T16: Medically Needy 0-20 Years | U16: Medically Needy 21+ Years | V16: Total | W16: Medicaid Only/Dual Eligible 0-20 Years | X16: Medicaid Only 21+ Years | Y16: Dual Eligible 21+ Years | Z16: Medically Needy 0-20 Years | AA16: Medically Needy 21+ Years | AB16: Prior Year Adjustments | AC16: Total | AD16: Medicaid Only/Dual Eligible 0-20 Years | AE16: Medicaid Only 21+ Years | AF16: Dual Eligible 21+ Years | AG16: Medically Needy 0-20 Years | AH16: Medically Needy 21+ Years
A17: Dental | B17: 2.1 | C17: Dental Services Diagnostic FFS | D17: =SUM(E17:I17) -> 360,250.28 | E17: 315,821.91 | F17: 37,210.61 | G17: 5,005.87 | H17: 1,458.49 | I17: 753.40 | J17: =SUM(K17:O17) -> 351,743.83 | K17: 308,803.90 | L17: 36,432.79 | M17: 3,821.53 | N17: 1,527.87 | O17: 1,157.74 | P17: =SUM(Q17:U17) -> 344,355.50 | Q17: 305,531.99 | R17: 32,241.31 | S17: 4,778.08 | T17: 931.60 | U17: 872.52 | V17: =SUM(W17:AA17) -> 336,662.36 | W17: 297,347.09 | X17: 33,850.10 | Y17: 4,339.04 | Z17: 736.00 | AA17: 390.13 | AB17: 1,934.26 | AC17: =SUM(AD17:AH17)+AB17 -> 1,394,946.23 | AD17: =W17+Q17+K17+E17 -> 1,227,504.89 | AE17: =X17+R17+L17+F17 -> 139,734.81 | AF17: 17,944.52 | AG17: 4,653.96 | AH17: 3,173.79
B18: 2.2 | C18: Dental Services Preventive FFS | D18: =SUM(E18:I18) -> 357,428.26 | E18: 355,886.88 | F18: 0 | G18: 118.95 | H18: 1,422.43 | I18: 0 | J18: =SUM(K18:O18) -> 356,837.98 | K18: 355,009.06 | L18: 0 | M18: 51.10 | N18: 1,777.82 | O18: 0 | P18: =SUM(Q18:U18) -> 349,452.14 | Q18: 348,577.81 | R18: 0 | S18: 102.20 | T18: 772.13 | U18: 0 | V18: =SUM(W18:AA18) -> 371,360.14 | W18: 370,409.00 | X18: 0 | Y18: 98.60 | Z18: 852.54 | AA18: 0 | AB18: 2,521.53 | AC18: =SUM(AD18:AH18)+AB18 -> 1,437,600.05 | AD18: =W18+Q18+K18+E18 -> 1,429,882.75 | AE18: 0 | AF18: =Y18+S18+M18+G18 -> 370.85 | AG18: 4,824.92 | AH18: =AA18+U18+O18+I18 -> 0
B19: 2.3 | C19: Dental Services Restorative FFS | D19: 358,982.81 | E19: 357,830.90 | F19: 0 | G19: 121.88 | H19: 1,030.03 | I19: 0 | J19: 359,805.70 | K19: 357,791.34 | L19: 0 | M19: 120.76 | N19: 1,893.60 | O19: 0 | P19: 336,948.13 | Q19: 336,497.57 | R19: 0 | S19: 0 | T19: 450.56 | U19: 0 | V19: 366,134.64 | W19: 365,732.99 | X19: 0 | Y19: 61.21 | Z19: 340.44 | AA19: 0 | AB19: 2,723.32 | AC19: =SUM(AD19:AH19)+AB19 -> 1,424,594.60 | AD19: =W19+Q19+K19+E19 -> 1,417,852.80 | AE19: 0 | AF19: 303.85 | AG19: 3,714.63 | AH19: 0
B20: 2.4 | C20: Dental Services Endodontics FFS | D20: 96,233.85 | E20: 96,159.53 | F20: 0 | G20: 0 | H20: 74.32 | I20: 0 | J20: 131,047.70 | K20: 130,394.96 | L20: 0 | M20: 450.00 | N20: 202.74 | O20: 0 | P20: 98,848.43 | Q20: 98,108.43 | R20: 0 | S20: 0 | T20: 740.00 | U20: 0 | V20: 111,501.39 | W20: 111,469.97 | X20: 0 | Y20: 0 | Z20: 31.42 | AA20: 0 | AB20: 923.13 | AC20: 438,554.50 | AD20: 436,132.89 | AE20: 0 | AF20: 450.00 | AG20: 1,048.48 | AH20: 0
B21: 2.5 | C21: Dental Services Periodontics FFS | D21: 1,069.52 | E21: 1,069.52 | F21: 0 | G21: 0 | H21: 0 | I21: 0 | J21: 1,241.22 | K21: 1,241.22 | L21: 0 | M21: 0 | N21: 0 | O21: 0 | P21: 526.90 | Q21: 526.90 | R21: 0 | S21: 0 | T21: 0 | U21: 0 | V21: 543.40 | W21: 543.40 | X21: 0 | Y21: 0 | Z21: 0 | AA21: 0 | AB21: 0 | AC21: 3,381.04 | AD21: 3,381.04 | AE21: 0 | AF21: 0 | AG21: 0 | AH21: 0
B22: 2.6 | C22: Dental Services Prosthodontics FFS | D22: 40,162.63 | E22: 0 | F22: 33,056.64 | G22: 5,550.99 | H22: 0 | I22: 1,555.00 | J22: 26,482.80 | K22: 0 | L22: 18,983.37 | M22: 7,163.53 | N22: 0 | O22: 335.90 | P22: 24,126.52 | Q22: 0 | R22: 19,848.63 | S22: 3,817.14 | T22: 0 | U22: 460.75 | V22: 43,851.28 | W22: 0 | X22: 35,736.83 | Y22: 7,481.67 | Z22: 0 | AA22: 632.78 | AB22: 0 | AC22: 134,623.23 | AD22: 0 | AE22: 107,625.47 | AF22: 24,013.33 | AG22: 0 | AH22: 2,984.43
B23: 2.7 | C23: Dental Services Prosthodontics, fixed FFS | D23: 0 | E23: 0 | F23: 0 | G23: 0 | H23: 0 | I23: 0 | J23: 0 | K23: 0 | L23: 0 | M23: 0 | N23: 0 | O23: 0 | P23: 0 | Q23: 0 | R23: 0 | S23: 0 | T23: 0 | U23: 0 | V23: 0 | W23: 0 | X23: 0 | Y23: 0 | Z23: 0 | AA23: 0 | AB23: 0 | AC23: 0 | AD23: 0 | AE23: 0 | AF23: 0 | AG23: 0 | AH23: 0
B24: 2.8 | C24: Dental Services Oral and Maxillofacial Surgery FFS | D24: 204,249.18 | E24: 72,213.98 | F24: 116,562.72 | G24: 12,243.57 | H24: 2,520.45 | I24: 708.46 | J24: 174,983.40 | K24: 85,468.44 | L24: 82,460.81 | M24: 5,405.16 | N24: 176.58 | O24: 1,472.41 | P24: 195,829.03 | Q24: 74,013.63 | R24: 113,487.16 | S24: 7,047.01 | T24: 40.13 | U24: 1,241.10 | V24: 223,625.76 | W24: 86,112.65 | X24: 115,051.15 | Y24: 18,798.52 | Z24: 80.62 | AA24: 3,582.82 | AB24: 2,080.71 | AC24: 800,768.08 | AD24: 317,808.70 | AE24: 427,561.84 | AF24: 43,494.26 | AG24: 2,817.78 | AH24: 7,004.79
B25: 2.9 | C25: Dental Services Orthodontics FFS | D25: 30,584.16 | E25: 30,584.16 | F25: 0 | G25: 0 | H25: 0 | I25: 0 | J25: 31,009.04 | K25: 31,009.04 | L25: 0 | M25: 0 | N25: 0 | O25: 0 | P25: 26,222.89 | Q25: 26,222.89 | R25: 0 | S25: 0 | T25: 0 | U25: 0 | V25: 27,350.21 | W25: 26,054.42 | X25: 0 | Y25: 1,134.56 | Z25: 161.23 | AA25: 0 | AB25: 1,144.82 | AC25: 116,311.12 | AD25: 113,870.51 | AE25: 0 | AF25: 1,134.56 | AG25: 161.23 | AH25: 0
B26: 2.10 | C26: Dental Services Adjunctive General Services FFS | D26: 98,409.13 | E26: 75,193.99 | F26: 20,912.03 | G26: 1,079.50 | H26: 1,223.61 | I26: 0 | J26: 88,002.03 | K26: 69,495.64 | L26: 17,595.45 | M26: 539.52 | N26: 156.50 | O26: 214.92 | P26: 89,541.27 | Q26: 67,509.27 | R26: 19,553.45 | S26: 2,020.69 | T26: 124.86 | U26: 333.00 | V26: 90,467.00 | W26: 69,341.48 | X26: 15,726.45 | Y26: 4,344.50 | Z26: 83.42 | AA26: 971.15 | AB26: 1,234.61 | AC26: =SUM(AD26:AH26)+AB26 -> 367,654.04 | AD26: =W26+Q26+K26+E26 -> 281,540.38 | AE26: 73,787.38 | AF26: 7,984.21 | AG26: 1,588.39 | AH26: 1,519.07
B27: 2.11 | C27: Dental Services Other FFS | D27: 0 | E27: 0 | F27: 0 | G27: 0 | H27: 0 | I27: 0 | J27: 0 | K27: 0 | L27: 0 | M27: 0 | N27: 0 | O27: 0 | P27: 0 | Q27: 0 | R27: 0 | S27: 0 | T27: 0 | U27: 0 | V27: 0 | W27: 0 | X27: 0 | Y27: 0 | Z27: 0 | AA27: 0 | AB27: 0 | AC27: 0 | AD27: 0 | AE27: 0 | AF27: 0 | AG27: 0 | AH27: 0
B28: 2.12 | C28: Dental Expanded Benefits FFS | D28: 88,600.10 | E28: 0 | F28: 72,002.23 | G28: 15,140.05 | H28: 0 | I28: 1,457.82 | J28: 78,362.31 | K28: 0 | L28: 61,244.27 | M28: 15,720.06 | N28: 0 | O28: 1,397.98 | P28: 72,869.26 | Q28: 0 | R28: 57,893.08 | S28: 13,867.89 | T28: 0 | U28: 1,108.29 | V28: 76,701.55 | W28: 0 | X28: 59,516.60 | Y28: 16,384.65 | Z28: 0 | AA28: 800.30 | AB28: 6,927.75 | AC28: =SUM(AD28:AH28)+AB28 -> 323,460.97 | AD28: 0 | AE28: 250,656.18 | AF28: 61,112.65 | AG28: 0 | AH28: =AA28+U28+O28+I28 -> 4,764.39
B29: 2.13 | C29: Dental Services Paid through Subcapitation | D29: =SUM(E29:I29) -> 0 | E29: 0 | F29: 0 | G29: 0 | H29: 0 | I29: 0 | J29: =SUM(K29:O29) -> 0 | K29: 0 | L29: 0 | M29: 0 | N29: 0 | O29: 0 | P29: =SUM(Q29:U29) -> 0 | Q29: 0 | R29: 0 | S29: 0 | T29: 0 | U29: 0 | V29: =SUM(W29:AA29) -> 0 | W29: 0 | X29: 0 | Y29: 0 | Z29: 0 | AA29: 0 | AB29: 0 | AC29: =SUM(AD29:AH29)+AB29 -> 0 | AD29: 0 | AE29: 0 | AF29: 0 | AG29: 0 | AH29: 0
B30: 2.14 | C30: Ending IBNP for Dental Services | D30: 15.02 | E30: 11.98 | F30: 2.57 | G30: 0.36 | H30: 0.07 | I30: 0.04 | J30: =SUM(K30:O30) -> 683.81 | K30: 572.53 | L30: 92.65 | M30: 14.22 | N30: 2.45 | O30: 1.96 | P30: =SUM(Q30:U30) -> 2,838.25 | Q30: 2,318.58 | R30: 448.27 | S30: 58.35 | T30: 5.64 | U30: 7.41 | V30: =SUM(W30:AA30) -> 13,178.07 | W30: 10,610.04 | X30: 2,077.87 | Y30: 420.90 | Z30: 18.27 | AA30: 50.99 | AB30: (34,678.92) | AC30: (17,963.76) | AD30: 13,513.14 | AE30: 2,621.35 | AF30: 493.84 | AG30: 26.44 | AH30: =AA30+U30+O30+I30 -> 60.39
B31: 2.15 | C31: Dental Settlements/AP | D31: 0 | J31: 0 | P31: 0 | V31: 0 | AB31: 0 | AC31: =SUM(AD31:AH31)+AB31 -> 0 | AD31: 0 | AE31: 0 | AF31: 0 | AG31: 0 | AH31: 0
B32: 2.16 | C32: Total Dental Services | D32: =SUM(D17:D31) -> 1,635,984.94 | E32: =SUM(E17:E31) -> 1,304,772.85 | F32: 279,746.80 | G32: 39,261.17 | H32: 7,729.40 | I32: 4,474.72 | J32: =SUM(J17:J31) -> 1,600,199.82 | K32: =SUM(K17:K31) -> 1,339,786.13 | L32: 216,809.34 | M32: 33,285.88 | N32: 5,737.56 | O32: 4,580.91 | P32: =SUM(P17:P31) -> 1,541,558.32 | Q32: =SUM(Q17:Q31) -> 1,259,307.07 | R32: 243,471.90 | S32: 31,691.36 | T32: 3,064.92 | U32: 4,023.07 | V32: =SUM(V17:V31) -> 1,661,375.80 | W32: =SUM(W17:W31) -> 1,337,621.04 | X32: 261,959.00 | Y32: 53,063.65 | Z32: 2,303.94 | AA32: 6,428.17 | AB32: =SUM(AB17:AB31) -> (15,188.79) | AC32: =SUM(AC17:AC31) -> 6,423,930.10 | AD32: 5,241,487.10 | AE32: 1,001,987.03 | AF32: 157,302.07 | AG32: 18,835.83 | AH32: =SUM(AH17:AH31) -> 19,506.86
A33: Total Before and After Reinsurance | B33: 3.1 | C33: Total Dental Services Paid Directly FFS | D33: =SUM(D17:D28) -> 1,635,969.92 | E33: =SUM(E17:E28) -> 1,304,760.87 | F33: =SUM(F17:F28) -> 279,744.23 | G33: 39,260.81 | H33: 7,729.33 | I33: =SUM(I17:I28) -> 4,474.68 | J33: =SUM(J17:J28) -> 1,599,516.01 | K33: =SUM(K17:K28) -> 1,339,213.60 | L33: 216,716.69 | M33: 33,271.66 | N33: 5,735.11 | O33: =SUM(O17:O28) -> 4,578.95 | P33: =SUM(P17:P28) -> 1,538,720.07 | Q33: =SUM(Q17:Q28) -> 1,256,988.49 | R33: 243,023.63 | S33: 31,633.01 | T33: 3,059.28 | U33: =SUM(U17:U28) -> 4,015.66 | V33: =SUM(V17:V28) -> 1,648,197.73 | W33: =SUM(W17:W28) -> 1,327,011.00 | X33: 259,881.13 | Y33: 52,642.75 | Z33: 2,285.67 | AA33: =SUM(AA17:AA28) -> 6,377.18 | AB33: =SUM(AB17:AB28) -> 19,490.13 | AC33: =SUM(AD33:AH33)+AB33 -> 6,441,893.86 | AD33: =W33+Q33+K33+E33 -> 5,227,973.96 | AE33: 999,365.68 | AF33: 156,808.23 | AG33: 18,809.39 | AH33: 19,446.47
B34: 3.2 | C34: Total Dental Services Paid through Subcapitation | D34: =D29 -> 0 | E34: 0 | F34: =F29 -> 0 | G34: 0 | H34: 0 | I34: 0 | J34: =J29 -> 0 | K34: 0 | L34: =L29 -> 0 | M34: 0 | N34: 0 | O34: 0 | P34: =P29 -> 0 | Q34: 0 | R34: =R29 -> 0 | S34: 0 | T34: 0 | U34: 0 | V34: =V29 -> 0 | W34: 0 | X34: =X29 -> 0 | Y34: 0 | Z34: 0 | AA34: 0 | AB34: 0 | AC34: 0 | AD34: =W34+Q34+K34+E34 -> 0 | AE34: 0 | AF34: 0 | AG34: 0 | AH34: 0
B35: 3.3 | C35: Total Dental Services Paid Directly -- IBNP | D35: 15.02 | E35: 11.98 | F35: =F30 -> 2.57 | G35: 0.36 | H35: 0.07 | I35: 0.04 | J35: 683.81 | K35: 572.53 | L35: =L30 -> 92.65 | M35: 14.22 | N35: 2.45 | O35: 1.96 | P35: 2,838.25 | Q35: 2,318.58 | R35: =R30 -> 448.27 | S35: 58.35 | T35: 5.64 | U35: 7.41 | V35: 13,178.07 | W35: 10,610.04 | X35: =X30 -> 2,077.87 | Y35: 420.90 | Z35: 18.27 | AA35: 50.99 | AB35: (34,678.92) | AC35: (17,963.76) | AD35: 13,513.14 | AE35: 2,621.35 | AF35: 493.84 | AG35: =Z35+T35+N35+H35 -> 26.44 | AH35: 60.39
B36: 3.4 | C36: Total Dental Services Paid by Settlements/AP | D36: 0 | E36: 0 | F36: 0 | G36: 0 | H36: 0 | I36: 0 | J36: 0 | K36: 0 | L36: 0 | M36: 0 | N36: 0 | O36: 0 | P36: 0 | Q36: 0 | R36: 0 | S36: 0 | T36: 0 | U36: 0 | V36: 0 | W36: 0 | X36: 0 | Y36: 0 | Z36: 0 | AA36: 0 | AB36: 0 | AC36: 0 | AD36: =W36+Q36+K36+E36 -> 0 | AE36: 0 | AF36: 0 | AG36: 0 | AH36: =AA36+U36+O36+I36 -> 0
B37: 3.5 | C37: TPL & Fraud/Abuse Recoveries | D37: =SUM(E37:I37) -> 0 | J37: =SUM(K37:O37) -> 0 | P37: =SUM(Q37:U37) -> 0 | V37: =SUM(W37:AA37) -> 0 | AC37: 0 | AD37: =W37+Q37+K37+E37 -> 0 | AE37: 0 | AF37: 0 | AG37: 0 | AH37: =AA37+U37+O37+I37 -> 0
B38: 3.6 | C38: Premium Deficiency Reserve | D38: =SUM(E38:I38) -> 0 | J38: =SUM(K38:O38) -> 0 | P38: =SUM(Q38:U38) -> 0 | V38: =SUM(W38:AA38) -> 0 | AC38: 0 | AD38: =W38+Q38+K38+E38 -> 0 | AE38: 0 | AF38: =Y38+S38+M38+G38 -> 0 | AG38: 0 | AH38: =AA38+U38+O38+I38 -> 0
B39: 3.7 | C39: Subtotal Benefit Expense before Reinsurance | D39: =SUM(D33:D38) -> 1,635,984.94 | E39: =SUM(E33:E38) -> 1,304,772.85 | F39: =SUM(F33:F38) -> 279,746.80 | G39: 39,261.17 | H39: 7,729.40 | I39: =SUM(I33:I38) -> 4,474.72 | J39: =SUM(J33:J38) -> 1,600,199.82 | K39: =SUM(K33:K38) -> 1,339,786.13 | L39: =SUM(L33:L38) -> 216,809.34 | M39: 33,285.88 | N39: 5,737.56 | O39: =SUM(O33:O38) -> 4,580.91 | P39: =SUM(P33:P38) -> 1,541,558.32 | Q39: =SUM(Q33:Q38) -> 1,259,307.07 | R39: =SUM(R33:R38) -> 243,471.90 | S39: 31,691.36 | T39: 3,064.92 | U39: =SUM(U33:U38) -> 4,023.07 | V39: =SUM(V33:V38) -> 1,661,375.80 | W39: =SUM(W33:W38) -> 1,337,621.04 | X39: =SUM(X33:X38) -> 261,959.00 | Y39: 53,063.65 | Z39: 2,303.94 | AA39: =SUM(AA33:AA38) -> 6,428.17 | AB39: (15,188.79) | AC39: 6,423,930.10 | AD39: 5,241,487.10 | AE39: 1,001,987.03 | AF39: 157,302.07 | AG39: 18,835.83 | AH39: 19,506.86
B40: 3.8 | C40: Reinsurance Premiums | D40: =SUM(E40:I40) -> 0 | J40: =SUM(K40:O40) -> 0 | P40: =SUM(Q40:U40) -> 0 | V40: =SUM(W40:AA40) -> 0 | AC40: =SUM(AD40:AH40)+AB40 -> 0 | AD40: =W40+Q40+K40+E40 -> 0 | AE40: =X40+R40+L40+F40 -> 0 | AF40: =Y40+S40+M40+G40 -> 0 | AG40: 0 | AH40: 0
B41: 3.9 | C41: Reinsurance Recoveries | D41: =SUM(E41:I41) -> 0 | J41: =SUM(K41:O41) -> 0 | P41: =SUM(Q41:U41) -> 0 | V41: =SUM(W41:AA41) -> 0 | AC41: =SUM(AD41:AH41)+AB41 -> 0 | AD41: =W41+Q41+K41+E41 -> 0 | AE41: 0 | AF41: 0 | AG41: 0 | AH41: 0
B42: 3.10 | C42: Net cost of Reinsurance | D42: =SUM(D40:D41) -> 0 | E42: =SUM(E40:E41) -> 0 | F42: =SUM(F40:F41) -> 0 | G42: 0 | H42: 0 | I42: 0 | J42: =SUM(J40:J41) -> 0 | K42: =SUM(K40:K41) -> 0 | L42: 0 | M42: 0 | N42: 0 | O42: 0 | P42: =SUM(P40:P41) -> 0 | Q42: =SUM(Q40:Q41) -> 0 | R42: 0 | S42: 0 | T42: 0 | U42: 0 | V42: =SUM(V40:V41) -> 0 | W42: =SUM(W40:W41) -> 0 | X42: 0 | Y42: 0 | Z42: 0 | AA42: 0 | AB42: 0 | AC42: =SUM(AC40:AC41) -> 0 | AD42: =SUM(AD40:AD41) -> 0 | AE42: =SUM(AE40:AE41) -> 0 | AF42: 0 | AG42: =SUM(AG40:AG41) -> 0 | AH42: =SUM(AH40:AH41) -> 0
B43: 3.11 | C43: Grand Total Medical Benefit Expense Net of Reinsurance | D43: =D39+D42 -> 1,635,984.94 | E43: =E39+E42 -> 1,304,772.85 | F43: =F39+F42 -> 279,746.80 | G43: 39,261.17 | H43: 7,729.40 | I43: =I39+I42 -> 4,474.72 | J43: =J39+J42 -> 1,600,199.82 | K43: =K39+K42 -> 1,339,786.13 | L43: =L39+L42 -> 216,809.34 | M43: 33,285.88 | N43: 5,737.56 | O43: =O39+O42 -> 4,580.91 | P43: =P39+P42 -> 1,541,558.32 | Q43: =Q39+Q42 -> 1,259,307.07 | R43: =R39+R42 -> 243,471.90 | S43: 31,691.36 | T43: 3,064.92 | U43: =U39+U42 -> 4,023.07 | V43: =V39+V42 -> 1,661,375.80 | W43: =W39+W42 -> 1,337,621.04 | X43: =X39+X42 -> 261,959.00 | Y43: 53,063.65 | Z43: 2,303.94 | AA43: =AA39+AA42 -> 6,428.17 | AB43: =AB39+AB42 -> (15,188.79) | AC43: =AC39+AC42 -> 6,423,930.10 | AD43: =AD39+AD42 -> 5,241,487.10 | AE43: =AE39+AE42 -> 1,001,987.03 | AF43: 157,302.07 | AG43: 18,835.83 | AH43: =AH39+AH42 -> 19,506.86
A44: Administrative Expenses, Government-Mandated Assessments, Taxes, and Fees | D44: JANUARY - MARCH (Q1) | J44: APRIL - JUNE (Q2) | P44: JULY - SEPTEMBER (Q3) | V44: OCTOBER - DECEMBER (Q4) | AC44: TOTAL (TO DATE)
D45: Total | E45: Health Plan | F45: Corporate | J45: Total | K45: Health Plan | L45: Corporate | P45: Total | Q45: Health Plan | R45: Corporate | V45: Total | W45: Health Plan | X45: Corporate | AB45: Prior Calendar Year Adjustments | AC45: Total | AD45: Health Plan | AE45: Corporate
A46: Administrative Expenses | B46: 4.1 | C46: Salaries & Benefits | D46: =SUM(E46:F46) -> 86,559.69 | F46: 86,559.69 | J46: =SUM(K46:L46) -> 81,103.60 | L46: 81,103.60 | P46: =SUM(Q46:R46) -> 75,155.33 | R46: 75,155.33 | V46: =SUM(W46:X46) -> 101,068.51 | X46: 101,068.51 | AC46: =SUM(AD46:AE46)+AB46 -> 343,887.13 | AD46: =W46+Q46+K46+E46 -> 0 | AE46: =X46+R46+L46+F46 -> 343,887.13
B47: 4.2 | C47: Administrative Services | D47: =SUM(E47:F47) -> 13,119.20 | F47: 13,119.20 | J47: =SUM(K47:L47) -> 12,292.26 | L47: 12,292.26 | P47: =SUM(Q47:R47) -> 11,390.73 | R47: 11,390.73 | V47: =SUM(W47:X47) -> 15,318.19 | X47: 15,318.19 | AC47: =SUM(AD47:AE47)+AB47 -> 52,120.38 | AD47: =W47+Q47+K47+E47 -> 0 | AE47: 52,120.38
B48: 4.3 | C48: Information Systems | D48: 10,618.56 | F48: 10,618.56 | J48: 9,949.24 | L48: 9,949.24 | P48: 9,219.55 | R48: 9,219.55 | V48: 12,398.40 | X48: 12,398.40 | AC48: =SUM(AD48:AE48)+AB48 -> 42,185.75 | AD48: 0 | AE48: 42,185.75
B49: 4.4 | C49: Marketing Expenses | D49: 2,425.59 | F49: 2,425.59 | J49: 2,272.70 | L49: 2,272.70 | P49: 2,106.02 | R49: 2,106.02 | V49: 2,832.16 | X49: 2,832.16 | AC49: =SUM(AD49:AE49)+AB49 -> 9,636.47 | AD49: 0 | AE49: 9,636.47
B50: 4.5 | C50: General Administration | D50: 61,383.42 | F50: 61,383.42 | J50: 57,514.26 | L50: 57,514.26 | P50: 53,296.08 | R50: 53,296.08 | V50: 71,672.29 | X50: 71,672.29 | AC50: 243,866.05 | AD50: 0 | AE50: 243,866.05
B51: 4.6 | C51: Compliance/Regulatory | D51: 78,956.01 | F51: =1340.68+77615.33 -> 78,956.01 | J51: 73,979.19 | L51: =1256.17+72723.02 -> 73,979.19 | P51: 68,553.44 | R51: =1164.0405568295+67389.4 -> 68,553.44 | V51: 92,190.32 | X51: =1565.4+90624.92 -> 92,190.32 | AC51: 313,678.96 | AD51: 0 | AE51: =X51+R51+L51+F51 -> 313,678.96
B52: 4.7 | C52: Total Administrative Expenses | D52: =SUM(D46:D51) -> 253,062.47 | E52: =SUM(E46:E51) -> 0 | F52: =SUM(F46:F51) -> 253,062.47 | J52: =SUM(J46:J51) -> 237,111.25 | K52: =SUM(K46:K51) -> 0 | L52: =SUM(L46:L51) -> 237,111.25 | P52: =SUM(P46:P51) -> 219,721.14 | Q52: =SUM(Q46:Q51) -> 0 | R52: =SUM(R46:R51) -> 219,721.14 | V52: =SUM(V46:V51) -> 295,479.87 | W52: =SUM(W46:W51) -> 0 | X52: =SUM(X46:X51) -> 295,479.87 | AB52: =SUM(AB46:AB51) -> 0 | AC52: =SUM(AC46:AC51) -> 1,005,374.73 | AD52: =SUM(AD46:AD51) -> 0 | AE52: =SUM(AE46:AE51) -> 1,005,374.73
A53: Government-Mandated Assessments, Taxes, and Fees Other Than Income Taxes | B53: 5.1 | C53: State Premium tax | AC53: =D53+J53+P53+V53+AB53 -> 0
B54: 5.2 | C54: Department of Insurance Assessments | AC54: =D54+J54+P54+V54+AB54 -> 0
B55: 5.3 | C55: Section 9010 Health Insurance Providers Fee | AC55: =D55+J55+P55+V55+AB55 -> 0
B56: 5.4 | C56: Other 1 | AC56: 0
B57: 5.5 | C57: Other 2 | AC57: 0
B58: 5.6 | C58: Other 3 | AC58: =D58+J58+P58+V58+AB58 -> 0
B59: 5.7 | C59: Total | D59: =SUM(D53:D58) -> 0 | J59: =SUM(J53:J58) -> 0 | P59: =SUM(P53:P58) -> 0 | V59: =SUM(V53:V58) -> 0 | AB59: =SUM(AB53:AB58) -> 0 | AC59: =SUM(AC53:AC58) -> 0
B60: 6.0 | C60: Grand Total Expenses | D60: =D43+D52+D59 -> 1,889,047.41 | J60: =J43+J52+J59 -> 1,837,311.07 | P60: =P43+P52+P59 -> 1,761,279.46 | V60: =V43+V52+V59 -> 1,956,855.67 | AB60: =AB43+AB52+AB59 -> (15,188.79) | AC60: =AC43+AC52+AC59 -> 7,429,304.83
B61: 7.0 | C61: Underwriting Gain / (Loss) --- AKA Pre-tax Earnings from Operations | D61: =D14-D60 -> 358,412.70 | J61: =J14-J60 -> 473,573.79 | P61: =P14-P60 -> 619,177.12 | V61: =V14-V60 -> 426,509.89 | AB61: =AB14-AB60 -> 35,062.37 | AC61: =AC14-AC60 -> 1,912,735.86
B62: 8.0 | C62: Income Tax Expense | D62: =+D61*21% -> 75,266.67 | J62: =+J61*21% -> 99,450.49 | P62: =+P61*21% -> 130,027.20 | V62: =+V61*21% -> 89,567.08 | AB62: =+AB61*21% -> 7,363.10 | AC62: =AB62+V62+P62+J62+D62 -> 401,674.53
B63: 9.0 | C63: Net Underwriting Gain (Loss) | D63: =D61-D62 -> 283,146.03 | J63: =J61-J62 -> 374,123.29 | P63: =P61-P62 -> 489,149.92 | V63: =V61-V62 -> 336,942.81 | AB63: =AB61-AB62 -> 27,699.27 | AC63: =AC61-AC62 -> 1,511,061.33

Sheet Dental Rev-Exp Region 4
A1: DENTAL -- REVENUE AND EXPENSE SCHEDULE - REGION 4
A3: Health Plan: | C3: ='Dental Rev-Exp Summary'!C3 -> 0
A4: Reporting Period: | C4: =IF('Dental Rev-Exp Summary'!C4=0,"",'Dental Rev-Exp Summary'!C4) -> 
A5: Paid Through: | C5: =IF('Dental Rev-Exp Summary'!C5=0,"",'Dental Rev-Exp Summary'!C5) -> 
A6: Region 4
D7: JANUARY - MARCH (Q1) | J7: APRIL - JUNE (Q2) | P7: JULY - SEPTEMBER (Q3) | V7: OCTOBER - DECEMBER (Q4) | AC7: TOTAL (TO DATE)
D8: Total | E8: Medicaid Only/Dual Eligible 0-20 Years | F8: Medicaid Only 21+ Years | G8: Dual Eligible 21+ Years | H8: Medically Needy 0-20 Years | I8: Medically Needy 21+ Years | J8: Total | K8: Medicaid Only/Dual Eligible 0-20 Years | L8: Medicaid Only 21+ Years | M8: Dual Eligible 21+ Years | N8: Medically Needy 0-20 Years | O8: Medically Needy 21+ Years | P8: Total | Q8: Medicaid Only/Dual Eligible 0-20 Years | R8: Medicaid Only 21+ Years | S8: Dual Eligible 21+ Years | T8: Medically Needy 0-20 Years | U8: Medically Needy 21+ Years | V8: Total | W8: Medicaid Only/Dual Eligible 0-20 Years | X8: Medicaid Only 21+ Years | Y8: Dual Eligible 21+ Years | Z8: Medically Needy 0-20 Years | AA8: Medically Needy 21+ Years | AB8: Prior Year Adjustments | AC8: Total | AD8: Medicaid Only/Dual Eligible 0-20 Years | AE8: Medicaid Only 21+ Years | AF8: Dual Eligible 21+ Years | AG8: Medically Needy 0-20 Years | AH8: Medically Needy 21+ Years
A9: MEMBER MONTHS | D9: =SUM(E9:I9) -> 536,078.53 | E9: 337,821.27 | F9: 162,699.87 | G9: 25,332.84 | H9: 1,689.26 | I9: 8,535.29 | J9: =SUM(K9:O9) -> 539,764.73 | K9: 338,628.08 | L9: 167,658.89 | M9: 23,554.41 | N9: 1,664.00 | O9: 8,259.35 | P9: =SUM(Q9:U9) -> 555,826.89 | Q9: 346,154.46 | R9: 175,776.26 | S9: 23,952.90 | T9: 1,608.15 | U9: 8,335.12 | V9: =SUM(W9:AA9) -> 565,547.10 | W9: 349,627.41 | X9: 182,077.71 | Y9: 24,146.69 | Z9: 1,601.15 | AA9: 8,094.14 | AB9: 10,100.33 | AC9: =SUM(AD9:AH9)+AB9 -> 2,207,317.58 | AD9: =W9+Q9+K9+E9 -> 1,372,231.22 | AE9: =X9+R9+L9+F9 -> 688,212.73 | AF9: 96,986.84 | AG9: =Z9+T9+N9+H9 -> 6,562.56 | AH9: =AA9+U9+O9+I9 -> 33,223.90
A10: REVENUES
A11: Revenues | B11: 1.1 | C11: Capitation | D11: =SUM(E11:I11) -> 4,286,705.01 | E11: 3,441,300.48 | F11: 736,966.72 | G11: 74,170.48 | H11: 9,262.03 | I11: 25,005.30 | J11: =SUM(K11:O11) -> 4,352,817.17 | K11: 3,478,557.97 | L11: 766,856.05 | M11: 73,506.09 | N11: 8,864.31 | O11: 25,032.75 | P11: =SUM(Q11:U11) -> 4,424,733.12 | Q11: 3,518,783.38 | R11: 797,814.15 | S11: 73,937.50 | T11: 8,948.84 | U11: 25,249.25 | V11: =SUM(W11:AA11) -> 3,953,652.31 | W11: 3,137,616.86 | X11: 716,278.32 | Y11: 69,192.33 | Z11: 7,879.54 | AA11: 22,685.26 | AB11: =6922.8+12779.87 -> 19,702.67 | AC11: =SUM(AD11:AH11)+AB11 -> 17,037,610.28 | AD11: =W11+Q11+K11+E11 -> 13,576,258.69 | AE11: =X11+R11+L11+F11 -> 3,017,915.24 | AF11: 290,806.40 | AG11: 34,954.72 | AH11: =AA11+U11+O11+I11 -> 97,972.56
B12: 1.2 | C12: ACA § 9010 related payments | D12: =SUM(E12:I12) -> 0 | J12: =SUM(K12:O12) -> 0 | P12: =SUM(Q12:U12) -> 0 | V12: =SUM(W12:AA12) -> 0 | AC12: =SUM(AD12:AH12)+AB12 -> 0 | AD12: =W12+Q12+K12+E12 -> 0 | AE12: 0 | AF12: =Y12+S12+M12+G12 -> 0 | AG12: 0 | AH12: =AA12+U12+O12+I12 -> 0
B13: 1.3 | C13: Other Revenue | D13: 0 | J13: 0 | P13: 0 | V13: 0 | AC13: =SUM(AD13:AH13)+AB13 -> 0 | AD13: =W13+Q13+K13+E13 -> 0 | AE13: =X13+R13+L13+F13 -> 0 | AF13: =Y13+S13+M13+G13 -> 0 | AG13: =Z13+T13+N13+H13 -> 0 | AH13: =AA13+U13+O13+I13 -> 0
B14: 1.4 | C14: Total Revenue | D14: =SUM(D11:D13) -> 4,286,705.01 | E14: =SUM(E11:E13) -> 3,441,300.48 | F14: 736,966.72 | G14: =SUM(G11:G13) -> 74,170.48 | H14: 9,262.03 | I14: 25,005.30 | J14: =SUM(J11:J13) -> 4,352,817.17 | K14: =SUM(K11:K13) -> 3,478,557.97 | L14: 766,856.05 | M14: 73,506.09 | N14: 8,864.31 | O14: 25,032.75 | P14: =SUM(P11:P13) -> 4,424,733.12 | Q14: =SUM(Q11:Q13) -> 3,518,783.38 | R14: 797,814.15 | S14: 73,937.50 | T14: 8,948.84 | U14: 25,249.25 | V14: =SUM(V11:V13) -> 3,953,652.31 | W14: =SUM(W11:W13) -> 3,137,616.86 | X14: 716,278.32 | Y14: 69,192.33 | Z14: 7,879.54 | AA14: 22,685.26 | AB14: =SUM(AB11:AB13) -> 19,702.67 | AC14: =SUM(AC11:AC13) -> 17,037,610.28 | AD14: =SUM(AD11:AD13) -> 13,576,258.69 | AE14: =SUM(AE11:AE13) -> 3,017,915.24 | AF14: =SUM(AF11:AF13) -> 290,806.40 | AG14: =SUM(AG11:AG13) -> 34,954.72 | AH14: 97,972.56
A15: BENEFIT EXPENSES | D15: JANUARY - MARCH (Q1) | J15: APRIL - JUNE (Q2) | P15: JULY - SEPTEMBER (Q3) | V15: OCTOBER - DECEMBER (Q4) | AC15: TOTAL (TO DATE)
D16: Total | E16: Medicaid Only/Dual Eligible 0-20 Years | F16: Medicaid Only 21+ Years | G16: Dual Eligible 21+ Years | H16: Medically Needy 0-20 Years | I16: Medically Needy 21+ Years | J16: Total | K16: Medicaid Only/Dual Eligible 0-20 Years | L16: Medicaid Only 21+ Years | M16: Dual Eligible 21+ Years | N16: Medically Needy 0-20 Years | O16: Medically Needy 21+ Years | P16: Total | Q16: Medicaid Only/Dual Eligible 0-20 Years | R16: Medicaid Only 21+ Years | S16: Dual Eligible 21+ Years | T16: Medically Needy 0-20 Years | U16: Medically Needy 21+ Years | V16: Total | W16: Medicaid Only/Dual Eligible 0-20 Years | X16: Medicaid Only 21+ Years | Y16: Dual Eligible 21+ Years | Z16: Medically Needy 0-20 Years | AA16: Medically Needy 21+ Years | AB16: Prior Year Adjustments | AC16: Total | AD16: Medicaid Only/Dual Eligible 0-20 Years | AE16: Medicaid Only 21+ Years | AF16: Dual Eligible 21+ Years | AG16: Medically Needy 0-20 Years | AH16: Medically Needy 21+ Years
A17: Dental | B17: 2.1 | C17: Dental Services Diagnostic FFS | D17: =SUM(E17:I17) -> 588,017.48 | E17: 542,647.57 | F17: 39,432.12 | G17: 4,392.06 | H17: 903.97 | I17: 641.76 | J17: =SUM(K17:O17) -> 601,253.23 | K17: 551,125.30 | L17: 43,823.45 | M17: 5,116.06 | N17: 755.88 | O17: 432.54 | P17: =SUM(Q17:U17) -> 599,218.66 | Q17: 550,737.46 | R17: 41,709.02 | S17: 5,767.05 | T17: 527.08 | U17: 478.05 | V17: =SUM(W17:AA17) -> 593,808.28 | W17: 546,902.71 | X17: 41,291.78 | Y17: 4,323.54 | Z17: 346.90 | AA17: 943.35 | AB17: 1,127.82 | AC17: =SUM(AD17:AH17)+AB17 -> 2,383,425.47 | AD17: =W17+Q17+K17+E17 -> 2,191,413.04 | AE17: =X17+R17+L17+F17 -> 166,256.37 | AF17: 19,598.71 | AG17: 2,533.83 | AH17: 2,495.70
B18: 2.2 | C18: Dental Services Preventive FFS | D18: =SUM(E18:I18) -> 579,735.54 | E18: 578,765.19 | F18: 0 | G18: 92.20 | H18: 878.15 | I18: 0 | J18: =SUM(K18:O18) -> 601,179.04 | K18: 600,047.39 | L18: 0 | M18: 45.16 | N18: 1,086.49 | O18: 0 | P18: =SUM(Q18:U18) -> 579,358.20 | Q18: 578,720.60 | R18: 0 | S18: 102.20 | T18: 535.40 | U18: 0 | V18: =SUM(W18:AA18) -> 607,956.38 | W18: 607,247.72 | X18: 0 | Y18: 34.75 | Z18: 673.91 | AA18: 0 | AB18: 1,332.05 | AC18: =SUM(AD18:AH18)+AB18 -> 2,369,561.21 | AD18: =W18+Q18+K18+E18 -> 2,364,780.90 | AE18: 0 | AF18: =Y18+S18+M18+G18 -> 274.31 | AG18: 3,173.95 | AH18: =AA18+U18+O18+I18 -> 0
B19: 2.3 | C19: Dental Services Restorative FFS | D19: 581,171.77 | E19: 581,086.45 | F19: 0 | G19: 0 | H19: 85.32 | I19: 0 | J19: 553,823.53 | K19: 552,479.59 | L19: 0 | M19: 417.65 | N19: 926.29 | O19: 0 | P19: 586,464.43 | Q19: 584,553.41 | R19: 0 | S19: 258.62 | T19: 1,652.40 | U19: 0 | V19: 605,233.11 | W19: 605,083.30 | X19: 0 | Y19: 0 | Z19: 149.81 | AA19: 0 | AB19: 2,536.31 | AC19: =SUM(AD19:AH19)+AB19 -> 2,329,229.15 | AD19: =W19+Q19+K19+E19 -> 2,323,202.75 | AE19: 0 | AF19: 676.27 | AG19: 2,813.82 | AH19: 0
B20: 2.4 | C20: Dental Services Endodontics FFS | D20: 322,340.16 | E20: 320,292.16 | F20: 0 | G20: 0 | H20: 2,048.00 | I20: 0 | J20: 297,872.58 | K20: 297,065.56 | L20: 0 | M20: 0 | N20: 807.02 | O20: 0 | P20: 291,341.47 | Q20: 290,493.58 | R20: 0 | S20: 825.00 | T20: 22.89 | U20: 0 | V20: 320,404.96 | W20: 320,382.07 | X20: 0 | Y20: 0 | Z20: 22.89 | AA20: 0 | AB20: 0 | AC20: 1,231,959.17 | AD20: 1,228,233.37 | AE20: 0 | AF20: 825.00 | AG20: 2,900.80 | AH20: 0
B21: 2.5 | C21: Dental Services Periodontics FFS | D21: 3,082.24 | E21: 3,082.24 | F21: 0 | G21: 0 | H21: 0 | I21: 0 | J21: 2,941.25 | K21: 2,941.25 | L21: 0 | M21: 0 | N21: 0 | O21: 0 | P21: 2,296.54 | Q21: 2,296.54 | R21: 0 | S21: 0 | T21: 0 | U21: 0 | V21: 1,749.73 | W21: 1,749.73 | X21: 0 | Y21: 0 | Z21: 0 | AA21: 0 | AB21: 0 | AC21: 10,069.76 | AD21: 10,069.76 | AE21: 0 | AF21: 0 | AG21: 0 | AH21: 0
B22: 2.6 | C22: Dental Services Prosthodontics FFS | D22: 20,471.76 | E22: 0 | F22: 15,524.83 | G22: 4,440.10 | H22: 0 | I22: 506.83 | J22: 22,491.60 | K22: 0 | L22: 19,177.60 | M22: 3,314.00 | N22: 0 | O22: 0 | P22: 26,142.89 | Q22: 0 | R22: 21,280.65 | S22: 4,839.35 | T22: 0 | U22: 22.89 | V22: 62,200.30 | W22: 345.05 | X22: 55,331.75 | Y22: 6,523.50 | Z22: 0 | AA22: 0 | AB22: 0 | AC22: 131,306.55 | AD22: 345.05 | AE22: 111,314.83 | AF22: 19,116.95 | AG22: 0 | AH22: 529.72
B23: 2.7 | C23: Dental Services Prosthodontics, fixed FFS | D23: 0 | E23: 0 | F23: 0 | G23: 0 | H23: 0 | I23: 0 | J23: 0 | K23: 0 | L23: 0 | M23: 0 | N23: 0 | O23: 0 | P23: 0 | Q23: 0 | R23: 0 | S23: 0 | T23: 0 | U23: 0 | V23: 0 | W23: 0 | X23: 0 | Y23: 0 | Z23: 0 | AA23: 0 | AB23: 0 | AC23: 0 | AD23: 0 | AE23: 0 | AF23: 0 | AG23: 0 | AH23: 0
B24: 2.8 | C24: Dental Services Oral and Maxillofacial Surgery FFS | D24: 252,051.55 | E24: 148,082.23 | F24: 92,819.38 | G24: 7,730.55 | H24: 1,037.47 | I24: 2,381.92 | J24: 248,222.57 | K24: 142,940.94 | L24: 95,604.02 | M24: 9,061.61 | N24: 272.00 | O24: 344.00 | P24: 270,628.72 | Q24: 147,808.68 | R24: 109,433.83 | S24: 11,373.43 | T24: 0 | U24: 2,012.78 | V24: 274,850.99 | W24: 170,888.78 | X24: 95,873.82 | Y24: 3,933.78 | Z24: 56.18 | AA24: 4,098.43 | AB24: 598.53 | AC24: 1,046,352.36 | AD24: 609,720.63 | AE24: 393,731.05 | AF24: 32,099.37 | AG24: 1,365.65 | AH24: 8,837.13
B25: 2.9 | C25: Dental Services Orthodontics FFS | D25: 105,371.90 | E25: 105,168.90 | F25: 0 | G25: 90.00 | H25: 113.00 | I25: 0 | J25: 94,559.72 | K25: 94,469.72 | L25: 0 | M25: 90.00 | N25: 0 | O25: 0 | P25: 97,596.86 | Q25: 97,483.86 | R25: 0 | S25: 113.00 | T25: 0 | U25: 0 | V25: 70,885.78 | W25: 70,885.78 | X25: 0 | Y25: 0 | Z25: 0 | AA25: 0 | AB25: 1,740.85 | AC25: 370,155.11 | AD25: 368,008.26 | AE25: 0 | AF25: 293.00 | AG25: 113.00 | AH25: 0
B26: 2.10 | C26: Dental Services Adjunctive General Services FFS | D26: 164,348.46 | E26: 146,615.92 | F26: 15,907.46 | G26: 1,250.25 | H26: 250.00 | I26: 324.83 | J26: 155,660.81 | K26: 133,932.64 | L26: 19,126.42 | M26: 2,183.00 | N26: 167.50 | O26: 251.25 | P26: 153,700.53 | Q26: 130,979.26 | R26: 19,679.53 | S26: 2,558.50 | T26: 83.24 | U26: 400.00 | V26: 163,613.89 | W26: 139,861.94 | X26: 20,316.45 | Y26: 2,851.25 | Z26: 0 | AA26: 584.25 | AB26: 505.80 | AC26: =SUM(AD26:AH26)+AB26 -> 637,829.49 | AD26: =W26+Q26+K26+E26 -> 551,389.76 | AE26: 75,029.86 | AF26: 8,843.00 | AG26: 500.74 | AH26: 1,560.33
B27: 2.11 | C27: Dental Services Other FFS | D27: 0 | E27: 0 | F27: 0 | G27: 0 | H27: 0 | I27: 0 | J27: 0 | K27: 0 | L27: 0 | M27: 0 | N27: 0 | O27: 0 | P27: 0 | Q27: 0 | R27: 0 | S27: 0 | T27: 0 | U27: 0 | V27: 0 | W27: 0 | X27: 0 | Y27: 0 | Z27: 0 | AA27: 0 | AB27: 0 | AC27: 0 | AD27: 0 | AE27: 0 | AF27: 0 | AG27: 0 | AH27: 0
B28: 2.12 | C28: Dental Expanded Benefits FFS | D28: 45,485.37 | E28: 0 | F28: 39,640.62 | G28: 5,456.10 | H28: 0 | I28: 388.65 | J28: 57,441.62 | K28: 0 | L28: 47,750.53 | M28: 9,268.56 | N28: 0 | O28: 422.53 | P28: 48,383.02 | Q28: 0 | R28: 41,782.50 | S28: 5,874.47 | T28: 0 | U28: 726.05 | V28: 59,956.70 | W28: 0 | X28: 52,237.05 | Y28: 7,265.04 | Z28: 0 | AA28: 454.61 | AB28: 244.74 | AC28: =SUM(AD28:AH28)+AB28 -> 211,511.45 | AD28: 0 | AE28: 181,410.70 | AF28: 27,864.17 | AG28: 0 | AH28: =AA28+U28+O28+I28 -> 1,991.84
B29: 2.13 | C29: Dental Services Paid through Subcapitation | D29: =SUM(E29:I29) -> 0 | E29: 0 | F29: 0 | G29: 0 | H29: 0 | I29: 0 | J29: =SUM(K29:O29) -> 0 | K29: 0 | L29: 0 | M29: 0 | N29: 0 | O29: 0 | P29: =SUM(Q29:U29) -> 0 | Q29: 0 | R29: 0 | S29: 0 | T29: 0 | U29: 0 | V29: =SUM(W29:AA29) -> 0 | W29: 0 | X29: 0 | Y29: 0 | Z29: 0 | AA29: 0 | AB29: 0 | AC29: =SUM(AD29:AH29)+AB29 -> 0 | AD29: 0 | AE29: 0 | AF29: 0 | AG29: 0 | AH29: 0
B30: 2.14 | C30: Ending IBNP for Dental Services | D30: 24.45 | E30: 22.28 | F30: 1.87 | G30: 0.22 | H30: 0.05 | I30: 0.04 | J30: =SUM(K30:O30) -> 1,126.69 | K30: 1,015.35 | L30: 96.40 | M30: 12.61 | N30: 1.72 | O30: 0.62 | P30: =SUM(Q30:U30) -> 4,897.52 | Q30: 4,395.70 | R30: 431.41 | S30: 58.49 | T30: 5.20 | U30: 6.71 | V30: =SUM(W30:AA30) -> 22,072.71 | W30: 19,695.56 | X30: 2,119.20 | Y30: 199.34 | Z30: 9.99 | AA30: 48.62 | AB30: (14,387.65) | AC30: 13,733.71 | AD30: 25,128.88 | AE30: 2,648.88 | AF30: 270.66 | AG30: 16.96 | AH30: =AA30+U30+O30+I30 -> 55.99
B31: 2.15 | C31: Dental Settlements/AP | D31: 0 | J31: 0 | P31: 0 | V31: 0 | AB31: 0 | AC31: =SUM(AD31:AH31)+AB31 -> 0 | AD31: 0 | AE31: 0 | AF31: 0 | AG31: 0 | AH31: 0
B32: 2.16 | C32: Total Dental Services | D32: =SUM(D17:D31) -> 2,662,100.68 | E32: =SUM(E17:E31) -> 2,425,762.94 | F32: 203,326.28 | G32: 23,451.48 | H32: 5,315.96 | I32: 4,244.03 | J32: =SUM(J17:J31) -> 2,636,572.64 | K32: =SUM(K17:K31) -> 2,376,017.74 | L32: 225,578.42 | M32: 29,508.65 | N32: 4,016.90 | O32: 1,450.94 | P32: =SUM(P17:P31) -> 2,660,028.84 | Q32: =SUM(Q17:Q31) -> 2,387,469.09 | R32: 234,316.94 | S32: 31,770.11 | T32: 2,826.21 | U32: 3,646.48 | V32: =SUM(V17:V31) -> 2,782,732.83 | W32: =SUM(W17:W31) -> 2,483,042.64 | X32: 267,170.05 | Y32: 25,131.20 | Z32: 1,259.68 | AA32: 6,129.26 | AB32: =SUM(AB17:AB31) -> (6,301.55) | AC32: =SUM(AC17:AC31) -> 10,735,133.43 | AD32: 9,672,292.40 | AE32: 930,391.69 | AF32: 109,861.44 | AG32: 13,418.75 | AH32: =SUM(AH17:AH31) -> 15,470.71
A33: Total Before and After Reinsurance | B33: 3.1 | C33: Total Dental Services Paid Directly FFS | D33: =SUM(D17:D28) -> 2,662,076.23 | E33: =SUM(E17:E28) -> 2,425,740.66 | F33: =SUM(F17:F28) -> 203,324.41 | G33: 23,451.26 | H33: 5,315.91 | I33: =SUM(I17:I28) -> 4,243.99 | J33: =SUM(J17:J28) -> 2,635,445.95 | K33: =SUM(K17:K28) -> 2,375,002.39 | L33: 225,482.02 | M33: 29,496.04 | N33: 4,015.18 | O33: =SUM(O17:O28) -> 1,450.32 | P33: =SUM(P17:P28) -> 2,655,131.32 | Q33: =SUM(Q17:Q28) -> 2,383,073.39 | R33: 233,885.53 | S33: 31,711.62 | T33: 2,821.01 | U33: =SUM(U17:U28) -> 3,639.77 | V33: =SUM(V17:V28) -> 2,760,660.12 | W33: =SUM(W17:W28) -> 2,463,347.08 | X33: 265,050.85 | Y33: 24,931.86 | Z33: 1,249.69 | AA33: =SUM(AA17:AA28) -> 6,080.64 | AB33: =SUM(AB17:AB28) -> 8,086.10 | AC33: =SUM(AD33:AH33)+AB33 -> 10,721,399.72 | AD33: =W33+Q33+K33+E33 -> 9,647,163.52 | AE33: 927,742.81 | AF33: 109,590.78 | AG33: 13,401.79 | AH33: 15,414.72
B34: 3.2 | C34: Total Dental Services Paid through Subcapitation | D34: =D29 -> 0 | E34: 0 | F34: =F29 -> 0 | G34: 0 | H34: 0 | I34: 0 | J34: =J29 -> 0 | K34: 0 | L34: =L29 -> 0 | M34: 0 | N34: 0 | O34: 0 | P34: =P29 -> 0 | Q34: 0 | R34: =R29 -> 0 | S34: 0 | T34: 0 | U34: 0 | V34: =V29 -> 0 | W34: 0 | X34: =X29 -> 0 | Y34: 0 | Z34: 0 | AA34: 0 | AB34: 0 | AC34: 0 | AD34: =W34+Q34+K34+E34 -> 0 | AE34: 0 | AF34: 0 | AG34: 0 | AH34: 0
B35: 3.3 | C35: Total Dental Services Paid Directly -- IBNP | D35: 24.45 | E35: 22.28 | F35: =F30 -> 1.87 | G35: 0.22 | H35: 0.05 | I35: 0.04 | J35: 1,126.69 | K35: 1,015.35 | L35: =L30 -> 96.40 | M35: 12.61 | N35: 1.72 | O35: 0.62 | P35: 4,897.52 | Q35: 4,395.70 | R35: =R30 -> 431.41 | S35: 58.49 | T35: 5.20 | U35: 6.71 | V35: 22,072.71 | W35: 19,695.56 | X35: =X30 -> 2,119.20 | Y35: 199.34 | Z35: 9.99 | AA35: 48.62 | AB35: (14,387.65) | AC35: 13,733.71 | AD35: 25,128.88 | AE35: 2,648.88 | AF35: 270.66 | AG35: =Z35+T35+N35+H35 -> 16.96 | AH35: 55.99
B36: 3.4 | C36: Total Dental Services Paid by Settlements/AP | D36: 0 | E36: 0 | F36: 0 | G36: 0 | H36: 0 | I36: 0 | J36: 0 | K36: 0 | L36: 0 | M36: 0 | N36: 0 | O36: 0 | P36: 0 | Q36: 0 | R36: 0 | S36: 0 | T36: 0 | U36: 0 | V36: 0 | W36: 0 | X36: 0 | Y36: 0 | Z36: 0 | AA36: 0 | AB36: 0 | AC36: 0 | AD36: =W36+Q36+K36+E36 -> 0 | AE36: 0 | AF36: 0 | AG36: 0 | AH36: =AA36+U36+O36+I36 -> 0
B37: 3.5 | C37: TPL & Fraud/Abuse Recoveries | D37: =SUM(E37:I37) -> 0 | J37: =SUM(K37:O37) -> 0 | P37: =SUM(Q37:U37) -> 0 | V37: =SUM(W37:AA37) -> 0 | AC37: 0 | AD37: =W37+Q37+K37+E37 -> 0 | AE37: 0 | AF37: 0 | AG37: 0 | AH37: =AA37+U37+O37+I37 -> 0
B38: 3.6 | C38: Premium Deficiency Reserve | D38: =SUM(E38:I38) -> 0 | J38: =SUM(K38:O38) -> 0 | P38: =SUM(Q38:U38) -> 0 | V38: =SUM(W38:AA38) -> 0 | AC38: 0 | AD38: =W38+Q38+K38+E38 -> 0 | AE38: 0 | AF38: =Y38+S38+M38+G38 -> 0 | AG38: 0 | AH38: =AA38+U38+O38+I38 -> 0
B39: 3.7 | C39: Subtotal Benefit Expense before Reinsurance | D39: =SUM(D33:D38) -> 2,662,100.68 | E39: =SUM(E33:E38) -> 2,425,762.94 | F39: =SUM(F33:F38) -> 203,326.28 | G39: 23,451.48 | H39: 5,315.96 | I39: =SUM(I33:I38) -> 4,244.03 | J39: =SUM(J33:J38) -> 2,636,572.64 | K39: =SUM(K33:K38) -> 2,376,017.74 | L39: =SUM(L33:L38) -> 225,578.42 | M39: 29,508.65 | N39: 4,016.90 | O39: =SUM(O33:O38) -> 1,450.94 | P39: =SUM(P33:P38) -> 2,660,028.84 | Q39: =SUM(Q33:Q38) -> 2,387,469.09 | R39: =SUM(R33:R38) -> 234,316.94 | S39: 31,770.11 | T39: 2,826.21 | U39: =SUM(U33:U38) -> 3,646.48 | V39: =SUM(V33:V38) -> 2,782,732.83 | W39: =SUM(W33:W38) -> 2,483,042.64 | X39: =SUM(X33:X38) -> 267,170.05 | Y39: 25,131.20 | Z39: 1,259.68 | AA39: =SUM(AA33:AA38) -> 6,129.26 | AB39: (6,301.55) | AC39: 10,735,133.43 | AD39: 9,672,292.40 | AE39: 930,391.69 | AF39: 109,861.44 | AG39: 13,418.75 | AH39: 15,470.71
B40: 3.8 | C40: Reinsurance Premiums | D40: =SUM(E40:I40) -> 0 | J40: =SUM(K40:O40) -> 0 | P40: =SUM(Q40:U40) -> 0 | V40: =SUM(W40:AA40) -> 0 | AC40: =SUM(AD40:AH40)+AB40 -> 0 | AD40: =W40+Q40+K40+E40 -> 0 | AE40: =X40+R40+L40+F40 -> 0 | AF40: =Y40+S40+M40+G40 -> 0 | AG40: 0 | AH40: 0
B41: 3.9 | C41: Reinsurance Recoveries | D41: =SUM(E41:I41) -> 0 | J41: =SUM(K41:O41) -> 0 | P41: =SUM(Q41:U41) -> 0 | V41: =SUM(W41:AA41) -> 0 | AC41: =SUM(AD41:AH41)+AB41 -> 0 | AD41: =W41+Q41+K41+E41 -> 0 | AE41: 0 | AF41: 0 | AG41: 0 | AH41: 0
B42: 3.10 | C42: Net cost of Reinsurance | D42: =SUM(D40:D41) -> 0 | E42: =SUM(E40:E41) -> 0 | F42: =SUM(F40:F41) -> 0 | G42: 0 | H42: 0 | I42: 0 | J42: =SUM(J40:J41) -> 0 | K42: =SUM(K40:K41) -> 0 | L42: 0 | M42: 0 | N42: 0 | O42: 0 | P42: =SUM(P40:P41) -> 0 | Q42: =SUM(Q40:Q41) -> 0 | R42: 0 | S42: 0 | T42: 0 | U42: 0 | V42: =SUM(V40:V41) -> 0 | W42: =SUM(W40:W41) -> 0 | X42: 0 | Y42: 0 | Z42: 0 | AA42: 0 | AB42: 0 | AC42: =SUM(AC40:AC41) -> 0 | AD42: =SUM(AD40:AD41) -> 0 | AE42: =SUM(AE40:AE41) -> 0 | AF42: 0 | AG42: =SUM(AG40:AG41) -> 0 | AH42: =SUM(AH40:AH41) -> 0
B43: 3.11 | C43: Grand Total Medical Benefit Expense Net of Reinsurance | D43: =D39+D42 -> 2,662,100.68 | E43: =E39+E42 -> 2,425,762.94 | F43: =F39+F42 -> 203,326.28 | G43: 23,451.48 | H43: 5,315.96 | I43: =I39+I42 -> 4,244.03 | J43: =J39+J42 -> 2,636,572.64 | K43: =K39+K42 -> 2,376,017.74 | L43: =L39+L42 -> 225,578.42 | M43: 29,508.65 | N43: 4,016.90 | O43: =O39+O42 -> 1,450.94 | P43: =P39+P42 -> 2,660,028.84 | Q43: =Q39+Q42 -> 2,387,469.09 | R43: =R39+R42 -> 234,316.94 | S43: 31,770.11 | T43: 2,826.21 | U43: =U39+U42 -> 3,646.48 | V43: =V39+V42 -> 2,782,732.83 | W43: =W39+W42 -> 2,483,042.64 | X43: =X39+X42 -> 267,170.05 | Y43: 25,131.20 | Z43: 1,259.68 | AA43: =AA39+AA42 -> 6,129.26 | AB43: =AB39+AB42 -> (6,301.55) | AC43: =AC39+AC42 -> 10,735,133.43 | AD43: =AD39+AD42 -> 9,672,292.40 | AE43: =AE39+AE42 -> 930,391.69 | AF43: 109,861.44 | AG43: 13,418.75 | AH43: =AH39+AH42 -> 15,470.71
A44: Administrative Expenses, Government-Mandated Assessments, Taxes, and Fees | D44: JANUARY - MARCH (Q1) | J44: APRIL - JUNE (Q2) | P44: JULY - SEPTEMBER (Q3) | V44: OCTOBER - DECEMBER (Q4) | AC44: TOTAL (TO DATE)
D45: Total | E45: Health Plan | F45: Corporate | J45: Total | K45: Health Plan | L45: Corporate | P45: Total | Q45: Health Plan | R45: Corporate | V45: Total | W45: Health Plan | X45: Corporate | AB45: Prior Calendar Year Adjustments | AC45: Total | AD45: Health Plan | AE45: Corporate
A46: Administrative Expenses | B46: 4.1 | C46: Salaries & Benefits | D46: =SUM(E46:F46) -> 165,277.46 | F46: 165,277.46 | J46: =SUM(K46:L46) -> 154,859.57 | L46: 154,859.57 | P46: =SUM(Q46:R46) -> 143,501.93 | R46: 143,501.93 | V46: =SUM(W46:X46) -> 192,980.66 | X46: 192,980.66 | AC46: =SUM(AD46:AE46)+AB46 -> 656,619.62 | AD46: =W46+Q46+K46+E46 -> 0 | AE46: =X46+R46+L46+F46 -> 656,619.62
B47: 4.2 | C47: Administrative Services | D47: =SUM(E47:F47) -> 25,049.86 | F47: 25,049.86 | J47: =SUM(K47:L47) -> 23,470.90 | L47: 23,470.90 | P47: =SUM(Q47:R47) -> 21,749.51 | R47: 21,749.51 | V47: =SUM(W47:X47) -> 29,248.62 | X47: 29,248.62 | AC47: =SUM(AD47:AE47)+AB47 -> 99,518.89 | AD47: =W47+Q47+K47+E47 -> 0 | AE47: 99,518.89
B48: 4.3 | C48: Information Systems | D48: 20,275.12 | F48: 20,275.12 | J48: 18,997.13 | L48: 18,997.13 | P48: 17,603.85 | R48: 17,603.85 | V48: 23,673.56 | X48: 23,673.56 | AC48: =SUM(AD48:AE48)+AB48 -> 80,549.66 | AD48: 0 | AE48: 80,549.66
B49: 4.4 | C49: Marketing Expenses | D49: 4,631.43 | F49: 4,631.43 | J49: 4,339.50 | L49: 4,339.50 | P49: 4,021.24 | R49: 4,021.24 | V49: 5,407.74 | X49: 5,407.74 | AC49: =SUM(AD49:AE49)+AB49 -> 18,399.91 | AD49: 0 | AE49: 18,399.91
B50: 4.5 | C50: General Administration | D50: 117,205.78 | F50: 117,205.78 | J50: 109,817.98 | L50: 109,817.98 | P50: 101,763.76 | R50: 101,763.76 | V50: 136,851.39 | X50: 136,851.39 | AC50: 465,638.91 | AD50: 0 | AE50: 465,638.91
B51: 4.6 | C51: Compliance/Regulatory | D51: 150,758.94 | F51: =2559.89+148199.05 -> 150,758.94 | J51: 141,256.20 | L51: =2398.54+138857.66 -> 141,256.20 | P51: 130,896.24 | R51: =2222.62422014762+128673.62 -> 130,896.24 | V51: 176,028.60 | X51: =2988.97+173039.63 -> 176,028.60 | AC51: 598,939.98 | AD51: 0 | AE51: =X51+R51+L51+F51 -> 598,939.98
B52: 4.7 | C52: Total Administrative Expenses | D52: =SUM(D46:D51) -> 483,198.59 | E52: =SUM(E46:E51) -> 0 | F52: =SUM(F46:F51) -> 483,198.59 | J52: =SUM(J46:J51) -> 452,741.28 | K52: =SUM(K46:K51) -> 0 | L52: =SUM(L46:L51) -> 452,741.28 | P52: =SUM(P46:P51) -> 419,536.53 | Q52: =SUM(Q46:Q51) -> 0 | R52: =SUM(R46:R51) -> 419,536.53 | V52: =SUM(V46:V51) -> 564,190.57 | W52: =SUM(W46:W51) -> 0 | X52: =SUM(X46:X51) -> 564,190.57 | AB52: =SUM(AB46:AB51) -> 0 | AC52: =SUM(AC46:AC51) -> 1,919,666.97 | AD52: =SUM(AD46:AD51) -> 0 | AE52: =SUM(AE46:AE51) -> 1,919,666.97
A53: Government-Mandated Assessments, Taxes, and Fees Other Than Income Taxes | B53: 5.1 | C53: State Premium tax | AC53: =D53+J53+P53+V53+AB53 -> 0
B54: 5.2 | C54: Department of Insurance Assessments | AC54: =D54+J54+P54+V54+AB54 -> 0
B55: 5.3 | C55: Section 9010 Health Insurance Providers Fee | AC55: =D55+J55+P55+V55+AB55 -> 0
B56: 5.4 | C56: Other 1 | AC56: 0
B57: 5.5 | C57: Other 2 | AC57: 0
B58: 5.6 | C58: Other 3 | AC58: =D58+J58+P58+V58+AB58 -> 0
B59: 5.7 | C59: Total | D59: =SUM(D53:D58) -> 0 | J59: =SUM(J53:J58) -> 0 | P59: =SUM(P53:P58) -> 0 | V59: =SUM(V53:V58) -> 0 | AB59: =SUM(AB53:AB58) -> 0 | AC59: =SUM(AC53:AC58) -> 0
B60: 6.0 | C60: Grand Total Expenses | D60: =D43+D52+D59 -> 3,145,299.27 | J60: =J43+J52+J59 -> 3,089,313.92 | P60: =P43+P52+P59 -> 3,079,565.37 | V60: =V43+V52+V59 -> 3,346,923.40 | AB60: =AB43+AB52+AB59 -> (6,301.55) | AC60: =AC43+AC52+AC59 -> 12,654,800.40
B61: 7.0 | C61: Underwriting Gain / (Loss) --- AKA Pre-tax Earnings from Operations | D61: =D14-D60 -> 1,141,405.74 | J61: =J14-J60 -> 1,263,503.25 | P61: =P14-P60 -> 1,345,167.75 | V61: =V14-V60 -> 606,728.91 | AB61: =AB14-AB60 -> 26,004.22 | AC61: =AC14-AC60 -> 4,382,809.88
B62: 8.0 | C62: Income Tax Expense | D62: =+D61*21% -> 239,695.21 | J62: =+J61*21% -> 265,335.68 | P62: =+P61*21% -> 282,485.23 | V62: =+V61*21% -> 127,413.07 | AB62: =+AB61*21% -> 5,460.89 | AC62: =AB62+V62+P62+J62+D62 -> 920,390.07
B63: 9.0 | C63: Net Underwriting Gain (Loss) | D63: =D61-D62 -> 901,710.54 | J63: =J61-J62 -> 998,167.57 | P63: =P61-P62 -> 1,062,682.52 | V63: =V61-V62 -> 479,315.84 | AB63: =AB61-AB62 -> 20,543.34 | AC63: =AC61-AC62 -> 3,462,419.80

Sheet Dental Rev-Exp Region 5
A1: DENTAL -- REVENUE AND EXPENSE SCHEDULE - REGION 5
A3: Health Plan: | C3: ='Dental Rev-Exp Summary'!C3 -> 0
A4: Reporting Period: | C4: =IF('Dental Rev-Exp Summary'!C4=0,"",'Dental Rev-Exp Summary'!C4) -> 
A5: Paid Through: | C5: =IF('Dental Rev-Exp Summary'!C5=0,"",'Dental Rev-Exp Summary'!C5) -> 
A6: Region 5
D7: JANUARY - MARCH (Q1) | J7: APRIL - JUNE (Q2) | P7: JULY - SEPTEMBER (Q3) | V7: OCTOBER - DECEMBER (Q4) | AC7: TOTAL (TO DATE)
D8: Total | E8: Medicaid Only/Dual Eligible 0-20 Years | F8: Medicaid Only 21+ Years | G8: Dual Eligible 21+ Years | H8: Medically Needy 0-20 Years | I8: Medically Needy 21+ Years | J8: Total | K8: Medicaid Only/Dual Eligible 0-20 Years | L8: Medicaid Only 21+ Years | M8: Dual Eligible 21+ Years | N8: Medically Needy 0-20 Years | O8: Medically Needy 21+ Years | P8: Total | Q8: Medicaid Only/Dual Eligible 0-20 Years | R8: Medicaid Only 21+ Years | S8: Dual Eligible 21+ Years | T8: Medically Needy 0-20 Years | U8: Medically Needy 21+ Years | V8: Total | W8: Medicaid Only/Dual Eligible 0-20 Years | X8: Medicaid Only 21+ Years | Y8: Dual Eligible 21+ Years | Z8: Medically Needy 0-20 Years | AA8: Medically Needy 21+ Years | AB8: Prior Year Adjustments | AC8: Total | AD8: Medicaid Only/Dual Eligible 0-20 Years | AE8: Medicaid Only 21+ Years | AF8: Dual Eligible 21+ Years | AG8: Medically Needy 0-20 Years | AH8: Medically Needy 21+ Years
A9: MEMBER MONTHS | D9: =SUM(E9:I9) -> 330,676.56 | E9: 205,523.04 | F9: 92,075.61 | G9: 24,085.74 | H9: 1,659.12 | I9: 7,333.05 | J9: =SUM(K9:O9) -> 332,860.98 | K9: 205,817.43 | L9: 95,316.70 | M9: 22,857.23 | N9: 1,636.64 | O9: 7,232.98 | P9: =SUM(Q9:U9) -> 341,910.53 | Q9: 209,460.05 | R9: 100,248.89 | S9: 23,279.53 | T9: 1,656.04 | U9: 7,266.02 | V9: =SUM(W9:AA9) -> 345,473.51 | W9: 209,798.64 | X9: 103,648.20 | Y9: 23,274.33 | Z9: 1,669.11 | AA9: 7,083.23 | AB9: 5,091.93 | AC9: =SUM(AD9:AH9)+AB9 -> 1,356,013.51 | AD9: =W9+Q9+K9+E9 -> 830,599.16 | AE9: =X9+R9+L9+F9 -> 391,289.40 | AF9: 93,496.83 | AG9: =Z9+T9+N9+H9 -> 6,620.91 | AH9: =AA9+U9+O9+I9 -> 28,915.28
A10: REVENUES
A11: Revenues | B11: 1.1 | C11: Capitation | D11: =SUM(E11:I11) -> 2,773,896.86 | E11: 2,272,317.41 | F11: 407,253.68 | G11: 63,363.06 | H11: 9,215.28 | I11: 21,747.43 | J11: =SUM(K11:O11) -> 2,811,182.27 | K11: 2,290,955.70 | L11: 425,256.87 | M11: 63,444.75 | N11: 9,193.53 | O11: 22,331.42 | P11: =SUM(Q11:U11) -> 2,844,747.66 | Q11: 2,306,429.51 | R11: 442,886.32 | S11: 63,494.35 | T11: 9,495.63 | U11: 22,441.85 | V11: =SUM(W11:AA11) -> 2,746,821.04 | W11: 2,187,522.23 | X11: 467,780.96 | Y11: 62,973.29 | Z11: 8,265.12 | AA11: 20,279.44 | AB11: =3349.45+6183.27 -> 9,532.72 | AC11: =SUM(AD11:AH11)+AB11 -> 11,186,180.55 | AD11: =W11+Q11+K11+E11 -> 9,057,224.85 | AE11: =X11+R11+L11+F11 -> 1,743,177.83 | AF11: 253,275.45 | AG11: 36,169.56 | AH11: =AA11+U11+O11+I11 -> 86,800.14
B12: 1.2 | C12: ACA § 9010 related payments | D12: =SUM(E12:I12) -> 0 | J12: =SUM(K12:O12) -> 0 | P12: =SUM(Q12:U12) -> 0 | V12: =SUM(W12:AA12) -> 0 | AC12: =SUM(AD12:AH12)+AB12 -> 0 | AD12: =W12+Q12+K12+E12 -> 0 | AE12: 0 | AF12: =Y12+S12+M12+G12 -> 0 | AG12: 0 | AH12: =AA12+U12+O12+I12 -> 0
B13: 1.3 | C13: Other Revenue | D13: 0 | J13: 0 | P13: 0 | V13: 0 | AC13: =SUM(AD13:AH13)+AB13 -> 0 | AD13: =W13+Q13+K13+E13 -> 0 | AE13: =X13+R13+L13+F13 -> 0 | AF13: =Y13+S13+M13+G13 -> 0 | AG13: =Z13+T13+N13+H13 -> 0 | AH13: =AA13+U13+O13+I13 -> 0
B14: 1.4 | C14: Total Revenue | D14: =SUM(D11:D13) -> 2,773,896.86 | E14: =SUM(E11:E13) -> 2,272,317.41 | F14: 407,253.68 | G14: =SUM(G11:G13) -> 63,363.06 | H14: 9,215.28 | I14: 21,747.43 | J14: =SUM(J11:J13) -> 2,811,182.27 | K14: =SUM(K11:K13) -> 2,290,955.70 | L14: 425,256.87 | M14: 63,444.75 | N14: 9,193.53 | O14: 22,331.42 | P14: =SUM(P11:P13) -> 2,844,747.66 | Q14: =SUM(Q11:Q13) -> 2,306,429.51 | R14: 442,886.32 | S14: 63,494.35 | T14: 9,495.63 | U14: 22,441.85 | V14: =SUM(V11:V13) -> 2,746,821.04 | W14: =SUM(W11:W13) -> 2,187,522.23 | X14: 467,780.96 | Y14: 62,973.29 | Z14: 8,265.12 | AA14: 20,279.44 | AB14: =SUM(AB11:AB13) -> 9,532.72 | AC14: =SUM(AC11:AC13) -> 11,186,180.55 | AD14: =SUM(AD11:AD13) -> 9,057,224.85 | AE14: =SUM(AE11:AE13) -> 1,743,177.83 | AF14: =SUM(AF11:AF13) -> 253,275.45 | AG14: =SUM(AG11:AG13) -> 36,169.56 | AH14: 86,800.14
A15: BENEFIT EXPENSES | D15: JANUARY - MARCH (Q1) | J15: APRIL - JUNE (Q2) | P15: JULY - SEPTEMBER (Q3) | V15: OCTOBER - DECEMBER (Q4) | AC15: TOTAL (TO DATE)
D16: Total | E16: Medicaid Only/Dual Eligible 0-20 Years | F16: Medicaid Only 21+ Years | G16: Dual Eligible 21+ Years | H16: Medically Needy 0-20 Years | I16: Medically Needy 21+ Years | J16: Total | K16: Medicaid Only/Dual Eligible 0-20 Years | L16: Medicaid Only 21+ Years | M16: Dual Eligible 21+ Years | N16: Medically Needy 0-20 Years | O16: Medically Needy 21+ Years | P16: Total | Q16: Medicaid Only/Dual Eligible 0-20 Years | R16: Medicaid Only 21+ Years | S16: Dual Eligible 21+ Years | T16: Medically Needy 0-20 Years | U16: Medically Needy 21+ Years | V16: Total | W16: Medicaid Only/Dual Eligible 0-20 Years | X16: Medicaid Only 21+ Years | Y16: Dual Eligible 21+ Years | Z16: Medically Needy 0-20 Years | AA16: Medically Needy 21+ Years | AB16: Prior Year Adjustments | AC16: Total | AD16: Medicaid Only/Dual Eligible 0-20 Years | AE16: Medicaid Only 21+ Years | AF16: Dual Eligible 21+ Years | AG16: Medically Needy 0-20 Years | AH16: Medically Needy 21+ Years
A17: Dental | B17: 2.1 | C17: Dental Services Diagnostic FFS | D17: =SUM(E17:I17) -> 530,442.34 | E17: 483,387.56 | F17: 39,500.01 | G17: 5,405.79 | H17: 1,468.77 | I17: 680.21 | J17: =SUM(K17:O17) -> 493,756.32 | K17: 452,325.84 | L17: 35,441.59 | M17: 2,841.99 | N17: 1,639.38 | O17: 1,507.52 | P17: =SUM(Q17:U17) -> 518,906.68 | Q17: 474,392.60 | R17: 35,284.79 | S17: 7,001.35 | T17: 1,670.19 | U17: 557.75 | V17: =SUM(W17:AA17) -> 515,813.73 | W17: 469,692.66 | X17: 38,783.66 | Y17: 5,572.45 | Z17: 1,130.60 | AA17: 634.36 | AB17: 3,851.72 | AC17: =SUM(AD17:AH17)+AB17 -> 2,062,770.79 | AD17: =W17+Q17+K17+E17 -> 1,879,798.66 | AE17: =X17+R17+L17+F17 -> 149,010.05 | AF17: 20,821.58 | AG17: 5,908.94 | AH17: 3,379.84
B18: 2.2 | C18: Dental Services Preventive FFS | D18: =SUM(E18:I18) -> 499,938.67 | E18: 498,348.79 | F18: 0 | G18: 97.20 | H18: 1,492.68 | I18: 0 | J18: =SUM(K18:O18) -> 468,369.22 | K18: 467,100.74 | L18: 0 | M18: 0 | N18: 1,268.48 | O18: 0 | P18: =SUM(Q18:U18) -> 498,354.25 | Q18: 496,600.42 | R18: 0 | S18: 102.20 | T18: 1,651.63 | U18: 0 | V18: =SUM(W18:AA18) -> 525,680.67 | W18: 524,122.04 | X18: 0 | Y18: 54.10 | Z18: 1,504.53 | AA18: 0 | AB18: 2,740.60 | AC18: =SUM(AD18:AH18)+AB18 -> 1,995,083.41 | AD18: =W18+Q18+K18+E18 -> 1,986,171.99 | AE18: 0 | AF18: =Y18+S18+M18+G18 -> 253.50 | AG18: 5,917.32 | AH18: =AA18+U18+O18+I18 -> 0
B19: 2.3 | C19: Dental Services Restorative FFS | D19: 583,811.09 | E19: 582,989.14 | F19: 0 | G19: 0 | H19: 821.95 | I19: 0 | J19: 545,215.36 | K19: 542,544.65 | L19: 0 | M19: 0 | N19: 2,670.71 | O19: 0 | P19: 572,383.74 | Q19: 570,871.50 | R19: 0 | S19: 92.16 | T19: 1,420.08 | U19: 0 | V19: 600,415.25 | W19: 598,282.32 | X19: 338.88 | Y19: 0 | Z19: 1,794.05 | AA19: 0 | AB19: 6,420.87 | AC19: =SUM(AD19:AH19)+AB19 -> 2,308,246.31 | AD19: =W19+Q19+K19+E19 -> 2,294,687.61 | AE19: 338.88 | AF19: 92.16 | AG19: 6,706.79 | AH19: 0
B20: 2.4 | C20: Dental Services Endodontics FFS | D20: 103,515.21 | E20: 101,960.89 | F20: 0 | G20: 0 | H20: 1,554.32 | I20: 0 | J20: 114,814.85 | K20: 114,077.13 | L20: 0 | M20: 0 | N20: 737.72 | O20: 0 | P20: 91,820.23 | Q20: 90,977.23 | R20: 0 | S20: 0 | T20: 843.00 | U20: 0 | V20: 103,288.63 | W20: 102,485.81 | X20: 0 | Y20: 0 | Z20: 802.82 | AA20: 0 | AB20: 981.16 | AC20: 414,420.08 | AD20: 409,501.06 | AE20: 0 | AF20: 0 | AG20: 3,937.86 | AH20: 0
B21: 2.5 | C21: Dental Services Periodontics FFS | D21: 2,753.31 | E21: 2,726.56 | F21: 0 | G21: 0 | H21: 26.75 | I21: 0 | J21: 3,212.71 | K21: 2,236.71 | L21: 0 | M21: 976.00 | N21: 0 | O21: 0 | P21: 1,727.47 | Q21: 1,727.47 | R21: 0 | S21: 0 | T21: 0 | U21: 0 | V21: 2,712.05 | W21: 2,685.18 | X21: 0 | Y21: 0 | Z21: 26.87 | AA21: 0 | AB21: 0 | AC21: 10,405.54 | AD21: 9,375.92 | AE21: 0 | AF21: 976.00 | AG21: 53.62 | AH21: 0
B22: 2.6 | C22: Dental Services Prosthodontics FFS | D22: 27,644.18 | E22: 921.50 | F22: 20,970.43 | G22: 5,752.25 | H22: 0 | I22: 0 | J22: 16,933.57 | K22: 245.24 | L22: 12,857.50 | M22: 3,476.83 | N22: 0 | O22: 354.00 | P22: 19,513.25 | Q22: 165.00 | R22: 14,605.75 | S22: 4,742.50 | T22: 0 | U22: 0 | V22: 23,774.60 | W22: 0 | X22: 19,538.57 | Y22: 4,194.03 | Z22: 0 | AA22: 42.00 | AB22: 0 | AC22: 87,865.60 | AD22: 1,331.74 | AE22: 67,972.25 | AF22: 18,165.61 | AG22: 0 | AH22: 396.00
B23: 2.7 | C23: Dental Services Prosthodontics, fixed FFS | D23: 0 | E23: 0 | F23: 0 | G23: 0 | H23: 0 | I23: 0 | J23: 0 | K23: 0 | L23: 0 | M23: 0 | N23: 0 | O23: 0 | P23: 0 | Q23: 0 | R23: 0 | S23: 0 | T23: 0 | U23: 0 | V23: 0 | W23: 0 | X23: 0 | Y23: 0 | Z23: 0 | AA23: 0 | AB23: 0 | AC23: 0 | AD23: 0 | AE23: 0 | AF23: 0 | AG23: 0 | AH23: 0
B24: 2.8 | C24: Dental Services Oral and Maxillofacial Surgery FFS | D24: 272,361.88 | E24: 151,597.79 | F24: 109,468.60 | G24: 6,948.70 | H24: 120.39 | I24: 4,226.40 | J24: 302,490.29 | K24: 155,047.10 | L24: 125,903.52 | M24: 17,664.77 | N24: 0 | O24: 3,874.90 | P24: 264,528.69 | Q24: 145,568.20 | R24: 102,119.39 | S24: 15,804.90 | T24: 0 | U24: 1,036.20 | V24: 314,902.44 | W24: 173,029.44 | X24: 123,069.29 | Y24: 17,750.07 | Z24: 422.22 | AA24: 631.42 | AB24: 2,284.47 | AC24: 1,156,567.77 | AD24: 625,242.53 | AE24: 460,560.80 | AF24: 58,168.44 | AG24: 542.61 | AH24: 9,768.92
B25: 2.9 | C25: Dental Services Orthodontics FFS | D25: 55,335.78 | E25: 55,335.78 | F25: 0 | G25: 0 | H25: 0 | I25: 0 | J25: 59,726.13 | K25: 59,648.84 | L25: 0 | M25: 0 | N25: 77.29 | O25: 0 | P25: 53,339.35 | Q25: 53,262.06 | R25: 0 | S25: 0 | T25: 77.29 | U25: 0 | V25: 50,497.49 | W25: 50,497.49 | X25: 0 | Y25: 0 | Z25: 0 | AA25: 0 | AB25: 456.02 | AC25: 219,354.77 | AD25: 218,744.17 | AE25: 0 | AF25: 0 | AG25: 154.58 | AH25: 0
B26: 2.10 | C26: Dental Services Adjunctive General Services FFS | D26: 162,750.08 | E26: 133,708.47 | F26: 19,511.15 | G26: 8,639.50 | H26: 332.96 | I26: 558.00 | J26: 164,877.17 | K26: 135,652.58 | L26: 21,417.60 | M26: 6,983.50 | N26: 431.99 | O26: 391.50 | P26: 163,143.11 | Q26: 132,554.39 | R26: 21,127.00 | S26: 9,161.00 | T26: 300.72 | U26: 0 | V26: 191,423.01 | W26: 149,304.09 | X26: 22,744.48 | Y26: 18,998.42 | Z26: 376.02 | AA26: 0 | AB26: 2,272.87 | AC26: =SUM(AD26:AH26)+AB26 -> 684,466.24 | AD26: =W26+Q26+K26+E26 -> 551,219.53 | AE26: 84,800.23 | AF26: 43,782.42 | AG26: 1,441.69 | AH26: 949.50
B27: 2.11 | C27: Dental Services Other FFS | D27: 0 | E27: 0 | F27: 0 | G27: 0 | H27: 0 | I27: 0 | J27: 0 | K27: 0 | L27: 0 | M27: 0 | N27: 0 | O27: 0 | P27: 0 | Q27: 0 | R27: 0 | S27: 0 | T27: 0 | U27: 0 | V27: 0 | W27: 0 | X27: 0 | Y27: 0 | Z27: 0 | AA27: 0 | AB27: 0 | AC27: 0 | AD27: 0 | AE27: 0 | AF27: 0 | AG27: 0 | AH27: 0
B28: 2.12 | C28: Dental Expanded Benefits FFS | D28: 62,618.83 | E28: 0 | F28: 44,665.28 | G28: 16,502.39 | H28: 0 | I28: 1,451.16 | J28: 54,974.61 | K28: 0 | L28: 37,878.97 | M28: 15,936.40 | N28: 0 | O28: 1,159.24 | P28: 58,435.62 | Q28: 0 | R28: 43,840.09 | S28: 13,694.85 | T28: 0 | U28: 900.68 | V28: 56,131.10 | W28: 0 | X28: 40,003.97 | Y28: 14,621.39 | Z28: 0 | AA28: 1,505.74 | AB28: 1,148.37 | AC28: =SUM(AD28:AH28)+AB28 -> 233,308.53 | AD28: 0 | AE28: 166,388.31 | AF28: 60,755.03 | AG28: 0 | AH28: =AA28+U28+O28+I28 -> 5,016.82
B29: 2.13 | C29: Dental Services Paid through Subcapitation | D29: =SUM(E29:I29) -> 0 | E29: 0 | F29: 0 | G29: 0 | H29: 0 | I29: 0 | J29: =SUM(K29:O29) -> 0 | K29: 0 | L29: 0 | M29: 0 | N29: 0 | O29: 0 | P29: =SUM(Q29:U29) -> 0 | Q29: 0 | R29: 0 | S29: 0 | T29: 0 | U29: 0 | V29: =SUM(W29:AA29) -> 0 | W29: 0 | X29: 0 | Y29: 0 | Z29: 0 | AA29: 0 | AB29: 0 | AC29: =SUM(AD29:AH29)+AB29 -> 0 | AD29: 0 | AE29: 0 | AF29: 0 | AG29: 0 | AH29: 0
B30: 2.14 | C30: Ending IBNP for Dental Services | D30: 21.13 | E30: 18.47 | F30: 2.15 | G30: 0.40 | H30: 0.05 | I30: 0.06 | J30: =SUM(K30:O30) -> 950.95 | K30: 824.62 | L30: 99.82 | M30: 20.47 | N30: 2.92 | O30: 3.12 | P30: =SUM(Q30:U30) -> 4,135.76 | Q30: 3,626.61 | R30: 400.23 | S30: 93.33 | T30: 11.00 | U30: 4.60 | V30: =SUM(W30:AA30) -> 19,066.25 | W30: 16,551.36 | X30: 1,954.72 | Y30: 489.24 | Z30: 48.43 | AA30: 22.50 | AB30: (35,863.85) | AC30: (11,689.76) | AD30: 21,021.06 | AE30: 2,456.92 | AF30: 603.44 | AG30: 62.40 | AH30: =AA30+U30+O30+I30 -> 30.28
B31: 2.15 | C31: Dental Settlements/AP | D31: 0 | J31: 0 | P31: 0 | V31: 0 | AB31: 0 | AC31: =SUM(AD31:AH31)+AB31 -> 0 | AD31: 0 | AE31: 0 | AF31: 0 | AG31: 0 | AH31: 0
B32: 2.16 | C32: Total Dental Services | D32: =SUM(D17:D31) -> 2,301,192.50 | E32: =SUM(E17:E31) -> 2,010,994.95 | F32: 234,117.62 | G32: 43,346.23 | H32: 5,817.87 | I32: 6,915.83 | J32: =SUM(J17:J31) -> 2,225,321.18 | K32: =SUM(K17:K31) -> 1,929,703.45 | L32: 233,599.00 | M32: 47,899.96 | N32: 6,828.49 | O32: 7,290.28 | P32: =SUM(P17:P31) -> 2,246,288.15 | Q32: =SUM(Q17:Q31) -> 1,969,745.48 | R32: 217,377.25 | S32: 50,692.29 | T32: 5,973.91 | U32: 2,499.23 | V32: =SUM(V17:V31) -> 2,403,705.22 | W32: =SUM(W17:W31) -> 2,086,650.39 | X32: 246,433.57 | Y32: 61,679.70 | Z32: 6,105.54 | AA32: 2,836.02 | AB32: =SUM(AB17:AB31) -> (15,707.77) | AC32: =SUM(AC17:AC31) -> 9,160,799.28 | AD32: 7,997,094.27 | AE32: 931,527.44 | AF32: 203,618.18 | AG32: 24,725.81 | AH32: =SUM(AH17:AH31) -> 19,541.36
A33: Total Before and After Reinsurance | B33: 3.1 | C33: Total Dental Services Paid Directly FFS | D33: =SUM(D17:D28) -> 2,301,171.37 | E33: =SUM(E17:E28) -> 2,010,976.48 | F33: =SUM(F17:F28) -> 234,115.47 | G33: 43,345.83 | H33: 5,817.82 | I33: =SUM(I17:I28) -> 6,915.77 | J33: =SUM(J17:J28) -> 2,224,370.23 | K33: =SUM(K17:K28) -> 1,928,878.83 | L33: 233,499.18 | M33: 47,879.49 | N33: 6,825.57 | O33: =SUM(O17:O28) -> 7,287.16 | P33: =SUM(P17:P28) -> 2,242,152.39 | Q33: =SUM(Q17:Q28) -> 1,966,118.87 | R33: 216,977.02 | S33: 50,598.96 | T33: 5,962.91 | U33: =SUM(U17:U28) -> 2,494.63 | V33: =SUM(V17:V28) -> 2,384,638.97 | W33: =SUM(W17:W28) -> 2,070,099.03 | X33: 244,478.85 | Y33: 61,190.46 | Z33: 6,057.11 | AA33: =SUM(AA17:AA28) -> 2,813.52 | AB33: =SUM(AB17:AB28) -> 20,156.08 | AC33: =SUM(AD33:AH33)+AB33 -> 9,172,489.04 | AD33: =W33+Q33+K33+E33 -> 7,976,073.21 | AE33: 929,070.52 | AF33: 203,014.74 | AG33: 24,663.41 | AH33: 19,511.08
B34: 3.2 | C34: Total Dental Services Paid through Subcapitation | D34: =D29 -> 0 | E34: 0 | F34: =F29 -> 0 | G34: 0 | H34: 0 | I34: 0 | J34: =J29 -> 0 | K34: 0 | L34: =L29 -> 0 | M34: 0 | N34: 0 | O34: 0 | P34: =P29 -> 0 | Q34: 0 | R34: =R29 -> 0 | S34: 0 | T34: 0 | U34: 0 | V34: =V29 -> 0 | W34: 0 | X34: =X29 -> 0 | Y34: 0 | Z34: 0 | AA34: 0 | AB34: 0 | AC34: 0 | AD34: =W34+Q34+K34+E34 -> 0 | AE34: 0 | AF34: 0 | AG34: 0 | AH34: 0
B35: 3.3 | C35: Total Dental Services Paid Directly -- IBNP | D35: 21.13 | E35: 18.47 | F35: =F30 -> 2.15 | G35: 0.40 | H35: 0.05 | I35: 0.06 | J35: 950.95 | K35: 824.62 | L35: =L30 -> 99.82 | M35: 20.47 | N35: 2.92 | O35: 3.12 | P35: 4,135.76 | Q35: 3,626.61 | R35: =R30 -> 400.23 | S35: 93.33 | T35: 11.00 | U35: 4.60 | V35: 19,066.25 | W35: 16,551.36 | X35: =X30 -> 1,954.72 | Y35: 489.24 | Z35: 48.43 | AA35: 22.50 | AB35: (35,863.85) | AC35: (11,689.76) | AD35: 21,021.06 | AE35: 2,456.92 | AF35: 603.44 | AG35: =Z35+T35+N35+H35 -> 62.40 | AH35: 30.28
B36: 3.4 | C36: Total Dental Services Paid by Settlements/AP | D36: 0 | E36: 0 | F36: 0 | G36: 0 | H36: 0 | I36: 0 | J36: 0 | K36: 0 | L36: 0 | M36: 0 | N36: 0 | O36: 0 | P36: 0 | Q36: 0 | R36: 0 | S36: 0 | T36: 0 | U36: 0 | V36: 0 | W36: 0 | X36: 0 | Y36: 0 | Z36: 0 | AA36: 0 | AB36: 0 | AC36: 0 | AD36: =W36+Q36+K36+E36 -> 0 | AE36: 0 | AF36: 0 | AG36: 0 | AH36: =AA36+U36+O36+I36 -> 0
B37: 3.5 | C37: TPL & Fraud/Abuse Recoveries | D37: =SUM(E37:I37) -> 0 | J37: =SUM(K37:O37) -> 0 | P37: =SUM(Q37:U37) -> 0 | V37: =SUM(W37:AA37) -> 0 | AC37: 0 | AD37: =W37+Q37+K37+E37 -> 0 | AE37: 0 | AF37: 0 | AG37: 0 | AH37: =AA37+U37+O37+I37 -> 0
B38: 3.6 | C38: Premium Deficiency Reserve | D38: =SUM(E38:I38) -> 0 | J38: =SUM(K38:O38) -> 0 | P38: =SUM(Q38:U38) -> 0 | V38: =SUM(W38:AA38) -> 0 | AC38: 0 | AD38: =W38+Q38+K38+E38 -> 0 | AE38: 0 | AF38: =Y38+S38+M38+G38 -> 0 | AG38: 0 | AH38: =AA38+U38+O38+I38 -> 0
B39: 3.7 | C39: Subtotal Benefit Expense before Reinsurance | D39: =SUM(D33:D38) -> 2,301,192.50 | E39: =SUM(E33:E38) -> 2,010,994.95 | F39: =SUM(F33:F38) -> 234,117.62 | G39: 43,346.23 | H39: 5,817.87 | I39: =SUM(I33:I38) -> 6,915.83 | J39: =SUM(J33:J38) -> 2,225,321.18 | K39: =SUM(K33:K38) -> 1,929,703.45 | L39: =SUM(L33:L38) -> 233,599.00 | M39: 47,899.96 | N39: 6,828.49 | O39: =SUM(O33:O38) -> 7,290.28 | P39: =SUM(P33:P38) -> 2,246,288.15 | Q39: =SUM(Q33:Q38) -> 1,969,745.48 | R39: =SUM(R33:R38) -> 217,377.25 | S39: 50,692.29 | T39: 5,973.91 | U39: =SUM(U33:U38) -> 2,499.23 | V39: =SUM(V33:V38) -> 2,403,705.22 | W39: =SUM(W33:W38) -> 2,086,650.39 | X39: =SUM(X33:X38) -> 246,433.57 | Y39: 61,679.70 | Z39: 6,105.54 | AA39: =SUM(AA33:AA38) -> 2,836.02 | AB39: (15,707.77) | AC39: 9,160,799.28 | AD39: 7,997,094.27 | AE39: 931,527.44 | AF39: 203,618.18 | AG39: 24,725.81 | AH39: 19,541.36
B40: 3.8 | C40: Reinsurance Premiums | D40: =SUM(E40:I40) -> 0 | J40: =SUM(K40:O40) -> 0 | P40: =SUM(Q40:U40) -> 0 | V40: =SUM(W40:AA40) -> 0 | AC40: =SUM(AD40:AH40)+AB40 -> 0 | AD40: =W40+Q40+K40+E40 -> 0 | AE40: =X40+R40+L40+F40 -> 0 | AF40: =Y40+S40+M40+G40 -> 0 | AG40: 0 | AH40: 0
B41: 3.9 | C41: Reinsurance Recoveries | D41: =SUM(E41:I41) -> 0 | J41: =SUM(K41:O41) -> 0 | P41: =SUM(Q41:U41) -> 0 | V41: =SUM(W41:AA41) -> 0 | AC41: =SUM(AD41:AH41)+AB41 -> 0 | AD41: =W41+Q41+K41+E41 -> 0 | AE41: 0 | AF41: 0 | AG41: 0 | AH41: 0
B42: 3.10 | C42: Net cost of Reinsurance | D42: =SUM(D40:D41) -> 0 | E42: =SUM(E40:E41) -> 0 | F42: =SUM(F40:F41) -> 0 | G42: 0 | H42: 0 | I42: 0 | J42: =SUM(J40:J41) -> 0 | K42: =SUM(K40:K41) -> 0 | L42: 0 | M42: 0 | N42: 0 | O42: 0 | P42: =SUM(P40:P41) -> 0 | Q42: =SUM(Q40:Q41) -> 0 | R42: 0 | S42: 0 | T42: 0 | U42: 0 | V42: =SUM(V40:V41) -> 0 | W42: =SUM(W40:W41) -> 0 | X42: 0 | Y42: 0 | Z42: 0 | AA42: 0 | AB42: 0 | AC42: =SUM(AC40:AC41) -> 0 | AD42: =SUM(AD40:AD41) -> 0 | AE42: =SUM(AE40:AE41) -> 0 | AF42: 0 | AG42: =SUM(AG40:AG41) -> 0 | AH42: =SUM(AH40:AH41) -> 0
B43: 3.11 | C43: Grand Total Medical Benefit Expense Net of Reinsurance | D43: =D39+D42 -> 2,301,192.50 | E43: =E39+E42 -> 2,010,994.95 | F43: =F39+F42 -> 234,117.62 | G43: 43,346.23 | H43: 5,817.87 | I43: =I39+I42 -> 6,915.83 | J43: =J39+J42 -> 2,225,321.18 | K43: =K39+K42 -> 1,929,703.45 | L43: =L39+L42 -> 233,599.00 | M43: 47,899.96 | N43: 6,828.49 | O43: =O39+O42 -> 7,290.28 | P43: =P39+P42 -> 2,246,288.15 | Q43: =Q39+Q42 -> 1,969,745.48 | R43: =R39+R42 -> 217,377.25 | S43: 50,692.29 | T43: 5,973.91 | U43: =U39+U42 -> 2,499.23 | V43: =V39+V42 -> 2,403,705.22 | W43: =W39+W42 -> 2,086,650.39 | X43: =X39+X42 -> 246,433.57 | Y43: 61,679.70 | Z43: 6,105.54 | AA43: =AA39+AA42 -> 2,836.02 | AB43: =AB39+AB42 -> (15,707.77) | AC43: =AC39+AC42 -> 9,160,799.28 | AD43: =AD39+AD42 -> 7,997,094.27 | AE43: =AE39+AE42 -> 931,527.44 | AF43: 203,618.18 | AG43: 24,725.81 | AH43: =AH39+AH42 -> 19,541.36
A44: Administrative Expenses, Government-Mandated Assessments, Taxes, and Fees | D44: JANUARY - MARCH (Q1) | J44: APRIL - JUNE (Q2) | P44: JULY - SEPTEMBER (Q3) | V44: OCTOBER - DECEMBER (Q4) | AC44: TOTAL (TO DATE)
D45: Total | E45: Health Plan | F45: Corporate | J45: Total | K45: Health Plan | L45: Corporate | P45: Total | Q45: Health Plan | R45: Corporate | V45: Total | W45: Health Plan | X45: Corporate | AB45: Prior Calendar Year Adjustments | AC45: Total | AD45: Health Plan | AE45: Corporate
A46: Administrative Expenses | B46: 4.1 | C46: Salaries & Benefits | D46: =SUM(E46:F46) -> 106,950.40 | F46: 106,950.40 | J46: =SUM(K46:L46) -> 100,209.02 | L46: 100,209.02 | P46: =SUM(Q46:R46) -> 92,859.54 | R46: 92,859.54 | V46: =SUM(W46:X46) -> 124,877.04 | X46: 124,877.04 | AC46: =SUM(AD46:AE46)+AB46 -> 424,896.00 | AD46: =W46+Q46+K46+E46 -> 0 | AE46: =X46+R46+L46+F46 -> 424,896.00
B47: 4.2 | C47: Administrative Services | D47: =SUM(E47:F47) -> 16,209.67 | F47: 16,209.67 | J47: =SUM(K47:L47) -> 15,187.93 | L47: 15,187.93 | P47: =SUM(Q47:R47) -> 14,074.02 | R47: 14,074.02 | V47: =SUM(W47:X47) -> 18,926.67 | X47: 18,926.67 | AC47: =SUM(AD47:AE47)+AB47 -> 64,398.29 | AD47: =W47+Q47+K47+E47 -> 0 | AE47: 64,398.29
B48: 4.3 | C48: Information Systems | D48: 13,119.95 | F48: 13,119.95 | J48: 12,292.97 | L48: 12,292.97 | P48: 11,391.38 | R48: 11,391.38 | V48: 15,319.07 | X48: 15,319.07 | AC48: =SUM(AD48:AE48)+AB48 -> 52,123.37 | AD48: 0 | AE48: 52,123.37
B49: 4.4 | C49: Marketing Expenses | D49: 2,996.98 | F49: 2,996.98 | J49: 2,808.08 | L49: 2,808.08 | P49: 2,602.13 | R49: 2,602.13 | V49: 3,499.33 | X49: 3,499.33 | AC49: =SUM(AD49:AE49)+AB49 -> 11,906.52 | AD49: 0 | AE49: 11,906.52
B50: 4.5 | C50: General Administration | D50: 75,843.41 | F50: 75,843.41 | J50: 71,062.79 | L50: 71,062.79 | P50: 65,850.94 | R50: 65,850.94 | V50: 88,556.00 | X50: 88,556.00 | AC50: 301,313.14 | AD50: 0 | AE50: 301,313.14
B51: 4.6 | C51: Compliance/Regulatory | D51: 97,555.53 | F51: =1656.5+95899.03 -> 97,555.53 | J51: 91,406.33 | L51: =1552.08+89854.25 -> 91,406.33 | P51: 84,702.45 | R51: =1438.2515156655+83264.2 -> 84,702.45 | V51: 113,907.42 | X51: =1934.15+111973.27 -> 113,907.42 | AC51: 387,571.73 | AD51: 0 | AE51: =X51+R51+L51+F51 -> 387,571.73
B52: 4.7 | C52: Total Administrative Expenses | D52: =SUM(D46:D51) -> 312,675.94 | E52: =SUM(E46:E51) -> 0 | F52: =SUM(F46:F51) -> 312,675.94 | J52: =SUM(J46:J51) -> 292,967.12 | K52: =SUM(K46:K51) -> 0 | L52: =SUM(L46:L51) -> 292,967.12 | P52: =SUM(P46:P51) -> 271,480.46 | Q52: =SUM(Q46:Q51) -> 0 | R52: =SUM(R46:R51) -> 271,480.46 | V52: =SUM(V46:V51) -> 365,085.53 | W52: =SUM(W46:W51) -> 0 | X52: =SUM(X46:X51) -> 365,085.53 | AB52: =SUM(AB46:AB51) -> 0 | AC52: =SUM(AC46:AC51) -> 1,242,209.05 | AD52: =SUM(AD46:AD51) -> 0 | AE52: =SUM(AE46:AE51) -> 1,242,209.05
A53: Government-Mandated Assessments, Taxes, and Fees Other Than Income Taxes | B53: 5.1 | C53: State Premium tax | AC53: =D53+J53+P53+V53+AB53 -> 0
B54: 5.2 | C54: Department of Insurance Assessments | AC54: =D54+J54+P54+V54+AB54 -> 0
B55: 5.3 | C55: Section 9010 Health Insurance Providers Fee | AC55: =D55+J55+P55+V55+AB55 -> 0
B56: 5.4 | C56: Other 1 | AC56: 0
B57: 5.5 | C57: Other 2 | AC57: 0
B58: 5.6 | C58: Other 3 | AC58: =D58+J58+P58+V58+AB58 -> 0
B59: 5.7 | C59: Total | D59: =SUM(D53:D58) -> 0 | J59: =SUM(J53:J58) -> 0 | P59: =SUM(P53:P58) -> 0 | V59: =SUM(V53:V58) -> 0 | AB59: =SUM(AB53:AB58) -> 0 | AC59: =SUM(AC53:AC58) -> 0
B60: 6.0 | C60: Grand Total Expenses | D60: =D43+D52+D59 -> 2,613,868.44 | J60: =J43+J52+J59 -> 2,518,288.30 | P60: =P43+P52+P59 -> 2,517,768.61 | V60: =V43+V52+V59 -> 2,768,790.75 | AB60: =AB43+AB52+AB59 -> (15,707.77) | AC60: =AC43+AC52+AC59 -> 10,403,008.33
B61: 7.0 | C61: Underwriting Gain / (Loss) --- AKA Pre-tax Earnings from Operations | D61: =D14-D60 -> 160,028.42 | J61: =J14-J60 -> 292,893.97 | P61: =P14-P60 -> 326,979.05 | V61: =V14-V60 -> (21,969.71) | AB61: =AB14-AB60 -> 25,240.49 | AC61: =AC14-AC60 -> 783,172.22
B62: 8.0 | C62: Income Tax Expense | D62: =+D61*21% -> 33,605.97 | J62: =+J61*21% -> 61,507.73 | P62: =+P61*21% -> 68,665.60 | V62: =+V61*21% -> (4,613.64) | AB62: =+AB61*21% -> 5,300.50 | AC62: =AB62+V62+P62+J62+D62 -> 164,466.17
B63: 9.0 | C63: Net Underwriting Gain (Loss) | D63: =D61-D62 -> 126,422.45 | J63: =J61-J62 -> 231,386.24 | P63: =P61-P62 -> 258,313.45 | V63: =V61-V62 -> (17,356.07) | AB63: =AB61-AB62 -> 19,939.99 | AC63: =AC61-AC62 -> 618,706.05

Sheet Dental Rev-Exp Region 6
A1: DENTAL -- REVENUE AND EXPENSE SCHEDULE - REGION 6
A3: Health Plan: | C3: ='Dental Rev-Exp Summary'!C3 -> 0
A4: Reporting Period: | C4: =IF('Dental Rev-Exp Summary'!C4=0,"",'Dental Rev-Exp Summary'!C4) -> 
A5: Paid Through: | C5: =IF('Dental Rev-Exp Summary'!C5=0,"",'Dental Rev-Exp Summary'!C5) -> 
A6: Region 6
D7: JANUARY - MARCH (Q1) | J7: APRIL - JUNE (Q2) | P7: JULY - SEPTEMBER (Q3) | V7: OCTOBER - DECEMBER (Q4) | AC7: TOTAL (TO DATE)
D8: Total | E8: Medicaid Only/Dual Eligible 0-20 Years | F8: Medicaid Only 21+ Years | G8: Dual Eligible 21+ Years | H8: Medically Needy 0-20 Years | I8: Medically Needy 21+ Years | J8: Total | K8: Medicaid Only/Dual Eligible 0-20 Years | L8: Medicaid Only 21+ Years | M8: Dual Eligible 21+ Years | N8: Medically Needy 0-20 Years | O8: Medically Needy 21+ Years | P8: Total | Q8: Medicaid Only/Dual Eligible 0-20 Years | R8: Medicaid Only 21+ Years | S8: Dual Eligible 21+ Years | T8: Medically Needy 0-20 Years | U8: Medically Needy 21+ Years | V8: Total | W8: Medicaid Only/Dual Eligible 0-20 Years | X8: Medicaid Only 21+ Years | Y8: Dual Eligible 21+ Years | Z8: Medically Needy 0-20 Years | AA8: Medically Needy 21+ Years | AB8: Prior Year Adjustments | AC8: Total | AD8: Medicaid Only/Dual Eligible 0-20 Years | AE8: Medicaid Only 21+ Years | AF8: Dual Eligible 21+ Years | AG8: Medically Needy 0-20 Years | AH8: Medically Needy 21+ Years
A9: MEMBER MONTHS | D9: =SUM(E9:I9) -> 820,249.42 | E9: 538,588.90 | F9: 225,835.26 | G9: 38,373.32 | H9: 2,903.24 | I9: 14,548.70 | J9: =SUM(K9:O9) -> 829,283.37 | K9: 540,458.52 | L9: 236,241.96 | M9: 35,380.28 | N9: 2,881.27 | O9: 14,321.34 | P9: =SUM(Q9:U9) -> 856,278.58 | Q9: 550,887.74 | R9: 252,522.01 | S9: 35,493.67 | T9: 2,968.53 | U9: 14,406.63 | V9: =SUM(W9:AA9) -> 870,633.02 | W9: 553,990.99 | X9: 264,373.73 | Y9: 35,065.31 | Z9: 2,959.17 | AA9: 14,243.82 | AB9: 15,255.09 | AC9: =SUM(AD9:AH9)+AB9 -> 3,391,699.48 | AD9: =W9+Q9+K9+E9 -> 2,183,926.15 | AE9: =X9+R9+L9+F9 -> 978,972.96 | AF9: 144,312.58 | AG9: =Z9+T9+N9+H9 -> 11,712.21 | AH9: =AA9+U9+O9+I9 -> 57,520.49
A10: REVENUES
A11: Revenues | B11: 1.1 | C11: Capitation | D11: =SUM(E11:I11) -> 7,331,388.99 | E11: 6,160,704.11 | F11: 990,539.44 | G11: 120,443.94 | H11: 16,367.86 | I11: 43,333.64 | J11: =SUM(K11:O11) -> 7,453,483.12 | K11: 6,228,144.61 | L11: 1,046,788.79 | M11: 118,015.56 | N11: 16,419.92 | O11: 44,114.24 | P11: =SUM(Q11:U11) -> 7,565,925.20 | Q11: 6,277,204.17 | R11: 1,110,686.67 | S11: 116,085.09 | T11: 17,182.97 | U11: 44,766.30 | V11: =SUM(W11:AA11) -> 7,163,927.07 | W11: 5,881,136.63 | X11: 1,117,881.36 | Y11: 109,178.08 | Z11: 15,114.74 | AA11: 40,616.26 | AB11: =10538.8+19455.21 -> 29,994.01 | AC11: =SUM(AD11:AH11)+AB11 -> 29,544,718.39 | AD11: =W11+Q11+K11+E11 -> 24,547,189.52 | AE11: =X11+R11+L11+F11 -> 4,265,896.26 | AF11: 463,722.67 | AG11: 65,085.49 | AH11: =AA11+U11+O11+I11 -> 172,830.44
B12: 1.2 | C12: ACA § 9010 related payments | D12: =SUM(E12:I12) -> 0 | J12: =SUM(K12:O12) -> 0 | P12: =SUM(Q12:U12) -> 0 | V12: =SUM(W12:AA12) -> 0 | AC12: =SUM(AD12:AH12)+AB12 -> 0 | AD12: =W12+Q12+K12+E12 -> 0 | AE12: 0 | AF12: =Y12+S12+M12+G12 -> 0 | AG12: 0 | AH12: =AA12+U12+O12+I12 -> 0
B13: 1.3 | C13: Other Revenue | D13: 0 | J13: 0 | P13: 0 | V13: 0 | AC13: =SUM(AD13:AH13)+AB13 -> 0 | AD13: =W13+Q13+K13+E13 -> 0 | AE13: =X13+R13+L13+F13 -> 0 | AF13: =Y13+S13+M13+G13 -> 0 | AG13: =Z13+T13+N13+H13 -> 0 | AH13: =AA13+U13+O13+I13 -> 0
B14: 1.4 | C14: Total Revenue | D14: =SUM(D11:D13) -> 7,331,388.99 | E14: =SUM(E11:E13) -> 6,160,704.11 | F14: 990,539.44 | G14: =SUM(G11:G13) -> 120,443.94 | H14: 16,367.86 | I14: 43,333.64 | J14: =SUM(J11:J13) -> 7,453,483.12 | K14: =SUM(K11:K13) -> 6,228,144.61 | L14: 1,046,788.79 | M14: 118,015.56 | N14: 16,419.92 | O14: 44,114.24 | P14: =SUM(P11:P13) -> 7,565,925.20 | Q14: =SUM(Q11:Q13) -> 6,277,204.17 | R14: 1,110,686.67 | S14: 116,085.09 | T14: 17,182.97 | U14: 44,766.30 | V14: =SUM(V11:V13) -> 7,163,927.07 | W14: =SUM(W11:W13) -> 5,881,136.63 | X14: 1,117,881.36 | Y14: 109,178.08 | Z14: 15,114.74 | AA14: 40,616.26 | AB14: =SUM(AB11:AB13) -> 29,994.01 | AC14: =SUM(AC11:AC13) -> 29,544,718.39 | AD14: =SUM(AD11:AD13) -> 24,547,189.52 | AE14: =SUM(AE11:AE13) -> 4,265,896.26 | AF14: =SUM(AF11:AF13) -> 463,722.67 | AG14: =SUM(AG11:AG13) -> 65,085.49 | AH14: 172,830.44
A15: BENEFIT EXPENSES | D15: JANUARY - MARCH (Q1) | J15: APRIL - JUNE (Q2) | P15: JULY - SEPTEMBER (Q3) | V15: OCTOBER - DECEMBER (Q4) | AC15: TOTAL (TO DATE)
D16: Total | E16: Medicaid Only/Dual Eligible 0-20 Years | F16: Medicaid Only 21+ Years | G16: Dual Eligible 21+ Years | H16: Medically Needy 0-20 Years | I16: Medically Needy 21+ Years | J16: Total | K16: Medicaid Only/Dual Eligible 0-20 Years | L16: Medicaid Only 21+ Years | M16: Dual Eligible 21+ Years | N16: Medically Needy 0-20 Years | O16: Medically Needy 21+ Years | P16: Total | Q16: Medicaid Only/Dual Eligible 0-20 Years | R16: Medicaid Only 21+ Years | S16: Dual Eligible 21+ Years | T16: Medically Needy 0-20 Years | U16: Medically Needy 21+ Years | V16: Total | W16: Medicaid Only/Dual Eligible 0-20 Years | X16: Medicaid Only 21+ Years | Y16: Dual Eligible 21+ Years | Z16: Medically Needy 0-20 Years | AA16: Medically Needy 21+ Years | AB16: Prior Year Adjustments | AC16: Total | AD16: Medicaid Only/Dual Eligible 0-20 Years | AE16: Medicaid Only 21+ Years | AF16: Dual Eligible 21+ Years | AG16: Medically Needy 0-20 Years | AH16: Medically Needy 21+ Years
A17: Dental | B17: 2.1 | C17: Dental Services Diagnostic FFS | D17: =SUM(E17:I17) -> 1,325,415.84 | E17: 1,204,725.15 | F17: 107,424.12 | G17: 8,813.89 | H17: 1,435.52 | I17: 3,017.16 | J17: =SUM(K17:O17) -> 1,227,351.26 | K17: 1,112,659.50 | L17: 101,181.17 | M17: 8,524.42 | N17: 2,868.63 | O17: 2,117.54 | P17: =SUM(Q17:U17) -> 1,260,360.23 | Q17: 1,143,377.64 | R17: 105,192.51 | S17: 8,347.86 | T17: 1,590.91 | U17: 1,851.31 | V17: =SUM(W17:AA17) -> 1,291,192.04 | W17: 1,153,182.90 | X17: 124,536.41 | Y17: 8,297.84 | Z17: 2,110.54 | AA17: 3,064.35 | AB17: 14,280.71 | AC17: =SUM(AD17:AH17)+AB17 -> 5,118,600.08 | AD17: =W17+Q17+K17+E17 -> 4,613,945.19 | AE17: =X17+R17+L17+F17 -> 438,334.21 | AF17: 33,984.01 | AG17: 8,005.60 | AH17: 10,050.36
B18: 2.2 | C18: Dental Services Preventive FFS | D18: =SUM(E18:I18) -> 1,272,373.36 | E18: 1,269,851.69 | F18: 0 | G18: 253.31 | H18: 2,268.36 | I18: 0 | J18: =SUM(K18:O18) -> 1,228,824.02 | K18: 1,225,651.28 | L18: 0 | M18: 225.58 | N18: 2,947.16 | O18: 0 | P18: =SUM(Q18:U18) -> 1,236,621.77 | Q18: 1,234,587.74 | R18: 0 | S18: 243.40 | T18: 1,790.63 | U18: 0 | V18: =SUM(W18:AA18) -> 1,326,549.91 | W18: 1,323,336.19 | X18: 0 | Y18: 135.80 | Z18: 3,077.92 | AA18: 0 | AB18: 12,537.02 | AC18: =SUM(AD18:AH18)+AB18 -> 5,076,906.08 | AD18: =W18+Q18+K18+E18 -> 5,053,426.90 | AE18: 0 | AF18: =Y18+S18+M18+G18 -> 858.09 | AG18: 10,084.07 | AH18: =AA18+U18+O18+I18 -> 0
B19: 2.3 | C19: Dental Services Restorative FFS | D19: 1,422,728.50 | E19: 1,419,402.90 | F19: 0 | G19: 622.77 | H19: 2,702.83 | I19: 0 | J19: 1,350,735.83 | K19: 1,348,058.51 | L19: 0 | M19: 0 | N19: 2,677.32 | O19: 0 | P19: 1,301,256.61 | Q19: 1,298,790.22 | R19: 0 | S19: 214.04 | T19: 2,252.35 | U19: 0 | V19: 1,294,954.41 | W19: 1,291,969.08 | X19: 0 | Y19: 96.61 | Z19: 2,888.72 | AA19: 0 | AB19: 5,861.15 | AC19: =SUM(AD19:AH19)+AB19 -> 5,375,536.50 | AD19: =W19+Q19+K19+E19 -> 5,358,220.71 | AE19: 0 | AF19: 933.42 | AG19: 10,521.22 | AH19: 0
B20: 2.4 | C20: Dental Services Endodontics FFS | D20: 264,666.59 | E20: 264,313.61 | F20: 0 | G20: 0 | H20: 352.98 | I20: 0 | J20: 247,215.60 | K20: 245,765.60 | L20: 0 | M20: 0 | N20: 1,450.00 | O20: 0 | P20: 216,320.34 | Q20: 216,163.78 | R20: 0 | S20: 0 | T20: 156.56 | U20: 0 | V20: 209,619.25 | W20: 209,432.64 | X20: 0 | Y20: 0 | Z20: 186.61 | AA20: 0 | AB20: 621.83 | AC20: 938,443.61 | AD20: 935,675.63 | AE20: 0 | AF20: 0 | AG20: 2,146.15 | AH20: 0
B21: 2.5 | C21: Dental Services Periodontics FFS | D21: 6,314.75 | E21: 6,314.75 | F21: 0 | G21: 0 | H21: 0 | I21: 0 | J21: 7,906.48 | K21: 7,906.48 | L21: 0 | M21: 0 | N21: 0 | O21: 0 | P21: 7,774.14 | Q21: 7,774.14 | R21: 0 | S21: 0 | T21: 0 | U21: 0 | V21: 7,225.36 | W21: 7,225.36 | X21: 0 | Y21: 0 | Z21: 0 | AA21: 0 | AB21: 66.88 | AC21: 29,287.61 | AD21: 29,220.73 | AE21: 0 | AF21: 0 | AG21: 0 | AH21: 0
B22: 2.6 | C22: Dental Services Prosthodontics FFS | D22: 70,209.53 | E22: 1,337.66 | F22: 54,569.99 | G22: 13,351.88 | H22: 0 | I22: 950.00 | J22: 55,262.25 | K22: 163.49 | L22: 47,929.50 | M22: 7,169.26 | N22: 0 | O22: 0 | P22: 54,884.34 | Q22: 853.87 | R22: 45,296.47 | S22: 8,259.00 | T22: 0 | U22: 475.00 | V22: 55,753.56 | W22: 246.32 | X22: 46,589.05 | Y22: 8,601.80 | Z22: 0 | AA22: 316.39 | AB22: 2,084.53 | AC22: 238,194.21 | AD22: 2,601.34 | AE22: 194,385.01 | AF22: 37,381.94 | AG22: 0 | AH22: 1,741.39
B23: 2.7 | C23: Dental Services Prosthodontics, fixed FFS | D23: 0 | E23: 0 | F23: 0 | G23: 0 | H23: 0 | I23: 0 | J23: 0 | K23: 0 | L23: 0 | M23: 0 | N23: 0 | O23: 0 | P23: 0 | Q23: 0 | R23: 0 | S23: 0 | T23: 0 | U23: 0 | V23: 0 | W23: 0 | X23: 0 | Y23: 0 | Z23: 0 | AA23: 0 | AB23: 0 | AC23: 0 | AD23: 0 | AE23: 0 | AF23: 0 | AG23: 0 | AH23: 0
B24: 2.8 | C24: Dental Services Oral and Maxillofacial Surgery FFS | D24: 670,890.83 | E24: 364,507.89 | F24: 286,876.06 | G24: 16,267.85 | H24: 190.13 | I24: 3,048.90 | J24: 627,588.06 | K24: 378,746.85 | L24: 213,129.08 | M24: 28,937.84 | N24: 248.81 | O24: 6,525.48 | P24: 606,739.59 | Q24: 341,237.16 | R24: 237,228.12 | S24: 21,175.76 | T24: 168.55 | U24: 6,930.00 | V24: 710,611.77 | W24: 392,807.49 | X24: 294,026.73 | Y24: 12,901.84 | Z24: 1,827.43 | AA24: 9,048.28 | AB24: 3,358.69 | AC24: 2,619,188.94 | AD24: 1,477,299.39 | AE24: 1,031,259.99 | AF24: 79,283.29 | AG24: 2,434.92 | AH24: 25,552.66
B25: 2.9 | C25: Dental Services Orthodontics FFS | D25: 141,133.47 | E25: 141,056.18 | F25: 0 | G25: 0 | H25: 77.29 | I25: 0 | J25: 147,972.88 | K25: 147,818.30 | L25: 0 | M25: 0 | N25: 154.58 | O25: 0 | P25: 127,741.63 | Q25: 126,534.76 | R25: 0 | S25: 0 | T25: 1,206.87 | U25: 0 | V25: 117,540.79 | W25: 117,463.50 | X25: 0 | Y25: 0 | Z25: 77.29 | AA25: 0 | AB25: 4,278.58 | AC25: 538,667.35 | AD25: 532,872.74 | AE25: 0 | AF25: 0 | AG25: 1,516.03 | AH25: 0
B26: 2.10 | C26: Dental Services Adjunctive General Services FFS | D26: 381,401.46 | E26: 318,830.08 | F26: 58,822.64 | G26: 2,095.12 | H26: 321.62 | I26: 1,332.00 | J26: 375,038.43 | K26: 318,540.95 | L26: 49,338.16 | M26: 5,485.50 | N26: 331.82 | O26: 1,342.00 | P26: 352,118.49 | Q26: 294,111.04 | R26: 52,931.94 | S26: 3,588.37 | T26: 429.64 | U26: 1,057.50 | V26: 394,425.41 | W26: 319,467.58 | X26: 70,076.37 | Y26: 2,628.12 | Z26: 754.84 | AA26: 1,498.50 | AB26: 4,536.95 | AC26: =SUM(AD26:AH26)+AB26 -> 1,507,520.74 | AD26: =W26+Q26+K26+E26 -> 1,250,949.65 | AE26: 231,169.11 | AF26: 13,797.11 | AG26: 1,837.92 | AH26: 5,230.00
B27: 2.11 | C27: Dental Services Other FFS | D27: 0 | E27: 0 | F27: 0 | G27: 0 | H27: 0 | I27: 0 | J27: 0 | K27: 0 | L27: 0 | M27: 0 | N27: 0 | O27: 0 | P27: 0 | Q27: 0 | R27: 0 | S27: 0 | T27: 0 | U27: 0 | V27: 0 | W27: 0 | X27: 0 | Y27: 0 | Z27: 0 | AA27: 0 | AB27: 0 | AC27: 0 | AD27: 0 | AE27: 0 | AF27: 0 | AG27: 0 | AH27: 0
B28: 2.12 | C28: Dental Expanded Benefits FFS | D28: 161,296.21 | E28: 0 | F28: 144,461.16 | G28: 12,739.84 | H28: 0 | I28: 4,095.21 | J28: 175,412.56 | K28: 0 | L28: 159,372.12 | M28: 13,171.85 | N28: 0 | O28: 2,868.59 | P28: 172,275.91 | Q28: 0 | R28: 155,491.98 | S28: 14,751.29 | T28: 0 | U28: 2,032.64 | V28: 169,796.59 | W28: 0 | X28: 155,074.45 | Y28: 12,399.61 | Z28: 0 | AA28: 2,322.53 | AB28: 2,129.75 | AC28: =SUM(AD28:AH28)+AB28 -> 680,911.02 | AD28: 0 | AE28: 614,399.71 | AF28: 53,062.59 | AG28: 0 | AH28: =AA28+U28+O28+I28 -> 11,318.97
B29: 2.13 | C29: Dental Services Paid through Subcapitation | D29: =SUM(E29:I29) -> 0 | E29: 0 | F29: 0 | G29: 0 | H29: 0 | I29: 0 | J29: =SUM(K29:O29) -> 0 | K29: 0 | L29: 0 | M29: 0 | N29: 0 | O29: 0 | P29: =SUM(Q29:U29) -> 0 | Q29: 0 | R29: 0 | S29: 0 | T29: 0 | U29: 0 | V29: =SUM(W29:AA29) -> 0 | W29: 0 | X29: 0 | Y29: 0 | Z29: 0 | AA29: 0 | AB29: 0 | AC29: =SUM(AD29:AH29)+AB29 -> 0 | AD29: 0 | AE29: 0 | AF29: 0 | AG29: 0 | AH29: 0
B30: 2.14 | C30: Ending IBNP for Dental Services | D30: 52.50 | E30: 45.83 | F30: 5.99 | G30: 0.50 | H30: 0.07 | I30: 0.11 | J30: =SUM(K30:O30) -> 2,327.09 | K30: 2,045.79 | L30: 244.09 | M30: 27.15 | N30: 4.57 | O30: 5.50 | P30: =SUM(Q30:U30) -> 9,842.69 | Q30: 8,601.93 | R30: 1,099.61 | S30: 104.36 | T30: 14.01 | U30: 22.77 | V30: =SUM(W30:AA30) -> 44,595.94 | W30: 38,499.11 | X30: 5,519.28 | Y30: 360.29 | Z30: 87.34 | AA30: 129.93 | AB30: (88,531.35) | AC30: (31,713.13) | AD30: 49,192.66 | AE30: 6,868.97 | AF30: 492.30 | AG30: 105.98 | AH30: =AA30+U30+O30+I30 -> 158.31
B31: 2.15 | C31: Dental Settlements/AP | D31: 0 | J31: 0 | P31: 0 | V31: 0 | AB31: 0 | AC31: =SUM(AD31:AH31)+AB31 -> 0 | AD31: 0 | AE31: 0 | AF31: 0 | AG31: 0 | AH31: 0
B32: 2.16 | C32: Total Dental Services | D32: =SUM(D17:D31) -> 5,716,483.04 | E32: =SUM(E17:E31) -> 4,990,385.74 | F32: 652,159.96 | G32: 54,145.16 | H32: 7,348.80 | I32: 12,443.38 | J32: =SUM(J17:J31) -> 5,445,634.46 | K32: =SUM(K17:K31) -> 4,787,356.75 | L32: 571,194.12 | M32: 63,541.60 | N32: 10,682.89 | O32: 12,859.11 | P32: =SUM(P17:P31) -> 5,345,935.74 | Q32: =SUM(Q17:Q31) -> 4,672,032.28 | R32: 597,240.63 | S32: 56,684.08 | T32: 7,609.52 | U32: 12,369.22 | V32: =SUM(V17:V31) -> 5,622,265.03 | W32: =SUM(W17:W31) -> 4,853,630.17 | X32: 695,822.29 | Y32: 45,421.91 | Z32: 11,010.69 | AA32: 16,379.98 | AB32: =SUM(AB17:AB31) -> (38,775.26) | AC32: =SUM(AC17:AC31) -> 22,091,543.01 | AD32: 19,303,404.94 | AE32: 2,516,417.00 | AF32: 219,792.75 | AG32: 36,651.89 | AH32: =SUM(AH17:AH31) -> 54,051.69
A33: Total Before and After Reinsurance | B33: 3.1 | C33: Total Dental Services Paid Directly FFS | D33: =SUM(D17:D28) -> 5,716,430.54 | E33: =SUM(E17:E28) -> 4,990,339.91 | F33: =SUM(F17:F28) -> 652,153.97 | G33: 54,144.66 | H33: 7,348.73 | I33: =SUM(I17:I28) -> 12,443.27 | J33: =SUM(J17:J28) -> 5,443,307.37 | K33: =SUM(K17:K28) -> 4,785,310.96 | L33: 570,950.03 | M33: 63,514.45 | N33: 10,678.32 | O33: =SUM(O17:O28) -> 12,853.61 | P33: =SUM(P17:P28) -> 5,336,093.05 | Q33: =SUM(Q17:Q28) -> 4,663,430.35 | R33: 596,141.02 | S33: 56,579.72 | T33: 7,595.51 | U33: =SUM(U17:U28) -> 12,346.45 | V33: =SUM(V17:V28) -> 5,577,669.09 | W33: =SUM(W17:W28) -> 4,815,131.06 | X33: 690,303.01 | Y33: 45,061.62 | Z33: 10,923.35 | AA33: =SUM(AA17:AA28) -> 16,250.05 | AB33: =SUM(AB17:AB28) -> 49,756.09 | AC33: =SUM(AD33:AH33)+AB33 -> 22,123,256.14 | AD33: =W33+Q33+K33+E33 -> 19,254,212.28 | AE33: 2,509,548.03 | AF33: 219,300.45 | AG33: 36,545.91 | AH33: 53,893.38
B34: 3.2 | C34: Total Dental Services Paid through Subcapitation | D34: =D29 -> 0 | E34: 0 | F34: =F29 -> 0 | G34: 0 | H34: 0 | I34: 0 | J34: =J29 -> 0 | K34: 0 | L34: =L29 -> 0 | M34: 0 | N34: 0 | O34: 0 | P34: =P29 -> 0 | Q34: 0 | R34: =R29 -> 0 | S34: 0 | T34: 0 | U34: 0 | V34: =V29 -> 0 | W34: 0 | X34: =X29 -> 0 | Y34: 0 | Z34: 0 | AA34: 0 | AB34: 0 | AC34: 0 | AD34: =W34+Q34+K34+E34 -> 0 | AE34: 0 | AF34: 0 | AG34: 0 | AH34: 0
B35: 3.3 | C35: Total Dental Services Paid Directly -- IBNP | D35: 52.50 | E35: 45.83 | F35: =F30 -> 5.99 | G35: 0.50 | H35: 0.07 | I35: 0.11 | J35: 2,327.09 | K35: 2,045.79 | L35: =L30 -> 244.09 | M35: 27.15 | N35: 4.57 | O35: 5.50 | P35: 9,842.69 | Q35: 8,601.93 | R35: =R30 -> 1,099.61 | S35: 104.36 | T35: 14.01 | U35: 22.77 | V35: 44,595.94 | W35: 38,499.11 | X35: =X30 -> 5,519.28 | Y35: 360.29 | Z35: 87.34 | AA35: 129.93 | AB35: (88,531.35) | AC35: (31,713.13) | AD35: 49,192.66 | AE35: 6,868.97 | AF35: 492.30 | AG35: =Z35+T35+N35+H35 -> 105.98 | AH35: 158.31
B36: 3.4 | C36: Total Dental Services Paid by Settlements/AP | D36: 0 | E36: 0 | F36: 0 | G36: 0 | H36: 0 | I36: 0 | J36: 0 | K36: 0 | L36: 0 | M36: 0 | N36: 0 | O36: 0 | P36: 0 | Q36: 0 | R36: 0 | S36: 0 | T36: 0 | U36: 0 | V36: 0 | W36: 0 | X36: 0 | Y36: 0 | Z36: 0 | AA36: 0 | AB36: 0 | AC36: 0 | AD36: =W36+Q36+K36+E36 -> 0 | AE36: 0 | AF36: 0 | AG36: 0 | AH36: =AA36+U36+O36+I36 -> 0
B37: 3.5 | C37: TPL & Fraud/Abuse Recoveries | D37: =SUM(E37:I37) -> 0 | J37: =SUM(K37:O37) -> 0 | P37: =SUM(Q37:U37) -> 0 | V37: =SUM(W37:AA37) -> 0 | AC37: 0 | AD37: =W37+Q37+K37+E37 -> 0 | AE37: 0 | AF37: 0 | AG37: 0 | AH37: =AA37+U37+O37+I37 -> 0
B38: 3.6 | C38: Premium Deficiency Reserve | D38: =SUM(E38:I38) -> 0 | J38: =SUM(K38:O38) -> 0 | P38: =SUM(Q38:U38) -> 0 | V38: =SUM(W38:AA38) -> 0 | AC38: 0 | AD38: =W38+Q38+K38+E38 -> 0 | AE38: 0 | AF38: =Y38+S38+M38+G38 -> 0 | AG38: 0 | AH38: =AA38+U38+O38+I38 -> 0
B39: 3.7 | C39: Subtotal Benefit Expense before Reinsurance | D39: =SUM(D33:D38) -> 5,716,483.04 | E39: =SUM(E33:E38) -> 4,990,385.74 | F39: =SUM(F33:F38) -> 652,159.96 | G39: 54,145.16 | H39: 7,348.80 | I39: =SUM(I33:I38) -> 12,443.38 | J39: =SUM(J33:J38) -> 5,445,634.46 | K39: =SUM(K33:K38) -> 4,787,356.75 | L39: =SUM(L33:L38) -> 571,194.12 | M39: 63,541.60 | N39: 10,682.89 | O39: =SUM(O33:O38) -> 12,859.11 | P39: =SUM(P33:P38) -> 5,345,935.74 | Q39: =SUM(Q33:Q38) -> 4,672,032.28 | R39: =SUM(R33:R38) -> 597,240.63 | S39: 56,684.08 | T39: 7,609.52 | U39: =SUM(U33:U38) -> 12,369.22 | V39: =SUM(V33:V38) -> 5,622,265.03 | W39: =SUM(W33:W38) -> 4,853,630.17 | X39: =SUM(X33:X38) -> 695,822.29 | Y39: 45,421.91 | Z39: 11,010.69 | AA39: =SUM(AA33:AA38) -> 16,379.98 | AB39: (38,775.26) | AC39: 22,091,543.01 | AD39: 19,303,404.94 | AE39: 2,516,417.00 | AF39: 219,792.75 | AG39: 36,651.89 | AH39: 54,051.69
B40: 3.8 | C40: Reinsurance Premiums | D40: =SUM(E40:I40) -> 0 | J40: =SUM(K40:O40) -> 0 | P40: =SUM(Q40:U40) -> 0 | V40: =SUM(W40:AA40) -> 0 | AC40: =SUM(AD40:AH40)+AB40 -> 0 | AD40: =W40+Q40+K40+E40 -> 0 | AE40: =X40+R40+L40+F40 -> 0 | AF40: =Y40+S40+M40+G40 -> 0 | AG40: 0 | AH40: 0
B41: 3.9 | C41: Reinsurance Recoveries | D41: =SUM(E41:I41) -> 0 | J41: =SUM(K41:O41) -> 0 | P41: =SUM(Q41:U41) -> 0 | V41: =SUM(W41:AA41) -> 0 | AC41: =SUM(AD41:AH41)+AB41 -> 0 | AD41: =W41+Q41+K41+E41 -> 0 | AE41: 0 | AF41: 0 | AG41: 0 | AH41: 0
B42: 3.10 | C42: Net cost of Reinsurance | D42: =SUM(D40:D41) -> 0 | E42: =SUM(E40:E41) -> 0 | F42: =SUM(F40:F41) -> 0 | G42: 0 | H42: 0 | I42: 0 | J42: =SUM(J40:J41) -> 0 | K42: =SUM(K40:K41) -> 0 | L42: 0 | M42: 0 | N42: 0 | O42: 0 | P42: =SUM(P40:P41) -> 0 | Q42: =SUM(Q40:Q41) -> 0 | R42: 0 | S42: 0 | T42: 0 | U42: 0 | V42: =SUM(V40:V41) -> 0 | W42: =SUM(W40:W41) -> 0 | X42: 0 | Y42: 0 | Z42: 0 | AA42: 0 | AB42: 0 | AC42: =SUM(AC40:AC41) -> 0 | AD42: =SUM(AD40:AD41) -> 0 | AE42: =SUM(AE40:AE41) -> 0 | AF42: 0 | AG42: =SUM(AG40:AG41) -> 0 | AH42: =SUM(AH40:AH41) -> 0
B43: 3.11 | C43: Grand Total Medical Benefit Expense Net of Reinsurance | D43: =D39+D42 -> 5,716,483.04 | E43: =E39+E42 -> 4,990,385.74 | F43: =F39+F42 -> 652,159.96 | G43: 54,145.16 | H43: 7,348.80 | I43: =I39+I42 -> 12,443.38 | J43: =J39+J42 -> 5,445,634.46 | K43: =K39+K42 -> 4,787,356.75 | L43: =L39+L42 -> 571,194.12 | M43: 63,541.60 | N43: 10,682.89 | O43: =O39+O42 -> 12,859.11 | P43: =P39+P42 -> 5,345,935.74 | Q43: =Q39+Q42 -> 4,672,032.28 | R43: =R39+R42 -> 597,240.63 | S43: 56,684.08 | T43: 7,609.52 | U43: =U39+U42 -> 12,369.22 | V43: =V39+V42 -> 5,622,265.03 | W43: =W39+W42 -> 4,853,630.17 | X43: =X39+X42 -> 695,822.29 | Y43: 45,421.91 | Z43: 11,010.69 | AA43: =AA39+AA42 -> 16,379.98 | AB43: =AB39+AB42 -> (38,775.26) | AC43: =AC39+AC42 -> 22,091,543.01 | AD43: =AD39+AD42 -> 19,303,404.94 | AE43: =AE39+AE42 -> 2,516,417.00 | AF43: 219,792.75 | AG43: 36,651.89 | AH43: =AH39+AH42 -> 54,051.69
A44: Administrative Expenses, Government-Mandated Assessments, Taxes, and Fees | D44: JANUARY - MARCH (Q1) | J44: APRIL - JUNE (Q2) | P44: JULY - SEPTEMBER (Q3) | V44: OCTOBER - DECEMBER (Q4) | AC44: TOTAL (TO DATE)
D45: Total | E45: Health Plan | F45: Corporate | J45: Total | K45: Health Plan | L45: Corporate | P45: Total | Q45: Health Plan | R45: Corporate | V45: Total | W45: Health Plan | X45: Corporate | AB45: Prior Calendar Year Adjustments | AC45: Total | AD45: Health Plan | AE45: Corporate
A46: Administrative Expenses | B46: 4.1 | C46: Salaries & Benefits | D46: =SUM(E46:F46) -> 282,686.70 | F46: 282,686.70 | J46: =SUM(K46:L46) -> 264,868.19 | L46: 264,868.19 | P46: =SUM(Q46:R46) -> 245,442.35 | R46: 245,442.35 | V46: =SUM(W46:X46) -> 330,069.61 | X46: 330,069.61 | AC46: =SUM(AD46:AE46)+AB46 -> 1,123,066.85 | AD46: =W46+Q46+K46+E46 -> 0 | AE46: =X46+R46+L46+F46 -> 1,123,066.85
B47: 4.2 | C47: Administrative Services | D47: =SUM(E47:F47) -> 42,844.69 | F47: 42,844.69 | J47: =SUM(K47:L47) -> 40,144.08 | L47: 40,144.08 | P47: =SUM(Q47:R47) -> 37,199.85 | R47: 37,199.85 | V47: =SUM(W47:X47) -> 50,026.16 | X47: 50,026.16 | AC47: =SUM(AD47:AE47)+AB47 -> 170,214.78 | AD47: =W47+Q47+K47+E47 -> 0 | AE47: 170,214.78
B48: 4.3 | C48: Information Systems | D48: 34,678.10 | F48: 34,678.10 | J48: 32,492.24 | L48: 32,492.24 | P48: 30,109.21 | R48: 30,109.21 | V48: 40,490.71 | X48: 40,490.71 | AC48: =SUM(AD48:AE48)+AB48 -> 137,770.26 | AD48: 0 | AE48: 137,770.26
B49: 4.4 | C49: Marketing Expenses | D49: 7,921.50 | F49: 7,921.50 | J49: 7,422.18 | L49: 7,422.18 | P49: 6,877.83 | R49: 6,877.83 | V49: 9,249.27 | X49: 9,249.27 | AC49: =SUM(AD49:AE49)+AB49 -> 31,470.78 | AD49: 0 | AE49: 31,470.78
B50: 4.5 | C50: General Administration | D50: 200,466.03 | F50: 200,466.03 | J50: 187,830.11 | L50: 187,830.11 | P50: 174,054.37 | R50: 174,054.37 | V50: 234,067.42 | X50: 234,067.42 | AC50: 796,417.93 | AD50: 0 | AE50: 796,417.93
B51: 4.6 | C51: Compliance/Regulatory | D51: 257,854.57 | F51: =4378.38+253476.19 -> 257,854.57 | J51: 241,601.29 | L51: =4102.4+237498.89 -> 241,601.29 | P51: 223,881.88 | R51: =3801.52458060023+220080.36 -> 223,881.88 | V51: 301,075.21 | X51: =5112.27+295962.94 -> 301,075.21 | AC51: 1,024,412.95 | AD51: 0 | AE51: =X51+R51+L51+F51 -> 1,024,412.95
B52: 4.7 | C52: Total Administrative Expenses | D52: =SUM(D46:D51) -> 826,451.59 | E52: =SUM(E46:E51) -> 0 | F52: =SUM(F46:F51) -> 826,451.59 | J52: =SUM(J46:J51) -> 774,358.09 | K52: =SUM(K46:K51) -> 0 | L52: =SUM(L46:L51) -> 774,358.09 | P52: =SUM(P46:P51) -> 717,565.49 | Q52: =SUM(Q46:Q51) -> 0 | R52: =SUM(R46:R51) -> 717,565.49 | V52: =SUM(V46:V51) -> 964,978.38 | W52: =SUM(W46:W51) -> 0 | X52: =SUM(X46:X51) -> 964,978.38 | AB52: =SUM(AB46:AB51) -> 0 | AC52: =SUM(AC46:AC51) -> 3,283,353.55 | AD52: =SUM(AD46:AD51) -> 0 | AE52: =SUM(AE46:AE51) -> 3,283,353.55
A53: Government-Mandated Assessments, Taxes, and Fees Other Than Income Taxes | B53: 5.1 | C53: State Premium tax | AC53: =D53+J53+P53+V53+AB53 -> 0
B54: 5.2 | C54: Department of Insurance Assessments | AC54: =D54+J54+P54+V54+AB54 -> 0
B55: 5.3 | C55: Section 9010 Health Insurance Providers Fee | AC55: =D55+J55+P55+V55+AB55 -> 0
B56: 5.4 | C56: Other 1 | AC56: 0
B57: 5.5 | C57: Other 2 | AC57: 0
B58: 5.6 | C58: Other 3 | AC58: =D58+J58+P58+V58+AB58 -> 0
B59: 5.7 | C59: Total | D59: =SUM(D53:D58) -> 0 | J59: =SUM(J53:J58) -> 0 | P59: =SUM(P53:P58) -> 0 | V59: =SUM(V53:V58) -> 0 | AB59: =SUM(AB53:AB58) -> 0 | AC59: =SUM(AC53:AC58) -> 0
B60: 6.0 | C60: Grand Total Expenses | D60: =D43+D52+D59 -> 6,542,934.63 | J60: =J43+J52+J59 -> 6,219,992.55 | P60: =P43+P52+P59 -> 6,063,501.23 | V60: =V43+V52+V59 -> 6,587,243.41 | AB60: =AB43+AB52+AB59 -> (38,775.26) | AC60: =AC43+AC52+AC59 -> 25,374,896.56
B61: 7.0 | C61: Underwriting Gain / (Loss) --- AKA Pre-tax Earnings from Operations | D61: =D14-D60 -> 788,454.36 | J61: =J14-J60 -> 1,233,490.57 | P61: =P14-P60 -> 1,502,423.97 | V61: =V14-V60 -> 576,683.66 | AB61: =AB14-AB60 -> 68,769.27 | AC61: =AC14-AC60 -> 4,169,821.83
B62: 8.0 | C62: Income Tax Expense | D62: =+D61*21% -> 165,575.42 | J62: =+J61*21% -> 259,033.02 | P62: =+P61*21% -> 315,509.03 | V62: =+V61*21% -> 121,103.57 | AB62: =+AB61*21% -> 14,441.55 | AC62: =AB62+V62+P62+J62+D62 -> 875,662.58
B63: 9.0 | C63: Net Underwriting Gain (Loss) | D63: =D61-D62 -> 622,878.95 | J63: =J61-J62 -> 974,457.55 | P63: =P61-P62 -> 1,186,914.93 | V63: =V61-V62 -> 455,580.09 | AB63: =AB61-AB62 -> 54,327.72 | AC63: =AC61-AC62 -> 3,294,159.24

Sheet Dental Rev-Exp Region 7
A1: DENTAL -- REVENUE AND EXPENSE SCHEDULE - REGION 7
A3: Health Plan: | C3: ='Dental Rev-Exp Summary'!C3 -> 0
A4: Reporting Period: | C4: =IF('Dental Rev-Exp Summary'!C4=0,"",'Dental Rev-Exp Summary'!C4) -> 
A5: Paid Through: | C5: =IF('Dental Rev-Exp Summary'!C5=0,"",'Dental Rev-Exp Summary'!C5) -> 
A6: Region 7
D7: JANUARY - MARCH (Q1) | J7: APRIL - JUNE (Q2) | P7: JULY - SEPTEMBER (Q3) | V7: OCTOBER - DECEMBER (Q4) | AC7: TOTAL (TO DATE)
D8: Total | E8: Medicaid Only/Dual Eligible 0-20 Years | F8: Medicaid Only 21+ Years | G8: Dual Eligible 21+ Years | H8: Medically Needy 0-20 Years | I8: Medically Needy 21+ Years | J8: Total | K8: Medicaid Only/Dual Eligible 0-20 Years | L8: Medicaid Only 21+ Years | M8: Dual Eligible 21+ Years | N8: Medically Needy 0-20 Years | O8: Medically Needy 21+ Years | P8: Total | Q8: Medicaid Only/Dual Eligible 0-20 Years | R8: Medicaid Only 21+ Years | S8: Dual Eligible 21+ Years | T8: Medically Needy 0-20 Years | U8: Medically Needy 21+ Years | V8: Total | W8: Medicaid Only/Dual Eligible 0-20 Years | X8: Medicaid Only 21+ Years | Y8: Dual Eligible 21+ Years | Z8: Medically Needy 0-20 Years | AA8: Medically Needy 21+ Years | AB8: Prior Year Adjustments | AC8: Total | AD8: Medicaid Only/Dual Eligible 0-20 Years | AE8: Medicaid Only 21+ Years | AF8: Dual Eligible 21+ Years | AG8: Medically Needy 0-20 Years | AH8: Medically Needy 21+ Years
A9: MEMBER MONTHS | D9: =SUM(E9:I9) -> 653,811.38 | E9: 415,018.97 | F9: 193,802.15 | G9: 30,481.54 | H9: 2,477.34 | I9: 12,031.38 | J9: =SUM(K9:O9) -> 660,442.30 | K9: 416,972.92 | L9: 200,493.58 | M9: 28,537.91 | N9: 2,468.35 | O9: 11,969.54 | P9: =SUM(Q9:U9) -> 683,466.37 | Q9: 426,599.78 | R9: 213,016.34 | S9: 29,027.25 | T9: 2,472.47 | U9: 12,350.53 | V9: =SUM(W9:AA9) -> 696,033.69 | W9: 430,475.31 | X9: 221,692.37 | Y9: 29,261.00 | Z9: 2,508.71 | AA9: 12,096.30 | AB9: 11,359.53 | AC9: =SUM(AD9:AH9)+AB9 -> 2,705,113.27 | AD9: =W9+Q9+K9+E9 -> 1,689,066.98 | AE9: =X9+R9+L9+F9 -> 829,004.44 | AF9: 117,307.70 | AG9: =Z9+T9+N9+H9 -> 9,926.87 | AH9: =AA9+U9+O9+I9 -> 48,447.75
A10: REVENUES
A11: Revenues | B11: 1.1 | C11: Capitation | D11: =SUM(E11:I11) -> 4,916,042.79 | E11: 4,052,467.89 | F11: 738,477.60 | G11: 75,165.97 | H11: 13,869.68 | I11: 36,061.65 | J11: =SUM(K11:O11) -> 4,999,070.18 | K11: 4,102,699.80 | L11: 770,377.42 | M11: 75,251.76 | N11: 13,937.38 | O11: 36,803.82 | P11: =SUM(Q11:U11) -> 5,090,545.22 | Q11: 4,151,515.34 | R11: 811,911.60 | S11: 75,218.54 | T11: 14,343.06 | U11: 37,556.68 | V11: =SUM(W11:AA11) -> 4,769,238.81 | W11: 3,850,971.51 | X11: 795,741.79 | Y11: 75,749.05 | Z11: 12,849.37 | AA11: 33,927.09 | AB11: =9927.55+18326.81 -> 28,254.36 | AC11: =SUM(AD11:AH11)+AB11 -> 19,803,151.36 | AD11: =W11+Q11+K11+E11 -> 16,157,654.54 | AE11: =X11+R11+L11+F11 -> 3,116,508.41 | AF11: 301,385.32 | AG11: 54,999.49 | AH11: =AA11+U11+O11+I11 -> 144,349.24
B12: 1.2 | C12: ACA § 9010 related payments | D12: =SUM(E12:I12) -> 0 | J12: =SUM(K12:O12) -> 0 | P12: =SUM(Q12:U12) -> 0 | V12: =SUM(W12:AA12) -> 0 | AC12: =SUM(AD12:AH12)+AB12 -> 0 | AD12: =W12+Q12+K12+E12 -> 0 | AE12: 0 | AF12: =Y12+S12+M12+G12 -> 0 | AG12: 0 | AH12: =AA12+U12+O12+I12 -> 0
B13: 1.3 | C13: Other Revenue | D13: 0 | J13: 0 | P13: 0 | V13: 0 | AC13: =SUM(AD13:AH13)+AB13 -> 0 | AD13: =W13+Q13+K13+E13 -> 0 | AE13: =X13+R13+L13+F13 -> 0 | AF13: =Y13+S13+M13+G13 -> 0 | AG13: =Z13+T13+N13+H13 -> 0 | AH13: =AA13+U13+O13+I13 -> 0
B14: 1.4 | C14: Total Revenue | D14: =SUM(D11:D13) -> 4,916,042.79 | E14: =SUM(E11:E13) -> 4,052,467.89 | F14: 738,477.60 | G14: =SUM(G11:G13) -> 75,165.97 | H14: 13,869.68 | I14: 36,061.65 | J14: =SUM(J11:J13) -> 4,999,070.18 | K14: =SUM(K11:K13) -> 4,102,699.80 | L14: 770,377.42 | M14: 75,251.76 | N14: 13,937.38 | O14: 36,803.82 | P14: =SUM(P11:P13) -> 5,090,545.22 | Q14: =SUM(Q11:Q13) -> 4,151,515.34 | R14: 811,911.60 | S14: 75,218.54 | T14: 14,343.06 | U14: 37,556.68 | V14: =SUM(V11:V13) -> 4,769,238.81 | W14: =SUM(W11:W13) -> 3,850,971.51 | X14: 795,741.79 | Y14: 75,749.05 | Z14: 12,849.37 | AA14: 33,927.09 | AB14: =SUM(AB11:AB13) -> 28,254.36 | AC14: =SUM(AC11:AC13) -> 19,803,151.36 | AD14: =SUM(AD11:AD13) -> 16,157,654.54 | AE14: =SUM(AE11:AE13) -> 3,116,508.41 | AF14: =SUM(AF11:AF13) -> 301,385.32 | AG14: =SUM(AG11:AG13) -> 54,999.49 | AH14: 144,349.24
A15: BENEFIT EXPENSES | D15: JANUARY - MARCH (Q1) | J15: APRIL - JUNE (Q2) | P15: JULY - SEPTEMBER (Q3) | V15: OCTOBER - DECEMBER (Q4) | AC15: TOTAL (TO DATE)
D16: Total | E16: Medicaid Only/Dual Eligible 0-20 Years | F16: Medicaid Only 21+ Years | G16: Dual Eligible 21+ Years | H16: Medically Needy 0-20 Years | I16: Medically Needy 21+ Years | J16: Total | K16: Medicaid Only/Dual Eligible 0-20 Years | L16: Medicaid Only 21+ Years | M16: Dual Eligible 21+ Years | N16: Medically Needy 0-20 Years | O16: Medically Needy 21+ Years | P16: Total | Q16: Medicaid Only/Dual Eligible 0-20 Years | R16: Medicaid Only 21+ Years | S16: Dual Eligible 21+ Years | T16: Medically Needy 0-20 Years | U16: Medically Needy 21+ Years | V16: Total | W16: Medicaid Only/Dual Eligible 0-20 Years | X16: Medicaid Only 21+ Years | Y16: Dual Eligible 21+ Years | Z16: Medically Needy 0-20 Years | AA16: Medically Needy 21+ Years | AB16: Prior Year Adjustments | AC16: Total | AD16: Medicaid Only/Dual Eligible 0-20 Years | AE16: Medicaid Only 21+ Years | AF16: Dual Eligible 21+ Years | AG16: Medically Needy 0-20 Years | AH16: Medically Needy 21+ Years
A17: Dental | B17: 2.1 | C17: Dental Services Diagnostic FFS | D17: =SUM(E17:I17) -> 729,738.37 | E17: 654,018.78 | F17: 65,715.54 | G17: 7,730.18 | H17: 940.10 | I17: 1,333.77 | J17: =SUM(K17:O17) -> 724,560.35 | K17: 639,728.76 | L17: 73,954.33 | M17: 7,805.27 | N17: 1,472.15 | O17: 1,599.84 | P17: =SUM(Q17:U17) -> 738,634.52 | Q17: 662,382.57 | R17: 66,981.24 | S17: 6,693.26 | T17: 1,471.63 | U17: 1,105.82 | V17: =SUM(W17:AA17) -> 726,003.42 | W17: 653,789.14 | X17: 63,615.95 | Y17: 6,182.16 | Z17: 1,493.41 | AA17: 922.76 | AB17: 6,418.99 | AC17: =SUM(AD17:AH17)+AB17 -> 2,925,355.65 | AD17: =W17+Q17+K17+E17 -> 2,609,919.25 | AE17: =X17+R17+L17+F17 -> 270,267.06 | AF17: 28,410.87 | AG17: 5,377.29 | AH17: 4,962.19
B18: 2.2 | C18: Dental Services Preventive FFS | D18: =SUM(E18:I18) -> 727,475.36 | E18: 726,107.98 | F18: 0 | G18: 188.72 | H18: 1,178.66 | I18: 0 | J18: =SUM(K18:O18) -> 740,121.49 | K18: 738,779.52 | L18: 0 | M18: 130.59 | N18: 1,211.38 | O18: 0 | P18: =SUM(Q18:U18) -> 789,275.69 | Q18: 787,006.61 | R18: 0 | S18: 325.30 | T18: 1,943.78 | U18: 0 | V18: =SUM(W18:AA18) -> 762,469.90 | W18: 760,329.95 | X18: 0 | Y18: 343.23 | Z18: 1,796.72 | AA18: 0 | AB18: 5,651.23 | AC18: =SUM(AD18:AH18)+AB18 -> 3,024,993.67 | AD18: =W18+Q18+K18+E18 -> 3,012,224.06 | AE18: 0 | AF18: =Y18+S18+M18+G18 -> 987.84 | AG18: 6,130.54 | AH18: =AA18+U18+O18+I18 -> 0
B19: 2.3 | C19: Dental Services Restorative FFS | D19: 703,780.72 | E19: 702,198.46 | F19: 0 | G19: 0 | H19: 1,582.26 | I19: 0 | J19: 722,311.58 | K19: 718,937.54 | L19: 0 | M19: 906.37 | N19: 2,467.67 | O19: 0 | P19: 721,375.39 | Q19: 718,669.78 | R19: 0 | S19: 0 | T19: 2,705.61 | U19: 0 | V19: 721,747.34 | W19: 720,439.72 | X19: 0 | Y19: 0 | Z19: 1,307.62 | AA19: 0 | AB19: 3,894.27 | AC19: =SUM(AD19:AH19)+AB19 -> 2,873,109.30 | AD19: =W19+Q19+K19+E19 -> 2,860,245.50 | AE19: 0 | AF19: 906.37 | AG19: 8,063.16 | AH19: 0
B20: 2.4 | C20: Dental Services Endodontics FFS | D20: 215,930.26 | E20: 215,855.94 | F20: 0 | G20: 0 | H20: 74.32 | I20: 0 | J20: 233,220.72 | K20: 230,731.13 | L20: 0 | M20: 0 | N20: 2,489.59 | O20: 0 | P20: 220,514.12 | Q20: 219,837.82 | R20: 0 | S20: 0 | T20: 676.30 | U20: 0 | V20: 274,193.63 | W20: 273,279.45 | X20: 0 | Y20: 0 | Z20: 914.18 | AA20: 0 | AB20: 111.75 | AC20: 943,970.48 | AD20: 939,704.34 | AE20: 0 | AF20: 0 | AG20: 4,154.39 | AH20: 0
B21: 2.5 | C21: Dental Services Periodontics FFS | D21: 3,688.53 | E21: 3,688.53 | F21: 0 | G21: 0 | H21: 0 | I21: 0 | J21: 4,918.74 | K21: 4,891.99 | L21: 0 | M21: 0 | N21: 26.75 | O21: 0 | P21: 4,048.12 | Q21: 4,048.12 | R21: 0 | S21: 0 | T21: 0 | U21: 0 | V21: 4,387.60 | W21: 4,357.74 | X21: 0 | Y21: 0 | Z21: 29.86 | AA21: 0 | AB21: 0 | AC21: 17,042.99 | AD21: 16,986.38 | AE21: 0 | AF21: 0 | AG21: 56.61 | AH21: 0
B22: 2.6 | C22: Dental Services Prosthodontics FFS | D22: 28,852.26 | E22: 245.24 | F22: 20,193.69 | G22: 8,098.33 | H22: 0 | I22: 315.00 | J22: 30,530.46 | K22: 0 | L22: 24,829.18 | M22: 5,081.28 | N22: 0 | O22: 620.00 | P22: 26,451.79 | Q22: 0 | R22: 22,769.80 | S22: 3,681.99 | T22: 0 | U22: 0 | V22: 32,950.40 | W22: 0 | X22: 23,784.80 | Y22: 8,688.50 | Z22: 0 | AA22: 477.10 | AB22: 1,095.00 | AC22: 119,879.91 | AD22: 245.24 | AE22: 91,577.47 | AF22: 25,550.10 | AG22: 0 | AH22: 1,412.10
B23: 2.7 | C23: Dental Services Prosthodontics, fixed FFS | D23: 0 | E23: 0 | F23: 0 | G23: 0 | H23: 0 | I23: 0 | J23: 0 | K23: 0 | L23: 0 | M23: 0 | N23: 0 | O23: 0 | P23: 0 | Q23: 0 | R23: 0 | S23: 0 | T23: 0 | U23: 0 | V23: 0 | W23: 0 | X23: 0 | Y23: 0 | Z23: 0 | AA23: 0 | AB23: 0 | AC23: 0 | AD23: 0 | AE23: 0 | AF23: 0 | AG23: 0 | AH23: 0
B24: 2.8 | C24: Dental Services Oral and Maxillofacial Surgery FFS | D24: 333,188.52 | E24: 193,436.05 | F24: 127,928.41 | G24: 9,491.80 | H24: 829.06 | I24: 1,503.20 | J24: 356,230.25 | K24: 207,618.01 | L24: 137,562.71 | M24: 8,884.60 | N24: 990.53 | O24: 1,174.40 | P24: 353,090.48 | Q24: 206,312.49 | R24: 127,246.18 | S24: 15,697.40 | T24: 409.91 | U24: 3,424.50 | V24: 303,443.91 | W24: 183,276.11 | X24: 113,676.62 | Y24: 4,738.90 | Z24: 1,015.56 | AA24: 736.72 | AB24: 1,261.31 | AC24: 1,347,214.47 | AD24: 790,642.66 | AE24: 506,413.92 | AF24: 38,812.70 | AG24: 3,245.06 | AH24: 6,838.82
B25: 2.9 | C25: Dental Services Orthodontics FFS | D25: 114,561.63 | E25: 114,407.05 | F25: 0 | G25: 0 | H25: 154.58 | I25: 0 | J25: 113,687.23 | K25: 113,352.65 | L25: 0 | M25: 0 | N25: 334.58 | O25: 0 | P25: 102,840.51 | Q25: 102,673.22 | R25: 0 | S25: 0 | T25: 167.29 | U25: 0 | V25: 89,051.38 | W25: 88,716.12 | X25: 0 | Y25: 0 | Z25: 335.26 | AA25: 0 | AB25: 449.21 | AC25: 420,589.96 | AD25: 419,149.04 | AE25: 0 | AF25: 0 | AG25: 991.71 | AH25: 0
B26: 2.10 | C26: Dental Services Adjunctive General Services FFS | D26: 198,378.47 | E26: 155,251.98 | F26: 36,471.60 | G26: 5,748.88 | H26: 513.56 | I26: 392.45 | J26: 199,583.41 | K26: 155,325.51 | L26: 40,738.76 | M26: 2,897.76 | N26: 105.88 | O26: 515.50 | P26: 200,931.57 | Q26: 156,943.63 | R26: 40,084.20 | S26: 2,865.00 | T26: 405.74 | U26: 633.00 | V26: 187,576.00 | W26: 145,560.23 | X26: 35,623.03 | Y26: 5,766.00 | Z26: 626.74 | AA26: 0 | AB26: 934.76 | AC26: =SUM(AD26:AH26)+AB26 -> 787,404.21 | AD26: =W26+Q26+K26+E26 -> 613,081.35 | AE26: 152,917.59 | AF26: 17,277.64 | AG26: 1,651.92 | AH26: 1,540.95
B27: 2.11 | C27: Dental Services Other FFS | D27: 0 | E27: 0 | F27: 0 | G27: 0 | H27: 0 | I27: 0 | J27: 0 | K27: 0 | L27: 0 | M27: 0 | N27: 0 | O27: 0 | P27: 0 | Q27: 0 | R27: 0 | S27: 0 | T27: 0 | U27: 0 | V27: 0 | W27: 0 | X27: 0 | Y27: 0 | Z27: 0 | AA27: 0 | AB27: 0 | AC27: 0 | AD27: 0 | AE27: 0 | AF27: 0 | AG27: 0 | AH27: 0
B28: 2.12 | C28: Dental Expanded Benefits FFS | D28: 118,914.45 | E28: 0 | F28: 93,946.92 | G28: 22,927.10 | H28: 0 | I28: 2,040.43 | J28: 147,927.09 | K28: 0 | L28: 119,816.17 | M28: 25,982.84 | N28: 0 | O28: 2,128.08 | P28: 145,863.71 | Q28: 0 | R28: 116,968.45 | S28: 27,468.45 | T28: 0 | U28: 1,426.81 | V28: 127,966.24 | W28: 0 | X28: 106,078.84 | Y28: 21,292.88 | Z28: 0 | AA28: 594.52 | AB28: 596.05 | AC28: =SUM(AD28:AH28)+AB28 -> 541,267.54 | AD28: 0 | AE28: 436,810.38 | AF28: 97,671.27 | AG28: 0 | AH28: =AA28+U28+O28+I28 -> 6,189.84
B29: 2.13 | C29: Dental Services Paid through Subcapitation | D29: =SUM(E29:I29) -> 0 | E29: 0 | F29: 0 | G29: 0 | H29: 0 | I29: 0 | J29: =SUM(K29:O29) -> 0 | K29: 0 | L29: 0 | M29: 0 | N29: 0 | O29: 0 | P29: =SUM(Q29:U29) -> 0 | Q29: 0 | R29: 0 | S29: 0 | T29: 0 | U29: 0 | V29: =SUM(W29:AA29) -> 0 | W29: 0 | X29: 0 | Y29: 0 | Z29: 0 | AA29: 0 | AB29: 0 | AC29: =SUM(AD29:AH29)+AB29 -> 0 | AD29: 0 | AE29: 0 | AF29: 0 | AG29: 0 | AH29: 0
B30: 2.14 | C30: Ending IBNP for Dental Services | D30: 29.15 | E30: 25.39 | F30: 3.16 | G30: 0.50 | H30: 0.05 | I30: 0.05 | J30: =SUM(K30:O30) -> 1,399.29 | K30: 1,201.04 | L30: 169.68 | M30: 22.10 | N30: 3.89 | O30: 2.58 | P30: =SUM(Q30:U30) -> 6,092.60 | Q30: 5,271.49 | R30: 689.95 | S30: 104.64 | T30: 14.35 | U30: 12.16 | V30: =SUM(W30:AA30) -> 25,823.61 | W30: 22,625.10 | X30: 2,740.67 | Y30: 375.88 | Z30: 60.12 | AA30: 21.84 | AB30: (36,320.23) | AC30: (2,975.58) | AD30: 29,123.03 | AE30: 3,603.47 | AF30: 503.12 | AG30: 78.41 | AH30: =AA30+U30+O30+I30 -> 36.62
B31: 2.15 | C31: Dental Settlements/AP | D31: 0 | J31: 0 | P31: 0 | V31: 0 | AB31: 0 | AC31: =SUM(AD31:AH31)+AB31 -> 0 | AD31: 0 | AE31: 0 | AF31: 0 | AG31: 0 | AH31: 0
B32: 2.16 | C32: Total Dental Services | D32: =SUM(D17:D31) -> 3,174,537.72 | E32: =SUM(E17:E31) -> 2,765,235.40 | F32: 344,259.32 | G32: 54,185.51 | H32: 5,272.59 | I32: 5,584.90 | J32: =SUM(J17:J31) -> 3,274,490.61 | K32: =SUM(K17:K31) -> 2,810,566.15 | L32: 397,070.83 | M32: 51,710.81 | N32: 9,102.42 | O32: 6,040.40 | P32: =SUM(P17:P31) -> 3,309,118.50 | Q32: =SUM(Q17:Q31) -> 2,863,145.73 | R32: 374,739.82 | S32: 56,836.04 | T32: 7,794.61 | U32: 6,602.29 | V32: =SUM(V17:V31) -> 3,255,613.43 | W32: =SUM(W17:W31) -> 2,852,373.56 | X32: 345,519.91 | Y32: 47,387.55 | Z32: 7,579.47 | AA32: 2,752.94 | AB32: =SUM(AB17:AB31) -> (15,907.66) | AC32: =SUM(AC17:AC31) -> 12,997,852.60 | AD32: 11,291,320.85 | AE32: 1,461,589.89 | AF32: 210,119.91 | AG32: 29,749.09 | AH32: =SUM(AH17:AH31) -> 20,980.52
A33: Total Before and After Reinsurance | B33: 3.1 | C33: Total Dental Services Paid Directly FFS | D33: =SUM(D17:D28) -> 3,174,508.57 | E33: =SUM(E17:E28) -> 2,765,210.01 | F33: =SUM(F17:F28) -> 344,256.16 | G33: 54,185.01 | H33: 5,272.54 | I33: =SUM(I17:I28) -> 5,584.85 | J33: =SUM(J17:J28) -> 3,273,091.32 | K33: =SUM(K17:K28) -> 2,809,365.11 | L33: 396,901.15 | M33: 51,688.71 | N33: 9,098.53 | O33: =SUM(O17:O28) -> 6,037.82 | P33: =SUM(P17:P28) -> 3,303,025.90 | Q33: =SUM(Q17:Q28) -> 2,857,874.24 | R33: 374,049.87 | S33: 56,731.40 | T33: 7,780.26 | U33: =SUM(U17:U28) -> 6,590.13 | V33: =SUM(V17:V28) -> 3,229,789.82 | W33: =SUM(W17:W28) -> 2,829,748.46 | X33: 342,779.24 | Y33: 47,011.67 | Z33: 7,519.35 | AA33: =SUM(AA17:AA28) -> 2,731.10 | AB33: =SUM(AB17:AB28) -> 20,412.57 | AC33: =SUM(AD33:AH33)+AB33 -> 13,000,828.18 | AD33: =W33+Q33+K33+E33 -> 11,262,197.82 | AE33: 1,457,986.42 | AF33: 209,616.79 | AG33: 29,670.68 | AH33: 20,943.90
B34: 3.2 | C34: Total Dental Services Paid through Subcapitation | D34: =D29 -> 0 | E34: 0 | F34: =F29 -> 0 | G34: 0 | H34: 0 | I34: 0 | J34: =J29 -> 0 | K34: 0 | L34: =L29 -> 0 | M34: 0 | N34: 0 | O34: 0 | P34: =P29 -> 0 | Q34: 0 | R34: =R29 -> 0 | S34: 0 | T34: 0 | U34: 0 | V34: =V29 -> 0 | W34: 0 | X34: =X29 -> 0 | Y34: 0 | Z34: 0 | AA34: 0 | AB34: 0 | AC34: 0 | AD34: =W34+Q34+K34+E34 -> 0 | AE34: 0 | AF34: 0 | AG34: 0 | AH34: 0
B35: 3.3 | C35: Total Dental Services Paid Directly -- IBNP | D35: 29.15 | E35: 25.39 | F35: =F30 -> 3.16 | G35: 0.50 | H35: 0.05 | I35: 0.05 | J35: 1,399.29 | K35: 1,201.04 | L35: =L30 -> 169.68 | M35: 22.10 | N35: 3.89 | O35: 2.58 | P35: 6,092.60 | Q35: 5,271.49 | R35: =R30 -> 689.95 | S35: 104.64 | T35: 14.35 | U35: 12.16 | V35: 25,823.61 | W35: 22,625.10 | X35: =X30 -> 2,740.67 | Y35: 375.88 | Z35: 60.12 | AA35: 21.84 | AB35: (36,320.23) | AC35: (2,975.58) | AD35: 29,123.03 | AE35: 3,603.47 | AF35: 503.12 | AG35: =Z35+T35+N35+H35 -> 78.41 | AH35: 36.62
B36: 3.4 | C36: Total Dental Services Paid by Settlements/AP | D36: 0 | E36: 0 | F36: 0 | G36: 0 | H36: 0 | I36: 0 | J36: 0 | K36: 0 | L36: 0 | M36: 0 | N36: 0 | O36: 0 | P36: 0 | Q36: 0 | R36: 0 | S36: 0 | T36: 0 | U36: 0 | V36: 0 | W36: 0 | X36: 0 | Y36: 0 | Z36: 0 | AA36: 0 | AB36: 0 | AC36: 0 | AD36: =W36+Q36+K36+E36 -> 0 | AE36: 0 | AF36: 0 | AG36: 0 | AH36: =AA36+U36+O36+I36 -> 0
B37: 3.5 | C37: TPL & Fraud/Abuse Recoveries | D37: =SUM(E37:I37) -> 0 | J37: =SUM(K37:O37) -> 0 | P37: =SUM(Q37:U37) -> 0 | V37: =SUM(W37:AA37) -> 0 | AC37: 0 | AD37: =W37+Q37+K37+E37 -> 0 | AE37: 0 | AF37: 0 | AG37: 0 | AH37: =AA37+U37+O37+I37 -> 0
B38: 3.6 | C38: Premium Deficiency Reserve | D38: =SUM(E38:I38) -> 0 | J38: =SUM(K38:O38) -> 0 | P38: =SUM(Q38:U38) -> 0 | V38: =SUM(W38:AA38) -> 0 | AC38: 0 | AD38: =W38+Q38+K38+E38 -> 0 | AE38: 0 | AF38: =Y38+S38+M38+G38 -> 0 | AG38: 0 | AH38: =AA38+U38+O38+I38 -> 0
B39: 3.7 | C39: Subtotal Benefit Expense before Reinsurance | D39: =SUM(D33:D38) -> 3,174,537.72 | E39: =SUM(E33:E38) -> 2,765,235.40 | F39: =SUM(F33:F38) -> 344,259.32 | G39: 54,185.51 | H39: 5,272.59 | I39: =SUM(I33:I38) -> 5,584.90 | J39: =SUM(J33:J38) -> 3,274,490.61 | K39: =SUM(K33:K38) -> 2,810,566.15 | L39: =SUM(L33:L38) -> 397,070.83 | M39: 51,710.81 | N39: 9,102.42 | O39: =SUM(O33:O38) -> 6,040.40 | P39: =SUM(P33:P38) -> 3,309,118.50 | Q39: =SUM(Q33:Q38) -> 2,863,145.73 | R39: =SUM(R33:R38) -> 374,739.82 | S39: 56,836.04 | T39: 7,794.61 | U39: =SUM(U33:U38) -> 6,602.29 | V39: =SUM(V33:V38) -> 3,255,613.43 | W39: =SUM(W33:W38) -> 2,852,373.56 | X39: =SUM(X33:X38) -> 345,519.91 | Y39: 47,387.55 | Z39: 7,579.47 | AA39: =SUM(AA33:AA38) -> 2,752.94 | AB39: (15,907.66) | AC39: 12,997,852.60 | AD39: 11,291,320.85 | AE39: 1,461,589.89 | AF39: 210,119.91 | AG39: 29,749.09 | AH39: 20,980.52
B40: 3.8 | C40: Reinsurance Premiums | D40: =SUM(E40:I40) -> 0 | J40: =SUM(K40:O40) -> 0 | P40: =SUM(Q40:U40) -> 0 | V40: =SUM(W40:AA40) -> 0 | AC40: =SUM(AD40:AH40)+AB40 -> 0 | AD40: =W40+Q40+K40+E40 -> 0 | AE40: =X40+R40+L40+F40 -> 0 | AF40: =Y40+S40+M40+G40 -> 0 | AG40: 0 | AH40: 0
B41: 3.9 | C41: Reinsurance Recoveries | D41: =SUM(E41:I41) -> 0 | J41: =SUM(K41:O41) -> 0 | P41: =SUM(Q41:U41) -> 0 | V41: =SUM(W41:AA41) -> 0 | AC41: =SUM(AD41:AH41)+AB41 -> 0 | AD41: =W41+Q41+K41+E41 -> 0 | AE41: 0 | AF41: 0 | AG41: 0 | AH41: 0
B42: 3.10 | C42: Net cost of Reinsurance | D42: =SUM(D40:D41) -> 0 | E42: =SUM(E40:E41) -> 0 | F42: =SUM(F40:F41) -> 0 | G42: 0 | H42: 0 | I42: 0 | J42: =SUM(J40:J41) -> 0 | K42: =SUM(K40:K41) -> 0 | L42: 0 | M42: 0 | N42: 0 | O42: 0 | P42: =SUM(P40:P41) -> 0 | Q42: =SUM(Q40:Q41) -> 0 | R42: 0 | S42: 0 | T42: 0 | U42: 0 | V42: =SUM(V40:V41) -> 0 | W42: =SUM(W40:W41) -> 0 | X42: 0 | Y42: 0 | Z42: 0 | AA42: 0 | AB42: 0 | AC42: =SUM(AC40:AC41) -> 0 | AD42: =SUM(AD40:AD41) -> 0 | AE42: =SUM(AE40:AE41) -> 0 | AF42: 0 | AG42: =SUM(AG40:AG41) -> 0 | AH42: =SUM(AH40:AH41) -> 0
B43: 3.11 | C43: Grand Total Medical Benefit Expense Net of Reinsurance | D43: =D39+D42 -> 3,174,537.72 | E43: =E39+E42 -> 2,765,235.40 | F43: =F39+F42 -> 344,259.32 | G43: 54,185.51 | H43: 5,272.59 | I43: =I39+I42 -> 5,584.90 | J43: =J39+J42 -> 3,274,490.61 | K43: =K39+K42 -> 2,810,566.15 | L43: =L39+L42 -> 397,070.83 | M43: 51,710.81 | N43: 9,102.42 | O43: =O39+O42 -> 6,040.40 | P43: =P39+P42 -> 3,309,118.50 | Q43: =Q39+Q42 -> 2,863,145.73 | R43: =R39+R42 -> 374,739.82 | S43: 56,836.04 | T43: 7,794.61 | U43: =U39+U42 -> 6,602.29 | V43: =V39+V42 -> 3,255,613.43 | W43: =W39+W42 -> 2,852,373.56 | X43: =X39+X42 -> 345,519.91 | Y43: 47,387.55 | Z43: 7,579.47 | AA43: =AA39+AA42 -> 2,752.94 | AB43: =AB39+AB42 -> (15,907.66) | AC43: =AC39+AC42 -> 12,997,852.60 | AD43: =AD39+AD42 -> 11,291,320.85 | AE43: =AE39+AE42 -> 1,461,589.89 | AF43: 210,119.91 | AG43: 29,749.09 | AH43: =AH39+AH42 -> 20,980.52
A44: Administrative Expenses, Government-Mandated Assessments, Taxes, and Fees | D44: JANUARY - MARCH (Q1) | J44: APRIL - JUNE (Q2) | P44: JULY - SEPTEMBER (Q3) | V44: OCTOBER - DECEMBER (Q4) | AC44: TOTAL (TO DATE)
D45: Total | E45: Health Plan | F45: Corporate | J45: Total | K45: Health Plan | L45: Corporate | P45: Total | Q45: Health Plan | R45: Corporate | V45: Total | W45: Health Plan | X45: Corporate | AB45: Prior Calendar Year Adjustments | AC45: Total | AD45: Health Plan | AE45: Corporate
A46: Administrative Expenses | B46: 4.1 | C46: Salaries & Benefits | D46: =SUM(E46:F46) -> 189,513.58 | F46: 189,513.58 | J46: =SUM(K46:L46) -> 177,568.02 | L46: 177,568.02 | P46: =SUM(Q46:R46) -> 164,544.91 | R46: 164,544.91 | V46: =SUM(W46:X46) -> 221,279.15 | X46: 221,279.15 | AC46: =SUM(AD46:AE46)+AB46 -> 752,905.66 | AD46: =W46+Q46+K46+E46 -> 0 | AE46: =X46+R46+L46+F46 -> 752,905.66
B47: 4.2 | C47: Administrative Services | D47: =SUM(E47:F47) -> 28,723.15 | F47: 28,723.15 | J47: =SUM(K47:L47) -> 26,912.65 | L47: 26,912.65 | P47: =SUM(Q47:R47) -> 24,938.83 | R47: 24,938.83 | V47: =SUM(W47:X47) -> 33,537.61 | X47: 33,537.61 | AC47: =SUM(AD47:AE47)+AB47 -> 114,112.24 | AD47: =W47+Q47+K47+E47 -> 0 | AE47: 114,112.24
B48: 4.3 | C48: Information Systems | D48: 23,248.25 | F48: 23,248.25 | J48: 21,782.85 | L48: 21,782.85 | P48: 20,185.26 | R48: 20,185.26 | V48: 27,145.03 | X48: 27,145.03 | AC48: =SUM(AD48:AE48)+AB48 -> 92,361.39 | AD48: 0 | AE48: 92,361.39
B49: 4.4 | C49: Marketing Expenses | D49: 5,310.58 | F49: 5,310.58 | J49: 4,975.84 | L49: 4,975.84 | P49: 4,610.91 | R49: 4,610.91 | V49: 6,200.72 | X49: 6,200.72 | AC49: =SUM(AD49:AE49)+AB49 -> 21,098.05 | AD49: 0 | AE49: 21,098.05
B50: 4.5 | C50: General Administration | D50: 134,392.72 | F50: 134,392.72 | J50: 125,921.58 | L50: 125,921.58 | P50: 116,686.30 | R50: 116,686.30 | V50: 156,919.14 | X50: 156,919.14 | AC50: 533,919.74 | AD50: 0 | AE50: 533,919.74
B51: 4.6 | C51: Compliance/Regulatory | D51: 172,866.08 | F51: =2935.27+169930.81 -> 172,866.08 | J51: 161,969.86 | L51: =2750.26+159219.6 -> 161,969.86 | P51: 150,090.75 | R51: =2548.54761971796+147542.2 -> 150,090.75 | V51: 201,841.25 | X51: =3427.27+198413.98 -> 201,841.25 | AC51: 686,767.94 | AD51: 0 | AE51: =X51+R51+L51+F51 -> 686,767.94
B52: 4.7 | C52: Total Administrative Expenses | D52: =SUM(D46:D51) -> 554,054.36 | E52: =SUM(E46:E51) -> 0 | F52: =SUM(F46:F51) -> 554,054.36 | J52: =SUM(J46:J51) -> 519,130.80 | K52: =SUM(K46:K51) -> 0 | L52: =SUM(L46:L51) -> 519,130.80 | P52: =SUM(P46:P51) -> 481,056.96 | Q52: =SUM(Q46:Q51) -> 0 | R52: =SUM(R46:R51) -> 481,056.96 | V52: =SUM(V46:V51) -> 646,922.90 | W52: =SUM(W46:W51) -> 0 | X52: =SUM(X46:X51) -> 646,922.90 | AB52: =SUM(AB46:AB51) -> 0 | AC52: =SUM(AC46:AC51) -> 2,201,165.02 | AD52: =SUM(AD46:AD51) -> 0 | AE52: =SUM(AE46:AE51) -> 2,201,165.02
A53: Government-Mandated Assessments, Taxes, and Fees Other Than Income Taxes | B53: 5.1 | C53: State Premium tax | AC53: =D53+J53+P53+V53+AB53 -> 0
B54: 5.2 | C54: Department of Insurance Assessments | AC54: =D54+J54+P54+V54+AB54 -> 0
B55: 5.3 | C55: Section 9010 Health Insurance Providers Fee | AC55: =D55+J55+P55+V55+AB55 -> 0
B56: 5.4 | C56: Other 1 | AC56: 0
B57: 5.5 | C57: Other 2 | AC57: 0
B58: 5.6 | C58: Other 3 | AC58: =D58+J58+P58+V58+AB58 -> 0
B59: 5.7 | C59: Total | D59: =SUM(D53:D58) -> 0 | J59: =SUM(J53:J58) -> 0 | P59: =SUM(P53:P58) -> 0 | V59: =SUM(V53:V58) -> 0 | AB59: =SUM(AB53:AB58) -> 0 | AC59: =SUM(AC53:AC58) -> 0
B60: 6.0 | C60: Grand Total Expenses | D60: =D43+D52+D59 -> 3,728,592.08 | J60: =J43+J52+J59 -> 3,793,621.41 | P60: =P43+P52+P59 -> 3,790,175.45 | V60: =V43+V52+V59 -> 3,902,536.33 | AB60: =AB43+AB52+AB59 -> (15,907.66) | AC60: =AC43+AC52+AC59 -> 15,199,017.62
B61: 7.0 | C61: Underwriting Gain / (Loss) --- AKA Pre-tax Earnings from Operations | D61: =D14-D60 -> 1,187,450.71 | J61: =J14-J60 -> 1,205,448.77 | P61: =P14-P60 -> 1,300,369.77 | V61: =V14-V60 -> 866,702.48 | AB61: =AB14-AB60 -> 44,162.02 | AC61: =AC14-AC60 -> 4,604,133.74
B62: 8.0 | C62: Income Tax Expense | D62: =+D61*21% -> 249,364.65 | J62: =+J61*21% -> 253,144.24 | P62: =+P61*21% -> 273,077.65 | V62: =+V61*21% -> 182,007.52 | AB62: =+AB61*21% -> 9,274.02 | AC62: =AB62+V62+P62+J62+D62 -> 966,868.09
B63: 9.0 | C63: Net Underwriting Gain (Loss) | D63: =D61-D62 -> 938,086.06 | J63: =J61-J62 -> 952,304.53 | P63: =P61-P62 -> 1,027,292.11 | V63: =V61-V62 -> 684,694.96 | AB63: =AB61-AB62 -> 34,887.99 | AC63: =AC61-AC62 -> 3,637,265.66

Sheet Dental Rev-Exp Region 8
A1: DENTAL -- REVENUE AND EXPENSE SCHEDULE - REGION 8
A3: Health Plan: | C3: ='Dental Rev-Exp Summary'!C3 -> 0
A4: Reporting Period: | C4: =IF('Dental Rev-Exp Summary'!C4=0,"",'Dental Rev-Exp Summary'!C4) -> 
A5: Paid Through: | C5: =IF('Dental Rev-Exp Summary'!C5=0,"",'Dental Rev-Exp Summary'!C5) -> 
A6: Region 8
D7: JANUARY - MARCH (Q1) | J7: APRIL - JUNE (Q2) | P7: JULY - SEPTEMBER (Q3) | V7: OCTOBER - DECEMBER (Q4) | AC7: TOTAL (TO DATE)
D8: Total | E8: Medicaid Only/Dual Eligible 0-20 Years | F8: Medicaid Only 21+ Years | G8: Dual Eligible 21+ Years | H8: Medically Needy 0-20 Years | I8: Medically Needy 21+ Years | J8: Total | K8: Medicaid Only/Dual Eligible 0-20 Years | L8: Medicaid Only 21+ Years | M8: Dual Eligible 21+ Years | N8: Medically Needy 0-20 Years | O8: Medically Needy 21+ Years | P8: Total | Q8: Medicaid Only/Dual Eligible 0-20 Years | R8: Medicaid Only 21+ Years | S8: Dual Eligible 21+ Years | T8: Medically Needy 0-20 Years | U8: Medically Needy 21+ Years | V8: Total | W8: Medicaid Only/Dual Eligible 0-20 Years | X8: Medicaid Only 21+ Years | Y8: Dual Eligible 21+ Years | Z8: Medically Needy 0-20 Years | AA8: Medically Needy 21+ Years | AB8: Prior Year Adjustments | AC8: Total | AD8: Medicaid Only/Dual Eligible 0-20 Years | AE8: Medicaid Only 21+ Years | AF8: Dual Eligible 21+ Years | AG8: Medically Needy 0-20 Years | AH8: Medically Needy 21+ Years
A9: MEMBER MONTHS | D9: =SUM(E9:I9) -> 292,310.92 | E9: 188,070.58 | F9: 79,334.98 | G9: 17,759.56 | H9: 1,580.02 | I9: 5,565.78 | J9: =SUM(K9:O9) -> 300,247.70 | K9: 191,550.15 | L9: 84,690.26 | M9: 16,804.10 | N9: 1,644.21 | O9: 5,558.98 | P9: =SUM(Q9:U9) -> 314,951.46 | Q9: 197,527.13 | R9: 93,027.18 | S9: 17,078.50 | T9: 1,592.86 | U9: 5,725.79 | V9: =SUM(W9:AA9) -> 325,165.29 | W9: 201,061.58 | X9: 99,301.79 | Y9: 17,069.68 | Z9: 1,619.09 | AA9: 6,113.15 | AB9: 4,703.16 | AC9: =SUM(AD9:AH9)+AB9 -> 1,237,378.53 | AD9: =W9+Q9+K9+E9 -> 778,209.44 | AE9: =X9+R9+L9+F9 -> 356,354.21 | AF9: 68,711.84 | AG9: =Z9+T9+N9+H9 -> 6,436.18 | AH9: =AA9+U9+O9+I9 -> 22,963.70
A10: REVENUES
A11: Revenues | B11: 1.1 | C11: Capitation | D11: =SUM(E11:I11) -> 2,090,620.07 | E11: 1,745,022.20 | F11: 270,043.70 | G11: 47,672.62 | H11: 8,887.24 | I11: 18,994.31 | J11: =SUM(K11:O11) -> 2,155,932.61 | K11: 1,788,789.46 | L11: 290,980.03 | M11: 47,819.70 | N11: 9,153.95 | O11: 19,189.47 | P11: =SUM(Q11:U11) -> 2,219,241.31 | Q11: 1,826,028.96 | R11: 317,044.12 | S11: 47,699.87 | T11: 8,840.83 | U11: 19,627.53 | V11: =SUM(W11:AA11) -> 2,157,844.84 | W11: 1,792,088.50 | X11: 296,451.09 | Y11: 44,162.79 | Z11: 7,906.07 | AA11: 17,236.39 | AB11: =4944.43+9127.69 -> 14,072.12 | AC11: =SUM(AD11:AH11)+AB11 -> 8,637,710.95 | AD11: =W11+Q11+K11+E11 -> 7,151,929.12 | AE11: =X11+R11+L11+F11 -> 1,174,518.94 | AF11: 187,354.98 | AG11: 34,788.09 | AH11: =AA11+U11+O11+I11 -> 75,047.70
B12: 1.2 | C12: ACA § 9010 related payments | D12: =SUM(E12:I12) -> 0 | J12: =SUM(K12:O12) -> 0 | P12: =SUM(Q12:U12) -> 0 | V12: =SUM(W12:AA12) -> 0 | AC12: =SUM(AD12:AH12)+AB12 -> 0 | AD12: =W12+Q12+K12+E12 -> 0 | AE12: 0 | AF12: =Y12+S12+M12+G12 -> 0 | AG12: 0 | AH12: =AA12+U12+O12+I12 -> 0
B13: 1.3 | C13: Other Revenue | D13: 0 | J13: 0 | P13: 0 | V13: 0 | AC13: =SUM(AD13:AH13)+AB13 -> 0 | AD13: =W13+Q13+K13+E13 -> 0 | AE13: =X13+R13+L13+F13 -> 0 | AF13: =Y13+S13+M13+G13 -> 0 | AG13: =Z13+T13+N13+H13 -> 0 | AH13: =AA13+U13+O13+I13 -> 0
B14: 1.4 | C14: Total Revenue | D14: =SUM(D11:D13) -> 2,090,620.07 | E14: =SUM(E11:E13) -> 1,745,022.20 | F14: 270,043.70 | G14: =SUM(G11:G13) -> 47,672.62 | H14: 8,887.24 | I14: 18,994.31 | J14: =SUM(J11:J13) -> 2,155,932.61 | K14: =SUM(K11:K13) -> 1,788,789.46 | L14: 290,980.03 | M14: 47,819.70 | N14: 9,153.95 | O14: 19,189.47 | P14: =SUM(P11:P13) -> 2,219,241.31 | Q14: =SUM(Q11:Q13) -> 1,826,028.96 | R14: 317,044.12 | S14: 47,699.87 | T14: 8,840.83 | U14: 19,627.53 | V14: =SUM(V11:V13) -> 2,157,844.84 | W14: =SUM(W11:W13) -> 1,792,088.50 | X14: 296,451.09 | Y14: 44,162.79 | Z14: 7,906.07 | AA14: 17,236.39 | AB14: =SUM(AB11:AB13) -> 14,072.12 | AC14: =SUM(AC11:AC13) -> 8,637,710.95 | AD14: =SUM(AD11:AD13) -> 7,151,929.12 | AE14: =SUM(AE11:AE13) -> 1,174,518.94 | AF14: =SUM(AF11:AF13) -> 187,354.98 | AG14: =SUM(AG11:AG13) -> 34,788.09 | AH14: 75,047.70
A15: BENEFIT EXPENSES | D15: JANUARY - MARCH (Q1) | J15: APRIL - JUNE (Q2) | P15: JULY - SEPTEMBER (Q3) | V15: OCTOBER - DECEMBER (Q4) | AC15: TOTAL (TO DATE)
D16: Total | E16: Medicaid Only/Dual Eligible 0-20 Years | F16: Medicaid Only 21+ Years | G16: Dual Eligible 21+ Years | H16: Medically Needy 0-20 Years | I16: Medically Needy 21+ Years | J16: Total | K16: Medicaid Only/Dual Eligible 0-20 Years | L16: Medicaid Only 21+ Years | M16: Dual Eligible 21+ Years | N16: Medically Needy 0-20 Years | O16: Medically Needy 21+ Years | P16: Total | Q16: Medicaid Only/Dual Eligible 0-20 Years | R16: Medicaid Only 21+ Years | S16: Dual Eligible 21+ Years | T16: Medically Needy 0-20 Years | U16: Medically Needy 21+ Years | V16: Total | W16: Medicaid Only/Dual Eligible 0-20 Years | X16: Medicaid Only 21+ Years | Y16: Dual Eligible 21+ Years | Z16: Medically Needy 0-20 Years | AA16: Medically Needy 21+ Years | AB16: Prior Year Adjustments | AC16: Total | AD16: Medicaid Only/Dual Eligible 0-20 Years | AE16: Medicaid Only 21+ Years | AF16: Dual Eligible 21+ Years | AG16: Medically Needy 0-20 Years | AH16: Medically Needy 21+ Years
A17: Dental | B17: 2.1 | C17: Dental Services Diagnostic FFS | D17: =SUM(E17:I17) -> 402,428.09 | E17: 381,421.02 | F17: 17,580.91 | G17: 1,995.38 | H17: 1,215.00 | I17: 215.78 | J17: =SUM(K17:O17) -> 393,042.51 | K17: 374,279.02 | L17: 15,578.44 | M17: 2,554.88 | N17: 458.17 | O17: 172.00 | P17: =SUM(Q17:U17) -> 309,955.51 | Q17: 285,574.17 | R17: 21,134.42 | S17: 2,551.21 | T17: 435.66 | U17: 260.05 | V17: =SUM(W17:AA17) -> 293,251.07 | W17: 270,969.03 | X17: 19,818.62 | Y17: 1,263.19 | Z17: 940.18 | AA17: 260.05 | AB17: 2,234.59 | AC17: =SUM(AD17:AH17)+AB17 -> 1,400,911.77 | AD17: =W17+Q17+K17+E17 -> 1,312,243.24 | AE17: =X17+R17+L17+F17 -> 74,112.39 | AF17: 8,364.66 | AG17: 3,049.01 | AH17: 907.88
B18: 2.2 | C18: Dental Services Preventive FFS | D18: =SUM(E18:I18) -> 460,102.41 | E18: 458,246.36 | F18: 0 | G18: 46.10 | H18: 1,809.95 | I18: 0 | J18: =SUM(K18:O18) -> 447,831.35 | K18: 446,513.29 | L18: 0 | M18: 0 | N18: 1,318.06 | O18: 0 | P18: =SUM(Q18:U18) -> 341,983.22 | Q18: 341,399.95 | R18: 0 | S18: 0 | T18: 583.27 | U18: 0 | V18: =SUM(W18:AA18) -> 353,783.42 | W18: 352,659.60 | X18: 0 | Y18: 0 | Z18: 1,123.82 | AA18: 0 | AB18: 2,879.51 | AC18: =SUM(AD18:AH18)+AB18 -> 1,606,579.91 | AD18: =W18+Q18+K18+E18 -> 1,598,819.20 | AE18: 0 | AF18: =Y18+S18+M18+G18 -> 46.10 | AG18: 4,835.10 | AH18: =AA18+U18+O18+I18 -> 0
B19: 2.3 | C19: Dental Services Restorative FFS | D19: 373,686.16 | E19: 372,145.05 | F19: 0 | G19: 0 | H19: 1,541.11 | I19: 0 | J19: 378,289.98 | K19: 377,649.47 | L19: 0 | M19: 0 | N19: 640.51 | O19: 0 | P19: 281,214.96 | Q19: 280,910.86 | R19: 0 | S19: 0 | T19: 304.10 | U19: 0 | V19: 252,506.98 | W19: 251,151.36 | X19: 0 | Y19: 0 | Z19: 1,355.62 | AA19: 0 | AB19: 1,254.35 | AC19: =SUM(AD19:AH19)+AB19 -> 1,286,952.43 | AD19: =W19+Q19+K19+E19 -> 1,281,856.74 | AE19: 0 | AF19: 0 | AG19: 3,841.34 | AH19: 0
B20: 2.4 | C20: Dental Services Endodontics FFS | D20: 54,798.98 | E20: 54,576.02 | F20: 0 | G20: 0 | H20: 222.96 | I20: 0 | J20: 66,313.85 | K20: 65,389.53 | L20: 0 | M20: 0 | N20: 924.32 | O20: 0 | P20: 56,812.28 | Q20: 56,812.28 | R20: 0 | S20: 0 | T20: 0 | U20: 0 | V20: 60,595.30 | W20: 60,575.68 | X20: 0 | Y20: 0 | Z20: 19.62 | AA20: 0 | AB20: 282.40 | AC20: 238,802.81 | AD20: 237,353.51 | AE20: 0 | AF20: 0 | AG20: 1,166.90 | AH20: 0
B21: 2.5 | C21: Dental Services Periodontics FFS | D21: 1,570.04 | E21: 1,532.59 | F21: 0 | G21: 0 | H21: 37.45 | I21: 0 | J21: 1,614.68 | K21: 1,614.68 | L21: 0 | M21: 0 | N21: 0 | O21: 0 | P21: 1,023.11 | Q21: 1,023.11 | R21: 0 | S21: 0 | T21: 0 | U21: 0 | V21: 537.49 | W21: 537.49 | X21: 0 | Y21: 0 | Z21: 0 | AA21: 0 | AB21: 0 | AC21: 4,745.32 | AD21: 4,707.87 | AE21: 0 | AF21: 0 | AG21: 37.45 | AH21: 0
B22: 2.6 | C22: Dental Services Prosthodontics FFS | D22: 13,576.33 | E22: 0 | F22: 10,474.83 | G22: 2,786.50 | H22: 0 | I22: 315.00 | J22: 11,899.00 | K22: 0 | L22: 8,435.00 | M22: 2,839.00 | N22: 0 | O22: 625.00 | P22: 9,940.92 | Q22: 0 | R22: 7,100.92 | S22: 2,840.00 | T22: 0 | U22: 0 | V22: 13,602.84 | W22: 0 | X22: 10,576.92 | Y22: 3,025.92 | Z22: 0 | AA22: 0 | AB22: 226.00 | AC22: 49,245.09 | AD22: 0 | AE22: 36,587.67 | AF22: 11,491.42 | AG22: 0 | AH22: 940.00
B23: 2.7 | C23: Dental Services Prosthodontics, fixed FFS | D23: 0 | E23: 0 | F23: 0 | G23: 0 | H23: 0 | I23: 0 | J23: 0 | K23: 0 | L23: 0 | M23: 0 | N23: 0 | O23: 0 | P23: 0 | Q23: 0 | R23: 0 | S23: 0 | T23: 0 | U23: 0 | V23: 0 | W23: 0 | X23: 0 | Y23: 0 | Z23: 0 | AA23: 0 | AB23: 0 | AC23: 0 | AD23: 0 | AE23: 0 | AF23: 0 | AG23: 0 | AH23: 0
B24: 2.8 | C24: Dental Services Oral and Maxillofacial Surgery FFS | D24: 112,208.81 | E24: 77,704.65 | F24: 30,629.60 | G24: 2,569.30 | H24: 80.26 | I24: 1,225.00 | J24: 87,667.53 | K24: 68,632.96 | L24: 15,572.64 | M24: 3,367.80 | N24: 40.13 | O24: 54.00 | P24: 86,962.87 | Q24: 68,636.00 | R24: 16,739.73 | S24: 1,516.00 | T24: 44.14 | U24: 27.00 | V24: 83,826.44 | W24: 57,507.24 | X24: 24,341.98 | Y24: 460.38 | Z24: 1,516.84 | AA24: 0 | AB24: 551.92 | AC24: 371,217.57 | AD24: 272,480.85 | AE24: 87,283.95 | AF24: 7,913.48 | AG24: 1,681.37 | AH24: 1,306.00
B25: 2.9 | C25: Dental Services Orthodontics FFS | D25: 15,915.90 | E25: 15,915.90 | F25: 0 | G25: 0 | H25: 0 | I25: 0 | J25: 13,292.43 | K25: 13,292.43 | L25: 0 | M25: 0 | N25: 0 | O25: 0 | P25: 11,345.27 | Q25: 11,345.27 | R25: 0 | S25: 0 | T25: 0 | U25: 0 | V25: 9,988.35 | W25: 9,988.35 | X25: 0 | Y25: 0 | Z25: 0 | AA25: 0 | AB25: 0 | AC25: 50,541.95 | AD25: 50,541.95 | AE25: 0 | AF25: 0 | AG25: 0 | AH25: 0
B26: 2.10 | C26: Dental Services Adjunctive General Services FFS | D26: 75,027.84 | E26: 68,500.74 | F26: 6,063.10 | G26: 150.00 | H26: 89.00 | I26: 225.00 | J26: 67,319.23 | K26: 63,052.29 | L26: 3,461.18 | M26: 711.00 | N26: 94.76 | O26: 0 | P26: 63,424.28 | Q26: 57,889.02 | R26: 4,010.50 | S26: 1,430.00 | T26: 94.76 | U26: 0 | V26: 57,582.95 | W26: 50,926.45 | X26: 3,599.70 | Y26: 2,490.18 | Z26: 566.62 | AA26: 0 | AB26: 739.10 | AC26: =SUM(AD26:AH26)+AB26 -> 264,093.40 | AD26: =W26+Q26+K26+E26 -> 240,368.50 | AE26: 17,134.48 | AF26: 4,781.18 | AG26: 845.14 | AH26: 225.00
B27: 2.11 | C27: Dental Services Other FFS | D27: 0 | E27: 0 | F27: 0 | G27: 0 | H27: 0 | I27: 0 | J27: 0 | K27: 0 | L27: 0 | M27: 0 | N27: 0 | O27: 0 | P27: 0 | Q27: 0 | R27: 0 | S27: 0 | T27: 0 | U27: 0 | V27: 0 | W27: 0 | X27: 0 | Y27: 0 | Z27: 0 | AA27: 0 | AB27: 0 | AC27: 0 | AD27: 0 | AE27: 0 | AF27: 0 | AG27: 0 | AH27: 0
B28: 2.12 | C28: Dental Expanded Benefits FFS | D28: 36,276.43 | E28: 0 | F28: 30,124.80 | G28: 5,361.26 | H28: 0 | I28: 790.37 | J28: 44,141.72 | K28: 0 | L28: 35,550.04 | M28: 8,073.09 | N28: 0 | O28: 518.59 | P28: 48,107.65 | Q28: 0 | R28: 41,633.74 | S28: 5,972.99 | T28: 0 | U28: 500.92 | V28: 46,139.13 | W28: 0 | X28: 41,280.43 | Y28: 4,311.81 | Z28: 0 | AA28: 546.89 | AB28: 717.27 | AC28: =SUM(AD28:AH28)+AB28 -> 175,382.20 | AD28: 0 | AE28: 148,589.01 | AF28: 23,719.15 | AG28: 0 | AH28: =AA28+U28+O28+I28 -> 2,356.77
B29: 2.13 | C29: Dental Services Paid through Subcapitation | D29: =SUM(E29:I29) -> 0 | E29: 0 | F29: 0 | G29: 0 | H29: 0 | I29: 0 | J29: =SUM(K29:O29) -> 0 | K29: 0 | L29: 0 | M29: 0 | N29: 0 | O29: 0 | P29: =SUM(Q29:U29) -> 0 | Q29: 0 | R29: 0 | S29: 0 | T29: 0 | U29: 0 | V29: =SUM(W29:AA29) -> 0 | W29: 0 | X29: 0 | Y29: 0 | Z29: 0 | AA29: 0 | AB29: 0 | AC29: =SUM(AD29:AH29)+AB29 -> 0 | AD29: 0 | AE29: 0 | AF29: 0 | AG29: 0 | AH29: 0
B30: 2.14 | C30: Ending IBNP for Dental Services | D30: 14.19 | E30: 13.13 | F30: 0.87 | G30: 0.12 | H30: 0.05 | I30: 0.03 | J30: =SUM(K30:O30) -> 646.15 | K30: 602.98 | L30: 33.60 | M30: 7.50 | N30: 1.49 | O30: 0.59 | P30: =SUM(Q30:U30) -> 2,233.33 | Q30: 2,035.63 | R30: 167.15 | S30: 26.40 | T30: 2.70 | U30: 1.45 | V30: =SUM(W30:AA30) -> 9,369.17 | W30: 8,429.72 | X30: 796.49 | Y30: 92.36 | Z30: 44.16 | AA30: 6.45 | AB30: (15,809.39) | AC30: (3,546.55) | AD30: 11,081.46 | AE30: 998.11 | AF30: 126.37 | AG30: 48.38 | AH30: =AA30+U30+O30+I30 -> 8.52
B31: 2.15 | C31: Dental Settlements/AP | D31: 0 | J31: 0 | P31: 0 | V31: 0 | AB31: 0 | AC31: =SUM(AD31:AH31)+AB31 -> 0 | AD31: 0 | AE31: 0 | AF31: 0 | AG31: 0 | AH31: 0
B32: 2.16 | C32: Total Dental Services | D32: =SUM(D17:D31) -> 1,545,605.18 | E32: =SUM(E17:E31) -> 1,430,055.46 | F32: 94,874.11 | G32: 12,908.66 | H32: 4,995.78 | I32: 2,771.18 | J32: =SUM(J17:J31) -> 1,512,058.43 | K32: =SUM(K17:K31) -> 1,411,026.65 | L32: 78,630.90 | M32: 17,553.27 | N32: 3,477.44 | O32: 1,370.18 | P32: =SUM(P17:P31) -> 1,213,003.40 | Q32: =SUM(Q17:Q31) -> 1,105,626.29 | R32: 90,786.46 | S32: 14,336.60 | T32: 1,464.63 | U32: 789.42 | V32: =SUM(V17:V31) -> 1,181,183.14 | W32: =SUM(W17:W31) -> 1,062,744.92 | X32: 100,414.14 | Y32: 11,643.84 | Z32: 5,566.86 | AA32: 813.39 | AB32: =SUM(AB17:AB31) -> (6,924.25) | AC32: =SUM(AC17:AC31) -> 5,444,925.90 | AD32: 5,009,453.32 | AE32: 364,705.61 | AF32: 56,442.36 | AG32: 15,504.69 | AH32: =SUM(AH17:AH31) -> 5,744.17
A33: Total Before and After Reinsurance | B33: 3.1 | C33: Total Dental Services Paid Directly FFS | D33: =SUM(D17:D28) -> 1,545,590.99 | E33: =SUM(E17:E28) -> 1,430,042.33 | F33: =SUM(F17:F28) -> 94,873.24 | G33: 12,908.54 | H33: 4,995.73 | I33: =SUM(I17:I28) -> 2,771.15 | J33: =SUM(J17:J28) -> 1,511,412.28 | K33: =SUM(K17:K28) -> 1,410,423.67 | L33: 78,597.30 | M33: 17,545.77 | N33: 3,475.95 | O33: =SUM(O17:O28) -> 1,369.59 | P33: =SUM(P17:P28) -> 1,210,770.07 | Q33: =SUM(Q17:Q28) -> 1,103,590.66 | R33: 90,619.31 | S33: 14,310.20 | T33: 1,461.93 | U33: =SUM(U17:U28) -> 787.97 | V33: =SUM(V17:V28) -> 1,171,813.97 | W33: =SUM(W17:W28) -> 1,054,315.20 | X33: 99,617.65 | Y33: 11,551.48 | Z33: 5,522.70 | AA33: =SUM(AA17:AA28) -> 806.94 | AB33: =SUM(AB17:AB28) -> 8,885.14 | AC33: =SUM(AD33:AH33)+AB33 -> 5,448,472.45 | AD33: =W33+Q33+K33+E33 -> 4,998,371.86 | AE33: 363,707.50 | AF33: 56,315.99 | AG33: 15,456.31 | AH33: 5,735.65
B34: 3.2 | C34: Total Dental Services Paid through Subcapitation | D34: =D29 -> 0 | E34: 0 | F34: =F29 -> 0 | G34: 0 | H34: 0 | I34: 0 | J34: =J29 -> 0 | K34: 0 | L34: =L29 -> 0 | M34: 0 | N34: 0 | O34: 0 | P34: =P29 -> 0 | Q34: 0 | R34: =R29 -> 0 | S34: 0 | T34: 0 | U34: 0 | V34: =V29 -> 0 | W34: 0 | X34: =X29 -> 0 | Y34: 0 | Z34: 0 | AA34: 0 | AB34: 0 | AC34: 0 | AD34: =W34+Q34+K34+E34 -> 0 | AE34: 0 | AF34: 0 | AG34: 0 | AH34: 0
B35: 3.3 | C35: Total Dental Services Paid Directly -- IBNP | D35: 14.19 | E35: 13.13 | F35: =F30 -> 0.87 | G35: 0.12 | H35: 0.05 | I35: 0.03 | J35: 646.15 | K35: 602.98 | L35: =L30 -> 33.60 | M35: 7.50 | N35: 1.49 | O35: 0.59 | P35: 2,233.33 | Q35: 2,035.63 | R35: =R30 -> 167.15 | S35: 26.40 | T35: 2.70 | U35: 1.45 | V35: 9,369.17 | W35: 8,429.72 | X35: =X30 -> 796.49 | Y35: 92.36 | Z35: 44.16 | AA35: 6.45 | AB35: (15,809.39) | AC35: (3,546.55) | AD35: 11,081.46 | AE35: 998.11 | AF35: 126.37 | AG35: =Z35+T35+N35+H35 -> 48.38 | AH35: 8.52
B36: 3.4 | C36: Total Dental Services Paid by Settlements/AP | D36: 0 | E36: 0 | F36: 0 | G36: 0 | H36: 0 | I36: 0 | J36: 0 | K36: 0 | L36: 0 | M36: 0 | N36: 0 | O36: 0 | P36: 0 | Q36: 0 | R36: 0 | S36: 0 | T36: 0 | U36: 0 | V36: 0 | W36: 0 | X36: 0 | Y36: 0 | Z36: 0 | AA36: 0 | AB36: 0 | AC36: 0 | AD36: =W36+Q36+K36+E36 -> 0 | AE36: 0 | AF36: 0 | AG36: 0 | AH36: =AA36+U36+O36+I36 -> 0
B37: 3.5 | C37: TPL & Fraud/Abuse Recoveries | D37: =SUM(E37:I37) -> 0 | J37: =SUM(K37:O37) -> 0 | P37: =SUM(Q37:U37) -> 0 | V37: =SUM(W37:AA37) -> 0 | AC37: 0 | AD37: =W37+Q37+K37+E37 -> 0 | AE37: 0 | AF37: 0 | AG37: 0 | AH37: =AA37+U37+O37+I37 -> 0
B38: 3.6 | C38: Premium Deficiency Reserve | D38: =SUM(E38:I38) -> 0 | J38: =SUM(K38:O38) -> 0 | P38: =SUM(Q38:U38) -> 0 | V38: =SUM(W38:AA38) -> 0 | AC38: 0 | AD38: =W38+Q38+K38+E38 -> 0 | AE38: 0 | AF38: =Y38+S38+M38+G38 -> 0 | AG38: 0 | AH38: =AA38+U38+O38+I38 -> 0
B39: 3.7 | C39: Subtotal Benefit Expense before Reinsurance | D39: =SUM(D33:D38) -> 1,545,605.18 | E39: =SUM(E33:E38) -> 1,430,055.46 | F39: =SUM(F33:F38) -> 94,874.11 | G39: 12,908.66 | H39: 4,995.78 | I39: =SUM(I33:I38) -> 2,771.18 | J39: =SUM(J33:J38) -> 1,512,058.43 | K39: =SUM(K33:K38) -> 1,411,026.65 | L39: =SUM(L33:L38) -> 78,630.90 | M39: 17,553.27 | N39: 3,477.44 | O39: =SUM(O33:O38) -> 1,370.18 | P39: =SUM(P33:P38) -> 1,213,003.40 | Q39: =SUM(Q33:Q38) -> 1,105,626.29 | R39: =SUM(R33:R38) -> 90,786.46 | S39: 14,336.60 | T39: 1,464.63 | U39: =SUM(U33:U38) -> 789.42 | V39: =SUM(V33:V38) -> 1,181,183.14 | W39: =SUM(W33:W38) -> 1,062,744.92 | X39: =SUM(X33:X38) -> 100,414.14 | Y39: 11,643.84 | Z39: 5,566.86 | AA39: =SUM(AA33:AA38) -> 813.39 | AB39: (6,924.25) | AC39: 5,444,925.90 | AD39: 5,009,453.32 | AE39: 364,705.61 | AF39: 56,442.36 | AG39: 15,504.69 | AH39: 5,744.17
B40: 3.8 | C40: Reinsurance Premiums | D40: =SUM(E40:I40) -> 0 | J40: =SUM(K40:O40) -> 0 | P40: =SUM(Q40:U40) -> 0 | V40: =SUM(W40:AA40) -> 0 | AC40: =SUM(AD40:AH40)+AB40 -> 0 | AD40: =W40+Q40+K40+E40 -> 0 | AE40: =X40+R40+L40+F40 -> 0 | AF40: =Y40+S40+M40+G40 -> 0 | AG40: 0 | AH40: 0
B41: 3.9 | C41: Reinsurance Recoveries | D41: =SUM(E41:I41) -> 0 | J41: =SUM(K41:O41) -> 0 | P41: =SUM(Q41:U41) -> 0 | V41: =SUM(W41:AA41) -> 0 | AC41: =SUM(AD41:AH41)+AB41 -> 0 | AD41: =W41+Q41+K41+E41 -> 0 | AE41: 0 | AF41: 0 | AG41: 0 | AH41: 0
B42: 3.10 | C42: Net cost of Reinsurance | D42: =SUM(D40:D41) -> 0 | E42: =SUM(E40:E41) -> 0 | F42: =SUM(F40:F41) -> 0 | G42: 0 | H42: 0 | I42: 0 | J42: =SUM(J40:J41) -> 0 | K42: =SUM(K40:K41) -> 0 | L42: 0 | M42: 0 | N42: 0 | O42: 0 | P42: =SUM(P40:P41) -> 0 | Q42: =SUM(Q40:Q41) -> 0 | R42: 0 | S42: 0 | T42: 0 | U42: 0 | V42: =SUM(V40:V41) -> 0 | W42: =SUM(W40:W41) -> 0 | X42: 0 | Y42: 0 | Z42: 0 | AA42: 0 | AB42: 0 | AC42: =SUM(AC40:AC41) -> 0 | AD42: =SUM(AD40:AD41) -> 0 | AE42: =SUM(AE40:AE41) -> 0 | AF42: 0 | AG42: =SUM(AG40:AG41) -> 0 | AH42: =SUM(AH40:AH41) -> 0
B43: 3.11 | C43: Grand Total Medical Benefit Expense Net of Reinsurance | D43: =D39+D42 -> 1,545,605.18 | E43: =E39+E42 -> 1,430,055.46 | F43: =F39+F42 -> 94,874.11 | G43: 12,908.66 | H43: 4,995.78 | I43: =I39+I42 -> 2,771.18 | J43: =J39+J42 -> 1,512,058.43 | K43: =K39+K42 -> 1,411,026.65 | L43: =L39+L42 -> 78,630.90 | M43: 17,553.27 | N43: 3,477.44 | O43: =O39+O42 -> 1,370.18 | P43: =P39+P42 -> 1,213,003.40 | Q43: =Q39+Q42 -> 1,105,626.29 | R43: =R39+R42 -> 90,786.46 | S43: 14,336.60 | T43: 1,464.63 | U43: =U39+U42 -> 789.42 | V43: =V39+V42 -> 1,181,183.14 | W43: =W39+W42 -> 1,062,744.92 | X43: =X39+X42 -> 100,414.14 | Y43: 11,643.84 | Z43: 5,566.86 | AA43: =AA39+AA42 -> 813.39 | AB43: =AB39+AB42 -> (6,924.25) | AC43: =AC39+AC42 -> 5,444,925.90 | AD43: =AD39+AD42 -> 5,009,453.32 | AE43: =AE39+AE42 -> 364,705.61 | AF43: 56,442.36 | AG43: 15,504.69 | AH43: =AH39+AH42 -> 5,744.17
A44: Administrative Expenses, Government-Mandated Assessments, Taxes, and Fees | D44: JANUARY - MARCH (Q1) | J44: APRIL - JUNE (Q2) | P44: JULY - SEPTEMBER (Q3) | V44: OCTOBER - DECEMBER (Q4) | AC44: TOTAL (TO DATE)
D45: Total | E45: Health Plan | F45: Corporate | J45: Total | K45: Health Plan | L45: Corporate | P45: Total | Q45: Health Plan | R45: Corporate | V45: Total | W45: Health Plan | X45: Corporate | AB45: Prior Calendar Year Adjustments | AC45: Total | AD45: Health Plan | AE45: Corporate
A46: Administrative Expenses | B46: 4.1 | C46: Salaries & Benefits | D46: =SUM(E46:F46) -> 80,455.97 | F46: 80,455.97 | J46: =SUM(K46:L46) -> 75,384.61 | L46: 75,384.61 | P46: =SUM(Q46:R46) -> 69,855.79 | R46: 69,855.79 | V46: =SUM(W46:X46) -> 93,941.71 | X46: 93,941.71 | AC46: =SUM(AD46:AE46)+AB46 -> 319,638.08 | AD46: =W46+Q46+K46+E46 -> 0 | AE46: =X46+R46+L46+F46 -> 319,638.08
B47: 4.2 | C47: Administrative Services | D47: =SUM(E47:F47) -> 12,194.11 | F47: 12,194.11 | J47: =SUM(K47:L47) -> 11,425.48 | L47: 11,425.48 | P47: =SUM(Q47:R47) -> 10,587.52 | R47: 10,587.52 | V47: =SUM(W47:X47) -> 14,238.04 | X47: 14,238.04 | AC47: =SUM(AD47:AE47)+AB47 -> 48,445.15 | AD47: =W47+Q47+K47+E47 -> 0 | AE47: 48,445.15
B48: 4.3 | C48: Information Systems | D48: 9,869.80 | F48: 9,869.80 | J48: 9,247.68 | L48: 9,247.68 | P48: 8,569.44 | R48: 8,569.44 | V48: 11,524.13 | X48: 11,524.13 | AC48: =SUM(AD48:AE48)+AB48 -> 39,211.05 | AD48: 0 | AE48: 39,211.05
B49: 4.4 | C49: Marketing Expenses | D49: 2,254.55 | F49: 2,254.55 | J49: 2,112.44 | L49: 2,112.44 | P49: 1,957.51 | R49: 1,957.51 | V49: 2,632.45 | X49: 2,632.45 | AC49: =SUM(AD49:AE49)+AB49 -> 8,956.95 | AD49: 0 | AE49: 8,956.95
B50: 4.5 | C50: General Administration | D50: 57,055.00 | F50: 57,055.00 | J50: 53,458.66 | L50: 53,458.66 | P50: 49,537.93 | R50: 49,537.93 | V50: 66,618.35 | X50: 66,618.35 | AC50: 226,669.94 | AD50: 0 | AE50: 226,669.94
B51: 4.6 | C51: Compliance/Regulatory | D51: 73,388.45 | F51: =1246.14+72142.31 -> 73,388.45 | J51: 68,762.58 | L51: =1167.59+67594.99 -> 68,762.58 | P51: 63,719.43 | R51: =1081.95873507931+62637.47 -> 63,719.43 | V51: 85,689.55 | X51: =1455.01+84234.54 -> 85,689.55 | AC51: 291,560.01 | AD51: 0 | AE51: =X51+R51+L51+F51 -> 291,560.01
B52: 4.7 | C52: Total Administrative Expenses | D52: =SUM(D46:D51) -> 235,217.88 | E52: =SUM(E46:E51) -> 0 | F52: =SUM(F46:F51) -> 235,217.88 | J52: =SUM(J46:J51) -> 220,391.45 | K52: =SUM(K46:K51) -> 0 | L52: =SUM(L46:L51) -> 220,391.45 | P52: =SUM(P46:P51) -> 204,227.61 | Q52: =SUM(Q46:Q51) -> 0 | R52: =SUM(R46:R51) -> 204,227.61 | V52: =SUM(V46:V51) -> 274,644.23 | W52: =SUM(W46:W51) -> 0 | X52: =SUM(X46:X51) -> 274,644.23 | AB52: =SUM(AB46:AB51) -> 0 | AC52: =SUM(AC46:AC51) -> 934,481.17 | AD52: =SUM(AD46:AD51) -> 0 | AE52: =SUM(AE46:AE51) -> 934,481.17
A53: Government-Mandated Assessments, Taxes, and Fees Other Than Income Taxes | B53: 5.1 | C53: State Premium tax | AC53: =D53+J53+P53+V53+AB53 -> 0
B54: 5.2 | C54: Department of Insurance Assessments | AC54: =D54+J54+P54+V54+AB54 -> 0
B55: 5.3 | C55: Section 9010 Health Insurance Providers Fee | AC55: =D55+J55+P55+V55+AB55 -> 0
B56: 5.4 | C56: Other 1 | AC56: 0
B57: 5.5 | C57: Other 2 | AC57: 0
B58: 5.6 | C58: Other 3 | AC58: =D58+J58+P58+V58+AB58 -> 0
B59: 5.7 | C59: Total | D59: =SUM(D53:D58) -> 0 | J59: =SUM(J53:J58) -> 0 | P59: =SUM(P53:P58) -> 0 | V59: =SUM(V53:V58) -> 0 | AB59: =SUM(AB53:AB58) -> 0 | AC59: =SUM(AC53:AC58) -> 0
B60: 6.0 | C60: Grand Total Expenses | D60: =D43+D52+D59 -> 1,780,823.06 | J60: =J43+J52+J59 -> 1,732,449.88 | P60: =P43+P52+P59 -> 1,417,231.00 | V60: =V43+V52+V59 -> 1,455,827.37 | AB60: =AB43+AB52+AB59 -> (6,924.25) | AC60: =AC43+AC52+AC59 -> 6,379,407.07
B61: 7.0 | C61: Underwriting Gain / (Loss) --- AKA Pre-tax Earnings from Operations | D61: =D14-D60 -> 309,797.01 | J61: =J14-J60 -> 423,482.73 | P61: =P14-P60 -> 802,010.31 | V61: =V14-V60 -> 702,017.47 | AB61: =AB14-AB60 -> 20,996.37 | AC61: =AC14-AC60 -> 2,258,303.88
B62: 8.0 | C62: Income Tax Expense | D62: =+D61*21% -> 65,057.37 | J62: =+J61*21% -> 88,931.37 | P62: =+P61*21% -> 168,422.16 | V62: =+V61*21% -> 147,423.67 | AB62: =+AB61*21% -> 4,409.24 | AC62: =AB62+V62+P62+J62+D62 -> 474,243.81
B63: 9.0 | C63: Net Underwriting Gain (Loss) | D63: =D61-D62 -> 244,739.63 | J63: =J61-J62 -> 334,551.36 | P63: =P61-P62 -> 633,588.14 | V63: =V61-V62 -> 554,593.80 | AB63: =AB61-AB62 -> 16,587.13 | AC63: =AC61-AC62 -> 1,784,060.07

Sheet Dental Rev-Exp Region 9
A1: DENTAL -- REVENUE AND EXPENSE SCHEDULE - REGION 9
A3: Health Plan: | C3: ='Dental Rev-Exp Summary'!C3 -> 0
A4: Reporting Period: | C4: =IF('Dental Rev-Exp Summary'!C4=0,"",'Dental Rev-Exp Summary'!C4) -> 
A5: Paid Through: | C5: =IF('Dental Rev-Exp Summary'!C5=0,"",'Dental Rev-Exp Summary'!C5) -> 
A6: Region 9
D7: JANUARY - MARCH (Q1) | J7: APRIL - JUNE (Q2) | P7: JULY - SEPTEMBER (Q3) | V7: OCTOBER - DECEMBER (Q4) | AC7: TOTAL (TO DATE)
D8: Total | E8: Medicaid Only/Dual Eligible 0-20 Years | F8: Medicaid Only 21+ Years | G8: Dual Eligible 21+ Years | H8: Medically Needy 0-20 Years | I8: Medically Needy 21+ Years | J8: Total | K8: Medicaid Only/Dual Eligible 0-20 Years | L8: Medicaid Only 21+ Years | M8: Dual Eligible 21+ Years | N8: Medically Needy 0-20 Years | O8: Medically Needy 21+ Years | P8: Total | Q8: Medicaid Only/Dual Eligible 0-20 Years | R8: Medicaid Only 21+ Years | S8: Dual Eligible 21+ Years | T8: Medically Needy 0-20 Years | U8: Medically Needy 21+ Years | V8: Total | W8: Medicaid Only/Dual Eligible 0-20 Years | X8: Medicaid Only 21+ Years | Y8: Dual Eligible 21+ Years | Z8: Medically Needy 0-20 Years | AA8: Medically Needy 21+ Years | AB8: Prior Year Adjustments | AC8: Total | AD8: Medicaid Only/Dual Eligible 0-20 Years | AE8: Medicaid Only 21+ Years | AF8: Dual Eligible 21+ Years | AG8: Medically Needy 0-20 Years | AH8: Medically Needy 21+ Years
A9: MEMBER MONTHS | D9: =SUM(E9:I9) -> 597,557.89 | E9: 416,960.94 | F9: 139,119.52 | G9: 32,079.12 | H9: 1,701.15 | I9: 7,697.16 | J9: =SUM(K9:O9) -> 599,948.28 | K9: 416,612.77 | L9: 143,997.62 | M9: 29,944.83 | N9: 1,690.88 | O9: 7,702.18 | P9: =SUM(Q9:U9) -> 616,989.71 | Q9: 423,593.11 | R9: 153,773.21 | S9: 29,943.59 | T9: 1,675.99 | U9: 8,003.81 | V9: =SUM(W9:AA9) -> 626,877.05 | W9: 425,597.76 | X9: 161,835.09 | Y9: 29,894.83 | Z9: 1,628.56 | AA9: 7,920.81 | AB9: 10,000.95 | AC9: =SUM(AD9:AH9)+AB9 -> 2,451,373.88 | AD9: =W9+Q9+K9+E9 -> 1,682,764.58 | AE9: =X9+R9+L9+F9 -> 598,725.44 | AF9: 121,862.37 | AG9: =Z9+T9+N9+H9 -> 6,696.58 | AH9: =AA9+U9+O9+I9 -> 31,323.96
A10: REVENUES
A11: Revenues | B11: 1.1 | C11: Capitation | D11: =SUM(E11:I11) -> 6,073,302.50 | E11: 5,467,739.11 | F11: 485,284.08 | G11: 86,551.96 | H11: 9,759.02 | I11: 23,968.33 | J11: =SUM(K11:O11) -> 6,129,474.27 | K11: 5,501,318.50 | L11: 508,237.90 | M11: 85,390.96 | N11: 9,863.23 | O11: 24,663.68 | P11: =SUM(Q11:U11) -> 6,191,635.61 | Q11: 5,533,374.23 | R11: 538,664.32 | S11: 84,271.97 | T11: 9,751.49 | U11: 25,573.60 | V11: =SUM(W11:AA11) -> 5,575,896.92 | W11: 4,964,219.90 | X11: 489,810.39 | Y11: 89,407.37 | Z11: 8,379.49 | AA11: 24,079.77 | AB11: =6360.43+11741.71 -> 18,102.14 | AC11: =SUM(AD11:AH11)+AB11 -> 23,988,411.44 | AD11: =W11+Q11+K11+E11 -> 21,466,651.74 | AE11: =X11+R11+L11+F11 -> 2,021,996.69 | AF11: 345,622.26 | AG11: 37,753.23 | AH11: =AA11+U11+O11+I11 -> 98,285.38
B12: 1.2 | C12: ACA § 9010 related payments | D12: =SUM(E12:I12) -> 0 | J12: =SUM(K12:O12) -> 0 | P12: =SUM(Q12:U12) -> 0 | V12: =SUM(W12:AA12) -> 0 | AC12: =SUM(AD12:AH12)+AB12 -> 0 | AD12: =W12+Q12+K12+E12 -> 0 | AE12: 0 | AF12: =Y12+S12+M12+G12 -> 0 | AG12: 0 | AH12: =AA12+U12+O12+I12 -> 0
B13: 1.3 | C13: Other Revenue | D13: 0 | J13: 0 | P13: 0 | V13: 0 | AC13: =SUM(AD13:AH13)+AB13 -> 0 | AD13: =W13+Q13+K13+E13 -> 0 | AE13: =X13+R13+L13+F13 -> 0 | AF13: =Y13+S13+M13+G13 -> 0 | AG13: =Z13+T13+N13+H13 -> 0 | AH13: =AA13+U13+O13+I13 -> 0
B14: 1.4 | C14: Total Revenue | D14: =SUM(D11:D13) -> 6,073,302.50 | E14: =SUM(E11:E13) -> 5,467,739.11 | F14: 485,284.08 | G14: =SUM(G11:G13) -> 86,551.96 | H14: 9,759.02 | I14: 23,968.33 | J14: =SUM(J11:J13) -> 6,129,474.27 | K14: =SUM(K11:K13) -> 5,501,318.50 | L14: 508,237.90 | M14: 85,390.96 | N14: 9,863.23 | O14: 24,663.68 | P14: =SUM(P11:P13) -> 6,191,635.61 | Q14: =SUM(Q11:Q13) -> 5,533,374.23 | R14: 538,664.32 | S14: 84,271.97 | T14: 9,751.49 | U14: 25,573.60 | V14: =SUM(V11:V13) -> 5,575,896.92 | W14: =SUM(W11:W13) -> 4,964,219.90 | X14: 489,810.39 | Y14: 89,407.37 | Z14: 8,379.49 | AA14: 24,079.77 | AB14: =SUM(AB11:AB13) -> 18,102.14 | AC14: =SUM(AC11:AC13) -> 23,988,411.44 | AD14: =SUM(AD11:AD13) -> 21,466,651.74 | AE14: =SUM(AE11:AE13) -> 2,021,996.69 | AF14: =SUM(AF11:AF13) -> 345,622.26 | AG14: =SUM(AG11:AG13) -> 37,753.23 | AH14: 98,285.38
A15: BENEFIT EXPENSES | D15: JANUARY - MARCH (Q1) | J15: APRIL - JUNE (Q2) | P15: JULY - SEPTEMBER (Q3) | V15: OCTOBER - DECEMBER (Q4) | AC15: TOTAL (TO DATE)
D16: Total | E16: Medicaid Only/Dual Eligible 0-20 Years | F16: Medicaid Only 21+ Years | G16: Dual Eligible 21+ Years | H16: Medically Needy 0-20 Years | I16: Medically Needy 21+ Years | J16: Total | K16: Medicaid Only/Dual Eligible 0-20 Years | L16: Medicaid Only 21+ Years | M16: Dual Eligible 21+ Years | N16: Medically Needy 0-20 Years | O16: Medically Needy 21+ Years | P16: Total | Q16: Medicaid Only/Dual Eligible 0-20 Years | R16: Medicaid Only 21+ Years | S16: Dual Eligible 21+ Years | T16: Medically Needy 0-20 Years | U16: Medically Needy 21+ Years | V16: Total | W16: Medicaid Only/Dual Eligible 0-20 Years | X16: Medicaid Only 21+ Years | Y16: Dual Eligible 21+ Years | Z16: Medically Needy 0-20 Years | AA16: Medically Needy 21+ Years | AB16: Prior Year Adjustments | AC16: Total | AD16: Medicaid Only/Dual Eligible 0-20 Years | AE16: Medicaid Only 21+ Years | AF16: Dual Eligible 21+ Years | AG16: Medically Needy 0-20 Years | AH16: Medically Needy 21+ Years
A17: Dental | B17: 2.1 | C17: Dental Services Diagnostic FFS | D17: =SUM(E17:I17) -> 1,347,259.47 | E17: 1,272,071.65 | F17: 61,135.76 | G17: 10,928.04 | H17: 1,007.63 | I17: 2,116.39 | J17: =SUM(K17:O17) -> 1,266,194.84 | K17: 1,190,819.72 | L17: 62,447.32 | M17: 9,928.83 | N17: 1,610.66 | O17: 1,388.31 | P17: =SUM(Q17:U17) -> 1,375,675.08 | Q17: 1,302,895.43 | R17: 61,784.22 | S17: 8,582.93 | T17: 1,251.01 | U17: 1,161.49 | V17: =SUM(W17:AA17) -> 1,297,120.12 | W17: 1,221,046.06 | X17: 65,921.96 | Y17: 7,832.97 | Z17: 1,668.52 | AA17: 650.61 | AB17: 6,858.89 | AC17: =SUM(AD17:AH17)+AB17 -> 5,293,108.40 | AD17: =W17+Q17+K17+E17 -> 4,986,832.86 | AE17: =X17+R17+L17+F17 -> 251,289.26 | AF17: 37,272.77 | AG17: 5,537.82 | AH17: 5,316.80
B18: 2.2 | C18: Dental Services Preventive FFS | D18: =SUM(E18:I18) -> 1,406,353.33 | E18: 1,404,986.98 | F18: 0 | G18: 435.43 | H18: 930.92 | I18: 0 | J18: =SUM(K18:O18) -> 1,399,672.05 | K18: 1,397,625.44 | L18: 0 | M18: 346.10 | N18: 1,700.51 | O18: 0 | P18: =SUM(Q18:U18) -> 1,501,622.48 | Q18: 1,500,147.49 | R18: 0 | S18: 259.12 | T18: 1,215.87 | U18: 0 | V18: =SUM(W18:AA18) -> 1,464,773.01 | W18: 1,463,089.36 | X18: 0 | Y18: 91.85 | Z18: 1,591.80 | AA18: 0 | AB18: 6,965.62 | AC18: =SUM(AD18:AH18)+AB18 -> 5,779,386.49 | AD18: =W18+Q18+K18+E18 -> 5,765,849.27 | AE18: 0 | AF18: =Y18+S18+M18+G18 -> 1,132.50 | AG18: 5,439.10 | AH18: =AA18+U18+O18+I18 -> 0
